Workbook

Sheet Sample Report (hidden)
A2: Date
A3: Hen
A4: Program
A5: Start at 999999
A6: Sequence component 1 | B6: Time 1 | C6: Seqeunce Component 2 | D6: Time 2 | E6: Seqeunce Component 3 | F6: Time 3 | G6: Correct 0 = No 1=Yes | J6: Seqeunce | K6: Time
A7: 12 | B7: 7 | C7: 12 | D7: 42 | E7: 13 | F7: 18 | G7: if 77 new line, if 31 or 41 = yes new line on 77, | J7: =string of Seqeunce compponent 1, 2 & 3 | K7: =time 3
A8: This continues until ther is a 1 on its own to indicate start of summary data
J9: 10-19 =1
A10: Summary Data | J10: 20-29 =2
A11: Correct | B11: Incorrect | C11: Rft | D11: total | E11: Av Correct | F11: Av Incorrect | G11: Percent correct | H11: Time | J11: in this example the seqeunce would be 111
A12: 40 | B12: 33 | C12: 40 | D12: 73 | E12: 23.95 | F12: 15 | G12: 54 | H12: 806

Sheet Summary
A2: Day | B2: Date | C2: Average Response Rate | D2: Target % | E2: RF for non correct sequence | F2: U Value | K2: Block 1 | L2: Block 2 | M2: Block 3 | N2: Block 4 | O2: Block 5 | P2: Block 6
A3: 1 | B3: ='!N129C40.096'!B2:C2 -> <date> | C3: =('!N129C40.096'!D7/60)/'!N129C40.096'!Q3 -> 0.001376146789 | D3: ='!N129C40.096'!N20/'!N129C40.096'!Q3 -> 0.004587155963 | E3: =SUM('!N129C40.096'!L20:Q20)/'!N129C40.096'!Q3 -> 0.4357798165 | F3: ='!N129C40.096'!Q16 -> 0.2030184882 | J3: Average Response Rate | K3: =AVERAGE(C3:C7) -> 0.003189386959 | L3: =AVERAGE(C8:C12) -> 0.006350534476 | M3: =AVERAGE(C13:C17) -> 0.005528619529 | N3: =AVERAGE(C18:C22) -> 0.005460926541 | O3: =AVERAGE(C23:C27) -> 0.006084780632 | P3: =AVERAGE(C28:C32) -> 0.005656116918
A4: 2 | B4: ='!N130B30.096'!B2:C2 -> <date> | C4: =('!N130B30.096'!D7/60)/'!N130B30.096'!Q3 -> 0.001683501684 | D4: ='!N130B30.096'!N20/'!N130B30.096'!Q3 -> 0.202020202 | E4: =SUM('!N130B30.096'!L20:Q20)/'!N130B30.096'!Q3 -> 0.6464646465 | F4: ='!N130B30.096'!Q16 -> 0.2265052715 | J4: Target % | K4: =AVERAGE(D3:D7) -> 0.4312787366 | L4: =AVERAGE(D8:D12) -> 0.7350750771 | M4: =AVERAGE(D13:D17) -> 0.8733044733 | N4: =AVERAGE(D18:D22) -> 0.8965227021 | O4: =AVERAGE(D23:D27) -> 0.9716446533 | P4: =AVERAGE(D28:D32) -> 0.9855981417
A5: 3 | B5: ='!N202C40.096'!B2:C2 -> <date> | C5: =('!N202C40.096'!D7/60)/'!N202C40.096'!Q3 -> 0.003645833333 | D5: ='!N202C40.096'!N20/'!N202C40.096'!Q3 -> 0.625 | E5: =SUM('!N202C40.096'!L20:Q20)/'!N202C40.096'!Q3 -> 1.140625 | F5: ='!N202C40.096'!Q16 -> 0.2567724644 | J5: CCRF | K5: =AVERAGE(E3:E7) -> 0.9210696191 | L5: =AVERAGE(E8:E12) -> 1.332822877 | M5: =AVERAGE(E13:E17) -> 1.497215007 | N5: =AVERAGE(E18:E22) -> 1.538262458 | O5: =AVERAGE(E23:E27) -> 1.593213678 | P5: =AVERAGE(E28:E32) -> 1.611236934
A6: 4 | B6: ='!N204B50.096'!B2:C2 -> <date> | C6: =('!N204B50.096'!D7/60)/'!N204B50.096'!Q3 -> 0.003472222222 | D6: ='!N204B50.096'!N20/'!N204B50.096'!Q3 -> 0.5555555556 | E6: =SUM('!N204B50.096'!L20:Q20)/'!N204B50.096'!Q3 -> 1.055555556 | F6: ='!N204B50.096'!Q16 -> 0.2720076879 | J6: U Value | K6: =AVERAGE(F3:F7) -> 0.2271008228 | L6: =AVERAGE(F8:F12) -> 0.1750643663 | M6: =AVERAGE(F13:F17) -> 0.1107222534 | N6: =AVERAGE(F18:F22) -> 0.08306325003 | O6: =AVERAGE(F23:F27) -> 0.03223599652 | P6: =AVERAGE(F28:F32) -> 0.0181856866
A7: 5 | B7: ='!N206940.096'!B2:C2 -> <date> | C7: =('!N206940.096'!D7/60)/'!N206940.096'!Q3 -> 0.005769230769 | D7: ='!N206940.096'!N20/'!N206940.096'!Q3 -> 0.7692307692 | E7: =SUM('!N206940.096'!L20:Q20)/'!N206940.096'!Q3 -> 1.326923077 | F7: ='!N206940.096'!Q16 -> 0.1772002017
A8: 6 | B8: ='!N209910.096'!B2:C2 -> <date> | C8: =('!N209910.096'!D7/60)/'!N209910.096'!Q3 -> 0.01123595506 | D8: ='!N209910.096'!N20/'!N209910.096'!Q3 -> 0.4494382022 | E8: =SUM('!N209910.096'!L20:Q20)/'!N209910.096'!Q3 -> 0.9101123596 | F8: ='!N209910.096'!Q16 -> 0.254776452
A9: 7 | B9: ='!N210920.096'!B2:C2 -> <date> | C9: =('!N210920.096'!D7/60)/'!N210920.096'!Q3 -> 0.003968253968 | D9: ='!N210920.096'!N20/'!N210920.096'!Q3 -> 0.6349206349 | E9: =SUM('!N210920.096'!L20:Q20)/'!N210920.096'!Q3 -> 1.158730159 | F9: ='!N210920.096'!Q16 -> 0.2421322823 | G9: =K3 -> 0.003189386959 | H9: 0.006350534476 | I9: 0.005528619529 | J9: 0.005460926541 | K9: 0.006084780632 | L9: 0.005656116918 | M9: =K4 -> 0.4312787366 | N9: 0.7350750771 | O9: 0.8733044733 | P9: 0.8965227021 | Q9: 0.9716446533 | R9: 0.9855981417 | S9: =K6 -> 0.2271008228 | T9: 0.1750643663 | U9: 0.1107222534 | V9: 0.08306325003 | W9: 0.03223599652 | X9: 0.0181856866
A10: 8 | B10: ='!N212A10.096'!B2:C2 -> <date> | C10: =('!N212A10.096'!D7/60)/'!N212A10.096'!Q3 -> 0.005555555556 | D10: ='!N212A10.096'!N20/'!N212A10.096'!Q3 -> 0.8888888889 | E10: =SUM('!N212A10.096'!L20:Q20)/'!N212A10.096'!Q3 -> 1.488888889 | F10: ='!N212A10.096'!Q16 -> 0.09163725357
A11: 9 | B11: ='!N213A10.096'!B2:C2 -> <date> | C11: =('!N213A10.096'!D7/60)/'!N213A10.096'!Q3 -> 0.005673758865 | D11: ='!N213A10.096'!N20/'!N213A10.096'!Q3 -> 0.8510638298 | E11: =SUM('!N213A10.096'!L20:Q20)/'!N213A10.096'!Q3 -> 1.446808511 | F11: ='!N213A10.096'!Q16 -> 0.1510488293
A12: 10 | B12: ='!N217930.096'!B2:C2 -> <date> | C12: =('!N217930.096'!D7/60)/'!N217930.096'!Q3 -> 0.005319148936 | D12: ='!N217930.096'!N20/'!N217930.096'!Q3 -> 0.8510638298 | E12: =SUM('!N217930.096'!L20:Q20)/'!N217930.096'!Q3 -> 1.659574468 | F12: ='!N217930.096'!Q16 -> 0.1357270143
A13: 11 | B13: ='!N218A30.096'!B2:C2 -> <date> | C13: =('!N218A30.096'!D7/60)/'!N218A30.096'!Q3 -> 0.005555555556 | D13: ='!N218A30.096'!N20/'!N218A30.096'!Q3 -> 0.8888888889 | E13: =SUM('!N218A30.096'!L20:Q20)/'!N218A30.096'!Q3 -> 1.488888889 | F13: ='!N218A30.096'!Q16 -> 0.1062432948
A14: 12 | B14: ='!N219A40.096'!B2:C2 -> <date> | C14: =('!N219A40.096'!D7/60)/'!N219A40.096'!Q3 -> 0.004545454545 | D14: ='!N219A40.096'!N20/'!N219A40.096'!Q3 -> 0.7272727273 | E14: =SUM('!N219A40.096'!L20:Q20)/'!N219A40.096'!Q3 -> 1.436363636 | F14: ='!N219A40.096'!Q16 -> 0.1958929709
A15: 13 | B15: ='!N220C30.096'!B2:C2 -> <date> | C15: =('!N220C30.096'!D7/60)/'!N220C30.096'!Q3 -> 0.005925925926 | D15: ='!N220C30.096'!N20/'!N220C30.096'!Q3 -> 0.8888888889 | E15: =SUM('!N220C30.096'!L20:Q20)/'!N220C30.096'!Q3 -> 1.466666667 | F15: ='!N220C30.096'!Q16 -> 0.1062432948
A16: 14 | B16: ='!N225A30.096'!B2:C2 -> <date> | C16: =('!N225A30.096'!D7/60)/'!N225A30.096'!Q3 -> 0.005555555556 | D16: ='!N225A30.096'!N20/'!N225A30.096'!Q3 -> 0.9523809524 | E16: =SUM('!N225A30.096'!L20:Q20)/'!N225A30.096'!Q3 -> 1.571428571 | F16: ='!N225A30.096'!Q16 -> 0.05122017233
A17: 15 | B17: ='!N227B10.096'!B2:C2 -> <date> | C17: =('!N227B10.096'!D7/60)/'!N227B10.096'!Q3 -> 0.006060606061 | D17: ='!N227B10.096'!N20/'!N227B10.096'!Q3 -> 0.9090909091 | E17: =SUM('!N227B10.096'!L20:Q20)/'!N227B10.096'!Q3 -> 1.522727273 | F17: ='!N227B10.096'!Q16 -> 0.09401153445
A18: 16 | B18: ='!N304B30.096'!B2:C2 -> <date> | C18: =('!N304B30.096'!D7/60)/'!N304B30.096'!Q3 -> 0.006349206349 | D18: ='!N304B30.096'!N20/'!N304B30.096'!Q3 -> 0.9523809524 | E18: =SUM('!N304B30.096'!L20:Q20)/'!N304B30.096'!Q3 -> 1.571428571 | F18: ='!N304B30.096'!Q16 -> 0.05122017233
A19: 17 | B19: ='!N306A30.096'!B2:C2 -> <date> | C19: =('!N306A30.096'!D7/60)/'!N306A30.096'!Q3 -> 0.00503875969 | D19: ='!N306A30.096'!N20/'!N306A30.096'!Q3 -> 0.9302325581 | E19: =SUM('!N306A30.096'!L20:Q20)/'!N306A30.096'!Q3 -> 1.534883721 | F19: ='!N306A30.096'!Q16 -> 0.06727559493
A20: 18 | B20: ='!N312B20.096'!B2:C2 -> <date> | C20: =('!N312B20.096'!D7/60)/'!N312B20.096'!Q3 -> 0.004666666667 | D20: ='!N312B20.096'!N20/'!N312B20.096'!Q3 -> 0.8 | E20: =SUM('!N312B20.096'!L20:Q20)/'!N312B20.096'!Q3 -> 1.58 | F20: ='!N312B20.096'!Q16 -> 0.1279139777
A21: 19 | B21: ='!N314B50.096'!B2:C2 -> <date> | C21: =('!N314B50.096'!D7/60)/'!N314B50.096'!Q3 -> 0.00625 | D21: ='!N314B50.096'!N20/'!N314B50.096'!Q3 -> 1 | E21: =SUM('!N314B50.096'!L20:Q20)/'!N314B50.096'!Q3 -> 1.625 | F21: ='!N314B50.096'!Q16 -> 0
A22: 20 | B22: ='!N317800.096'!B2:C2 -> <date> | C22: =('!N317800.096'!D7/60)/'!N317800.096'!Q3 -> 0.005 | D22: ='!N317800.096'!N20/'!N317800.096'!Q3 -> 0.8 | E22: =SUM('!N317800.096'!L20:Q20)/'!N317800.096'!Q3 -> 1.38 | F22: ='!N317800.096'!Q16 -> 0.1689065052
A23: 21 | B23: ='!N318740.096'!B2:C2 -> <date> | C23: =('!N318740.096'!D7/60)/'!N318740.096'!Q3 -> 0.005813953488 | D23: ='!N318740.096'!N20/'!N318740.096'!Q3 -> 0.9302325581 | E23: =SUM('!N318740.096'!L20:Q20)/'!N318740.096'!Q3 -> 1.534883721 | F23: ='!N318740.096'!Q16 -> 0.07908245547
A24: 22 | B24: ='!N319720.096'!B2:C2 -> <date> | C24: =('!N319720.096'!D7/60)/'!N319720.096'!Q3 -> 0.005158730159 | D24: ='!N319720.096'!N20/'!N319720.096'!Q3 -> 0.9523809524 | E24: =SUM('!N319720.096'!L20:Q20)/'!N319720.096'!Q3 -> 1.571428571 | F24: ='!N319720.096'!Q16 -> 0.05122017233
A25: 23 | B25: ='!N320900.096'!B2:C2 -> <date> | C25: =('!N320900.096'!D7/60)/'!N320900.096'!Q3 -> 0.00625 | D25: ='!N320900.096'!N20/'!N320900.096'!Q3 -> 1 | E25: =SUM('!N320900.096'!L20:Q20)/'!N320900.096'!Q3 -> 1.625 | F25: ='!N320900.096'!Q16 -> 0
A26: 24 | B26: ='!N321920.096'!B2:C2 -> <date> | C26: =('!N321920.096'!D7/60)/'!N321920.096'!Q3 -> 0.007916666667 | D26: ='!N321920.096'!N20/'!N321920.096'!Q3 -> 1 | E26: =SUM('!N321920.096'!L20:Q20)/'!N321920.096'!Q3 -> 1.625 | F26: ='!N321920.096'!Q16 -> 0
A27: 25 | B27: ='!N322950.096'!B2:C2 -> <date> | C27: =('!N322950.096'!D7/60)/'!N322950.096'!Q3 -> 0.005284552846 | D27: ='!N322950.096'!N20/'!N322950.096'!Q3 -> 0.9756097561 | E27: =SUM('!N322950.096'!L20:Q20)/'!N322950.096'!Q3 -> 1.609756098 | F27: ='!N322950.096'!Q16 -> 0.03087735478
A28: 26 | B28: ='!N323A00.096'!B2:C2 -> <date> | C28: =('!N323A00.096'!D7/60)/'!N323A00.096'!Q3 -> 0.005284552846 | D28: ='!N323A00.096'!N20/'!N323A00.096'!Q3 -> 0.9756097561 | E28: =SUM('!N323A00.096'!L20:Q20)/'!N323A00.096'!Q3 -> 1.609756098 | F28: ='!N323A00.096'!Q16 -> 0.03087735478
A29: 27 | B29: ='!N324850.096'!B2:C2 -> <date> | C29: =('!N324850.096'!D7/60)/'!N324850.096'!Q3 -> 0.005833333333 | D29: ='!N324850.096'!N20/'!N324850.096'!Q3 -> 1 | E29: =SUM('!N324850.096'!L20:Q20)/'!N324850.096'!Q3 -> 1.625 | F29: ='!N324850.096'!Q16 -> 0
A30: 28 | B30: ='!N325940.096'!B2:C2 -> <date> | C30: =('!N325940.096'!D7/60)/'!N325940.096'!Q3 -> 0.004583333333 | D30: ='!N325940.096'!N20/'!N325940.096'!Q3 -> 1 | E30: =SUM('!N325940.096'!L20:Q20)/'!N325940.096'!Q3 -> 1.625 | F30: ='!N325940.096'!Q16 -> 0
A31: 29 | B31: ='!N326930.096'!B2:C2 -> <date> | C31: =('!N326930.096'!D7/60)/'!N326930.096'!Q3 -> 0.005833333333 | D31: ='!N326930.096'!N20/'!N326930.096'!Q3 -> 1 | E31: =SUM('!N326930.096'!L20:Q20)/'!N326930.096'!Q3 -> 1.625 | F31: ='!N326930.096'!Q16 -> 0
A32: 30 | B32: ='!N327820.096'!B2:C2 -> <date> | C32: =('!N327820.096'!D7/60)/'!N327820.096'!Q3 -> 0.006746031746 | D32: ='!N327820.096'!N20/'!N327820.096'!Q3 -> 0.9523809524 | E32: =SUM('!N327820.096'!L20:Q20)/'!N327820.096'!Q3 -> 1.571428571 | F32: ='!N327820.096'!Q16 -> 0.06005107821

Sheet Start
F1: Use Folder 51 | H1: Auto Clean Up | J1: Correct sequence
F2: FALSE | H2: TRUE | J2: 12
A4: Working with Folder | G4: Process All/Or Pick A number: ALL or an integer
A5: E:\Hen Data\Raw Data\96_176\phase 4 VAr\ | G5: ALL
A6: Filenames:
A7: !N129C40.096 | G7: Paint Cells
A8: !N318740.096 | G8: FALSE
A9: !N319720.096
A10: !N320900.096
A11: !N321920.096
A12: !N322950.096
A13: !N324850.096
A14: !N325940.096
A15: !N326930.096
A16: !N327820.096
A17: !N130B30.096
A18: !N202C40.096
A19: !N204B50.096
A20: !N212A10.096
A21: !N213A10.096
A22: !N218A30.096
A23: !N219A40.096
A24: !N220C30.096
A25: !N225A30.096
A26: !N227B10.096
A27: !N304B30.096
A28: !N306A30.096
A29: !N312B20.096
A30: !N314B50.096
A31: !N323A00.096
A32: !N206940.096
A33: !N209910.096
A34: !N210920.096
A35: !N217930.096
A36: !N317800.096

Sheet !N129C40.096
A1: Report for:!N129C40.096
A2: Date: | B2: <date>
A3: Hen: | B3: <hen> | F3: Correct Sequence | G3: =Start!J2 -> 12 | P3: Total Sequences in Data | Q3: =4994-COUNTBLANK(L7:L5000) -> 218 | V3: Total Sequences in Block Data | W3: =COUNTA(L7:L42) -> 36 | AA3: Total Sequences in Block Data | AB3: =COUNTA(L43:L79) -> 37 | AF3: Total Sequences in Block Data | AG3: =COUNTA(L80:L115) -> 36 | AK3: Total Sequences in Block Data | AL3: =COUNTA(L116:L151) -> 36 | AP3: Total Sequences in Block Data | AQ3: =COUNTA(L152:L188) -> 37 | AU3: Total Sequences in Block Data | AV3: =COUNTA(L189:L224) -> 36
P4: Total Sequences in Summary | Q4: =SUM(O7:O14) -> 218 | V4: Total Sequences in Block Summary | W4: =SUM(U7:U14) -> 36 | AA4: Total Sequences in Block Summary | AB4: =SUM(Z7:Z14) -> 37 | AF4: Total Sequences in Block Summary | AG4: =SUM(AE7:AE14) -> 36 | AK4: Total Sequences in Block Summary | AL4: =SUM(AJ7:AJ14) -> 36 | AP4: Total Sequences in Block Summary | AQ4: =SUM(AO7:AO14) -> 37 | AU4: Total Sequences in Block Summary | AV4: =SUM(AT7:AT14) -> 36
T5: Block 1 | Y5: Block 2 | AD5: Block 3 | AI5: Block 4 | AN5: Block 5 | AS5: Block 6
A6: Sequence Component 1 | B6: Time 1 | C6: Sequence Component 2 | D6: Time 2 | E6: Sequence Component 3 | F6: Time 3 | G6: Sequence Component 4 | H6: Time 4 | I6: Sequence Component 5 | J6: Time 5 | K6: Correct? 0=No 1=Yes | L6: Sequence | N6: Frequency | P6: Relative Frequency | Q6: Variability | T6: Frequency | V6: Relative Frequency | W6: Variability | Y6: Frequency | AA6: Relative Frequency | AB6: Variability | AD6: Frequency | AF6: Relative Frequency | AG6: Variability | AI6: Frequency | AK6: Relative Frequency | AL6: Variability | AN6: Frequency | AP6: Relative Frequency | AQ6: Variability | AS6: Frequency | AU6: Relative Frequency | AV6: Variability
A7: 11 | B7: 13 | C7: 12 | D7: 18 | K7: 0 | L7: 11 | N7: 11 | O7: =COUNTIF($L$7:$L$500,N7) -> 51 | P7: =O7/$Q$4 -> 0.2339449541 | Q7: =IF(P7=0,0,(P7*((LOG(P7))/LOG(2)))) -> -0.4902922391 | T7: =N7 -> 11 | U7: =COUNTIF(L7:L42,T7) -> 10 | V7: =U7/(W4-U8) -> 0.2777777778 | W7: =IF(V7=0,0,(V7*((LOG(V7))/LOG(2)))) -> -0.513332474 | Y7: =N7 -> 11 | Z7: =COUNTIF(L43:L79,Y7) -> 8 | AA7: =Z7/(AB4-Z8) -> 0.2162162162 | AB7: =IF(AA7=0,0,(AA7*((LOG(AA7))/LOG(2)))) -> -0.4777196466 | AD7: =N7 -> 11 | AE7: =COUNTIF(L80:L115,AD7) -> 7 | AF7: =AE7/(AG4-AE8) -> 0.1944444444 | AG7: =IF(AF7=0,0,(AF7*((LOG(AF7))/LOG(2)))) -> -0.4593886265 | AI7: =N7 -> 11 | AJ7: =COUNTIF(L116:L151,AI7) -> 5 | AK7: =AJ7/(AL4-AJ8) -> 0.1388888889 | AL7: =IF(AK7=0,0,(AK7*((LOG(AK7))/LOG(2)))) -> -0.3955551259 | AN7: =N7 -> 11 | AO7: =COUNTIF(L152:L188,AN7) -> 13 | AP7: =AO7/(AQ4-AO8) -> 0.3513513514 | AQ7: =IF(AP7=0,0,(AP7*((LOG(AP7))/LOG(2)))) -> -0.5301939843 | AS7: =N7 -> 11 | AT7: =COUNTIF(L189:L224,AS7) -> 8 | AU7: =AT7/(AV4-AT8) -> 0.2285714286 | AV7: =IF(AU7=0,0,(AU7*((LOG(AU7))/LOG(2)))) -> -0.486693261
A8: 11 | B8: 123 | C8: 12 | D8: 128 | K8: 0 | L8: 11 | N8: 12 | O8: =COUNTIF($L$7:$L$500,N8) -> 1 | P8: =O8/$Q$4 -> 0.004587155963 | Q8: =IF(P8=0,0,(P8*((LOG(P8))/LOG(2)))) -> -0.03563387305 | T8: =N8 -> 12 | U8: =COUNTIF(L7:L42,T8) -> 0 | Y8: =N8 -> 12 | Z8: =COUNTIF(L43:L79,Y8) -> 0 | AD8: =N8 -> 12 | AE8: =COUNTIF(L80:L115,AD8) -> 0 | AI8: =N8 -> 12 | AJ8: =COUNTIF(L116:L151,AI8) -> 0 | AN8: =N8 -> 12 | AO8: =COUNTIF(L152:L188,AN8) -> 0 | AS8: =N8 -> 12 | AT8: =COUNTIF(L189:L224,AS8) -> 1
A9: 22 | B9: 224 | C9: 14 | D9: 232 | K9: 0 | L9: 21 | N9: 21 | O9: =COUNTIF($L$7:$L$500,N9) -> 94 | P9: =O9/$Q$4 -> 0.4311926606 | Q9: =IF(P9=0,0,(P9*((LOG(P9))/LOG(2)))) -> -0.5232934609 | T9: =N9 -> 21 | U9: =COUNTIF(L7:L42,T9) -> 19 | V9: =U9/(W4-U8) -> 0.5277777778 | W9: =IF(V9=0,0,(V9*((LOG(V9))/LOG(2)))) -> -0.4866097853 | Y9: =N9 -> 21 | Z9: =COUNTIF(L43:L79,Y9) -> 16 | AA9: =Z9/(AB4-Z8) -> 0.4324324324 | AB9: =IF(AA9=0,0,(AA9*((LOG(AA9))/LOG(2)))) -> -0.5230068608 | AD9: =N9 -> 21 | AE9: =COUNTIF(L80:L115,AD9) -> 26 | AF9: =AE9/(AG4-AE8) -> 0.7222222222 | AG9: =IF(AF9=0,0,(AF9*((LOG(AF9))/LOG(2)))) -> -0.3390727046 | AI9: =N9 -> 21 | AJ9: =COUNTIF(L116:L151,AI9) -> 15 | AK9: =AJ9/(AL4-AJ8) -> 0.4166666667 | AL9: =IF(AK9=0,0,(AK9*((LOG(AK9))/LOG(2)))) -> -0.5262643358 | AN9: =N9 -> 21 | AO9: =COUNTIF(L152:L188,AN9) -> 9 | AP9: =AO9/(AQ4-AO8) -> 0.2432432432 | AQ9: =IF(AP9=0,0,(AP9*((LOG(AP9))/LOG(2)))) -> -0.496101494 | AS9: =N9 -> 21 | AT9: =COUNTIF(L189:L224,AS9) -> 9 | AU9: =AT9/(AV4-AT8) -> 0.2571428571 | AV9: =IF(AU9=0,0,(AU9*((LOG(AU9))/LOG(2)))) -> -0.5038349183
A10: 11 | B10: 337 | C10: 12 | D10: 341 | K10: 0 | L10: 11 | N10: 22 | O10: =COUNTIF($L$7:$L$500,N10) -> 72 | P10: =O10/$Q$4 -> 0.3302752294 | Q10: =IF(P10=0,0,(P10*((LOG(P10))/LOG(2)))) -> -0.5278654646 | T10: =N10 -> 22 | U10: =COUNTIF(L7:L42,T10) -> 7 | V10: =U10/(W4-U8) -> 0.1944444444 | W10: =IF(V10=0,0,(V10*((LOG(V10))/LOG(2)))) -> -0.4593886265 | Y10: =N10 -> 22 | Z10: =COUNTIF(L43:L79,Y10) -> 13 | AA10: =Z10/(AB4-Z8) -> 0.3513513514 | AB10: =IF(AA10=0,0,(AA10*((LOG(AA10))/LOG(2)))) -> -0.5301939843 | AD10: =N10 -> 22 | AE10: =COUNTIF(L80:L115,AD10) -> 3 | AF10: =AE10/(AG4-AE8) -> 0.08333333333 | AG10: =IF(AF10=0,0,(AF10*((LOG(AF10))/LOG(2)))) -> -0.2987468751 | AI10: =N10 -> 22 | AJ10: =COUNTIF(L116:L151,AI10) -> 16 | AK10: =AJ10/(AL4-AJ8) -> 0.4444444444 | AL10: =IF(AK10=0,0,(AK10*((LOG(AK10))/LOG(2)))) -> -0.5199666673 | AN10: =N10 -> 22 | AO10: =COUNTIF(L152:L188,AN10) -> 15 | AP10: =AO10/(AQ4-AO8) -> 0.4054054054 | AQ10: =IF(AP10=0,0,(AP10*((LOG(AP10))/LOG(2)))) -> -0.5280659878 | AS10: =N10 -> 22 | AT10: =COUNTIF(L189:L224,AS10) -> 18 | AU10: =AT10/(AV4-AT8) -> 0.5142857143 | AV10: =IF(AU10=0,0,(AU10*((LOG(AU10))/LOG(2)))) -> -0.4933841223
A11: 22 | B11: 444 | C11: 14 | D11: 451 | K11: 0 | L11: 21 | T11: =N11 -> 0 | U11: =COUNTIF(L7:L42,T11) -> 0 | V11: =U11/(W4-U8) -> 0 | W11: =IF(V11=0,0,(V11*((LOG(V11))/LOG(2)))) -> 0 | Y11: =N11 -> 0 | Z11: =COUNTIF(L43:L79,Y11) -> 0 | AA11: =Z11/(AB4-Z8) -> 0 | AB11: =IF(AA11=0,0,(AA11*((LOG(AA11))/LOG(2)))) -> 0 | AD11: =N11 -> 0 | AE11: =COUNTIF(L80:L115,AD11) -> 0 | AF11: =AE11/(AG4-AE8) -> 0 | AG11: =IF(AF11=0,0,(AF11*((LOG(AF11))/LOG(2)))) -> 0 | AI11: =N11 -> 0 | AJ11: =COUNTIF(L116:L151,AI11) -> 0 | AK11: =AJ11/(AL4-AJ8) -> 0 | AL11: =IF(AK11=0,0,(AK11*((LOG(AK11))/LOG(2)))) -> 0 | AN11: =N11 -> 0 | AO11: =COUNTIF(L152:L188,AN11) -> 0 | AP11: =AO11/(AQ4-AO8) -> 0 | AQ11: =IF(AP11=0,0,(AP11*((LOG(AP11))/LOG(2)))) -> 0 | AS11: =N11 -> 0 | AT11: =COUNTIF(L189:L224,AS11) -> 0 | AU11: =AT11/(AV4-AT8) -> 0 | AV11: =IF(AU11=0,0,(AU11*((LOG(AU11))/LOG(2)))) -> 0
A12: 11 | B12: 563 | C12: 12 | D12: 567 | K12: 0 | L12: 11 | T12: =N12 -> 0 | U12: =COUNTIF(L7:L42,T12) -> 0 | V12: =U12/(W4-U8) -> 0 | W12: =IF(V12=0,0,(V12*((LOG(V12))/LOG(2)))) -> 0 | Y12: =N12 -> 0 | Z12: =COUNTIF(L43:L79,Y12) -> 0 | AA12: =Z12/(AB4-Z8) -> 0 | AB12: =IF(AA12=0,0,(AA12*((LOG(AA12))/LOG(2)))) -> 0 | AD12: =N12 -> 0 | AE12: =COUNTIF(L80:L115,AD12) -> 0 | AF12: =AE12/(AG4-AE8) -> 0 | AG12: =IF(AF12=0,0,(AF12*((LOG(AF12))/LOG(2)))) -> 0 | AI12: =N12 -> 0 | AJ12: =COUNTIF(L116:L151,AI12) -> 0 | AK12: =AJ12/(AL4-AJ8) -> 0 | AL12: =IF(AK12=0,0,(AK12*((LOG(AK12))/LOG(2)))) -> 0 | AN12: =N12 -> 0 | AO12: =COUNTIF(L152:L188,AN12) -> 0 | AP12: =AO12/(AQ4-AO8) -> 0 | AQ12: =IF(AP12=0,0,(AP12*((LOG(AP12))/LOG(2)))) -> 0 | AS12: =N12 -> 0 | AT12: =COUNTIF(L189:L224,AS12) -> 0 | AU12: =AT12/(AV4-AT8) -> 0 | AV12: =IF(AU12=0,0,(AU12*((LOG(AU12))/LOG(2)))) -> 0
A13: 22 | B13: 667 | C13: 14 | D13: 675 | K13: 0 | L13: 21 | T13: =N13 -> 0 | U13: =COUNTIF(L7:L42,T13) -> 0 | V13: =U13/(W4-U8) -> 0 | W13: =IF(V13=0,0,(V13*((LOG(V13))/LOG(2)))) -> 0 | Y13: =N13 -> 0 | Z13: =COUNTIF(L43:L79,Y13) -> 0 | AA13: =Z13/(AB4-Z8) -> 0 | AB13: =IF(AA13=0,0,(AA13*((LOG(AA13))/LOG(2)))) -> 0 | AD13: =N13 -> 0 | AE13: =COUNTIF(L80:L115,AD13) -> 0 | AF13: =AE13/(AG4-AE8) -> 0 | AG13: =IF(AF13=0,0,(AF13*((LOG(AF13))/LOG(2)))) -> 0 | AI13: =N13 -> 0 | AJ13: =COUNTIF(L116:L151,AI13) -> 0 | AK13: =AJ13/(AL4-AJ8) -> 0 | AL13: =IF(AK13=0,0,(AK13*((LOG(AK13))/LOG(2)))) -> 0 | AN13: =N13 -> 0 | AO13: =COUNTIF(L152:L188,AN13) -> 0 | AP13: =AO13/(AQ4-AO8) -> 0 | AQ13: =IF(AP13=0,0,(AP13*((LOG(AP13))/LOG(2)))) -> 0 | AS13: =N13 -> 0 | AT13: =COUNTIF(L189:L224,AS13) -> 0 | AU13: =AT13/(AV4-AT8) -> 0 | AV13: =IF(AU13=0,0,(AU13*((LOG(AU13))/LOG(2)))) -> 0
A14: 22 | B14: 771 | C14: 23 | D14: 780 | K14: 0 | L14: 22 | T14: =N14 -> 0 | U14: =COUNTIF(L7:L42,T14) -> 0 | V14: =U14/(W4-U8) -> 0 | W14: =IF(V14=0,0,(V14*((LOG(V14))/LOG(2)))) -> 0 | Y14: =N14 -> 0 | Z14: =COUNTIF(L43:L79,Y14) -> 0 | AA14: =Z14/(AB4-Z8) -> 0 | AB14: =IF(AA14=0,0,(AA14*((LOG(AA14))/LOG(2)))) -> 0 | AD14: =N14 -> 0 | AE14: =COUNTIF(L80:L115,AD14) -> 0 | AF14: =AE14/(AG4-AE8) -> 0 | AG14: =IF(AF14=0,0,(AF14*((LOG(AF14))/LOG(2)))) -> 0 | AI14: =N14 -> 0 | AJ14: =COUNTIF(L116:L151,AI14) -> 0 | AK14: =AJ14/(AL4-AJ8) -> 0 | AL14: =IF(AK14=0,0,(AK14*((LOG(AK14))/LOG(2)))) -> 0 | AN14: =N14 -> 0 | AO14: =COUNTIF(L152:L188,AN14) -> 0 | AP14: =AO14/(AQ4-AO8) -> 0 | AQ14: =IF(AP14=0,0,(AP14*((LOG(AP14))/LOG(2)))) -> 0 | AS14: =N14 -> 0 | AT14: =COUNTIF(L189:L224,AS14) -> 0 | AU14: =AT14/(AV4-AT8) -> 0 | AV14: =IF(AU14=0,0,(AU14*((LOG(AU14))/LOG(2)))) -> 0
A15: 22 | B15: 868 | C15: 14 | D15: 876 | K15: 0 | L15: 21 | P15: =SUM(P7:P14) -> 1 | Q15: =-SUM(Q7:Q14) -> 1.577085038 | V15: =SUM(V7:V14) -> 1 | W15: =-SUM(W7:W14) -> 1.459330886 | AA15: =SUM(AA7:AA14) -> 1 | AB15: =-SUM(AB7:AB14) -> 1.530920492 | AF15: =SUM(AF7:AF14) -> 1 | AG15: =-SUM(AG7:AG14) -> 1.097208206 | AK15: =SUM(AK7:AK14) -> 1 | AL15: =-SUM(AL7:AL14) -> 1.441786129 | AP15: =SUM(AP7:AP14) -> 1 | AQ15: =-SUM(AQ7:AQ14) -> 1.554361466 | AU15: =SUM(AU7:AU14) -> 1 | AV15: =-SUM(AV7:AV14) -> 1.483912302
A16: 22 | B16: 971 | C16: 14 | D16: 979 | K16: 0 | L16: 21 | P16: U= | Q16: =Q15/(LOG(Q4)/LOG(2)) -> 0.2030184882 | V16: U1= | W16: =W15/(LOG(W4)/LOG(2)) -> 0.282273125 | AA16: U2= | AB16: =AB15/(LOG(AB4)/LOG(2)) -> 0.293873538 | AF16: U3= | AG16: =AG15/(LOG(AG4)/LOG(2)) -> 0.2122290373 | AK16: U4= | AL16: =AL15/(LOG(AL4)/LOG(2)) -> 0.2788795057 | AP16: U5= | AQ16: =AQ15/(LOG(AQ4)/LOG(2)) -> 0.2983732375 | AU16: U6= | AV16: =AV15/(LOG(AV4)/LOG(2)) -> 0.2870278198
A17: 11 | B17: 1083 | C17: 12 | D17: 1088 | K17: 0 | L17: 11
A18: 22 | B18: 1186 | C18: 14 | D18: 1193 | K18: 0 | L18: 21
A19: 22 | B19: 1295 | C19: 14 | D19: 1302 | K19: 0 | L19: 21 | N19: Total Target Seq
A20: 22 | B20: 1404 | C20: 14 | D20: 1411 | K20: 0 | L20: 21 | N20: =COUNTIF(L7:L224,G3) -> 1 | P20: 36 | Q20: 37 | R20: 36 | S20: 36 | T20: 37 | U20: 36
A21: 11 | B21: 1516 | C21: 12 | D21: 1521 | K21: 0 | L21: 11 | P21: % of reinforcement given in 6 equal intervals based on number of trials
A22: 22 | B22: 1618 | C22: 14 | D22: 1626 | K22: 0 | L22: 21 | P22: %_1 | Q22: %_2 | R22: %_3 | S22: %_4 | T22: %_5 | U22: %_6
A23: 11 | B23: 1733 | C23: 12 | D23: 1737 | K23: 0 | L23: 11 | O23: target sequence | P23: =$G$3 -> 12 | Q23: =$G$3 -> 12 | R23: =$G$3 -> 12 | S23: =$G$3 -> 12 | T23: =$G$3 -> 12 | U23: =$G$3 -> 12
A24: 22 | B24: 1833 | C24: 14 | D24: 1841 | K24: 0 | L24: 21 | O24: total reinforcement | P24: =U8 -> 0 | Q24: =Z8 -> 0 | R24: =AE8 -> 0 | S24: =AJ8 -> 0 | T24: =AO8 -> 0 | U24: =AT8 -> 1
A25: 22 | B25: 1937 | C25: 14 | D25: 1944 | K25: 0 | L25: 21 | O25: % target
A26: 22 | B26: 2040 | C26: 23 | D26: 2050 | K26: 0 | L26: 22 | O26: CCRF
A27: 22 | B27: 2147 | C27: 14 | D27: 2170 | K27: 0 | L27: 21 | O27: % CCRf
A28: 22 | B28: 2266 | C28: 14 | D28: 2274 | K28: 0 | L28: 21 | O28: average response rate | P28: =D42/P20 -> 107.1666667 | Q28: =(D79-D42)/Q20 -> 109.8918919 | R28: =(D115-D79)/R20 -> 111.3055556 | S28: =(D151-D115)/S20 -> 107.1111111 | T28: =(D188-D151)/T20 -> 112.6756757 | U28: =(D224-D188)/U20 -> 112.2222222
A29: 22 | B29: 2416 | C29: 14 | D29: 2427 | K29: 0 | L29: 21
A30: 22 | B30: 2525 | C30: 14 | D30: 2536 | K30: 0 | L30: 21
A31: 22 | B31: 2634 | C31: 14 | D31: 2642 | K31: 0 | L31: 21
A32: 22 | B32: 2738 | C32: 23 | D32: 2759 | K32: 0 | L32: 22
A33: 22 | B33: 2856 | C33: 23 | D33: 2864 | K33: 0 | L33: 22
A34: 22 | B34: 2964 | C34: 14 | D34: 2973 | K34: 0 | L34: 21
A35: 11 | B35: 3085 | C35: 12 | D35: 3092 | K35: 0 | L35: 11
A36: 22 | B36: 3188 | C36: 23 | D36: 3197 | K36: 0 | L36: 22
A37: 11 | B37: 3307 | C37: 12 | D37: 3312 | K37: 0 | L37: 11
A38: 22 | B38: 3411 | C38: 23 | D38: 3416 | K38: 0 | L38: 22
A39: 22 | B39: 3513 | C39: 14 | D39: 3523 | K39: 0 | L39: 21
A40: 22 | B40: 3619 | C40: 23 | D40: 3628 | K40: 0 | L40: 22
A41: 11 | B41: 3738 | C41: 12 | D41: 3744 | K41: 0 | L41: 11
A42: 22 | B42: 3841 | C42: 14 | D42: 3858 | K42: 0 | L42: 21
A43: 22 | B43: 3955 | C43: 23 | D43: 3971 | K43: 0 | L43: 22
A44: 22 | B44: 4089 | C44: 14 | D44: 4103 | K44: 0 | L44: 21
A45: 22 | B45: 4205 | C45: 14 | D45: 4212 | K45: 0 | L45: 21
A46: 22 | B46: 4309 | C46: 14 | D46: 4321 | K46: 0 | L46: 21
A47: 22 | B47: 4419 | C47: 23 | D47: 4425 | K47: 0 | L47: 22
A48: 22 | B48: 4522 | C48: 23 | D48: 4531 | K48: 0 | L48: 22
A49: 22 | B49: 4632 | C49: 14 | D49: 4639 | K49: 0 | L49: 21
A50: 22 | B50: 4737 | C50: 14 | D50: 4744 | K50: 0 | L50: 21
A51: 22 | B51: 4840 | C51: 23 | D51: 4844 | K51: 0 | L51: 22
A52: 11 | B52: 4948 | C52: 12 | D52: 4952 | K52: 0 | L52: 11
A53: 22 | B53: 5049 | C53: 14 | D53: 5057 | K53: 0 | L53: 21
A54: 22 | B54: 5153 | C54: 14 | D54: 5160 | K54: 0 | L54: 21
A55: 22 | B55: 5255 | C55: 14 | D55: 5276 | K55: 0 | L55: 21
A56: 22 | B56: 5372 | C56: 23 | D56: 5377 | K56: 0 | L56: 22
A57: 22 | B57: 5475 | C57: 23 | D57: 5479 | K57: 0 | L57: 22
A58: 22 | B58: 5582 | C58: 23 | D58: 5587 | K58: 0 | L58: 22
A59: 22 | B59: 5692 | C59: 14 | D59: 5700 | K59: 0 | L59: 21
A60: 11 | B60: 5814 | C60: 12 | D60: 5824 | K60: 0 | L60: 11
A61: 22 | B61: 5924 | C61: 14 | D61: 5934 | K61: 0 | L61: 21
A62: 11 | B62: 6039 | C62: 12 | D62: 6043 | K62: 0 | L62: 11
A63: 22 | B63: 6139 | C63: 14 | D63: 6146 | K63: 0 | L63: 21
A64: 11 | B64: 6255 | C64: 12 | D64: 6262 | K64: 0 | L64: 11
A65: 11 | B65: 6371 | C65: 12 | D65: 6375 | K65: 0 | L65: 11
A66: 22 | B66: 6477 | C66: 23 | D66: 6485 | K66: 0 | L66: 22
A67: 22 | B67: 6584 | C67: 23 | D67: 6596 | K67: 0 | L67: 22
A68: 11 | B68: 6703 | C68: 12 | D68: 6707 | K68: 0 | L68: 11
A69: 22 | B69: 6803 | C69: 23 | D69: 6831 | K69: 0 | L69: 22
A70: 22 | B70: 6929 | C70: 14 | D70: 6945 | K70: 0 | L70: 21
A71: 22 | B71: 7041 | C71: 14 | D71: 7054 | K71: 0 | L71: 21
A72: 22 | B72: 7154 | C72: 14 | D72: 7162 | K72: 0 | L72: 21
A73: 22 | B73: 7259 | C73: 14 | D73: 7270 | K73: 0 | L73: 21
A74: 22 | B74: 7366 | C74: 23 | D74: 7371 | K74: 0 | L74: 22
A75: 11 | B75: 7478 | C75: 12 | D75: 7483 | K75: 0 | L75: 11
A76: 22 | B76: 7582 | C76: 23 | D76: 7587 | K76: 0 | L76: 22
A77: 22 | B77: 7683 | C77: 14 | D77: 7690 | K77: 0 | L77: 21
A78: 22 | B78: 7787 | C78: 23 | D78: 7801 | K78: 0 | L78: 22
A79: 11 | B79: 7915 | C79: 12 | D79: 7924 | K79: 0 | L79: 11
A80: 22 | B80: 8045 | C80: 14 | D80: 8056 | K80: 0 | L80: 21
A81: 22 | B81: 8159 | C81: 14 | D81: 8167 | K81: 0 | L81: 21
A82: 22 | B82: 8263 | C82: 14 | D82: 8278 | K82: 0 | L82: 21
A83: 22 | B83: 8377 | C83: 14 | D83: 8393 | K83: 0 | L83: 21
A84: 22 | B84: 8498 | C84: 14 | D84: 8509 | K84: 0 | L84: 21
A85: 11 | B85: 8625 | C85: 12 | D85: 8636 | K85: 0 | L85: 11
A86: 22 | B86: 8738 | C86: 14 | D86: 8748 | K86: 0 | L86: 21
A87: 11 | B87: 8868 | C87: 12 | D87: 8875 | K87: 0 | L87: 11
A88: 22 | B88: 8971 | C88: 23 | D88: 8975 | K88: 0 | L88: 22
A89: 22 | B89: 9083 | C89: 14 | D89: 9092 | K89: 0 | L89: 21
A90: 22 | B90: 9190 | C90: 23 | D90: 9195 | K90: 0 | L90: 22
A91: 22 | B91: 9302 | C91: 14 | D91: 9312 | K91: 0 | L91: 21
A92: 11 | B92: 9423 | C92: 12 | D92: 9430 | K92: 0 | L92: 11
A93: 11 | B93: 9531 | C93: 12 | D93: 9543 | K93: 0 | L93: 11
A94: 11 | B94: 9652 | C94: 12 | D94: 9665 | K94: 0 | L94: 11
A95: 22 | B95: 9760 | C95: 14 | D95: 9767 | K95: 0 | L95: 21
A96: 11 | B96: 9872 | C96: 12 | D96: 9877 | K96: 0 | L96: 11
A97: 22 | B97: 9972 | C97: 14 | D97: 9979 | K97: 0 | L97: 21
A98: 22 | B98: 10080 | C98: 14 | D98: 10088 | K98: 0 | L98: 21
A99: 22 | B99: 10187 | C99: 14 | D99: 10195 | K99: 0 | L99: 21
A100: 22 | B100: 10293 | C100: 14 | D100: 10301 | K100: 0 | L100: 21
A101: 22 | B101: 10399 | C101: 14 | D101: 10406 | K101: 0 | L101: 21
A102: 22 | B102: 10506 | C102: 14 | D102: 10513 | K102: 0 | L102: 21
A103: 22 | B103: 10610 | C103: 14 | D103: 10619 | K103: 0 | L103: 21
A104: 22 | B104: 10721 | C104: 14 | D104: 10729 | K104: 0 | L104: 21
A105: 22 | B105: 10827 | C105: 14 | D105: 10834 | K105: 0 | L105: 21
A106: 22 | B106: 10932 | C106: 14 | D106: 10940 | K106: 0 | L106: 21
A107: 22 | B107: 11041 | C107: 14 | D107: 11048 | K107: 0 | L107: 21
A108: 22 | B108: 11146 | C108: 14 | D108: 11158 | K108: 0 | L108: 21
A109: 22 | B109: 11258 | C109: 14 | D109: 11270 | K109: 0 | L109: 21
A110: 22 | B110: 11369 | C110: 14 | D110: 11377 | K110: 0 | L110: 21
A111: 22 | B111: 11479 | C111: 14 | D111: 11487 | K111: 0 | L111: 21
A112: 11 | B112: 11599 | C112: 12 | D112: 11606 | K112: 0 | L112: 11
A113: 22 | B113: 11704 | C113: 23 | D113: 11715 | K113: 0 | L113: 22
A114: 22 | B114: 11817 | C114: 14 | D114: 11825 | K114: 0 | L114: 21
A115: 22 | B115: 11922 | C115: 14 | D115: 11931 | K115: 0 | L115: 21
A116: 22 | B116: 12029 | C116: 14 | D116: 12037 | K116: 0 | L116: 21
A117: 22 | B117: 12136 | C117: 14 | D117: 12150 | K117: 0 | L117: 21
A118: 22 | B118: 12247 | C118: 14 | D118: 12257 | K118: 0 | L118: 21
A119: 22 | B119: 12355 | C119: 14 | D119: 12362 | K119: 0 | L119: 21
A120: 22 | B120: 12458 | C120: 23 | D120: 12466 | K120: 0 | L120: 22
A121: 22 | B121: 12562 | C121: 14 | D121: 12570 | K121: 0 | L121: 21
A122: 22 | B122: 12667 | C122: 23 | D122: 12675 | K122: 0 | L122: 22
A123: 11 | B123: 12781 | C123: 12 | D123: 12788 | K123: 0 | L123: 11
A124: 22 | B124: 12884 | C124: 23 | D124: 12895 | K124: 0 | L124: 22
A125: 11 | B125: 13000 | C125: 12 | D125: 13007 | K125: 0 | L125: 11
A126: 22 | B126: 13103 | C126: 14 | D126: 13111 | K126: 0 | L126: 21
A127: 22 | B127: 13213 | C127: 23 | D127: 13221 | K127: 0 | L127: 22
A128: 22 | B128: 13320 | C128: 14 | D128: 13327 | K128: 0 | L128: 21
A129: 11 | B129: 13431 | C129: 12 | D129: 13437 | K129: 0 | L129: 11
A130: 22 | B130: 13546 | C130: 14 | D130: 13553 | K130: 0 | L130: 21
A131: 22 | B131: 13650 | C131: 14 | D131: 13657 | K131: 0 | L131: 21
A132: 22 | B132: 13753 | C132: 14 | D132: 13761 | K132: 0 | L132: 21
A133: 22 | B133: 13860 | C133: 23 | D133: 13870 | K133: 0 | L133: 22
A134: 22 | B134: 13967 | C134: 23 | D134: 13975 | K134: 0 | L134: 22
A135: 22 | B135: 14076 | C135: 14 | D135: 14083 | K135: 0 | L135: 21
A136: 22 | B136: 14181 | C136: 23 | D136: 14190 | K136: 0 | L136: 22
A137: 22 | B137: 14286 | C137: 23 | D137: 14291 | K137: 0 | L137: 22
A138: 22 | B138: 14391 | C138: 23 | D138: 14395 | K138: 0 | L138: 22
A139: 22 | B139: 14490 | C139: 14 | D139: 14497 | K139: 0 | L139: 21
A140: 22 | B140: 14594 | C140: 23 | D140: 14598 | K140: 0 | L140: 22
A141: 11 | B141: 14713 | C141: 12 | D141: 14724 | K141: 0 | L141: 11
A142: 22 | B142: 14820 | C142: 23 | D142: 14823 | K142: 0 | L142: 22
A143: 22 | B143: 14922 | C143: 23 | D143: 14926 | K143: 0 | L143: 22
A144: 22 | B144: 15023 | C144: 23 | D144: 15028 | K144: 0 | L144: 22
A145: 11 | B145: 15128 | C145: 12 | D145: 15133 | K145: 0 | L145: 11
A146: 22 | B146: 15230 | C146: 14 | D146: 15239 | K146: 0 | L146: 21
A147: 22 | B147: 15337 | C147: 23 | D147: 15341 | K147: 0 | L147: 22
A148: 22 | B148: 15437 | C148: 14 | D148: 15455 | K148: 0 | L148: 21
A149: 22 | B149: 15553 | C149: 14 | D149: 15562 | K149: 0 | L149: 21
A150: 22 | B150: 15662 | C150: 23 | D150: 15674 | K150: 0 | L150: 22
A151: 22 | B151: 15777 | C151: 23 | D151: 15787 | K151: 0 | L151: 22
A152: 22 | B152: 15886 | C152: 14 | D152: 15896 | K152: 0 | L152: 21
A153: 22 | B153: 15991 | C153: 23 | D153: 16000 | K153: 0 | L153: 22
A154: 22 | B154: 16098 | C154: 23 | D154: 16103 | K154: 0 | L154: 22
A155: 22 | B155: 16199 | C155: 23 | D155: 16204 | K155: 0 | L155: 22
A156: 22 | B156: 16302 | C156: 23 | D156: 16306 | K156: 0 | L156: 22
A157: 11 | B157: 16409 | C157: 12 | D157: 16420 | K157: 0 | L157: 11
A158: 22 | B158: 16517 | C158: 23 | D158: 16522 | K158: 0 | L158: 22
A159: 22 | B159: 16618 | C159: 23 | D159: 16639 | K159: 0 | L159: 22
A160: 22 | B160: 16750 | C160: 14 | D160: 16757 | K160: 0 | L160: 21
A161: 22 | B161: 16854 | C161: 23 | D161: 16859 | K161: 0 | L161: 22
A162: 11 | B162: 16957 | C162: 12 | D162: 16963 | K162: 0 | L162: 11
A163: 22 | B163: 17067 | C163: 23 | D163: 17074 | K163: 0 | L163: 22
A164: 22 | B164: 17172 | C164: 23 | D164: 17177 | K164: 0 | L164: 22
A165: 11 | B165: 17275 | C165: 12 | D165: 17280 | K165: 0 | L165: 11
A166: 22 | B166: 17380 | C166: 14 | D166: 17390 | K166: 0 | L166: 21
A167: 11 | B167: 17502 | C167: 12 | D167: 17511 | K167: 0 | L167: 11
A168: 22 | B168: 17608 | C168: 23 | D168: 17614 | K168: 0 | L168: 22
A169: 22 | B169: 17722 | C169: 14 | D169: 17732 | K169: 0 | L169: 21
A170: 11 | B170: 17841 | C170: 12 | D170: 17862 | K170: 0 | L170: 11
A171: 11 | B171: 17962 | C171: 12 | D171: 17969 | K171: 0 | L171: 11
A172: 22 | B172: 18067 | C172: 23 | D172: 18072 | K172: 0 | L172: 22
A173: 11 | B173: 18186 | C173: 12 | D173: 18204 | K173: 0 | L173: 11
A174: 22 | B174: 18314 | C174: 14 | D174: 18324 | K174: 0 | L174: 21
A175: 11 | B175: 18425 | C175: 12 | D175: 18432 | K175: 0 | L175: 11
A176: 22 | B176: 18566 | C176: 14 | D176: 18576 | K176: 0 | L176: 21
A177: 22 | B177: 18672 | C177: 14 | D177: 18680 | K177: 0 | L177: 21
A178: 22 | B178: 18778 | C178: 23 | D178: 18782 | K178: 0 | L178: 22
A179: 22 | B179: 18880 | C179: 23 | D179: 18885 | K179: 0 | L179: 22
A180: 11 | B180: 18998 | C180: 12 | D180: 19009 | K180: 0 | L180: 11
A181: 11 | B181: 19106 | C181: 12 | D181: 19111 | K181: 0 | L181: 11
A182: 22 | B182: 19218 | C182: 23 | D182: 19229 | K182: 0 | L182: 22
A183: 11 | B183: 19333 | C183: 12 | D183: 19338 | K183: 0 | L183: 11
A184: 22 | B184: 19439 | C184: 23 | D184: 19443 | K184: 0 | L184: 22
A185: 11 | B185: 19545 | C185: 12 | D185: 19555 | K185: 0 | L185: 11
A186: 11 | B186: 19659 | C186: 12 | D186: 19669 | K186: 0 | L186: 11
A187: 22 | B187: 19779 | C187: 14 | D187: 19792 | K187: 0 | L187: 21
A188: 22 | B188: 19945 | C188: 14 | D188: 19956 | K188: 0 | L188: 21
A189: 22 | B189: 20067 | C189: 14 | D189: 20077 | K189: 0 | L189: 21
A190: 22 | B190: 20196 | C190: 14 | D190: 20206 | K190: 0 | L190: 21
A191: 11 | B191: 20320 | C191: 21 | D191: 20340 | K191: 0 | L191: 12
A192: 22 | B192: 20434 | C192: 14 | D192: 20442 | K192: 0 | L192: 21
A193: 22 | B193: 20553 | C193: 14 | D193: 20561 | K193: 0 | L193: 21
A194: 22 | B194: 20659 | C194: 23 | D194: 20664 | K194: 0 | L194: 22
A195: 11 | B195: 20769 | C195: 12 | D195: 20775 | K195: 0 | L195: 11
A196: 22 | B196: 20872 | C196: 23 | D196: 20877 | K196: 0 | L196: 22
A197: 22 | B197: 20974 | C197: 14 | D197: 20991 | K197: 0 | L197: 21
A198: 22 | B198: 21090 | C198: 23 | D198: 21095 | K198: 0 | L198: 22
A199: 22 | B199: 21191 | C199: 23 | D199: 21199 | K199: 0 | L199: 22
A200: 22 | B200: 21296 | C200: 23 | D200: 21301 | K200: 0 | L200: 22
... 24 more rows

Sheet !N130B30.096
A1: Report for:!N130B30.096
A2: Date: | B2: <date>
A3: Hen: | B3: <hen> | F3: Correct Sequence | G3: =Start!J2 -> 12 | P3: Total Sequences in Data | Q3: =4994-COUNTBLANK(L7:L5000) -> 198 | V3: Total Sequences in Block Data | W3: =COUNTA(L7:L39) -> 33 | AA3: Total Sequences in Block Data | AB3: =COUNTA(L40:L72) -> 33 | AF3: Total Sequences in Block Data | AG3: =COUNTA(L73:L105) -> 33 | AK3: Total Sequences in Block Data | AL3: =COUNTA(L106:L138) -> 33 | AP3: Total Sequences in Block Data | AQ3: =COUNTA(L139:L171) -> 33 | AU3: Total Sequences in Block Data | AV3: =COUNTA(L172:L204) -> 33
P4: Total Sequences in Summary | Q4: =SUM(O7:O14) -> 198 | V4: Total Sequences in Block Summary | W4: =SUM(U7:U14) -> 33 | AA4: Total Sequences in Block Summary | AB4: =SUM(Z7:Z14) -> 33 | AF4: Total Sequences in Block Summary | AG4: =SUM(AE7:AE14) -> 33 | AK4: Total Sequences in Block Summary | AL4: =SUM(AJ7:AJ14) -> 33 | AP4: Total Sequences in Block Summary | AQ4: =SUM(AO7:AO14) -> 33 | AU4: Total Sequences in Block Summary | AV4: =SUM(AT7:AT14) -> 33
T5: Block 1 | Y5: Block 2 | AD5: Block 3 | AI5: Block 4 | AN5: Block 5 | AS5: Block 6
A6: Sequence Component 1 | B6: Time 1 | C6: Sequence Component 2 | D6: Time 2 | E6: Sequence Component 3 | F6: Time 3 | G6: Sequence Component 4 | H6: Time 4 | I6: Sequence Component 5 | J6: Time 5 | K6: Correct? 0=No 1=Yes | L6: Sequence | N6: Frequency | P6: Relative Frequency | Q6: Variability | T6: Frequency | V6: Relative Frequency | W6: Variability | Y6: Frequency | AA6: Relative Frequency | AB6: Variability | AD6: Frequency | AF6: Relative Frequency | AG6: Variability | AI6: Frequency | AK6: Relative Frequency | AL6: Variability | AN6: Frequency | AP6: Relative Frequency | AQ6: Variability | AS6: Frequency | AU6: Relative Frequency | AV6: Variability
A7: 22 | B7: 12 | C7: 14 | D7: 20 | K7: 0 | L7: 21 | N7: 11 | O7: =COUNTIF($L$7:$L$500,N7) -> 12 | P7: =O7/$Q$4 -> 0.06060606061 | Q7: =IF(P7=0,0,(P7*((LOG(P7))/LOG(2)))) -> -0.2451147951 | T7: =N7 -> 11 | U7: =COUNTIF(L7:L39,T7) -> 0 | V7: =U7/(W4-U8) -> 0 | W7: =IF(V7=0,0,(V7*((LOG(V7))/LOG(2)))) -> 0 | Y7: =N7 -> 11 | Z7: =COUNTIF(L40:L72,Y7) -> 8 | AA7: =Z7/(AB4-Z8) -> 0.25 | AB7: =IF(AA7=0,0,(AA7*((LOG(AA7))/LOG(2)))) -> -0.5 | AD7: =N7 -> 11 | AE7: =COUNTIF(L73:L105,AD7) -> 3 | AF7: =AE7/(AG4-AE8) -> 0.1034482759 | AG7: =IF(AF7=0,0,(AF7*((LOG(AF7))/LOG(2)))) -> -0.3385881201 | AI7: =N7 -> 11 | AJ7: =COUNTIF(L106:L138,AI7) -> 1 | AK7: =AJ7/(AL4-AJ8) -> 0.03846153846 | AL7: =IF(AK7=0,0,(AK7*((LOG(AK7))/LOG(2)))) -> -0.180786143 | AN7: =N7 -> 11 | AO7: =COUNTIF(L139:L171,AN7) -> 0 | AP7: =AO7/(AQ4-AO8) -> 0 | AQ7: =IF(AP7=0,0,(AP7*((LOG(AP7))/LOG(2)))) -> 0 | AS7: =N7 -> 11 | AT7: =COUNTIF(L172:L204,AS7) -> 0 | AU7: =AT7/(AV4-AT8) -> 0 | AV7: =IF(AU7=0,0,(AU7*((LOG(AU7))/LOG(2)))) -> 0
A8: 22 | B8: 120 | C8: 23 | D8: 137 | K8: 0 | L8: 22 | N8: 12 | O8: =COUNTIF($L$7:$L$500,N8) -> 40 | P8: =O8/$Q$4 -> 0.202020202 | Q8: =IF(P8=0,0,(P8*((LOG(P8))/LOG(2)))) -> -0.4661471768 | T8: =N8 -> 12 | U8: =COUNTIF(L7:L39,T8) -> 1 | Y8: =N8 -> 12 | Z8: =COUNTIF(L40:L72,Y8) -> 1 | AD8: =N8 -> 12 | AE8: =COUNTIF(L73:L105,AD8) -> 4 | AI8: =N8 -> 12 | AJ8: =COUNTIF(L106:L138,AI8) -> 7 | AN8: =N8 -> 12 | AO8: =COUNTIF(L139:L171,AN8) -> 10 | AS8: =N8 -> 12 | AT8: =COUNTIF(L172:L204,AS8) -> 17
A9: 22 | B9: 235 | C9: 23 | D9: 239 | K9: 0 | L9: 22 | N9: 21 | O9: =COUNTIF($L$7:$L$500,N9) -> 52 | P9: =O9/$Q$4 -> 0.2626262626 | Q9: =IF(P9=0,0,(P9*((LOG(P9))/LOG(2)))) -> -0.5065842369 | T9: =N9 -> 21 | U9: =COUNTIF(L7:L39,T9) -> 11 | V9: =U9/(W4-U8) -> 0.34375 | W9: =IF(V9=0,0,(V9*((LOG(V9))/LOG(2)))) -> -0.5295703811 | Y9: =N9 -> 21 | Z9: =COUNTIF(L40:L72,Y9) -> 14 | AA9: =Z9/(AB4-Z8) -> 0.4375 | AB9: =IF(AA9=0,0,(AA9*((LOG(AA9))/LOG(2)))) -> -0.5217822216 | AD9: =N9 -> 21 | AE9: =COUNTIF(L73:L105,AD9) -> 11 | AF9: =AE9/(AG4-AE8) -> 0.3793103448 | AG9: =IF(AF9=0,0,(AF9*((LOG(AF9))/LOG(2)))) -> -0.5304842463 | AI9: =N9 -> 21 | AJ9: =COUNTIF(L106:L138,AI9) -> 4 | AK9: =AJ9/(AL4-AJ8) -> 0.1538461538 | AL9: =IF(AK9=0,0,(AK9*((LOG(AK9))/LOG(2)))) -> -0.4154522643 | AN9: =N9 -> 21 | AO9: =COUNTIF(L139:L171,AN9) -> 5 | AP9: =AO9/(AQ4-AO8) -> 0.2173913043 | AQ9: =IF(AP9=0,0,(AP9*((LOG(AP9))/LOG(2)))) -> -0.4786160568 | AS9: =N9 -> 21 | AT9: =COUNTIF(L172:L204,AS9) -> 7 | AU9: =AT9/(AV4-AT8) -> 0.4375 | AV9: =IF(AU9=0,0,(AU9*((LOG(AU9))/LOG(2)))) -> -0.5217822216
A10: 22 | B10: 338 | C10: 23 | D10: 343 | K10: 0 | L10: 22 | N10: 22 | O10: =COUNTIF($L$7:$L$500,N10) -> 94 | P10: =O10/$Q$4 -> 0.4747474747 | Q10: =IF(P10=0,0,(P10*((LOG(P10))/LOG(2)))) -> -0.510243284 | T10: =N10 -> 22 | U10: =COUNTIF(L7:L39,T10) -> 21 | V10: =U10/(W4-U8) -> 0.65625 | W10: =IF(V10=0,0,(V10*((LOG(V10))/LOG(2)))) -> -0.3987916913 | Y10: =N10 -> 22 | Z10: =COUNTIF(L40:L72,Y10) -> 10 | AA10: =Z10/(AB4-Z8) -> 0.3125 | AB10: =IF(AA10=0,0,(AA10*((LOG(AA10))/LOG(2)))) -> -0.5243974703 | AD10: =N10 -> 22 | AE10: =COUNTIF(L73:L105,AD10) -> 15 | AF10: =AE10/(AG4-AE8) -> 0.5172413793 | AG10: =IF(AF10=0,0,(AF10*((LOG(AF10))/LOG(2)))) -> -0.4919433101 | AI10: =N10 -> 22 | AJ10: =COUNTIF(L106:L138,AI10) -> 21 | AK10: =AJ10/(AL4-AJ8) -> 0.8076923077 | AL10: =IF(AK10=0,0,(AK10*((LOG(AK10))/LOG(2)))) -> -0.2488680078 | AN10: =N10 -> 22 | AO10: =COUNTIF(L139:L171,AN10) -> 18 | AP10: =AO10/(AQ4-AO8) -> 0.7826086957 | AQ10: =IF(AP10=0,0,(AP10*((LOG(AP10))/LOG(2)))) -> -0.2767593558 | AS10: =N10 -> 22 | AT10: =COUNTIF(L172:L204,AS10) -> 9 | AU10: =AT10/(AV4-AT8) -> 0.5625 | AV10: =IF(AU10=0,0,(AU10*((LOG(AU10))/LOG(2)))) -> -0.4669171867
A11: 22 | B11: 442 | C11: 23 | D11: 447 | K11: 0 | L11: 22 | T11: =N11 -> 0 | U11: =COUNTIF(L7:L39,T11) -> 0 | V11: =U11/(W4-U8) -> 0 | W11: =IF(V11=0,0,(V11*((LOG(V11))/LOG(2)))) -> 0 | Y11: =N11 -> 0 | Z11: =COUNTIF(L40:L72,Y11) -> 0 | AA11: =Z11/(AB4-Z8) -> 0 | AB11: =IF(AA11=0,0,(AA11*((LOG(AA11))/LOG(2)))) -> 0 | AD11: =N11 -> 0 | AE11: =COUNTIF(L73:L105,AD11) -> 0 | AF11: =AE11/(AG4-AE8) -> 0 | AG11: =IF(AF11=0,0,(AF11*((LOG(AF11))/LOG(2)))) -> 0 | AI11: =N11 -> 0 | AJ11: =COUNTIF(L106:L138,AI11) -> 0 | AK11: =AJ11/(AL4-AJ8) -> 0 | AL11: =IF(AK11=0,0,(AK11*((LOG(AK11))/LOG(2)))) -> 0 | AN11: =N11 -> 0 | AO11: =COUNTIF(L139:L171,AN11) -> 0 | AP11: =AO11/(AQ4-AO8) -> 0 | AQ11: =IF(AP11=0,0,(AP11*((LOG(AP11))/LOG(2)))) -> 0 | AS11: =N11 -> 0 | AT11: =COUNTIF(L172:L204,AS11) -> 0 | AU11: =AT11/(AV4-AT8) -> 0 | AV11: =IF(AU11=0,0,(AU11*((LOG(AU11))/LOG(2)))) -> 0
A12: 22 | B12: 549 | C12: 23 | D12: 557 | K12: 0 | L12: 22 | T12: =N12 -> 0 | U12: =COUNTIF(L7:L39,T12) -> 0 | V12: =U12/(W4-U8) -> 0 | W12: =IF(V12=0,0,(V12*((LOG(V12))/LOG(2)))) -> 0 | Y12: =N12 -> 0 | Z12: =COUNTIF(L40:L72,Y12) -> 0 | AA12: =Z12/(AB4-Z8) -> 0 | AB12: =IF(AA12=0,0,(AA12*((LOG(AA12))/LOG(2)))) -> 0 | AD12: =N12 -> 0 | AE12: =COUNTIF(L73:L105,AD12) -> 0 | AF12: =AE12/(AG4-AE8) -> 0 | AG12: =IF(AF12=0,0,(AF12*((LOG(AF12))/LOG(2)))) -> 0 | AI12: =N12 -> 0 | AJ12: =COUNTIF(L106:L138,AI12) -> 0 | AK12: =AJ12/(AL4-AJ8) -> 0 | AL12: =IF(AK12=0,0,(AK12*((LOG(AK12))/LOG(2)))) -> 0 | AN12: =N12 -> 0 | AO12: =COUNTIF(L139:L171,AN12) -> 0 | AP12: =AO12/(AQ4-AO8) -> 0 | AQ12: =IF(AP12=0,0,(AP12*((LOG(AP12))/LOG(2)))) -> 0 | AS12: =N12 -> 0 | AT12: =COUNTIF(L172:L204,AS12) -> 0 | AU12: =AT12/(AV4-AT8) -> 0 | AV12: =IF(AU12=0,0,(AU12*((LOG(AU12))/LOG(2)))) -> 0
A13: 22 | B13: 663 | C13: 14 | D13: 673 | K13: 0 | L13: 21 | T13: =N13 -> 0 | U13: =COUNTIF(L7:L39,T13) -> 0 | V13: =U13/(W4-U8) -> 0 | W13: =IF(V13=0,0,(V13*((LOG(V13))/LOG(2)))) -> 0 | Y13: =N13 -> 0 | Z13: =COUNTIF(L40:L72,Y13) -> 0 | AA13: =Z13/(AB4-Z8) -> 0 | AB13: =IF(AA13=0,0,(AA13*((LOG(AA13))/LOG(2)))) -> 0 | AD13: =N13 -> 0 | AE13: =COUNTIF(L73:L105,AD13) -> 0 | AF13: =AE13/(AG4-AE8) -> 0 | AG13: =IF(AF13=0,0,(AF13*((LOG(AF13))/LOG(2)))) -> 0 | AI13: =N13 -> 0 | AJ13: =COUNTIF(L106:L138,AI13) -> 0 | AK13: =AJ13/(AL4-AJ8) -> 0 | AL13: =IF(AK13=0,0,(AK13*((LOG(AK13))/LOG(2)))) -> 0 | AN13: =N13 -> 0 | AO13: =COUNTIF(L139:L171,AN13) -> 0 | AP13: =AO13/(AQ4-AO8) -> 0 | AQ13: =IF(AP13=0,0,(AP13*((LOG(AP13))/LOG(2)))) -> 0 | AS13: =N13 -> 0 | AT13: =COUNTIF(L172:L204,AS13) -> 0 | AU13: =AT13/(AV4-AT8) -> 0 | AV13: =IF(AU13=0,0,(AU13*((LOG(AU13))/LOG(2)))) -> 0
A14: 22 | B14: 773 | C14: 23 | D14: 785 | K14: 0 | L14: 22 | T14: =N14 -> 0 | U14: =COUNTIF(L7:L39,T14) -> 0 | V14: =U14/(W4-U8) -> 0 | W14: =IF(V14=0,0,(V14*((LOG(V14))/LOG(2)))) -> 0 | Y14: =N14 -> 0 | Z14: =COUNTIF(L40:L72,Y14) -> 0 | AA14: =Z14/(AB4-Z8) -> 0 | AB14: =IF(AA14=0,0,(AA14*((LOG(AA14))/LOG(2)))) -> 0 | AD14: =N14 -> 0 | AE14: =COUNTIF(L73:L105,AD14) -> 0 | AF14: =AE14/(AG4-AE8) -> 0 | AG14: =IF(AF14=0,0,(AF14*((LOG(AF14))/LOG(2)))) -> 0 | AI14: =N14 -> 0 | AJ14: =COUNTIF(L106:L138,AI14) -> 0 | AK14: =AJ14/(AL4-AJ8) -> 0 | AL14: =IF(AK14=0,0,(AK14*((LOG(AK14))/LOG(2)))) -> 0 | AN14: =N14 -> 0 | AO14: =COUNTIF(L139:L171,AN14) -> 0 | AP14: =AO14/(AQ4-AO8) -> 0 | AQ14: =IF(AP14=0,0,(AP14*((LOG(AP14))/LOG(2)))) -> 0 | AS14: =N14 -> 0 | AT14: =COUNTIF(L172:L204,AS14) -> 0 | AU14: =AT14/(AV4-AT8) -> 0 | AV14: =IF(AU14=0,0,(AU14*((LOG(AU14))/LOG(2)))) -> 0
A15: 22 | B15: 882 | C15: 23 | D15: 887 | K15: 0 | L15: 22 | P15: =SUM(P7:P14) -> 1 | Q15: =-SUM(Q7:Q14) -> 1.728089493 | V15: =SUM(V7:V14) -> 1 | W15: =-SUM(W7:W14) -> 0.9283620724 | AA15: =SUM(AA7:AA14) -> 1 | AB15: =-SUM(AB7:AB14) -> 1.546179692 | AF15: =SUM(AF7:AF14) -> 1 | AG15: =-SUM(AG7:AG14) -> 1.361015676 | AK15: =SUM(AK7:AK14) -> 1 | AL15: =-SUM(AL7:AL14) -> 0.8451064151 | AP15: =SUM(AP7:AP14) -> 1 | AQ15: =-SUM(AQ7:AQ14) -> 0.7553754126 | AU15: =SUM(AU7:AU14) -> 1 | AV15: =-SUM(AV7:AV14) -> 0.9886994083
A16: 22 | B16: 993 | C16: 23 | D16: 997 | K16: 0 | L16: 22 | P16: U= | Q16: =Q15/(LOG(Q4)/LOG(2)) -> 0.2265052715 | V16: U1= | W16: =W15/(LOG(W4)/LOG(2)) -> 0.1840383702 | AA16: U2= | AB16: =AB15/(LOG(AB4)/LOG(2)) -> 0.3065144506 | AF16: U3= | AG16: =AG15/(LOG(AG4)/LOG(2)) -> 0.2698075615 | AK16: U4= | AL16: =AL15/(LOG(AL4)/LOG(2)) -> 0.1675337801 | AP16: U5= | AQ16: =AQ15/(LOG(AQ4)/LOG(2)) -> 0.1497455184 | AU16: U6= | AV16: =AV15/(LOG(AV4)/LOG(2)) -> 0.1959996354
A17: 22 | B17: 1102 | C17: 14 | D17: 1112 | K17: 0 | L17: 21
A18: 22 | B18: 1215 | C18: 23 | D18: 1223 | K18: 0 | L18: 22
A19: 22 | B19: 1319 | C19: 14 | D19: 1329 | K19: 0 | L19: 21 | N19: Total Target Seq
A20: 22 | B20: 1428 | C20: 23 | D20: 1432 | K20: 0 | L20: 22 | N20: =COUNTIF(L7:L204,G3) -> 40 | P20: 33 | Q20: 33 | R20: 33 | S20: 33 | T20: 33 | U20: 33
A21: 22 | B21: 1529 | C21: 23 | D21: 1544 | K21: 0 | L21: 22 | P21: % of reinforcement given in 6 equal intervals based on number of trials
A22: 22 | B22: 1646 | C22: 23 | D22: 1654 | K22: 0 | L22: 22 | P22: %_1 | Q22: %_2 | R22: %_3 | S22: %_4 | T22: %_5 | U22: %_6
A23: 22 | B23: 1753 | C23: 23 | D23: 1767 | K23: 0 | L23: 22 | O23: target sequence | P23: =$G$3 -> 12 | Q23: =$G$3 -> 12 | R23: =$G$3 -> 12 | S23: =$G$3 -> 12 | T23: =$G$3 -> 12 | U23: =$G$3 -> 12
A24: 22 | B24: 1863 | C24: 14 | D24: 1873 | K24: 0 | L24: 21 | O24: total reinforcement | P24: =U8 -> 1 | Q24: =Z8 -> 1 | R24: =AE8 -> 4 | S24: =AJ8 -> 7 | T24: =AO8 -> 10 | U24: =AT8 -> 17
A25: 22 | B25: 1972 | C25: 23 | D25: 1975 | K25: 0 | L25: 22 | O25: % target
A26: 22 | B26: 2073 | C26: 23 | D26: 2096 | K26: 0 | L26: 22 | O26: CCRF
A27: 22 | B27: 2192 | C27: 23 | D27: 2205 | K27: 0 | L27: 22 | O27: % CCRf
A28: 22 | B28: 2300 | C28: 23 | D28: 2312 | K28: 0 | L28: 22 | O28: average response rate | P28: =D39/P20 -> 106.8787879 | Q28: =(D72-D39)/Q20 -> 113.6666667 | R28: =(D105-D72)/R20 -> 113.6969697 | S28: =(D138-D105)/S20 -> 109.7878788 | T28: =(D171-D138)/T20 -> 107.4242424 | U28: =(D204-D171)/U20 -> 110.5454545
A29: 22 | B29: 2410 | C29: 23 | D29: 2419 | K29: 0 | L29: 22
A30: 22 | B30: 2534 | C30: 14 | D30: 2544 | K30: 0 | L30: 21
A31: 22 | B31: 2643 | C31: 23 | D31: 2647 | K31: 0 | L31: 22
A32: 22 | B32: 2750 | C32: 14 | D32: 2758 | K32: 0 | L32: 21
A33: 22 | B33: 2856 | C33: 23 | D33: 2861 | K33: 0 | L33: 22
A34: 22 | B34: 2959 | C34: 23 | D34: 2967 | K34: 0 | L34: 22
A35: 22 | B35: 3069 | C35: 14 | D35: 3076 | K35: 0 | L35: 21
A36: 22 | B36: 3173 | C36: 14 | D36: 3182 | K36: 0 | L36: 21
A37: 22 | B37: 3281 | C37: 14 | D37: 3292 | K37: 0 | L37: 21
A38: 11 | B38: 3408 | C38: 21 | D38: 3419 | K38: 0 | L38: 12
A39: 22 | B39: 3520 | C39: 14 | D39: 3527 | K39: 0 | L39: 21
A40: 22 | B40: 3628 | C40: 14 | D40: 3636 | K40: 0 | L40: 21
A41: 22 | B41: 3732 | C41: 14 | D41: 3742 | K41: 0 | L41: 21
A42: 22 | B42: 3847 | C42: 14 | D42: 3857 | K42: 0 | L42: 21
A43: 22 | B43: 3955 | C43: 23 | D43: 3971 | K43: 0 | L43: 22
A44: 11 | B44: 4100 | C44: 12 | D44: 4112 | K44: 0 | L44: 11
A45: 22 | B45: 4201 | C45: 14 | D45: 4210 | K45: 0 | L45: 21
A46: 22 | B46: 4305 | C46: 23 | D46: 4322 | K46: 0 | L46: 22
A47: 22 | B47: 4418 | C47: 23 | D47: 4422 | K47: 0 | L47: 22
A48: 22 | B48: 4519 | C48: 23 | D48: 4529 | K48: 0 | L48: 22
A49: 11 | B49: 4638 | C49: 12 | D49: 4645 | K49: 0 | L49: 11
A50: 11 | B50: 4756 | C50: 12 | D50: 4764 | K50: 0 | L50: 11
A51: 22 | B51: 4872 | C51: 14 | D51: 4887 | K51: 0 | L51: 21
A52: 22 | B52: 4986 | C52: 14 | D52: 4993 | K52: 0 | L52: 21
A53: 22 | B53: 5095 | C53: 14 | D53: 5103 | K53: 0 | L53: 21
A54: 22 | B54: 5200 | C54: 14 | D54: 5209 | K54: 0 | L54: 21
A55: 22 | B55: 5305 | C55: 23 | D55: 5309 | K55: 0 | L55: 22
A56: 11 | B56: 5409 | C56: 12 | D56: 5412 | K56: 0 | L56: 11
A57: 11 | B57: 5510 | C57: 12 | D57: 5514 | K57: 0 | L57: 11
A58: 11 | B58: 5617 | C58: 12 | D58: 5646 | K58: 0 | L58: 11
A59: 22 | B59: 5768 | C59: 23 | D59: 5774 | K59: 0 | L59: 22
A60: 22 | B60: 5876 | C60: 14 | D60: 5886 | K60: 0 | L60: 21
A61: 22 | B61: 5992 | C61: 14 | D61: 6000 | K61: 0 | L61: 21
A62: 22 | B62: 6108 | C62: 14 | D62: 6116 | K62: 0 | L62: 21
A63: 11 | B63: 6221 | C63: 21 | D63: 6233 | K63: 0 | L63: 12
A64: 22 | B64: 6321 | C64: 14 | D64: 6332 | K64: 0 | L64: 21
A65: 11 | B65: 6431 | C65: 12 | D65: 6438 | K65: 0 | L65: 11
A66: 22 | B66: 6541 | C66: 23 | D66: 6548 | K66: 0 | L66: 22
A67: 22 | B67: 6654 | C67: 14 | D67: 6661 | K67: 0 | L67: 21
A68: 11 | B68: 6758 | C68: 12 | D68: 6785 | K68: 0 | L68: 11
A69: 22 | B69: 6900 | C69: 23 | D69: 6913 | K69: 0 | L69: 22
A70: 22 | B70: 7025 | C70: 14 | D70: 7036 | K70: 0 | L70: 21
A71: 22 | B71: 7143 | C71: 23 | D71: 7150 | K71: 0 | L71: 22
A72: 22 | B72: 7260 | C72: 23 | D72: 7278 | K72: 0 | L72: 22
A73: 11 | B73: 7378 | C73: 21 | D73: 7390 | K73: 0 | L73: 12
A74: 22 | B74: 7497 | C74: 14 | D74: 7505 | K74: 0 | L74: 21
A75: 22 | B75: 7630 | C75: 14 | D75: 7642 | K75: 0 | L75: 21
A76: 22 | B76: 7740 | C76: 14 | D76: 7749 | K76: 0 | L76: 21
A77: 22 | B77: 7862 | C77: 14 | D77: 7871 | K77: 0 | L77: 21
A78: 22 | B78: 7972 | C78: 23 | D78: 7977 | K78: 0 | L78: 22
A79: 11 | B79: 8077 | C79: 21 | D79: 8099 | K79: 0 | L79: 12
A80: 22 | B80: 8186 | C80: 23 | D80: 8198 | K80: 0 | L80: 22
A81: 22 | B81: 8296 | C81: 23 | D81: 8304 | K81: 0 | L81: 22
A82: 11 | B82: 8405 | C82: 12 | D82: 8410 | K82: 0 | L82: 11
A83: 22 | B83: 8507 | C83: 23 | D83: 8512 | K83: 0 | L83: 22
A84: 11 | B84: 8612 | C84: 12 | D84: 8616 | K84: 0 | L84: 11
A85: 22 | B85: 8716 | C85: 14 | D85: 8724 | K85: 0 | L85: 21
A86: 22 | B86: 8832 | C86: 14 | D86: 8842 | K86: 0 | L86: 21
A87: 22 | B87: 8952 | C87: 23 | D87: 8971 | K87: 0 | L87: 22
A88: 22 | B88: 9083 | C88: 14 | D88: 9093 | K88: 0 | L88: 21
A89: 22 | B89: 9196 | C89: 23 | D89: 9209 | K89: 0 | L89: 22
A90: 22 | B90: 9309 | C90: 23 | D90: 9318 | K90: 0 | L90: 22
A91: 22 | B91: 9416 | C91: 23 | D91: 9427 | K91: 0 | L91: 22
A92: 11 | B92: 9528 | C92: 21 | D92: 9539 | K92: 0 | L92: 12
A93: 22 | B93: 9628 | C93: 23 | D93: 9638 | K93: 0 | L93: 22
A94: 22 | B94: 9741 | C94: 14 | D94: 9751 | K94: 0 | L94: 21
A95: 11 | B95: 9872 | C95: 12 | D95: 9883 | K95: 0 | L95: 11
A96: 22 | B96: 9989 | C96: 14 | D96: 9999 | K96: 0 | L96: 21
A97: 22 | B97: 10098 | C97: 23 | D97: 10103 | K97: 0 | L97: 22
A98: 22 | B98: 10202 | C98: 23 | D98: 10206 | K98: 0 | L98: 22
A99: 22 | B99: 10339 | C99: 14 | D99: 10349 | K99: 0 | L99: 21
A100: 11 | B100: 10480 | C100: 21 | D100: 10492 | K100: 0 | L100: 12
A101: 22 | B101: 10577 | C101: 23 | D101: 10582 | K101: 0 | L101: 22
A102: 22 | B102: 10682 | C102: 23 | D102: 10694 | K102: 0 | L102: 22
A103: 22 | B103: 10803 | C103: 14 | D103: 10813 | K103: 0 | L103: 21
A104: 22 | B104: 10919 | C104: 23 | D104: 10924 | K104: 0 | L104: 22
A105: 22 | B105: 11022 | C105: 23 | D105: 11030 | K105: 0 | L105: 22
A106: 22 | B106: 11128 | C106: 23 | D106: 11133 | K106: 0 | L106: 22
A107: 22 | B107: 11245 | C107: 14 | D107: 11256 | K107: 0 | L107: 21
A108: 11 | B108: 11411 | C108: 21 | D108: 11419 | K108: 0 | L108: 12
A109: 22 | B109: 11507 | C109: 23 | D109: 11512 | K109: 0 | L109: 22
A110: 22 | B110: 11610 | C110: 23 | D110: 11614 | K110: 0 | L110: 22
A111: 11 | B111: 11731 | C111: 21 | D111: 11739 | K111: 0 | L111: 12
A112: 22 | B112: 11826 | C112: 23 | D112: 11830 | K112: 0 | L112: 22
A113: 22 | B113: 11928 | C113: 23 | D113: 11938 | K113: 0 | L113: 22
A114: 22 | B114: 12047 | C114: 14 | D114: 12059 | K114: 0 | L114: 21
A115: 22 | B115: 12181 | C115: 14 | D115: 12195 | K115: 0 | L115: 21
A116: 22 | B116: 12300 | C116: 23 | D116: 12308 | K116: 0 | L116: 22
A117: 22 | B117: 12414 | C117: 23 | D117: 12424 | K117: 0 | L117: 22
A118: 22 | B118: 12530 | C118: 23 | D118: 12537 | K118: 0 | L118: 22
A119: 22 | B119: 12638 | C119: 23 | D119: 12642 | K119: 0 | L119: 22
A120: 11 | B120: 12744 | C120: 21 | D120: 12754 | K120: 0 | L120: 12
A121: 22 | B121: 12844 | C121: 23 | D121: 12848 | K121: 0 | L121: 22
A122: 22 | B122: 12951 | C122: 23 | D122: 12959 | K122: 0 | L122: 22
A123: 11 | B123: 13059 | C123: 21 | D123: 13072 | K123: 0 | L123: 12
A124: 22 | B124: 13160 | C124: 23 | D124: 13169 | K124: 0 | L124: 22
A125: 22 | B125: 13267 | C125: 14 | D125: 13275 | K125: 0 | L125: 21
A126: 22 | B126: 13377 | C126: 23 | D126: 13382 | K126: 0 | L126: 22
A127: 11 | B127: 13481 | C127: 21 | D127: 13490 | K127: 0 | L127: 12
A128: 22 | B128: 13580 | C128: 23 | D128: 13585 | K128: 0 | L128: 22
A129: 22 | B129: 13686 | C129: 23 | D129: 13691 | K129: 0 | L129: 22
A130: 22 | B130: 13789 | C130: 23 | D130: 13794 | K130: 0 | L130: 22
A131: 11 | B131: 13896 | C131: 21 | D131: 13903 | K131: 0 | L131: 12
A132: 22 | B132: 13991 | C132: 23 | D132: 14001 | K132: 0 | L132: 22
A133: 11 | B133: 14100 | C133: 12 | D133: 14105 | K133: 0 | L133: 11
A134: 22 | B134: 14205 | C134: 23 | D134: 14214 | K134: 0 | L134: 22
A135: 22 | B135: 14319 | C135: 23 | D135: 14340 | K135: 0 | L135: 22
A136: 11 | B136: 14441 | C136: 21 | D136: 14451 | K136: 0 | L136: 12
A137: 22 | B137: 14540 | C137: 23 | D137: 14547 | K137: 0 | L137: 22
A138: 22 | B138: 14648 | C138: 23 | D138: 14653 | K138: 0 | L138: 22
A139: 22 | B139: 14754 | C139: 23 | D139: 14760 | K139: 0 | L139: 22
A140: 11 | B140: 14859 | C140: 21 | D140: 14868 | K140: 0 | L140: 12
A141: 22 | B141: 14956 | C141: 14 | D141: 14983 | K141: 0 | L141: 21
A142: 11 | B142: 15092 | C142: 21 | D142: 15100 | K142: 0 | L142: 12
A143: 22 | B143: 15187 | C143: 23 | D143: 15195 | K143: 0 | L143: 22
A144: 22 | B144: 15292 | C144: 23 | D144: 15297 | K144: 0 | L144: 22
A145: 22 | B145: 15395 | C145: 23 | D145: 15400 | K145: 0 | L145: 22
A146: 22 | B146: 15498 | C146: 23 | D146: 15502 | K146: 0 | L146: 22
A147: 11 | B147: 15602 | C147: 21 | D147: 15610 | K147: 0 | L147: 12
A148: 22 | B148: 15699 | C148: 14 | D148: 15709 | K148: 0 | L148: 21
A149: 22 | B149: 15810 | C149: 14 | D149: 15827 | K149: 0 | L149: 21
A150: 22 | B150: 15924 | C150: 23 | D150: 15930 | K150: 0 | L150: 22
A151: 22 | B151: 16031 | C151: 14 | D151: 16042 | K151: 0 | L151: 21
A152: 22 | B152: 16141 | C152: 23 | D152: 16149 | K152: 0 | L152: 22
A153: 22 | B153: 16246 | C153: 23 | D153: 16253 | K153: 0 | L153: 22
A154: 22 | B154: 16351 | C154: 23 | D154: 16357 | K154: 0 | L154: 22
A155: 22 | B155: 16472 | C155: 23 | D155: 16480 | K155: 0 | L155: 22
A156: 22 | B156: 16581 | C156: 23 | D156: 16586 | K156: 0 | L156: 22
A157: 11 | B157: 16684 | C157: 21 | D157: 16692 | K157: 0 | L157: 12
A158: 11 | B158: 16783 | C158: 21 | D158: 16791 | K158: 0 | L158: 12
A159: 22 | B159: 16920 | C159: 14 | D159: 16931 | K159: 0 | L159: 21
A160: 11 | B160: 17029 | C160: 21 | D160: 17037 | K160: 0 | L160: 12
A161: 22 | B161: 17125 | C161: 23 | D161: 17141 | K161: 0 | L161: 22
A162: 11 | B162: 17243 | C162: 21 | D162: 17258 | K162: 0 | L162: 12
A163: 22 | B163: 17345 | C163: 23 | D163: 17350 | K163: 0 | L163: 22
A164: 22 | B164: 17449 | C164: 23 | D164: 17456 | K164: 0 | L164: 22
A165: 22 | B165: 17557 | C165: 23 | D165: 17562 | K165: 0 | L165: 22
A166: 22 | B166: 17668 | C166: 23 | D166: 17679 | K166: 0 | L166: 22
A167: 22 | B167: 17781 | C167: 23 | D167: 17791 | K167: 0 | L167: 22
A168: 11 | B168: 17891 | C168: 21 | D168: 17898 | K168: 0 | L168: 12
A169: 22 | B169: 17986 | C169: 23 | D169: 17994 | K169: 0 | L169: 22
A170: 11 | B170: 18092 | C170: 21 | D170: 18100 | K170: 0 | L170: 12
A171: 11 | B171: 18188 | C171: 21 | D171: 18198 | K171: 0 | L171: 12
A172: 22 | B172: 18286 | C172: 23 | D172: 18296 | K172: 0 | L172: 22
A173: 11 | B173: 18394 | C173: 21 | D173: 18401 | K173: 0 | L173: 12
A174: 22 | B174: 18544 | C174: 14 | D174: 18558 | K174: 0 | L174: 21
A175: 11 | B175: 18657 | C175: 21 | D175: 18665 | K175: 0 | L175: 12
A176: 22 | B176: 18765 | C176: 14 | D176: 18776 | K176: 0 | L176: 21
A177: 11 | B177: 18874 | C177: 21 | D177: 18882 | K177: 0 | L177: 12
A178: 22 | B178: 18973 | C178: 23 | D178: 18978 | K178: 0 | L178: 22
A179: 22 | B179: 19078 | C179: 23 | D179: 19086 | K179: 0 | L179: 22
A180: 22 | B180: 19185 | C180: 23 | D180: 19190 | K180: 0 | L180: 22
A181: 11 | B181: 19289 | C181: 21 | D181: 19296 | K181: 0 | L181: 12
A182: 11 | B182: 19386 | C182: 21 | D182: 19397 | K182: 0 | L182: 12
A183: 11 | B183: 19487 | C183: 21 | D183: 19524 | K183: 0 | L183: 12
A184: 22 | B184: 19623 | C184: 14 | D184: 19633 | K184: 0 | L184: 21
A185: 11 | B185: 19730 | C185: 21 | D185: 19737 | K185: 0 | L185: 12
A186: 22 | B186: 19825 | C186: 14 | D186: 19836 | K186: 0 | L186: 21
A187: 11 | B187: 19935 | C187: 21 | D187: 19956 | K187: 0 | L187: 12
A188: 11 | B188: 20046 | C188: 21 | D188: 20092 | K188: 0 | L188: 12
A189: 22 | B189: 20185 | C189: 23 | D189: 20189 | K189: 0 | L189: 22
A190: 22 | B190: 20288 | C190: 23 | D190: 20294 | K190: 0 | L190: 22
A191: 22 | B191: 20394 | C191: 23 | D191: 20402 | K191: 0 | L191: 22
A192: 11 | B192: 20499 | C192: 21 | D192: 20517 | K192: 0 | L192: 12
A193: 22 | B193: 20618 | C193: 23 | D193: 20631 | K193: 0 | L193: 22
A194: 11 | B194: 20730 | C194: 21 | D194: 20738 | K194: 0 | L194: 12
A195: 22 | B195: 20830 | C195: 14 | D195: 20841 | K195: 0 | L195: 21
A196: 11 | B196: 20938 | C196: 21 | D196: 20948 | K196: 0 | L196: 12
A197: 11 | B197: 21038 | C197: 21 | D197: 21077 | K197: 0 | L197: 12
A198: 22 | B198: 21165 | C198: 14 | D198: 21175 | K198: 0 | L198: 21
A199: 11 | B199: 21273 | C199: 21 | D199: 21281 | K199: 0 | L199: 12
A200: 11 | B200: 21368 | C200: 21 | D200: 21376 | K200: 0 | L200: 12
... 4 more rows

Sheet !N202C40.096
A1: Report for:!N202C40.096
A2: Date: | B2: <date>
A3: Hen: | B3: <hen> | F3: Correct Sequence | G3: =Start!J2 -> 12 | P3: Total Sequences in Data | Q3: =4994-COUNTBLANK(L7:L5000) -> 64 | V3: Total Sequences in Block Data | W3: =COUNTA(L7:L17) -> 11 | AA3: Total Sequences in Block Data | AB3: =COUNTA(L18:L27) -> 10 | AF3: Total Sequences in Block Data | AG3: =COUNTA(L28:L38) -> 11 | AK3: Total Sequences in Block Data | AL3: =COUNTA(L39:L49) -> 11 | AP3: Total Sequences in Block Data | AQ3: =COUNTA(L50:L59) -> 10 | AU3: Total Sequences in Block Data | AV3: =COUNTA(L60:L70) -> 11
P4: Total Sequences in Summary | Q4: =SUM(O7:O14) -> 64 | V4: Total Sequences in Block Summary | W4: =SUM(U7:U14) -> 11 | AA4: Total Sequences in Block Summary | AB4: =SUM(Z7:Z14) -> 10 | AF4: Total Sequences in Block Summary | AG4: =SUM(AE7:AE14) -> 11 | AK4: Total Sequences in Block Summary | AL4: =SUM(AJ7:AJ14) -> 11 | AP4: Total Sequences in Block Summary | AQ4: =SUM(AO7:AO14) -> 10 | AU4: Total Sequences in Block Summary | AV4: =SUM(AT7:AT14) -> 11
T5: Block 1 | Y5: Block 2 | AD5: Block 3 | AI5: Block 4 | AN5: Block 5 | AS5: Block 6
A6: Sequence Component 1 | B6: Time 1 | C6: Sequence Component 2 | D6: Time 2 | E6: Sequence Component 3 | F6: Time 3 | G6: Sequence Component 4 | H6: Time 4 | I6: Sequence Component 5 | J6: Time 5 | K6: Correct? 0=No 1=Yes | L6: Sequence | N6: Frequency | P6: Relative Frequency | Q6: Variability | T6: Frequency | V6: Relative Frequency | W6: Variability | Y6: Frequency | AA6: Relative Frequency | AB6: Variability | AD6: Frequency | AF6: Relative Frequency | AG6: Variability | AI6: Frequency | AK6: Relative Frequency | AL6: Variability | AN6: Frequency | AP6: Relative Frequency | AQ6: Variability | AS6: Frequency | AU6: Relative Frequency | AV6: Variability
A7: 11 | B7: 10 | C7: 12 | D7: 14 | K7: 0 | L7: 11 | N7: 11 | O7: =COUNTIF($L$7:$L$500,N7) -> 7 | P7: =O7/$Q$4 -> 0.109375 | Q7: =IF(P7=0,0,(P7*((LOG(P7))/LOG(2)))) -> -0.3491955554 | T7: =N7 -> 11 | U7: =COUNTIF(L7:L17,T7) -> 1 | V7: =U7/(W4-U8) -> 0.2 | W7: =IF(V7=0,0,(V7*((LOG(V7))/LOG(2)))) -> -0.464385619 | Y7: =N7 -> 11 | Z7: =COUNTIF(L18:L27,Y7) -> 1 | AA7: =Z7/(AB4-Z8) -> 0.3333333333 | AB7: =IF(AA7=0,0,(AA7*((LOG(AA7))/LOG(2)))) -> -0.5283208336 | AD7: =N7 -> 11 | AE7: =COUNTIF(L28:L38,AD7) -> 0 | AF7: =AE7/(AG4-AE8) -> 0 | AG7: =IF(AF7=0,0,(AF7*((LOG(AF7))/LOG(2)))) -> 0 | AI7: =N7 -> 11 | AJ7: =COUNTIF(L39:L49,AI7) -> 1 | AK7: =AJ7/(AL4-AJ8) -> 0.3333333333 | AL7: =IF(AK7=0,0,(AK7*((LOG(AK7))/LOG(2)))) -> -0.5283208336 | AN7: =N7 -> 11 | AO7: =COUNTIF(L50:L59,AN7) -> 1 | AP7: =AO7/(AQ4-AO8) -> 0.2 | AQ7: =IF(AP7=0,0,(AP7*((LOG(AP7))/LOG(2)))) -> -0.464385619 | AS7: =N7 -> 11 | AT7: =COUNTIF(L60:L70,AS7) -> 3 | AU7: =AT7/(AV4-AT8) -> 0.5 | AV7: =IF(AU7=0,0,(AU7*((LOG(AU7))/LOG(2)))) -> -0.5
A8: 22 | B8: 117 | C8: 23 | D8: 123 | K8: 0 | L8: 22 | N8: 12 | O8: =COUNTIF($L$7:$L$500,N8) -> 40 | P8: =O8/$Q$4 -> 0.625 | Q8: =IF(P8=0,0,(P8*((LOG(P8))/LOG(2)))) -> -0.4237949407 | T8: =N8 -> 12 | U8: =COUNTIF(L7:L17,T8) -> 6 | Y8: =N8 -> 12 | Z8: =COUNTIF(L18:L27,Y8) -> 7 | AD8: =N8 -> 12 | AE8: =COUNTIF(L28:L38,AD8) -> 9 | AI8: =N8 -> 12 | AJ8: =COUNTIF(L39:L49,AI8) -> 8 | AN8: =N8 -> 12 | AO8: =COUNTIF(L50:L59,AN8) -> 5 | AS8: =N8 -> 12 | AT8: =COUNTIF(L60:L70,AS8) -> 5
A9: 11 | B9: 234 | C9: 21 | D9: 247 | K9: 0 | L9: 12 | N9: 21 | O9: =COUNTIF($L$7:$L$500,N9) -> 7 | P9: =O9/$Q$4 -> 0.109375 | Q9: =IF(P9=0,0,(P9*((LOG(P9))/LOG(2)))) -> -0.3491955554 | T9: =N9 -> 21 | U9: =COUNTIF(L7:L17,T9) -> 3 | V9: =U9/(W4-U8) -> 0.6 | W9: =IF(V9=0,0,(V9*((LOG(V9))/LOG(2)))) -> -0.4421793565 | Y9: =N9 -> 21 | Z9: =COUNTIF(L18:L27,Y9) -> 1 | AA9: =Z9/(AB4-Z8) -> 0.3333333333 | AB9: =IF(AA9=0,0,(AA9*((LOG(AA9))/LOG(2)))) -> -0.5283208336 | AD9: =N9 -> 21 | AE9: =COUNTIF(L28:L38,AD9) -> 1 | AF9: =AE9/(AG4-AE8) -> 0.5 | AG9: =IF(AF9=0,0,(AF9*((LOG(AF9))/LOG(2)))) -> -0.5 | AI9: =N9 -> 21 | AJ9: =COUNTIF(L39:L49,AI9) -> 1 | AK9: =AJ9/(AL4-AJ8) -> 0.3333333333 | AL9: =IF(AK9=0,0,(AK9*((LOG(AK9))/LOG(2)))) -> -0.5283208336 | AN9: =N9 -> 21 | AO9: =COUNTIF(L50:L59,AN9) -> 1 | AP9: =AO9/(AQ4-AO8) -> 0.2 | AQ9: =IF(AP9=0,0,(AP9*((LOG(AP9))/LOG(2)))) -> -0.464385619 | AS9: =N9 -> 21 | AT9: =COUNTIF(L60:L70,AS9) -> 0 | AU9: =AT9/(AV4-AT8) -> 0 | AV9: =IF(AU9=0,0,(AU9*((LOG(AU9))/LOG(2)))) -> 0
A10: 22 | B10: 348 | C10: 14 | D10: 357 | K10: 0 | L10: 21 | N10: 22 | O10: =COUNTIF($L$7:$L$500,N10) -> 10 | P10: =O10/$Q$4 -> 0.15625 | Q10: =IF(P10=0,0,(P10*((LOG(P10))/LOG(2)))) -> -0.4184487352 | T10: =N10 -> 22 | U10: =COUNTIF(L7:L17,T10) -> 1 | V10: =U10/(W4-U8) -> 0.2 | W10: =IF(V10=0,0,(V10*((LOG(V10))/LOG(2)))) -> -0.464385619 | Y10: =N10 -> 22 | Z10: =COUNTIF(L18:L27,Y10) -> 1 | AA10: =Z10/(AB4-Z8) -> 0.3333333333 | AB10: =IF(AA10=0,0,(AA10*((LOG(AA10))/LOG(2)))) -> -0.5283208336 | AD10: =N10 -> 22 | AE10: =COUNTIF(L28:L38,AD10) -> 1 | AF10: =AE10/(AG4-AE8) -> 0.5 | AG10: =IF(AF10=0,0,(AF10*((LOG(AF10))/LOG(2)))) -> -0.5 | AI10: =N10 -> 22 | AJ10: =COUNTIF(L39:L49,AI10) -> 1 | AK10: =AJ10/(AL4-AJ8) -> 0.3333333333 | AL10: =IF(AK10=0,0,(AK10*((LOG(AK10))/LOG(2)))) -> -0.5283208336 | AN10: =N10 -> 22 | AO10: =COUNTIF(L50:L59,AN10) -> 3 | AP10: =AO10/(AQ4-AO8) -> 0.6 | AQ10: =IF(AP10=0,0,(AP10*((LOG(AP10))/LOG(2)))) -> -0.4421793565 | AS10: =N10 -> 22 | AT10: =COUNTIF(L60:L70,AS10) -> 3 | AU10: =AT10/(AV4-AT8) -> 0.5 | AV10: =IF(AU10=0,0,(AU10*((LOG(AU10))/LOG(2)))) -> -0.5
A11: 11 | B11: 455 | C11: 21 | D11: 468 | K11: 0 | L11: 12 | T11: =N11 -> 0 | U11: =COUNTIF(L7:L17,T11) -> 0 | V11: =U11/(W4-U8) -> 0 | W11: =IF(V11=0,0,(V11*((LOG(V11))/LOG(2)))) -> 0 | Y11: =N11 -> 0 | Z11: =COUNTIF(L18:L27,Y11) -> 0 | AA11: =Z11/(AB4-Z8) -> 0 | AB11: =IF(AA11=0,0,(AA11*((LOG(AA11))/LOG(2)))) -> 0 | AD11: =N11 -> 0 | AE11: =COUNTIF(L28:L38,AD11) -> 0 | AF11: =AE11/(AG4-AE8) -> 0 | AG11: =IF(AF11=0,0,(AF11*((LOG(AF11))/LOG(2)))) -> 0 | AI11: =N11 -> 0 | AJ11: =COUNTIF(L39:L49,AI11) -> 0 | AK11: =AJ11/(AL4-AJ8) -> 0 | AL11: =IF(AK11=0,0,(AK11*((LOG(AK11))/LOG(2)))) -> 0 | AN11: =N11 -> 0 | AO11: =COUNTIF(L50:L59,AN11) -> 0 | AP11: =AO11/(AQ4-AO8) -> 0 | AQ11: =IF(AP11=0,0,(AP11*((LOG(AP11))/LOG(2)))) -> 0 | AS11: =N11 -> 0 | AT11: =COUNTIF(L60:L70,AS11) -> 0 | AU11: =AT11/(AV4-AT8) -> 0 | AV11: =IF(AU11=0,0,(AU11*((LOG(AU11))/LOG(2)))) -> 0
A12: 11 | B12: 558 | C12: 21 | D12: 566 | K12: 0 | L12: 12 | T12: =N12 -> 0 | U12: =COUNTIF(L7:L17,T12) -> 0 | V12: =U12/(W4-U8) -> 0 | W12: =IF(V12=0,0,(V12*((LOG(V12))/LOG(2)))) -> 0 | Y12: =N12 -> 0 | Z12: =COUNTIF(L18:L27,Y12) -> 0 | AA12: =Z12/(AB4-Z8) -> 0 | AB12: =IF(AA12=0,0,(AA12*((LOG(AA12))/LOG(2)))) -> 0 | AD12: =N12 -> 0 | AE12: =COUNTIF(L28:L38,AD12) -> 0 | AF12: =AE12/(AG4-AE8) -> 0 | AG12: =IF(AF12=0,0,(AF12*((LOG(AF12))/LOG(2)))) -> 0 | AI12: =N12 -> 0 | AJ12: =COUNTIF(L39:L49,AI12) -> 0 | AK12: =AJ12/(AL4-AJ8) -> 0 | AL12: =IF(AK12=0,0,(AK12*((LOG(AK12))/LOG(2)))) -> 0 | AN12: =N12 -> 0 | AO12: =COUNTIF(L50:L59,AN12) -> 0 | AP12: =AO12/(AQ4-AO8) -> 0 | AQ12: =IF(AP12=0,0,(AP12*((LOG(AP12))/LOG(2)))) -> 0 | AS12: =N12 -> 0 | AT12: =COUNTIF(L60:L70,AS12) -> 0 | AU12: =AT12/(AV4-AT8) -> 0 | AV12: =IF(AU12=0,0,(AU12*((LOG(AU12))/LOG(2)))) -> 0
A13: 22 | B13: 653 | C13: 14 | D13: 663 | K13: 0 | L13: 21 | T13: =N13 -> 0 | U13: =COUNTIF(L7:L17,T13) -> 0 | V13: =U13/(W4-U8) -> 0 | W13: =IF(V13=0,0,(V13*((LOG(V13))/LOG(2)))) -> 0 | Y13: =N13 -> 0 | Z13: =COUNTIF(L18:L27,Y13) -> 0 | AA13: =Z13/(AB4-Z8) -> 0 | AB13: =IF(AA13=0,0,(AA13*((LOG(AA13))/LOG(2)))) -> 0 | AD13: =N13 -> 0 | AE13: =COUNTIF(L28:L38,AD13) -> 0 | AF13: =AE13/(AG4-AE8) -> 0 | AG13: =IF(AF13=0,0,(AF13*((LOG(AF13))/LOG(2)))) -> 0 | AI13: =N13 -> 0 | AJ13: =COUNTIF(L39:L49,AI13) -> 0 | AK13: =AJ13/(AL4-AJ8) -> 0 | AL13: =IF(AK13=0,0,(AK13*((LOG(AK13))/LOG(2)))) -> 0 | AN13: =N13 -> 0 | AO13: =COUNTIF(L50:L59,AN13) -> 0 | AP13: =AO13/(AQ4-AO8) -> 0 | AQ13: =IF(AP13=0,0,(AP13*((LOG(AP13))/LOG(2)))) -> 0 | AS13: =N13 -> 0 | AT13: =COUNTIF(L60:L70,AS13) -> 0 | AU13: =AT13/(AV4-AT8) -> 0 | AV13: =IF(AU13=0,0,(AU13*((LOG(AU13))/LOG(2)))) -> 0
A14: 11 | B14: 762 | C14: 21 | D14: 770 | K14: 0 | L14: 12 | T14: =N14 -> 0 | U14: =COUNTIF(L7:L17,T14) -> 0 | V14: =U14/(W4-U8) -> 0 | W14: =IF(V14=0,0,(V14*((LOG(V14))/LOG(2)))) -> 0 | Y14: =N14 -> 0 | Z14: =COUNTIF(L18:L27,Y14) -> 0 | AA14: =Z14/(AB4-Z8) -> 0 | AB14: =IF(AA14=0,0,(AA14*((LOG(AA14))/LOG(2)))) -> 0 | AD14: =N14 -> 0 | AE14: =COUNTIF(L28:L38,AD14) -> 0 | AF14: =AE14/(AG4-AE8) -> 0 | AG14: =IF(AF14=0,0,(AF14*((LOG(AF14))/LOG(2)))) -> 0 | AI14: =N14 -> 0 | AJ14: =COUNTIF(L39:L49,AI14) -> 0 | AK14: =AJ14/(AL4-AJ8) -> 0 | AL14: =IF(AK14=0,0,(AK14*((LOG(AK14))/LOG(2)))) -> 0 | AN14: =N14 -> 0 | AO14: =COUNTIF(L50:L59,AN14) -> 0 | AP14: =AO14/(AQ4-AO8) -> 0 | AQ14: =IF(AP14=0,0,(AP14*((LOG(AP14))/LOG(2)))) -> 0 | AS14: =N14 -> 0 | AT14: =COUNTIF(L60:L70,AS14) -> 0 | AU14: =AT14/(AV4-AT8) -> 0 | AV14: =IF(AU14=0,0,(AU14*((LOG(AU14))/LOG(2)))) -> 0
A15: 22 | B15: 865 | C15: 14 | D15: 874 | K15: 0 | L15: 21 | P15: =SUM(P7:P14) -> 1 | Q15: =-SUM(Q7:Q14) -> 1.540634787 | V15: =SUM(V7:V14) -> 1 | W15: =-SUM(W7:W14) -> 1.370950594 | AA15: =SUM(AA7:AA14) -> 1 | AB15: =-SUM(AB7:AB14) -> 1.584962501 | AF15: =SUM(AF7:AF14) -> 1 | AG15: =-SUM(AG7:AG14) -> 1 | AK15: =SUM(AK7:AK14) -> 1 | AL15: =-SUM(AL7:AL14) -> 1.584962501 | AP15: =SUM(AP7:AP14) -> 1 | AQ15: =-SUM(AQ7:AQ14) -> 1.370950594 | AU15: =SUM(AU7:AU14) -> 1 | AV15: =-SUM(AV7:AV14) -> 1
A16: 11 | B16: 972 | C16: 21 | D16: 979 | K16: 0 | L16: 12 | P16: U= | Q16: =Q15/(LOG(Q4)/LOG(2)) -> 0.2567724644 | V16: U1= | W16: =W15/(LOG(W4)/LOG(2)) -> 0.3962935955 | AA16: U2= | AB16: =AB15/(LOG(AB4)/LOG(2)) -> 0.4771212547 | AF16: U3= | AG16: =AG15/(LOG(AG4)/LOG(2)) -> 0.2890648263 | AK16: U4= | AL16: =AL15/(LOG(AL4)/LOG(2)) -> 0.45815691 | AP16: U5= | AQ16: =AQ15/(LOG(AQ4)/LOG(2)) -> 0.4126972515 | AU16: U6= | AV16: =AV15/(LOG(AV4)/LOG(2)) -> 0.2890648263
A17: 11 | B17: 1069 | C17: 21 | D17: 1092 | K17: 0 | L17: 12
A18: 22 | B18: 1208 | C18: 14 | D18: 1221 | K18: 0 | L18: 21
A19: 11 | B19: 1318 | C19: 21 | D19: 1326 | K19: 0 | L19: 12 | N19: Total Target Seq
A20: 11 | B20: 1415 | C20: 21 | D20: 1423 | K20: 0 | L20: 12 | N20: =COUNTIF(L7:L70,G3) -> 40 | P20: 11 | Q20: 10 | R20: 11 | S20: 11 | T20: 10 | U20: 11
A21: 11 | B21: 1510 | C21: 12 | D21: 1514 | K21: 0 | L21: 11 | P21: % of reinforcement given in 6 equal intervals based on number of trials
A22: 22 | B22: 1616 | C22: 23 | D22: 1627 | K22: 0 | L22: 22 | P22: %_1 | Q22: %_2 | R22: %_3 | S22: %_4 | T22: %_5 | U22: %_6
A23: 11 | B23: 1724 | C23: 21 | D23: 1735 | K23: 0 | L23: 12 | O23: target sequence | P23: =$G$3 -> 12 | Q23: =$G$3 -> 12 | R23: =$G$3 -> 12 | S23: =$G$3 -> 12 | T23: =$G$3 -> 12 | U23: =$G$3 -> 12
A24: 11 | B24: 1827 | C24: 21 | D24: 1836 | K24: 0 | L24: 12 | O24: total reinforcement | P24: =U8 -> 6 | Q24: =Z8 -> 7 | R24: =AE8 -> 9 | S24: =AJ8 -> 8 | T24: =AO8 -> 5 | U24: =AT8 -> 5
A25: 11 | B25: 1930 | C25: 21 | D25: 1937 | K25: 0 | L25: 12 | O25: % target
A26: 11 | B26: 2026 | C26: 21 | D26: 2034 | K26: 0 | L26: 12 | O26: CCRF
A27: 11 | B27: 2121 | C27: 21 | D27: 2131 | K27: 0 | L27: 12 | O27: % CCRf
A28: 11 | B28: 2218 | C28: 21 | D28: 2225 | K28: 0 | L28: 12 | O28: average response rate | P28: =D17/P20 -> 99.27272727 | Q28: =(D27-D17)/Q20 -> 103.9 | R28: =(D38-D27)/R20 -> 98.18181818 | S28: =(D49-D38)/S20 -> 104.9090909 | T28: =(D59-D49)/T20 -> 110 | U28: =(D70-D59)/U20 -> 110.8181818
A29: 11 | B29: 2311 | C29: 21 | D29: 2320 | K29: 0 | L29: 12
A30: 11 | B30: 2406 | C30: 21 | D30: 2414 | K30: 0 | L30: 12
A31: 11 | B31: 2500 | C31: 21 | D31: 2508 | K31: 0 | L31: 12
A32: 11 | B32: 2595 | C32: 21 | D32: 2602 | K32: 0 | L32: 12
A33: 11 | B33: 2691 | C33: 21 | D33: 2698 | K33: 0 | L33: 12
A34: 22 | B34: 2787 | C34: 14 | D34: 2795 | K34: 0 | L34: 21
A35: 11 | B35: 2892 | C35: 21 | D35: 2899 | K35: 0 | L35: 12
A36: 11 | B36: 2986 | C36: 21 | D36: 3004 | K36: 0 | L36: 12
A37: 11 | B37: 3091 | C37: 21 | D37: 3102 | K37: 0 | L37: 12
A38: 22 | B38: 3201 | C38: 23 | D38: 3211 | K38: 0 | L38: 22
A39: 11 | B39: 3307 | C39: 21 | D39: 3319 | K39: 0 | L39: 12
A40: 11 | B40: 3410 | C40: 21 | D40: 3420 | K40: 0 | L40: 12
A41: 11 | B41: 3505 | C41: 12 | D41: 3515 | K41: 0 | L41: 11
A42: 11 | B42: 3613 | C42: 21 | D42: 3623 | K42: 0 | L42: 12
A43: 11 | B43: 3713 | C43: 21 | D43: 3722 | K43: 0 | L43: 12
A44: 11 | B44: 3813 | C44: 21 | D44: 3820 | K44: 0 | L44: 12
A45: 22 | B45: 3922 | C45: 23 | D45: 3932 | K45: 0 | L45: 22
A46: 11 | B46: 4030 | C46: 21 | D46: 4037 | K46: 0 | L46: 12
A47: 11 | B47: 4129 | C47: 21 | D47: 4137 | K47: 0 | L47: 12
A48: 22 | B48: 4236 | C48: 14 | D48: 4249 | K48: 0 | L48: 21
A49: 11 | B49: 4348 | C49: 21 | D49: 4365 | K49: 0 | L49: 12
A50: 22 | B50: 4467 | C50: 23 | D50: 4484 | K50: 0 | L50: 22
A51: 22 | B51: 4594 | C51: 23 | D51: 4603 | K51: 0 | L51: 22
A52: 11 | B52: 4710 | C52: 21 | D52: 4717 | K52: 0 | L52: 12
A53: 22 | B53: 4824 | C53: 14 | D53: 4834 | K53: 0 | L53: 21
A54: 22 | B54: 4945 | C54: 23 | D54: 4952 | K54: 0 | L54: 22
A55: 11 | B55: 5058 | C55: 21 | D55: 5065 | K55: 0 | L55: 12
A56: 11 | B56: 5158 | C56: 12 | D56: 5165 | K56: 0 | L56: 11
A57: 11 | B57: 5270 | C57: 21 | D57: 5277 | K57: 0 | L57: 12
A58: 11 | B58: 5363 | C58: 21 | D58: 5371 | K58: 0 | L58: 12
A59: 11 | B59: 5458 | C59: 21 | D59: 5465 | K59: 0 | L59: 12
A60: 11 | B60: 5551 | C60: 12 | D60: 5558 | K60: 0 | L60: 11
A61: 22 | B61: 5664 | C61: 23 | D61: 5673 | K61: 0 | L61: 22
A62: 11 | B62: 5778 | C62: 21 | D62: 5785 | K62: 0 | L62: 12
A63: 11 | B63: 5884 | C63: 21 | D63: 5894 | K63: 0 | L63: 12
A64: 11 | B64: 5980 | C64: 12 | D64: 5988 | K64: 0 | L64: 11
A65: 11 | B65: 6102 | C65: 21 | D65: 6109 | K65: 0 | L65: 12
A66: 22 | B66: 6214 | C66: 23 | D66: 6232 | K66: 0 | L66: 22
A67: 11 | B67: 6329 | C67: 12 | D67: 6336 | K67: 0 | L67: 11
A68: 22 | B68: 6450 | C68: 23 | D68: 6469 | K68: 0 | L68: 22
A69: 11 | B69: 6580 | C69: 21 | D69: 6588 | K69: 0 | L69: 12
A70: 11 | B70: 6676 | C70: 21 | D70: 6684 | K70: 1 | L70: 12

Sheet !N204B50.096
A1: Report for:!N204B50.096
A2: Date: | B2: <date>
A3: Hen: | B3: <hen> | F3: Correct Sequence | G3: =Start!J2 -> 12 | P3: Total Sequences in Data | Q3: =4994-COUNTBLANK(L7:L5000) -> 72 | V3: Total Sequences in Block Data | W3: =COUNTA(L7:L18) -> 12 | AA3: Total Sequences in Block Data | AB3: =COUNTA(L19:L30) -> 12 | AF3: Total Sequences in Block Data | AG3: =COUNTA(L31:L42) -> 12 | AK3: Total Sequences in Block Data | AL3: =COUNTA(L43:L54) -> 12 | AP3: Total Sequences in Block Data | AQ3: =COUNTA(L55:L66) -> 12 | AU3: Total Sequences in Block Data | AV3: =COUNTA(L67:L78) -> 12
P4: Total Sequences in Summary | Q4: =SUM(O7:O14) -> 72 | V4: Total Sequences in Block Summary | W4: =SUM(U7:U14) -> 12 | AA4: Total Sequences in Block Summary | AB4: =SUM(Z7:Z14) -> 12 | AF4: Total Sequences in Block Summary | AG4: =SUM(AE7:AE14) -> 12 | AK4: Total Sequences in Block Summary | AL4: =SUM(AJ7:AJ14) -> 12 | AP4: Total Sequences in Block Summary | AQ4: =SUM(AO7:AO14) -> 12 | AU4: Total Sequences in Block Summary | AV4: =SUM(AT7:AT14) -> 12
T5: Block 1 | Y5: Block 2 | AD5: Block 3 | AI5: Block 4 | AN5: Block 5 | AS5: Block 6
A6: Sequence Component 1 | B6: Time 1 | C6: Sequence Component 2 | D6: Time 2 | E6: Sequence Component 3 | F6: Time 3 | G6: Sequence Component 4 | H6: Time 4 | I6: Sequence Component 5 | J6: Time 5 | K6: Correct? 0=No 1=Yes | L6: Sequence | N6: Frequency | P6: Relative Frequency | Q6: Variability | T6: Frequency | V6: Relative Frequency | W6: Variability | Y6: Frequency | AA6: Relative Frequency | AB6: Variability | AD6: Frequency | AF6: Relative Frequency | AG6: Variability | AI6: Frequency | AK6: Relative Frequency | AL6: Variability | AN6: Frequency | AP6: Relative Frequency | AQ6: Variability | AS6: Frequency | AU6: Relative Frequency | AV6: Variability
A7: 11 | B7: 5 | C7: 21 | D7: 15 | K7: 0 | L7: 12 | N7: 11 | O7: =COUNTIF($L$7:$L$500,N7) -> 14 | P7: =O7/$Q$4 -> 0.1944444444 | Q7: =IF(P7=0,0,(P7*((LOG(P7))/LOG(2)))) -> -0.4593886265 | T7: =N7 -> 11 | U7: =COUNTIF(L7:L18,T7) -> 0 | V7: =U7/(W4-U8) -> 0 | W7: =IF(V7=0,0,(V7*((LOG(V7))/LOG(2)))) -> 0 | Y7: =N7 -> 11 | Z7: =COUNTIF(L19:L30,Y7) -> 5 | AA7: =Z7/(AB4-Z8) -> 0.625 | AB7: =IF(AA7=0,0,(AA7*((LOG(AA7))/LOG(2)))) -> -0.4237949407 | AD7: =N7 -> 11 | AE7: =COUNTIF(L31:L42,AD7) -> 3 | AF7: =AE7/(AG4-AE8) -> 0.75 | AG7: =IF(AF7=0,0,(AF7*((LOG(AF7))/LOG(2)))) -> -0.3112781245 | AI7: =N7 -> 11 | AJ7: =COUNTIF(L43:L54,AI7) -> 2 | AK7: =AJ7/(AL4-AJ8) -> 0.4 | AL7: =IF(AK7=0,0,(AK7*((LOG(AK7))/LOG(2)))) -> -0.528771238 | AN7: =N7 -> 11 | AO7: =COUNTIF(L55:L66,AN7) -> 2 | AP7: =AO7/(AQ4-AO8) -> 0.25 | AQ7: =IF(AP7=0,0,(AP7*((LOG(AP7))/LOG(2)))) -> -0.5 | AS7: =N7 -> 11 | AT7: =COUNTIF(L67:L78,AS7) -> 2 | AU7: =AT7/(AV4-AT8) -> 0.3333333333 | AV7: =IF(AU7=0,0,(AU7*((LOG(AU7))/LOG(2)))) -> -0.5283208336
A8: 11 | B8: 105 | C8: 21 | D8: 112 | K8: 0 | L8: 12 | N8: 12 | O8: =COUNTIF($L$7:$L$500,N8) -> 40 | P8: =O8/$Q$4 -> 0.5555555556 | Q8: =IF(P8=0,0,(P8*((LOG(P8))/LOG(2)))) -> -0.4711093925 | T8: =N8 -> 12 | U8: =COUNTIF(L7:L18,T8) -> 11 | Y8: =N8 -> 12 | Z8: =COUNTIF(L19:L30,Y8) -> 4 | AD8: =N8 -> 12 | AE8: =COUNTIF(L31:L42,AD8) -> 8 | AI8: =N8 -> 12 | AJ8: =COUNTIF(L43:L54,AI8) -> 7 | AN8: =N8 -> 12 | AO8: =COUNTIF(L55:L66,AN8) -> 4 | AS8: =N8 -> 12 | AT8: =COUNTIF(L67:L78,AS8) -> 6
A9: 11 | B9: 202 | C9: 21 | D9: 209 | K9: 0 | L9: 12 | N9: 21 | O9: =COUNTIF($L$7:$L$500,N9) -> 8 | P9: =O9/$Q$4 -> 0.1111111111 | Q9: =IF(P9=0,0,(P9*((LOG(P9))/LOG(2)))) -> -0.352213889 | T9: =N9 -> 21 | U9: =COUNTIF(L7:L18,T9) -> 0 | V9: =U9/(W4-U8) -> 0 | W9: =IF(V9=0,0,(V9*((LOG(V9))/LOG(2)))) -> 0 | Y9: =N9 -> 21 | Z9: =COUNTIF(L19:L30,Y9) -> 2 | AA9: =Z9/(AB4-Z8) -> 0.25 | AB9: =IF(AA9=0,0,(AA9*((LOG(AA9))/LOG(2)))) -> -0.5 | AD9: =N9 -> 21 | AE9: =COUNTIF(L31:L42,AD9) -> 0 | AF9: =AE9/(AG4-AE8) -> 0 | AG9: =IF(AF9=0,0,(AF9*((LOG(AF9))/LOG(2)))) -> 0 | AI9: =N9 -> 21 | AJ9: =COUNTIF(L43:L54,AI9) -> 1 | AK9: =AJ9/(AL4-AJ8) -> 0.2 | AL9: =IF(AK9=0,0,(AK9*((LOG(AK9))/LOG(2)))) -> -0.464385619 | AN9: =N9 -> 21 | AO9: =COUNTIF(L55:L66,AN9) -> 5 | AP9: =AO9/(AQ4-AO8) -> 0.625 | AQ9: =IF(AP9=0,0,(AP9*((LOG(AP9))/LOG(2)))) -> -0.4237949407 | AS9: =N9 -> 21 | AT9: =COUNTIF(L67:L78,AS9) -> 0 | AU9: =AT9/(AV4-AT8) -> 0 | AV9: =IF(AU9=0,0,(AU9*((LOG(AU9))/LOG(2)))) -> 0
A10: 22 | B10: 303 | C10: 23 | D10: 317 | K10: 0 | L10: 22 | N10: 22 | O10: =COUNTIF($L$7:$L$500,N10) -> 10 | P10: =O10/$Q$4 -> 0.1388888889 | Q10: =IF(P10=0,0,(P10*((LOG(P10))/LOG(2)))) -> -0.3955551259 | T10: =N10 -> 22 | U10: =COUNTIF(L7:L18,T10) -> 1 | V10: =U10/(W4-U8) -> 1 | W10: =IF(V10=0,0,(V10*((LOG(V10))/LOG(2)))) -> 0 | Y10: =N10 -> 22 | Z10: =COUNTIF(L19:L30,Y10) -> 1 | AA10: =Z10/(AB4-Z8) -> 0.125 | AB10: =IF(AA10=0,0,(AA10*((LOG(AA10))/LOG(2)))) -> -0.375 | AD10: =N10 -> 22 | AE10: =COUNTIF(L31:L42,AD10) -> 1 | AF10: =AE10/(AG4-AE8) -> 0.25 | AG10: =IF(AF10=0,0,(AF10*((LOG(AF10))/LOG(2)))) -> -0.5 | AI10: =N10 -> 22 | AJ10: =COUNTIF(L43:L54,AI10) -> 2 | AK10: =AJ10/(AL4-AJ8) -> 0.4 | AL10: =IF(AK10=0,0,(AK10*((LOG(AK10))/LOG(2)))) -> -0.528771238 | AN10: =N10 -> 22 | AO10: =COUNTIF(L55:L66,AN10) -> 1 | AP10: =AO10/(AQ4-AO8) -> 0.125 | AQ10: =IF(AP10=0,0,(AP10*((LOG(AP10))/LOG(2)))) -> -0.375 | AS10: =N10 -> 22 | AT10: =COUNTIF(L67:L78,AS10) -> 4 | AU10: =AT10/(AV4-AT8) -> 0.6666666667 | AV10: =IF(AU10=0,0,(AU10*((LOG(AU10))/LOG(2)))) -> -0.3899750005
A11: 11 | B11: 415 | C11: 21 | D11: 423 | K11: 0 | L11: 12 | T11: =N11 -> 0 | U11: =COUNTIF(L7:L18,T11) -> 0 | V11: =U11/(W4-U8) -> 0 | W11: =IF(V11=0,0,(V11*((LOG(V11))/LOG(2)))) -> 0 | Y11: =N11 -> 0 | Z11: =COUNTIF(L19:L30,Y11) -> 0 | AA11: =Z11/(AB4-Z8) -> 0 | AB11: =IF(AA11=0,0,(AA11*((LOG(AA11))/LOG(2)))) -> 0 | AD11: =N11 -> 0 | AE11: =COUNTIF(L31:L42,AD11) -> 0 | AF11: =AE11/(AG4-AE8) -> 0 | AG11: =IF(AF11=0,0,(AF11*((LOG(AF11))/LOG(2)))) -> 0 | AI11: =N11 -> 0 | AJ11: =COUNTIF(L43:L54,AI11) -> 0 | AK11: =AJ11/(AL4-AJ8) -> 0 | AL11: =IF(AK11=0,0,(AK11*((LOG(AK11))/LOG(2)))) -> 0 | AN11: =N11 -> 0 | AO11: =COUNTIF(L55:L66,AN11) -> 0 | AP11: =AO11/(AQ4-AO8) -> 0 | AQ11: =IF(AP11=0,0,(AP11*((LOG(AP11))/LOG(2)))) -> 0 | AS11: =N11 -> 0 | AT11: =COUNTIF(L67:L78,AS11) -> 0 | AU11: =AT11/(AV4-AT8) -> 0 | AV11: =IF(AU11=0,0,(AU11*((LOG(AU11))/LOG(2)))) -> 0
A12: 11 | B12: 511 | C12: 21 | D12: 518 | K12: 0 | L12: 12 | T12: =N12 -> 0 | U12: =COUNTIF(L7:L18,T12) -> 0 | V12: =U12/(W4-U8) -> 0 | W12: =IF(V12=0,0,(V12*((LOG(V12))/LOG(2)))) -> 0 | Y12: =N12 -> 0 | Z12: =COUNTIF(L19:L30,Y12) -> 0 | AA12: =Z12/(AB4-Z8) -> 0 | AB12: =IF(AA12=0,0,(AA12*((LOG(AA12))/LOG(2)))) -> 0 | AD12: =N12 -> 0 | AE12: =COUNTIF(L31:L42,AD12) -> 0 | AF12: =AE12/(AG4-AE8) -> 0 | AG12: =IF(AF12=0,0,(AF12*((LOG(AF12))/LOG(2)))) -> 0 | AI12: =N12 -> 0 | AJ12: =COUNTIF(L43:L54,AI12) -> 0 | AK12: =AJ12/(AL4-AJ8) -> 0 | AL12: =IF(AK12=0,0,(AK12*((LOG(AK12))/LOG(2)))) -> 0 | AN12: =N12 -> 0 | AO12: =COUNTIF(L55:L66,AN12) -> 0 | AP12: =AO12/(AQ4-AO8) -> 0 | AQ12: =IF(AP12=0,0,(AP12*((LOG(AP12))/LOG(2)))) -> 0 | AS12: =N12 -> 0 | AT12: =COUNTIF(L67:L78,AS12) -> 0 | AU12: =AT12/(AV4-AT8) -> 0 | AV12: =IF(AU12=0,0,(AU12*((LOG(AU12))/LOG(2)))) -> 0
A13: 11 | B13: 604 | C13: 21 | D13: 612 | K13: 0 | L13: 12 | T13: =N13 -> 0 | U13: =COUNTIF(L7:L18,T13) -> 0 | V13: =U13/(W4-U8) -> 0 | W13: =IF(V13=0,0,(V13*((LOG(V13))/LOG(2)))) -> 0 | Y13: =N13 -> 0 | Z13: =COUNTIF(L19:L30,Y13) -> 0 | AA13: =Z13/(AB4-Z8) -> 0 | AB13: =IF(AA13=0,0,(AA13*((LOG(AA13))/LOG(2)))) -> 0 | AD13: =N13 -> 0 | AE13: =COUNTIF(L31:L42,AD13) -> 0 | AF13: =AE13/(AG4-AE8) -> 0 | AG13: =IF(AF13=0,0,(AF13*((LOG(AF13))/LOG(2)))) -> 0 | AI13: =N13 -> 0 | AJ13: =COUNTIF(L43:L54,AI13) -> 0 | AK13: =AJ13/(AL4-AJ8) -> 0 | AL13: =IF(AK13=0,0,(AK13*((LOG(AK13))/LOG(2)))) -> 0 | AN13: =N13 -> 0 | AO13: =COUNTIF(L55:L66,AN13) -> 0 | AP13: =AO13/(AQ4-AO8) -> 0 | AQ13: =IF(AP13=0,0,(AP13*((LOG(AP13))/LOG(2)))) -> 0 | AS13: =N13 -> 0 | AT13: =COUNTIF(L67:L78,AS13) -> 0 | AU13: =AT13/(AV4-AT8) -> 0 | AV13: =IF(AU13=0,0,(AU13*((LOG(AU13))/LOG(2)))) -> 0
A14: 11 | B14: 699 | C14: 21 | D14: 706 | K14: 0 | L14: 12 | T14: =N14 -> 0 | U14: =COUNTIF(L7:L18,T14) -> 0 | V14: =U14/(W4-U8) -> 0 | W14: =IF(V14=0,0,(V14*((LOG(V14))/LOG(2)))) -> 0 | Y14: =N14 -> 0 | Z14: =COUNTIF(L19:L30,Y14) -> 0 | AA14: =Z14/(AB4-Z8) -> 0 | AB14: =IF(AA14=0,0,(AA14*((LOG(AA14))/LOG(2)))) -> 0 | AD14: =N14 -> 0 | AE14: =COUNTIF(L31:L42,AD14) -> 0 | AF14: =AE14/(AG4-AE8) -> 0 | AG14: =IF(AF14=0,0,(AF14*((LOG(AF14))/LOG(2)))) -> 0 | AI14: =N14 -> 0 | AJ14: =COUNTIF(L43:L54,AI14) -> 0 | AK14: =AJ14/(AL4-AJ8) -> 0 | AL14: =IF(AK14=0,0,(AK14*((LOG(AK14))/LOG(2)))) -> 0 | AN14: =N14 -> 0 | AO14: =COUNTIF(L55:L66,AN14) -> 0 | AP14: =AO14/(AQ4-AO8) -> 0 | AQ14: =IF(AP14=0,0,(AP14*((LOG(AP14))/LOG(2)))) -> 0 | AS14: =N14 -> 0 | AT14: =COUNTIF(L67:L78,AS14) -> 0 | AU14: =AT14/(AV4-AT8) -> 0 | AV14: =IF(AU14=0,0,(AU14*((LOG(AU14))/LOG(2)))) -> 0
A15: 11 | B15: 794 | C15: 21 | D15: 802 | K15: 0 | L15: 12 | P15: =SUM(P7:P14) -> 1 | Q15: =-SUM(Q7:Q14) -> 1.678267034 | V15: =SUM(V7:V14) -> 1 | W15: =-SUM(W7:W14) -> 0 | AA15: =SUM(AA7:AA14) -> 1 | AB15: =-SUM(AB7:AB14) -> 1.298794941 | AF15: =SUM(AF7:AF14) -> 1 | AG15: =-SUM(AG7:AG14) -> 0.8112781245 | AK15: =SUM(AK7:AK14) -> 1 | AL15: =-SUM(AL7:AL14) -> 1.521928095 | AP15: =SUM(AP7:AP14) -> 1 | AQ15: =-SUM(AQ7:AQ14) -> 1.298794941 | AU15: =SUM(AU7:AU14) -> 1 | AV15: =-SUM(AV7:AV14) -> 0.9182958341
A16: 11 | B16: 890 | C16: 21 | D16: 921 | K16: 0 | L16: 12 | P16: U= | Q16: =Q15/(LOG(Q4)/LOG(2)) -> 0.2720076879 | V16: U1= | W16: =W15/(LOG(W4)/LOG(2)) -> 0 | AA16: U2= | AB16: =AB15/(LOG(AB4)/LOG(2)) -> 0.3622896866 | AF16: U3= | AG16: =AG15/(LOG(AG4)/LOG(2)) -> 0.2263003098 | AK16: U4= | AL16: =AL15/(LOG(AL4)/LOG(2)) -> 0.4245311059 | AP16: U5= | AQ16: =AQ15/(LOG(AQ4)/LOG(2)) -> 0.3622896866 | AU16: U6= | AV16: =AV15/(LOG(AV4)/LOG(2)) -> 0.2561521449
A17: 11 | B17: 1008 | C17: 21 | D17: 1016 | K17: 0 | L17: 12
A18: 11 | B18: 1109 | C18: 21 | D18: 1118 | K18: 0 | L18: 12
A19: 22 | B19: 1227 | C19: 14 | D19: 1242 | K19: 0 | L19: 21 | N19: Total Target Seq
A20: 11 | B20: 1332 | C20: 21 | D20: 1340 | K20: 0 | L20: 12 | N20: =COUNTIF(L7:L78,G3) -> 40 | P20: 12 | Q20: 12 | R20: 12 | S20: 12 | T20: 12 | U20: 12
A21: 11 | B21: 1432 | C21: 21 | D21: 1439 | K21: 0 | L21: 12 | P21: % of reinforcement given in 6 equal intervals based on number of trials
A22: 22 | B22: 1541 | C22: 23 | D22: 1551 | K22: 0 | L22: 22 | P22: %_1 | Q22: %_2 | R22: %_3 | S22: %_4 | T22: %_5 | U22: %_6
A23: 11 | B23: 1648 | C23: 12 | D23: 1656 | K23: 0 | L23: 11 | O23: target sequence | P23: =$G$3 -> 12 | Q23: =$G$3 -> 12 | R23: =$G$3 -> 12 | S23: =$G$3 -> 12 | T23: =$G$3 -> 12 | U23: =$G$3 -> 12
A24: 11 | B24: 1753 | C24: 12 | D24: 1761 | K24: 0 | L24: 11 | O24: total reinforcement | P24: =U8 -> 11 | Q24: =Z8 -> 4 | R24: =AE8 -> 8 | S24: =AJ8 -> 7 | T24: =AO8 -> 4 | U24: =AT8 -> 6
A25: 11 | B25: 1862 | C25: 21 | D25: 1870 | K25: 0 | L25: 12 | O25: % target
A26: 11 | B26: 1957 | C26: 21 | D26: 1964 | K26: 0 | L26: 12 | O26: CCRF
A27: 22 | B27: 2059 | C27: 14 | D27: 2075 | K27: 0 | L27: 21 | O27: % CCRf
A28: 11 | B28: 2177 | C28: 12 | D28: 2186 | K28: 0 | L28: 11 | O28: average response rate | P28: =D18/P20 -> 93.16666667 | Q28: =(D30-D18)/Q20 -> 107.4166667 | R28: =(D42-D30)/R20 -> 104.6666667 | S28: =(D54-D42)/S20 -> 106.3333333 | T28: =(D66-D54)/T20 -> 112.9166667 | U28: =(D78-D66)/U20 -> 104.6666667
A29: 11 | B29: 2290 | C29: 12 | D29: 2299 | K29: 0 | L29: 11
A30: 11 | B30: 2399 | C30: 12 | D30: 2407 | K30: 0 | L30: 11
A31: 11 | B31: 2512 | C31: 12 | D31: 2529 | K31: 0 | L31: 11
A32: 11 | B32: 2627 | C32: 12 | D32: 2636 | K32: 0 | L32: 11
A33: 11 | B33: 2733 | C33: 21 | D33: 2741 | K33: 0 | L33: 12
A34: 11 | B34: 2830 | C34: 21 | D34: 2838 | K34: 0 | L34: 12
A35: 11 | B35: 2924 | C35: 21 | D35: 2931 | K35: 0 | L35: 12
A36: 22 | B36: 3027 | C36: 23 | D36: 3037 | K36: 0 | L36: 22
A37: 11 | B37: 3138 | C37: 21 | D37: 3148 | K37: 0 | L37: 12
A38: 11 | B38: 3248 | C38: 12 | D38: 3259 | K38: 0 | L38: 11
A39: 11 | B39: 3363 | C39: 21 | D39: 3372 | K39: 0 | L39: 12
A40: 11 | B40: 3458 | C40: 21 | D40: 3466 | K40: 0 | L40: 12
A41: 11 | B41: 3554 | C41: 21 | D41: 3561 | K41: 0 | L41: 12
A42: 11 | B42: 3653 | C42: 21 | D42: 3663 | K42: 0 | L42: 12
A43: 22 | B43: 3765 | C43: 23 | D43: 3780 | K43: 0 | L43: 22
A44: 11 | B44: 3877 | C44: 21 | D44: 3885 | K44: 0 | L44: 12
A45: 11 | B45: 3976 | C45: 21 | D45: 3984 | K45: 0 | L45: 12
A46: 22 | B46: 4080 | C46: 23 | D46: 4090 | K46: 0 | L46: 22
A47: 11 | B47: 4190 | C47: 21 | D47: 4201 | K47: 0 | L47: 12
A48: 11 | B48: 4287 | C48: 21 | D48: 4295 | K48: 0 | L48: 12
A49: 22 | B49: 4391 | C49: 14 | D49: 4416 | K49: 0 | L49: 21
A50: 11 | B50: 4521 | C50: 21 | D50: 4530 | K50: 0 | L50: 12
A51: 11 | B51: 4620 | C51: 12 | D51: 4624 | K51: 0 | L51: 11
A52: 11 | B52: 4730 | C52: 21 | D52: 4741 | K52: 0 | L52: 12
A53: 11 | B53: 4834 | C53: 21 | D53: 4843 | K53: 0 | L53: 12
A54: 11 | B54: 4931 | C54: 12 | D54: 4939 | K54: 0 | L54: 11
A55: 11 | B55: 5038 | C55: 12 | D55: 5045 | K55: 0 | L55: 11
A56: 11 | B56: 5155 | C56: 12 | D56: 5166 | K56: 0 | L56: 11
A57: 22 | B57: 5273 | C57: 14 | D57: 5285 | K57: 0 | L57: 21
A58: 22 | B58: 5394 | C58: 14 | D58: 5406 | K58: 0 | L58: 21
A59: 22 | B59: 5516 | C59: 14 | D59: 5527 | K59: 0 | L59: 21
A60: 22 | B60: 5634 | C60: 14 | D60: 5647 | K60: 0 | L60: 21
A61: 11 | B61: 5753 | C61: 21 | D61: 5761 | K61: 0 | L61: 12
A62: 22 | B62: 5862 | C62: 14 | D62: 5872 | K62: 0 | L62: 21
A63: 11 | B63: 5976 | C63: 21 | D63: 5983 | K63: 0 | L63: 12
A64: 22 | B64: 6080 | C64: 23 | D64: 6088 | K64: 0 | L64: 22
A65: 11 | B65: 6190 | C65: 21 | D65: 6198 | K65: 0 | L65: 12
A66: 11 | B66: 6284 | C66: 21 | D66: 6294 | K66: 0 | L66: 12
A67: 11 | B67: 6380 | C67: 12 | D67: 6388 | K67: 0 | L67: 11
A68: 11 | B68: 6485 | C68: 21 | D68: 6493 | K68: 0 | L68: 12
A69: 11 | B69: 6579 | C69: 21 | D69: 6586 | K69: 0 | L69: 12
A70: 11 | B70: 6673 | C70: 21 | D70: 6681 | K70: 0 | L70: 12
A71: 11 | B71: 6768 | C71: 21 | D71: 6776 | K71: 0 | L71: 12
A72: 22 | B72: 6865 | C72: 23 | D72: 6873 | K72: 0 | L72: 22
A73: 22 | B73: 6974 | C73: 23 | D73: 6981 | K73: 0 | L73: 22
A74: 11 | B74: 7083 | C74: 12 | D74: 7090 | K74: 0 | L74: 11
A75: 22 | B75: 7196 | C75: 23 | D75: 7212 | K75: 0 | L75: 22
A76: 11 | B76: 7312 | C76: 21 | D76: 7320 | K76: 0 | L76: 12
A77: 22 | B77: 7420 | C77: 23 | D77: 7438 | K77: 0 | L77: 22
A78: 11 | B78: 7542 | C78: 21 | D78: 7550 | K78: 1 | L78: 12

Sheet !N206940.096
A1: Report for:!N206940.096
A2: Date: | B2: <date>
A3: Hen: | B3: <hen> | F3: Correct Sequence | G3: =Start!J2 -> 12 | P3: Total Sequences in Data | Q3: =4994-COUNTBLANK(L7:L5000) -> 52 | V3: Total Sequences in Block Data | W3: =COUNTA(L7:L15) -> 9 | AA3: Total Sequences in Block Data | AB3: =COUNTA(L16:L23) -> 8 | AF3: Total Sequences in Block Data | AG3: =COUNTA(L24:L32) -> 9 | AK3: Total Sequences in Block Data | AL3: =COUNTA(L33:L41) -> 9 | AP3: Total Sequences in Block Data | AQ3: =COUNTA(L42:L49) -> 8 | AU3: Total Sequences in Block Data | AV3: =COUNTA(L50:L58) -> 9
P4: Total Sequences in Summary | Q4: =SUM(O7:O14) -> 52 | V4: Total Sequences in Block Summary | W4: =SUM(U7:U14) -> 9 | AA4: Total Sequences in Block Summary | AB4: =SUM(Z7:Z14) -> 8 | AF4: Total Sequences in Block Summary | AG4: =SUM(AE7:AE14) -> 9 | AK4: Total Sequences in Block Summary | AL4: =SUM(AJ7:AJ14) -> 9 | AP4: Total Sequences in Block Summary | AQ4: =SUM(AO7:AO14) -> 8 | AU4: Total Sequences in Block Summary | AV4: =SUM(AT7:AT14) -> 9
T5: Block 1 | Y5: Block 2 | AD5: Block 3 | AI5: Block 4 | AN5: Block 5 | AS5: Block 6
A6: Sequence Component 1 | B6: Time 1 | C6: Sequence Component 2 | D6: Time 2 | E6: Sequence Component 3 | F6: Time 3 | G6: Sequence Component 4 | H6: Time 4 | I6: Sequence Component 5 | J6: Time 5 | K6: Correct? 0=No 1=Yes | L6: Sequence | N6: Frequency | P6: Relative Frequency | Q6: Variability | T6: Frequency | V6: Relative Frequency | W6: Variability | Y6: Frequency | AA6: Relative Frequency | AB6: Variability | AD6: Frequency | AF6: Relative Frequency | AG6: Variability | AI6: Frequency | AK6: Relative Frequency | AL6: Variability | AN6: Frequency | AP6: Relative Frequency | AQ6: Variability | AS6: Frequency | AU6: Relative Frequency | AV6: Variability
A7: 11 | B7: 7 | C7: 21 | D7: 18 | K7: 0 | L7: 12 | N7: 11 | O7: =COUNTIF($L$7:$L$500,N7) -> 0 | P7: =O7/$Q$4 -> 0 | Q7: =IF(P7=0,0,(P7*((LOG(P7))/LOG(2)))) -> 0 | T7: =N7 -> 11 | U7: =COUNTIF(L7:L15,T7) -> 0 | V7: =U7/(W4-U8) -> 0 | W7: =IF(V7=0,0,(V7*((LOG(V7))/LOG(2)))) -> 0 | Y7: =N7 -> 11 | Z7: =COUNTIF(L16:L23,Y7) -> 0 | AA7: =Z7/(AB4-Z8) -> 0 | AB7: =IF(AA7=0,0,(AA7*((LOG(AA7))/LOG(2)))) -> 0 | AD7: =N7 -> 11 | AE7: =COUNTIF(L24:L32,AD7) -> 0 | AF7: =AE7/(AG4-AE8) -> 0 | AG7: =IF(AF7=0,0,(AF7*((LOG(AF7))/LOG(2)))) -> 0 | AI7: =N7 -> 11 | AJ7: =COUNTIF(L33:L41,AI7) -> 0 | AK7: =AJ7/(AL4-AJ8) -> 0 | AL7: =IF(AK7=0,0,(AK7*((LOG(AK7))/LOG(2)))) -> 0 | AN7: =N7 -> 11 | AO7: =COUNTIF(L42:L49,AN7) -> 0 | AP7: =AO7/(AQ4-AO8) -> 0 | AQ7: =IF(AP7=0,0,(AP7*((LOG(AP7))/LOG(2)))) -> 0 | AS7: =N7 -> 11 | AT7: =COUNTIF(L50:L58,AS7) -> 0 | AU7: =AT7/(AV4-AT8) -> 0 | AV7: =IF(AU7=0,0,(AU7*((LOG(AU7))/LOG(2)))) -> 0
A8: 11 | B8: 107 | C8: 21 | D8: 115 | K8: 0 | L8: 12 | N8: 12 | O8: =COUNTIF($L$7:$L$500,N8) -> 40 | P8: =O8/$Q$4 -> 0.7692307692 | Q8: =IF(P8=0,0,(P8*((LOG(P8))/LOG(2)))) -> -0.2911627871 | T8: =N8 -> 12 | U8: =COUNTIF(L7:L15,T8) -> 6 | Y8: =N8 -> 12 | Z8: =COUNTIF(L16:L23,Y8) -> 5 | AD8: =N8 -> 12 | AE8: =COUNTIF(L24:L32,AD8) -> 7 | AI8: =N8 -> 12 | AJ8: =COUNTIF(L33:L41,AI8) -> 8 | AN8: =N8 -> 12 | AO8: =COUNTIF(L42:L49,AN8) -> 6 | AS8: =N8 -> 12 | AT8: =COUNTIF(L50:L58,AS8) -> 8
A9: 11 | B9: 202 | C9: 21 | D9: 209 | K9: 0 | L9: 12 | N9: 21 | O9: =COUNTIF($L$7:$L$500,N9) -> 6 | P9: =O9/$Q$4 -> 0.1153846154 | Q9: =IF(P9=0,0,(P9*((LOG(P9))/LOG(2)))) -> -0.3594781405 | T9: =N9 -> 21 | U9: =COUNTIF(L7:L15,T9) -> 1 | V9: =U9/(W4-U8) -> 0.3333333333 | W9: =IF(V9=0,0,(V9*((LOG(V9))/LOG(2)))) -> -0.5283208336 | Y9: =N9 -> 21 | Z9: =COUNTIF(L16:L23,Y9) -> 3 | AA9: =Z9/(AB4-Z8) -> 1 | AB9: =IF(AA9=0,0,(AA9*((LOG(AA9))/LOG(2)))) -> 0 | AD9: =N9 -> 21 | AE9: =COUNTIF(L24:L32,AD9) -> 0 | AF9: =AE9/(AG4-AE8) -> 0 | AG9: =IF(AF9=0,0,(AF9*((LOG(AF9))/LOG(2)))) -> 0 | AI9: =N9 -> 21 | AJ9: =COUNTIF(L33:L41,AI9) -> 0 | AK9: =AJ9/(AL4-AJ8) -> 0 | AL9: =IF(AK9=0,0,(AK9*((LOG(AK9))/LOG(2)))) -> 0 | AN9: =N9 -> 21 | AO9: =COUNTIF(L42:L49,AN9) -> 1 | AP9: =AO9/(AQ4-AO8) -> 0.5 | AQ9: =IF(AP9=0,0,(AP9*((LOG(AP9))/LOG(2)))) -> -0.5 | AS9: =N9 -> 21 | AT9: =COUNTIF(L50:L58,AS9) -> 1 | AU9: =AT9/(AV4-AT8) -> 1 | AV9: =IF(AU9=0,0,(AU9*((LOG(AU9))/LOG(2)))) -> 0
A10: 22 | B10: 304 | C10: 23 | D10: 318 | K10: 0 | L10: 22 | N10: 22 | O10: =COUNTIF($L$7:$L$500,N10) -> 6 | P10: =O10/$Q$4 -> 0.1153846154 | Q10: =IF(P10=0,0,(P10*((LOG(P10))/LOG(2)))) -> -0.3594781405 | T10: =N10 -> 22 | U10: =COUNTIF(L7:L15,T10) -> 2 | V10: =U10/(W4-U8) -> 0.6666666667 | W10: =IF(V10=0,0,(V10*((LOG(V10))/LOG(2)))) -> -0.3899750005 | Y10: =N10 -> 22 | Z10: =COUNTIF(L16:L23,Y10) -> 0 | AA10: =Z10/(AB4-Z8) -> 0 | AB10: =IF(AA10=0,0,(AA10*((LOG(AA10))/LOG(2)))) -> 0 | AD10: =N10 -> 22 | AE10: =COUNTIF(L24:L32,AD10) -> 2 | AF10: =AE10/(AG4-AE8) -> 1 | AG10: =IF(AF10=0,0,(AF10*((LOG(AF10))/LOG(2)))) -> 0 | AI10: =N10 -> 22 | AJ10: =COUNTIF(L33:L41,AI10) -> 1 | AK10: =AJ10/(AL4-AJ8) -> 1 | AL10: =IF(AK10=0,0,(AK10*((LOG(AK10))/LOG(2)))) -> 0 | AN10: =N10 -> 22 | AO10: =COUNTIF(L42:L49,AN10) -> 1 | AP10: =AO10/(AQ4-AO8) -> 0.5 | AQ10: =IF(AP10=0,0,(AP10*((LOG(AP10))/LOG(2)))) -> -0.5 | AS10: =N10 -> 22 | AT10: =COUNTIF(L50:L58,AS10) -> 0 | AU10: =AT10/(AV4-AT8) -> 0 | AV10: =IF(AU10=0,0,(AU10*((LOG(AU10))/LOG(2)))) -> 0
A11: 11 | B11: 417 | C11: 21 | D11: 424 | K11: 0 | L11: 12 | T11: =N11 -> 0 | U11: =COUNTIF(L7:L15,T11) -> 0 | V11: =U11/(W4-U8) -> 0 | W11: =IF(V11=0,0,(V11*((LOG(V11))/LOG(2)))) -> 0 | Y11: =N11 -> 0 | Z11: =COUNTIF(L16:L23,Y11) -> 0 | AA11: =Z11/(AB4-Z8) -> 0 | AB11: =IF(AA11=0,0,(AA11*((LOG(AA11))/LOG(2)))) -> 0 | AD11: =N11 -> 0 | AE11: =COUNTIF(L24:L32,AD11) -> 0 | AF11: =AE11/(AG4-AE8) -> 0 | AG11: =IF(AF11=0,0,(AF11*((LOG(AF11))/LOG(2)))) -> 0 | AI11: =N11 -> 0 | AJ11: =COUNTIF(L33:L41,AI11) -> 0 | AK11: =AJ11/(AL4-AJ8) -> 0 | AL11: =IF(AK11=0,0,(AK11*((LOG(AK11))/LOG(2)))) -> 0 | AN11: =N11 -> 0 | AO11: =COUNTIF(L42:L49,AN11) -> 0 | AP11: =AO11/(AQ4-AO8) -> 0 | AQ11: =IF(AP11=0,0,(AP11*((LOG(AP11))/LOG(2)))) -> 0 | AS11: =N11 -> 0 | AT11: =COUNTIF(L50:L58,AS11) -> 0 | AU11: =AT11/(AV4-AT8) -> 0 | AV11: =IF(AU11=0,0,(AU11*((LOG(AU11))/LOG(2)))) -> 0
A12: 11 | B12: 512 | C12: 21 | D12: 522 | K12: 0 | L12: 12 | T12: =N12 -> 0 | U12: =COUNTIF(L7:L15,T12) -> 0 | V12: =U12/(W4-U8) -> 0 | W12: =IF(V12=0,0,(V12*((LOG(V12))/LOG(2)))) -> 0 | Y12: =N12 -> 0 | Z12: =COUNTIF(L16:L23,Y12) -> 0 | AA12: =Z12/(AB4-Z8) -> 0 | AB12: =IF(AA12=0,0,(AA12*((LOG(AA12))/LOG(2)))) -> 0 | AD12: =N12 -> 0 | AE12: =COUNTIF(L24:L32,AD12) -> 0 | AF12: =AE12/(AG4-AE8) -> 0 | AG12: =IF(AF12=0,0,(AF12*((LOG(AF12))/LOG(2)))) -> 0 | AI12: =N12 -> 0 | AJ12: =COUNTIF(L33:L41,AI12) -> 0 | AK12: =AJ12/(AL4-AJ8) -> 0 | AL12: =IF(AK12=0,0,(AK12*((LOG(AK12))/LOG(2)))) -> 0 | AN12: =N12 -> 0 | AO12: =COUNTIF(L42:L49,AN12) -> 0 | AP12: =AO12/(AQ4-AO8) -> 0 | AQ12: =IF(AP12=0,0,(AP12*((LOG(AP12))/LOG(2)))) -> 0 | AS12: =N12 -> 0 | AT12: =COUNTIF(L50:L58,AS12) -> 0 | AU12: =AT12/(AV4-AT8) -> 0 | AV12: =IF(AU12=0,0,(AU12*((LOG(AU12))/LOG(2)))) -> 0
A13: 22 | B13: 624 | C13: 14 | D13: 637 | K13: 0 | L13: 21 | T13: =N13 -> 0 | U13: =COUNTIF(L7:L15,T13) -> 0 | V13: =U13/(W4-U8) -> 0 | W13: =IF(V13=0,0,(V13*((LOG(V13))/LOG(2)))) -> 0 | Y13: =N13 -> 0 | Z13: =COUNTIF(L16:L23,Y13) -> 0 | AA13: =Z13/(AB4-Z8) -> 0 | AB13: =IF(AA13=0,0,(AA13*((LOG(AA13))/LOG(2)))) -> 0 | AD13: =N13 -> 0 | AE13: =COUNTIF(L24:L32,AD13) -> 0 | AF13: =AE13/(AG4-AE8) -> 0 | AG13: =IF(AF13=0,0,(AF13*((LOG(AF13))/LOG(2)))) -> 0 | AI13: =N13 -> 0 | AJ13: =COUNTIF(L33:L41,AI13) -> 0 | AK13: =AJ13/(AL4-AJ8) -> 0 | AL13: =IF(AK13=0,0,(AK13*((LOG(AK13))/LOG(2)))) -> 0 | AN13: =N13 -> 0 | AO13: =COUNTIF(L42:L49,AN13) -> 0 | AP13: =AO13/(AQ4-AO8) -> 0 | AQ13: =IF(AP13=0,0,(AP13*((LOG(AP13))/LOG(2)))) -> 0 | AS13: =N13 -> 0 | AT13: =COUNTIF(L50:L58,AS13) -> 0 | AU13: =AT13/(AV4-AT8) -> 0 | AV13: =IF(AU13=0,0,(AU13*((LOG(AU13))/LOG(2)))) -> 0
A14: 22 | B14: 735 | C14: 23 | D14: 763 | K14: 0 | L14: 22 | T14: =N14 -> 0 | U14: =COUNTIF(L7:L15,T14) -> 0 | V14: =U14/(W4-U8) -> 0 | W14: =IF(V14=0,0,(V14*((LOG(V14))/LOG(2)))) -> 0 | Y14: =N14 -> 0 | Z14: =COUNTIF(L16:L23,Y14) -> 0 | AA14: =Z14/(AB4-Z8) -> 0 | AB14: =IF(AA14=0,0,(AA14*((LOG(AA14))/LOG(2)))) -> 0 | AD14: =N14 -> 0 | AE14: =COUNTIF(L24:L32,AD14) -> 0 | AF14: =AE14/(AG4-AE8) -> 0 | AG14: =IF(AF14=0,0,(AF14*((LOG(AF14))/LOG(2)))) -> 0 | AI14: =N14 -> 0 | AJ14: =COUNTIF(L33:L41,AI14) -> 0 | AK14: =AJ14/(AL4-AJ8) -> 0 | AL14: =IF(AK14=0,0,(AK14*((LOG(AK14))/LOG(2)))) -> 0 | AN14: =N14 -> 0 | AO14: =COUNTIF(L42:L49,AN14) -> 0 | AP14: =AO14/(AQ4-AO8) -> 0 | AQ14: =IF(AP14=0,0,(AP14*((LOG(AP14))/LOG(2)))) -> 0 | AS14: =N14 -> 0 | AT14: =COUNTIF(L50:L58,AS14) -> 0 | AU14: =AT14/(AV4-AT8) -> 0 | AV14: =IF(AU14=0,0,(AU14*((LOG(AU14))/LOG(2)))) -> 0
A15: 11 | B15: 863 | C15: 21 | D15: 871 | K15: 0 | L15: 12 | P15: =SUM(P7:P14) -> 1 | Q15: =-SUM(Q7:Q14) -> 1.010119068 | V15: =SUM(V7:V14) -> 1 | W15: =-SUM(W7:W14) -> 0.9182958341 | AA15: =SUM(AA7:AA14) -> 1 | AB15: =-SUM(AB7:AB14) -> 0 | AF15: =SUM(AF7:AF14) -> 1 | AG15: =-SUM(AG7:AG14) -> 0 | AK15: =SUM(AK7:AK14) -> 1 | AL15: =-SUM(AL7:AL14) -> 0 | AP15: =SUM(AP7:AP14) -> 1 | AQ15: =-SUM(AQ7:AQ14) -> 1 | AU15: =SUM(AU7:AU14) -> 1 | AV15: =-SUM(AV7:AV14) -> 0
A16: 11 | B16: 958 | C16: 21 | D16: 966 | K16: 0 | L16: 12 | P16: U= | Q16: =Q15/(LOG(Q4)/LOG(2)) -> 0.1772002017 | V16: U1= | W16: =W15/(LOG(W4)/LOG(2)) -> 0.2896900821 | AA16: U2= | AB16: =AB15/(LOG(AB4)/LOG(2)) -> 0 | AF16: U3= | AG16: =AG15/(LOG(AG4)/LOG(2)) -> 0 | AK16: U4= | AL16: =AL15/(LOG(AL4)/LOG(2)) -> 0 | AP16: U5= | AQ16: =AQ15/(LOG(AQ4)/LOG(2)) -> 0.3333333333 | AU16: U6= | AV16: =AV15/(LOG(AV4)/LOG(2)) -> 0
A17: 22 | B17: 1069 | C17: 14 | D17: 1081 | K17: 0 | L17: 21
A18: 11 | B18: 1179 | C18: 21 | D18: 1187 | K18: 0 | L18: 12
A19: 11 | B19: 1279 | C19: 21 | D19: 1287 | K19: 0 | L19: 12 | N19: Total Target Seq
A20: 11 | B20: 1374 | C20: 21 | D20: 1381 | K20: 0 | L20: 12 | N20: =COUNTIF(L7:L58,G3) -> 40 | P20: 9 | Q20: 8 | R20: 9 | S20: 9 | T20: 8 | U20: 9
A21: 22 | B21: 1491 | C21: 14 | D21: 1503 | K21: 0 | L21: 21 | P21: % of reinforcement given in 6 equal intervals based on number of trials
A22: 11 | B22: 1600 | C22: 21 | D22: 1609 | K22: 0 | L22: 12 | P22: %_1 | Q22: %_2 | R22: %_3 | S22: %_4 | T22: %_5 | U22: %_6
A23: 22 | B23: 1712 | C23: 14 | D23: 1722 | K23: 0 | L23: 21 | O23: target sequence | P23: =$G$3 -> 12 | Q23: =$G$3 -> 12 | R23: =$G$3 -> 12 | S23: =$G$3 -> 12 | T23: =$G$3 -> 12 | U23: =$G$3 -> 12
A24: 11 | B24: 1820 | C24: 21 | D24: 1830 | K24: 0 | L24: 12 | O24: total reinforcement | P24: =U8 -> 6 | Q24: =Z8 -> 5 | R24: =AE8 -> 7 | S24: =AJ8 -> 8 | T24: =AO8 -> 6 | U24: =AT8 -> 8
A25: 11 | B25: 1920 | C25: 21 | D25: 1931 | K25: 0 | L25: 12 | O25: % target
A26: 11 | B26: 2018 | C26: 21 | D26: 2025 | K26: 0 | L26: 12 | O26: CCRF
A27: 22 | B27: 2125 | C27: 23 | D27: 2154 | K27: 0 | L27: 22 | O27: % CCRf
A28: 11 | B28: 2252 | C28: 21 | D28: 2259 | K28: 0 | L28: 12 | O28: average response rate | P28: =D15/P20 -> 96.77777778 | Q28: =(D23-D15)/Q20 -> 106.375 | R28: =(D32-D23)/R20 -> 105.7777778 | S28: =(D41-D32)/S20 -> 99.55555556 | T28: =(D49-D41)/T20 -> 99.125 | U28: =(D58-D49)/U20 -> 99
A29: 11 | B29: 2347 | C29: 21 | D29: 2355 | K29: 0 | L29: 12
A30: 22 | B30: 2461 | C30: 23 | D30: 2477 | K30: 0 | L30: 22
A31: 11 | B31: 2573 | C31: 21 | D31: 2582 | K31: 0 | L31: 12
A32: 11 | B32: 2667 | C32: 21 | D32: 2674 | K32: 0 | L32: 12
A33: 11 | B33: 2763 | C33: 21 | D33: 2771 | K33: 0 | L33: 12
A34: 11 | B34: 2862 | C34: 21 | D34: 2869 | K34: 0 | L34: 12
A35: 11 | B35: 2959 | C35: 21 | D35: 2967 | K35: 0 | L35: 12
A36: 11 | B36: 3055 | C36: 21 | D36: 3062 | K36: 0 | L36: 12
A37: 11 | B37: 3149 | C37: 21 | D37: 3157 | K37: 0 | L37: 12
A38: 22 | B38: 3252 | C38: 23 | D38: 3272 | K38: 0 | L38: 22
A39: 11 | B39: 3371 | C39: 21 | D39: 3379 | K39: 0 | L39: 12
A40: 11 | B40: 3466 | C40: 21 | D40: 3474 | K40: 0 | L40: 12
A41: 11 | B41: 3562 | C41: 21 | D41: 3570 | K41: 0 | L41: 12
A42: 11 | B42: 3656 | C42: 21 | D42: 3664 | K42: 0 | L42: 12
A43: 11 | B43: 3751 | C43: 21 | D43: 3759 | K43: 0 | L43: 12
A44: 22 | B44: 3855 | C44: 14 | D44: 3864 | K44: 0 | L44: 21
A45: 11 | B45: 3965 | C45: 21 | D45: 3973 | K45: 0 | L45: 12
A46: 11 | B46: 4062 | C46: 21 | D46: 4070 | K46: 0 | L46: 12
A47: 11 | B47: 4158 | C47: 21 | D47: 4166 | K47: 0 | L47: 12
A48: 11 | B48: 4253 | C48: 21 | D48: 4261 | K48: 0 | L48: 12
A49: 22 | B49: 4355 | C49: 23 | D49: 4363 | K49: 0 | L49: 22
A50: 11 | B50: 4461 | C50: 21 | D50: 4469 | K50: 0 | L50: 12
A51: 22 | B51: 4562 | C51: 14 | D51: 4573 | K51: 0 | L51: 21
A52: 11 | B52: 4671 | C52: 21 | D52: 4679 | K52: 0 | L52: 12
A53: 11 | B53: 4766 | C53: 21 | D53: 4773 | K53: 0 | L53: 12
A54: 11 | B54: 4862 | C54: 21 | D54: 4869 | K54: 0 | L54: 12
A55: 11 | B55: 4958 | C55: 21 | D55: 4965 | K55: 0 | L55: 12
A56: 11 | B56: 5054 | C56: 21 | D56: 5062 | K56: 0 | L56: 12
A57: 11 | B57: 5150 | C57: 21 | D57: 5158 | K57: 0 | L57: 12
A58: 11 | B58: 5246 | C58: 21 | D58: 5254 | K58: 1 | L58: 12

Sheet !N209910.096
A1: Report for:!N209910.096
A2: Date: | B2: <date>
A3: Hen: | B3: <hen> | F3: Correct Sequence | G3: =Start!J2 -> 12 | P3: Total Sequences in Data | Q3: =4994-COUNTBLANK(L7:L5000) -> 89 | V3: Total Sequences in Block Data | W3: =COUNTA(L7:L21) -> 15 | AA3: Total Sequences in Block Data | AB3: =COUNTA(L22:L36) -> 15 | AF3: Total Sequences in Block Data | AG3: =COUNTA(L37:L50) -> 14 | AK3: Total Sequences in Block Data | AL3: =COUNTA(L51:L65) -> 15 | AP3: Total Sequences in Block Data | AQ3: =COUNTA(L66:L80) -> 15 | AU3: Total Sequences in Block Data | AV3: =COUNTA(L81:L95) -> 15
P4: Total Sequences in Summary | Q4: =SUM(O7:O14) -> 89 | V4: Total Sequences in Block Summary | W4: =SUM(U7:U14) -> 15 | AA4: Total Sequences in Block Summary | AB4: =SUM(Z7:Z14) -> 15 | AF4: Total Sequences in Block Summary | AG4: =SUM(AE7:AE14) -> 14 | AK4: Total Sequences in Block Summary | AL4: =SUM(AJ7:AJ14) -> 15 | AP4: Total Sequences in Block Summary | AQ4: =SUM(AO7:AO14) -> 15 | AU4: Total Sequences in Block Summary | AV4: =SUM(AT7:AT14) -> 15
T5: Block 1 | Y5: Block 2 | AD5: Block 3 | AI5: Block 4 | AN5: Block 5 | AS5: Block 6
A6: Sequence Component 1 | B6: Time 1 | C6: Sequence Component 2 | D6: Time 2 | E6: Sequence Component 3 | F6: Time 3 | G6: Sequence Component 4 | H6: Time 4 | I6: Sequence Component 5 | J6: Time 5 | K6: Correct? 0=No 1=Yes | L6: Sequence | N6: Frequency | P6: Relative Frequency | Q6: Variability | T6: Frequency | V6: Relative Frequency | W6: Variability | Y6: Frequency | AA6: Relative Frequency | AB6: Variability | AD6: Frequency | AF6: Relative Frequency | AG6: Variability | AI6: Frequency | AK6: Relative Frequency | AL6: Variability | AN6: Frequency | AP6: Relative Frequency | AQ6: Variability | AS6: Frequency | AU6: Relative Frequency | AV6: Variability
A7: 11 | B7: 7 | C7: 21 | D7: 60 | K7: 0 | L7: 12 | N7: 11 | O7: =COUNTIF($L$7:$L$500,N7) -> 34 | P7: =O7/$Q$4 -> 0.3820224719 | Q7: =IF(P7=0,0,(P7*((LOG(P7))/LOG(2)))) -> -0.5303505624 | T7: =N7 -> 11 | U7: =COUNTIF(L7:L21,T7) -> 8 | V7: =U7/(W4-U8) -> 0.8888888889 | W7: =IF(V7=0,0,(V7*((LOG(V7))/LOG(2)))) -> -0.1510444457 | Y7: =N7 -> 11 | Z7: =COUNTIF(L22:L36,Y7) -> 8 | AA7: =Z7/(AB4-Z8) -> 0.6153846154 | AB7: =IF(AA7=0,0,(AA7*((LOG(AA7))/LOG(2)))) -> -0.4310398265 | AD7: =N7 -> 11 | AE7: =COUNTIF(L37:L50,AD7) -> 6 | AF7: =AE7/(AG4-AE8) -> 0.75 | AG7: =IF(AF7=0,0,(AF7*((LOG(AF7))/LOG(2)))) -> -0.3112781245 | AI7: =N7 -> 11 | AJ7: =COUNTIF(L51:L65,AI7) -> 6 | AK7: =AJ7/(AL4-AJ8) -> 0.75 | AL7: =IF(AK7=0,0,(AK7*((LOG(AK7))/LOG(2)))) -> -0.3112781245 | AN7: =N7 -> 11 | AO7: =COUNTIF(L66:L80,AN7) -> 2 | AP7: =AO7/(AQ4-AO8) -> 0.4 | AQ7: =IF(AP7=0,0,(AP7*((LOG(AP7))/LOG(2)))) -> -0.528771238 | AS7: =N7 -> 11 | AT7: =COUNTIF(L81:L95,AS7) -> 4 | AU7: =AT7/(AV4-AT8) -> 0.6666666667 | AV7: =IF(AU7=0,0,(AU7*((LOG(AU7))/LOG(2)))) -> -0.3899750005
A8: 22 | B8: 244 | C8: 23 | D8: 259 | K8: 0 | L8: 22 | N8: 12 | O8: =COUNTIF($L$7:$L$500,N8) -> 40 | P8: =O8/$Q$4 -> 0.4494382022 | Q8: =IF(P8=0,0,(P8*((LOG(P8))/LOG(2)))) -> -0.518564196 | T8: =N8 -> 12 | U8: =COUNTIF(L7:L21,T8) -> 6 | Y8: =N8 -> 12 | Z8: =COUNTIF(L22:L36,Y8) -> 2 | AD8: =N8 -> 12 | AE8: =COUNTIF(L37:L50,AD8) -> 6 | AI8: =N8 -> 12 | AJ8: =COUNTIF(L51:L65,AI8) -> 7 | AN8: =N8 -> 12 | AO8: =COUNTIF(L66:L80,AN8) -> 10 | AS8: =N8 -> 12 | AT8: =COUNTIF(L81:L95,AS8) -> 9
A9: 11 | B9: 360 | C9: 21 | D9: 375 | K9: 0 | L9: 12 | N9: 21 | O9: =COUNTIF($L$7:$L$500,N9) -> 7 | P9: =O9/$Q$4 -> 0.07865168539 | Q9: =IF(P9=0,0,(P9*((LOG(P9))/LOG(2)))) -> -0.2885241524 | T9: =N9 -> 21 | U9: =COUNTIF(L7:L21,T9) -> 0 | V9: =U9/(W4-U8) -> 0 | W9: =IF(V9=0,0,(V9*((LOG(V9))/LOG(2)))) -> 0 | Y9: =N9 -> 21 | Z9: =COUNTIF(L22:L36,Y9) -> 1 | AA9: =Z9/(AB4-Z8) -> 0.07692307692 | AB9: =IF(AA9=0,0,(AA9*((LOG(AA9))/LOG(2)))) -> -0.2846492091 | AD9: =N9 -> 21 | AE9: =COUNTIF(L37:L50,AD9) -> 1 | AF9: =AE9/(AG4-AE8) -> 0.125 | AG9: =IF(AF9=0,0,(AF9*((LOG(AF9))/LOG(2)))) -> -0.375 | AI9: =N9 -> 21 | AJ9: =COUNTIF(L51:L65,AI9) -> 1 | AK9: =AJ9/(AL4-AJ8) -> 0.125 | AL9: =IF(AK9=0,0,(AK9*((LOG(AK9))/LOG(2)))) -> -0.375 | AN9: =N9 -> 21 | AO9: =COUNTIF(L66:L80,AN9) -> 3 | AP9: =AO9/(AQ4-AO8) -> 0.6 | AQ9: =IF(AP9=0,0,(AP9*((LOG(AP9))/LOG(2)))) -> -0.4421793565 | AS9: =N9 -> 21 | AT9: =COUNTIF(L81:L95,AS9) -> 1 | AU9: =AT9/(AV4-AT8) -> 0.1666666667 | AV9: =IF(AU9=0,0,(AU9*((LOG(AU9))/LOG(2)))) -> -0.4308270835
A10: 11 | B10: 467 | C10: 12 | D10: 587 | K10: 0 | L10: 11 | N10: 22 | O10: =COUNTIF($L$7:$L$500,N10) -> 8 | P10: =O10/$Q$4 -> 0.08988764045 | Q10: =IF(P10=0,0,(P10*((LOG(P10))/LOG(2)))) -> -0.3124254769 | T10: =N10 -> 22 | U10: =COUNTIF(L7:L21,T10) -> 1 | V10: =U10/(W4-U8) -> 0.1111111111 | W10: =IF(V10=0,0,(V10*((LOG(V10))/LOG(2)))) -> -0.352213889 | Y10: =N10 -> 22 | Z10: =COUNTIF(L22:L36,Y10) -> 4 | AA10: =Z10/(AB4-Z8) -> 0.3076923077 | AB10: =IF(AA10=0,0,(AA10*((LOG(AA10))/LOG(2)))) -> -0.523212221 | AD10: =N10 -> 22 | AE10: =COUNTIF(L37:L50,AD10) -> 1 | AF10: =AE10/(AG4-AE8) -> 0.125 | AG10: =IF(AF10=0,0,(AF10*((LOG(AF10))/LOG(2)))) -> -0.375 | AI10: =N10 -> 22 | AJ10: =COUNTIF(L51:L65,AI10) -> 1 | AK10: =AJ10/(AL4-AJ8) -> 0.125 | AL10: =IF(AK10=0,0,(AK10*((LOG(AK10))/LOG(2)))) -> -0.375 | AN10: =N10 -> 22 | AO10: =COUNTIF(L66:L80,AN10) -> 0 | AP10: =AO10/(AQ4-AO8) -> 0 | AQ10: =IF(AP10=0,0,(AP10*((LOG(AP10))/LOG(2)))) -> 0 | AS10: =N10 -> 22 | AT10: =COUNTIF(L81:L95,AS10) -> 1 | AU10: =AT10/(AV4-AT8) -> 0.1666666667 | AV10: =IF(AU10=0,0,(AU10*((LOG(AU10))/LOG(2)))) -> -0.4308270835
A11: 11 | B11: 684 | C11: 12 | D11: 710 | K11: 0 | L11: 11 | T11: =N11 -> 0 | U11: =COUNTIF(L7:L21,T11) -> 0 | V11: =U11/(W4-U8) -> 0 | W11: =IF(V11=0,0,(V11*((LOG(V11))/LOG(2)))) -> 0 | Y11: =N11 -> 0 | Z11: =COUNTIF(L22:L36,Y11) -> 0 | AA11: =Z11/(AB4-Z8) -> 0 | AB11: =IF(AA11=0,0,(AA11*((LOG(AA11))/LOG(2)))) -> 0 | AD11: =N11 -> 0 | AE11: =COUNTIF(L37:L50,AD11) -> 0 | AF11: =AE11/(AG4-AE8) -> 0 | AG11: =IF(AF11=0,0,(AF11*((LOG(AF11))/LOG(2)))) -> 0 | AI11: =N11 -> 0 | AJ11: =COUNTIF(L51:L65,AI11) -> 0 | AK11: =AJ11/(AL4-AJ8) -> 0 | AL11: =IF(AK11=0,0,(AK11*((LOG(AK11))/LOG(2)))) -> 0 | AN11: =N11 -> 0 | AO11: =COUNTIF(L66:L80,AN11) -> 0 | AP11: =AO11/(AQ4-AO8) -> 0 | AQ11: =IF(AP11=0,0,(AP11*((LOG(AP11))/LOG(2)))) -> 0 | AS11: =N11 -> 0 | AT11: =COUNTIF(L81:L95,AS11) -> 0 | AU11: =AT11/(AV4-AT8) -> 0 | AV11: =IF(AU11=0,0,(AU11*((LOG(AU11))/LOG(2)))) -> 0
A12: 11 | B12: 817 | C12: 21 | D12: 826 | K12: 0 | L12: 12 | T12: =N12 -> 0 | U12: =COUNTIF(L7:L21,T12) -> 0 | V12: =U12/(W4-U8) -> 0 | W12: =IF(V12=0,0,(V12*((LOG(V12))/LOG(2)))) -> 0 | Y12: =N12 -> 0 | Z12: =COUNTIF(L22:L36,Y12) -> 0 | AA12: =Z12/(AB4-Z8) -> 0 | AB12: =IF(AA12=0,0,(AA12*((LOG(AA12))/LOG(2)))) -> 0 | AD12: =N12 -> 0 | AE12: =COUNTIF(L37:L50,AD12) -> 0 | AF12: =AE12/(AG4-AE8) -> 0 | AG12: =IF(AF12=0,0,(AF12*((LOG(AF12))/LOG(2)))) -> 0 | AI12: =N12 -> 0 | AJ12: =COUNTIF(L51:L65,AI12) -> 0 | AK12: =AJ12/(AL4-AJ8) -> 0 | AL12: =IF(AK12=0,0,(AK12*((LOG(AK12))/LOG(2)))) -> 0 | AN12: =N12 -> 0 | AO12: =COUNTIF(L66:L80,AN12) -> 0 | AP12: =AO12/(AQ4-AO8) -> 0 | AQ12: =IF(AP12=0,0,(AP12*((LOG(AP12))/LOG(2)))) -> 0 | AS12: =N12 -> 0 | AT12: =COUNTIF(L81:L95,AS12) -> 0 | AU12: =AT12/(AV4-AT8) -> 0 | AV12: =IF(AU12=0,0,(AU12*((LOG(AU12))/LOG(2)))) -> 0
A13: 11 | B13: 913 | C13: 12 | D13: 973 | K13: 0 | L13: 11 | T13: =N13 -> 0 | U13: =COUNTIF(L7:L21,T13) -> 0 | V13: =U13/(W4-U8) -> 0 | W13: =IF(V13=0,0,(V13*((LOG(V13))/LOG(2)))) -> 0 | Y13: =N13 -> 0 | Z13: =COUNTIF(L22:L36,Y13) -> 0 | AA13: =Z13/(AB4-Z8) -> 0 | AB13: =IF(AA13=0,0,(AA13*((LOG(AA13))/LOG(2)))) -> 0 | AD13: =N13 -> 0 | AE13: =COUNTIF(L37:L50,AD13) -> 0 | AF13: =AE13/(AG4-AE8) -> 0 | AG13: =IF(AF13=0,0,(AF13*((LOG(AF13))/LOG(2)))) -> 0 | AI13: =N13 -> 0 | AJ13: =COUNTIF(L51:L65,AI13) -> 0 | AK13: =AJ13/(AL4-AJ8) -> 0 | AL13: =IF(AK13=0,0,(AK13*((LOG(AK13))/LOG(2)))) -> 0 | AN13: =N13 -> 0 | AO13: =COUNTIF(L66:L80,AN13) -> 0 | AP13: =AO13/(AQ4-AO8) -> 0 | AQ13: =IF(AP13=0,0,(AP13*((LOG(AP13))/LOG(2)))) -> 0 | AS13: =N13 -> 0 | AT13: =COUNTIF(L81:L95,AS13) -> 0 | AU13: =AT13/(AV4-AT8) -> 0 | AV13: =IF(AU13=0,0,(AU13*((LOG(AU13))/LOG(2)))) -> 0
A14: 11 | B14: 1140 | C14: 12 | D14: 1156 | K14: 0 | L14: 11 | T14: =N14 -> 0 | U14: =COUNTIF(L7:L21,T14) -> 0 | V14: =U14/(W4-U8) -> 0 | W14: =IF(V14=0,0,(V14*((LOG(V14))/LOG(2)))) -> 0 | Y14: =N14 -> 0 | Z14: =COUNTIF(L22:L36,Y14) -> 0 | AA14: =Z14/(AB4-Z8) -> 0 | AB14: =IF(AA14=0,0,(AA14*((LOG(AA14))/LOG(2)))) -> 0 | AD14: =N14 -> 0 | AE14: =COUNTIF(L37:L50,AD14) -> 0 | AF14: =AE14/(AG4-AE8) -> 0 | AG14: =IF(AF14=0,0,(AF14*((LOG(AF14))/LOG(2)))) -> 0 | AI14: =N14 -> 0 | AJ14: =COUNTIF(L51:L65,AI14) -> 0 | AK14: =AJ14/(AL4-AJ8) -> 0 | AL14: =IF(AK14=0,0,(AK14*((LOG(AK14))/LOG(2)))) -> 0 | AN14: =N14 -> 0 | AO14: =COUNTIF(L66:L80,AN14) -> 0 | AP14: =AO14/(AQ4-AO8) -> 0 | AQ14: =IF(AP14=0,0,(AP14*((LOG(AP14))/LOG(2)))) -> 0 | AS14: =N14 -> 0 | AT14: =COUNTIF(L81:L95,AS14) -> 0 | AU14: =AT14/(AV4-AT8) -> 0 | AV14: =IF(AU14=0,0,(AU14*((LOG(AU14))/LOG(2)))) -> 0
A15: 11 | B15: 1261 | C15: 12 | D15: 1275 | K15: 0 | L15: 11 | P15: =SUM(P7:P14) -> 1 | Q15: =-SUM(Q7:Q14) -> 1.649864388 | V15: =SUM(V7:V14) -> 1 | W15: =-SUM(W7:W14) -> 0.5032583348 | AA15: =SUM(AA7:AA14) -> 1 | AB15: =-SUM(AB7:AB14) -> 1.238901257 | AF15: =SUM(AF7:AF14) -> 1 | AG15: =-SUM(AG7:AG14) -> 1.061278124 | AK15: =SUM(AK7:AK14) -> 1 | AL15: =-SUM(AL7:AL14) -> 1.061278124 | AP15: =SUM(AP7:AP14) -> 1 | AQ15: =-SUM(AQ7:AQ14) -> 0.9709505945 | AU15: =SUM(AU7:AU14) -> 1 | AV15: =-SUM(AV7:AV14) -> 1.251629167
A16: 11 | B16: 1375 | C16: 21 | D16: 1407 | K16: 0 | L16: 12 | P16: U= | Q16: =Q15/(LOG(Q4)/LOG(2)) -> 0.254776452 | V16: U1= | W16: =W15/(LOG(W4)/LOG(2)) -> 0.1288130093 | AA16: U2= | AB16: =AB15/(LOG(AB4)/LOG(2)) -> 0.3171067186 | AF16: U3= | AG16: =AG15/(LOG(AG4)/LOG(2)) -> 0.2787442059 | AK16: U4= | AL16: =AL15/(LOG(AL4)/LOG(2)) -> 0.2716426525 | AP16: U5= | AQ16: =AQ15/(LOG(AQ4)/LOG(2)) -> 0.2485225963 | AU16: U6= | AV16: =AV15/(LOG(AV4)/LOG(2)) -> 0.3203645295
A17: 11 | B17: 1494 | C17: 12 | D17: 1508 | K17: 0 | L17: 11
A18: 11 | B18: 1605 | C18: 12 | D18: 1613 | K18: 0 | L18: 11
A19: 11 | B19: 1713 | C19: 21 | D19: 1746 | K19: 0 | L19: 12 | N19: Total Target Seq
A20: 11 | B20: 1838 | C20: 12 | D20: 1852 | K20: 0 | L20: 11 | N20: =COUNTIF(L7:L95,G3) -> 40 | P20: 15 | Q20: 15 | R20: 14 | S20: 15 | T20: 15 | U20: 15
A21: 11 | B21: 1961 | C21: 21 | D21: 2018 | K21: 0 | L21: 12 | P21: % of reinforcement given in 6 equal intervals based on number of trials
A22: 11 | B22: 2111 | C22: 12 | D22: 2120 | K22: 0 | L22: 11 | P22: %_1 | Q22: %_2 | R22: %_3 | S22: %_4 | T22: %_5 | U22: %_6
A23: 11 | B23: 2220 | C23: 12 | D23: 2229 | K23: 0 | L23: 11 | O23: target sequence | P23: =$G$3 -> 12 | Q23: =$G$3 -> 12 | R23: =$G$3 -> 12 | S23: =$G$3 -> 12 | T23: =$G$3 -> 12 | U23: =$G$3 -> 12
A24: 11 | B24: 2330 | C24: 12 | D24: 2354 | K24: 0 | L24: 11 | O24: total reinforcement | P24: =U8 -> 6 | Q24: =Z8 -> 2 | R24: =AE8 -> 6 | S24: =AJ8 -> 7 | T24: =AO8 -> 10 | U24: =AT8 -> 9
A25: 11 | B25: 2453 | C25: 12 | D25: 2464 | K25: 0 | L25: 11 | O25: % target
A26: 22 | B26: 2583 | C26: 23 | D26: 2607 | K26: 0 | L26: 22 | O26: CCRF
A27: 11 | B27: 2706 | C27: 12 | D27: 2714 | K27: 0 | L27: 11 | O27: % CCRf
A28: 11 | B28: 2812 | C28: 12 | D28: 2820 | K28: 0 | L28: 11 | O28: average response rate | P28: =D21/P20 -> 134.5333333 | Q28: =(D36-D21)/Q20 -> 117.2666667 | R28: =(D50-D36)/R20 -> 130.2857143 | S28: =(D65-D50)/S20 -> 127 | T28: =(D80-D65)/T20 -> 124.1333333 | U28: =(D95-D80)/U20 -> 129.0666667
A29: 22 | B29: 2923 | C29: 14 | D29: 2934 | K29: 0 | L29: 21
A30: 22 | B30: 3030 | C30: 23 | D30: 3052 | K30: 0 | L30: 22
A31: 11 | B31: 3150 | C31: 12 | D31: 3158 | K31: 0 | L31: 11
A32: 11 | B32: 3267 | C32: 21 | D32: 3302 | K32: 0 | L32: 12
A33: 11 | B33: 3390 | C33: 12 | D33: 3425 | K33: 0 | L33: 11
A34: 11 | B34: 3527 | C34: 21 | D34: 3553 | K34: 0 | L34: 12
A35: 22 | B35: 3644 | C35: 23 | D35: 3666 | K35: 0 | L35: 22
A36: 22 | B36: 3761 | C36: 23 | D36: 3777 | K36: 0 | L36: 22
A37: 22 | B37: 3886 | C37: 23 | D37: 3932 | K37: 0 | L37: 22
A38: 11 | B38: 4046 | C38: 12 | D38: 4088 | K38: 0 | L38: 11
A39: 11 | B39: 4188 | C39: 21 | D39: 4211 | K39: 0 | L39: 12
A40: 11 | B40: 4301 | C40: 12 | D40: 4310 | K40: 0 | L40: 11
A41: 11 | B41: 4421 | C41: 21 | D41: 4470 | K41: 0 | L41: 12
A42: 11 | B42: 4557 | C42: 21 | D42: 4569 | K42: 0 | L42: 12
A43: 22 | B43: 4660 | C43: 14 | D43: 4676 | K43: 0 | L43: 21
A44: 11 | B44: 4781 | C44: 12 | D44: 4836 | K44: 0 | L44: 11
A45: 11 | B45: 4948 | C45: 21 | D45: 4968 | K45: 0 | L45: 12
A46: 11 | B46: 5084 | C46: 12 | D46: 5110 | K46: 0 | L46: 11
A47: 11 | B47: 5230 | C47: 21 | D47: 5273 | K47: 0 | L47: 12
A48: 11 | B48: 5365 | C48: 12 | D48: 5379 | K48: 0 | L48: 11
A49: 11 | B49: 5476 | C49: 21 | D49: 5493 | K49: 0 | L49: 12
A50: 11 | B50: 5585 | C50: 12 | D50: 5601 | K50: 0 | L50: 11
A51: 11 | B51: 5702 | C51: 21 | D51: 5748 | K51: 0 | L51: 12
A52: 11 | B52: 5870 | C52: 12 | D52: 5905 | K52: 0 | L52: 11
A53: 11 | B53: 6003 | C53: 12 | D53: 6012 | K53: 0 | L53: 11
A54: 11 | B54: 6110 | C54: 12 | D54: 6115 | K54: 0 | L54: 11
A55: 11 | B55: 6214 | C55: 21 | D55: 6319 | K55: 0 | L55: 12
A56: 11 | B56: 6407 | C56: 21 | D56: 6420 | K56: 0 | L56: 12
A57: 11 | B57: 6508 | C57: 12 | D57: 6521 | K57: 0 | L57: 11
A58: 11 | B58: 6631 | C58: 12 | D58: 6649 | K58: 0 | L58: 11
A59: 11 | B59: 6747 | C59: 12 | D59: 6771 | K59: 0 | L59: 11
A60: 11 | B60: 6876 | C60: 21 | D60: 6907 | K60: 0 | L60: 12
A61: 22 | B61: 6995 | C61: 14 | D61: 7005 | K61: 0 | L61: 21
A62: 11 | B62: 7103 | C62: 21 | D62: 7127 | K62: 0 | L62: 12
A63: 22 | B63: 7219 | C63: 23 | D63: 7243 | K63: 0 | L63: 22
A64: 11 | B64: 7341 | C64: 21 | D64: 7363 | K64: 0 | L64: 12
A65: 11 | B65: 7496 | C65: 21 | D65: 7506 | K65: 0 | L65: 12
A66: 22 | B66: 7596 | C66: 14 | D66: 7612 | K66: 0 | L66: 21
A67: 11 | B67: 7715 | C67: 21 | D67: 7745 | K67: 0 | L67: 12
A68: 11 | B68: 7836 | C68: 21 | D68: 7857 | K68: 0 | L68: 12
A69: 11 | B69: 7960 | C69: 21 | D69: 7977 | K69: 0 | L69: 12
A70: 11 | B70: 8066 | C70: 21 | D70: 8101 | K70: 0 | L70: 12
A71: 11 | B71: 8213 | C71: 21 | D71: 8275 | K71: 0 | L71: 12
A72: 22 | B72: 8404 | C72: 14 | D72: 8411 | K72: 0 | L72: 21
A73: 11 | B73: 8509 | C73: 21 | D73: 8563 | K73: 0 | L73: 12
A74: 11 | B74: 8650 | C74: 12 | D74: 8663 | K74: 0 | L74: 11
A75: 11 | B75: 8761 | C75: 21 | D75: 8778 | K75: 0 | L75: 12
A76: 22 | B76: 8895 | C76: 14 | D76: 8909 | K76: 0 | L76: 21
A77: 11 | B77: 9007 | C77: 21 | D77: 9018 | K77: 0 | L77: 12
A78: 11 | B78: 9111 | C78: 21 | D78: 9143 | K78: 0 | L78: 12
A79: 11 | B79: 9231 | C79: 12 | D79: 9257 | K79: 0 | L79: 11
A80: 11 | B80: 9355 | C80: 21 | D80: 9368 | K80: 0 | L80: 12
A81: 11 | B81: 9455 | C81: 12 | D81: 9477 | K81: 0 | L81: 11
A82: 11 | B82: 9583 | C82: 21 | D82: 9618 | K82: 0 | L82: 12
A83: 11 | B83: 9707 | C83: 21 | D83: 9730 | K83: 0 | L83: 12
A84: 11 | B84: 9832 | C84: 12 | D84: 9848 | K84: 0 | L84: 11
A85: 22 | B85: 9958 | C85: 23 | D85: 9984 | K85: 0 | L85: 22
A86: 11 | B86: 10081 | C86: 21 | D86: 10093 | K86: 0 | L86: 12
A87: 11 | B87: 10181 | C87: 21 | D87: 10242 | K87: 0 | L87: 12
A88: 11 | B88: 10331 | C88: 12 | D88: 10344 | K88: 0 | L88: 11
A89: 11 | B89: 10443 | C89: 21 | D89: 10467 | K89: 0 | L89: 12
A90: 11 | B90: 10554 | C90: 21 | D90: 10604 | K90: 0 | L90: 12
A91: 11 | B91: 10691 | C91: 12 | D91: 10720 | K91: 0 | L91: 11
A92: 11 | B92: 10817 | C92: 21 | D92: 10853 | K92: 0 | L92: 12
A93: 22 | B93: 10987 | C93: 14 | D93: 10999 | K93: 0 | L93: 21
A94: 11 | B94: 11097 | C94: 21 | D94: 11146 | K94: 0 | L94: 12
A95: 11 | B95: 11260 | C95: 21 | D95: 11304 | K95: 1 | L95: 12

Sheet !N210920.096
A1: Report for:!N210920.096
A2: Date: | B2: <date>
A3: Hen: | B3: <hen> | F3: Correct Sequence | G3: =Start!J2 -> 12 | P3: Total Sequences in Data | Q3: =4994-COUNTBLANK(L7:L5000) -> 63 | V3: Total Sequences in Block Data | W3: =COUNTA(L7:L17) -> 11 | AA3: Total Sequences in Block Data | AB3: =COUNTA(L18:L27) -> 10 | AF3: Total Sequences in Block Data | AG3: =COUNTA(L28:L38) -> 11 | AK3: Total Sequences in Block Data | AL3: =COUNTA(L39:L48) -> 10 | AP3: Total Sequences in Block Data | AQ3: =COUNTA(L49:L59) -> 11 | AU3: Total Sequences in Block Data | AV3: =COUNTA(L60:L69) -> 10
P4: Total Sequences in Summary | Q4: =SUM(O7:O14) -> 63 | V4: Total Sequences in Block Summary | W4: =SUM(U7:U14) -> 11 | AA4: Total Sequences in Block Summary | AB4: =SUM(Z7:Z14) -> 10 | AF4: Total Sequences in Block Summary | AG4: =SUM(AE7:AE14) -> 11 | AK4: Total Sequences in Block Summary | AL4: =SUM(AJ7:AJ14) -> 10 | AP4: Total Sequences in Block Summary | AQ4: =SUM(AO7:AO14) -> 11 | AU4: Total Sequences in Block Summary | AV4: =SUM(AT7:AT14) -> 10
T5: Block 1 | Y5: Block 2 | AD5: Block 3 | AI5: Block 4 | AN5: Block 5 | AS5: Block 6
A6: Sequence Component 1 | B6: Time 1 | C6: Sequence Component 2 | D6: Time 2 | E6: Sequence Component 3 | F6: Time 3 | G6: Sequence Component 4 | H6: Time 4 | I6: Sequence Component 5 | J6: Time 5 | K6: Correct? 0=No 1=Yes | L6: Sequence | N6: Frequency | P6: Relative Frequency | Q6: Variability | T6: Frequency | V6: Relative Frequency | W6: Variability | Y6: Frequency | AA6: Relative Frequency | AB6: Variability | AD6: Frequency | AF6: Relative Frequency | AG6: Variability | AI6: Frequency | AK6: Relative Frequency | AL6: Variability | AN6: Frequency | AP6: Relative Frequency | AQ6: Variability | AS6: Frequency | AU6: Relative Frequency | AV6: Variability
A7: 11 | B7: 7 | C7: 21 | D7: 15 | K7: 0 | L7: 12 | N7: 11 | O7: =COUNTIF($L$7:$L$500,N7) -> 3 | P7: =O7/$Q$4 -> 0.04761904762 | Q7: =IF(P7=0,0,(P7*((LOG(P7))/LOG(2)))) -> -0.2091579725 | T7: =N7 -> 11 | U7: =COUNTIF(L7:L17,T7) -> 0 | V7: =U7/(W4-U8) -> 0 | W7: =IF(V7=0,0,(V7*((LOG(V7))/LOG(2)))) -> 0 | Y7: =N7 -> 11 | Z7: =COUNTIF(L18:L27,Y7) -> 1 | AA7: =Z7/(AB4-Z8) -> 0.3333333333 | AB7: =IF(AA7=0,0,(AA7*((LOG(AA7))/LOG(2)))) -> -0.5283208336 | AD7: =N7 -> 11 | AE7: =COUNTIF(L28:L38,AD7) -> 1 | AF7: =AE7/(AG4-AE8) -> 0.2 | AG7: =IF(AF7=0,0,(AF7*((LOG(AF7))/LOG(2)))) -> -0.464385619 | AI7: =N7 -> 11 | AJ7: =COUNTIF(L39:L48,AI7) -> 0 | AK7: =AJ7/(AL4-AJ8) -> 0 | AL7: =IF(AK7=0,0,(AK7*((LOG(AK7))/LOG(2)))) -> 0 | AN7: =N7 -> 11 | AO7: =COUNTIF(L49:L59,AN7) -> 1 | AP7: =AO7/(AQ4-AO8) -> 0.1666666667 | AQ7: =IF(AP7=0,0,(AP7*((LOG(AP7))/LOG(2)))) -> -0.4308270835 | AS7: =N7 -> 11 | AT7: =COUNTIF(L60:L69,AS7) -> 0 | AU7: =AT7/(AV4-AT8) -> 0 | AV7: =IF(AU7=0,0,(AU7*((LOG(AU7))/LOG(2)))) -> 0
A8: 11 | B8: 104 | C8: 21 | D8: 111 | K8: 0 | L8: 12 | N8: 12 | O8: =COUNTIF($L$7:$L$500,N8) -> 40 | P8: =O8/$Q$4 -> 0.6349206349 | Q8: =IF(P8=0,0,(P8*((LOG(P8))/LOG(2)))) -> -0.4160963991 | T8: =N8 -> 12 | U8: =COUNTIF(L7:L17,T8) -> 9 | Y8: =N8 -> 12 | Z8: =COUNTIF(L18:L27,Y8) -> 7 | AD8: =N8 -> 12 | AE8: =COUNTIF(L28:L38,AD8) -> 6 | AI8: =N8 -> 12 | AJ8: =COUNTIF(L39:L48,AI8) -> 7 | AN8: =N8 -> 12 | AO8: =COUNTIF(L49:L59,AN8) -> 5 | AS8: =N8 -> 12 | AT8: =COUNTIF(L60:L69,AS8) -> 6
A9: 11 | B9: 201 | C9: 21 | D9: 208 | K9: 0 | L9: 12 | N9: 21 | O9: =COUNTIF($L$7:$L$500,N9) -> 7 | P9: =O9/$Q$4 -> 0.1111111111 | Q9: =IF(P9=0,0,(P9*((LOG(P9))/LOG(2)))) -> -0.352213889 | T9: =N9 -> 21 | U9: =COUNTIF(L7:L17,T9) -> 0 | V9: =U9/(W4-U8) -> 0 | W9: =IF(V9=0,0,(V9*((LOG(V9))/LOG(2)))) -> 0 | Y9: =N9 -> 21 | Z9: =COUNTIF(L18:L27,Y9) -> 0 | AA9: =Z9/(AB4-Z8) -> 0 | AB9: =IF(AA9=0,0,(AA9*((LOG(AA9))/LOG(2)))) -> 0 | AD9: =N9 -> 21 | AE9: =COUNTIF(L28:L38,AD9) -> 1 | AF9: =AE9/(AG4-AE8) -> 0.2 | AG9: =IF(AF9=0,0,(AF9*((LOG(AF9))/LOG(2)))) -> -0.464385619 | AI9: =N9 -> 21 | AJ9: =COUNTIF(L39:L48,AI9) -> 2 | AK9: =AJ9/(AL4-AJ8) -> 0.6666666667 | AL9: =IF(AK9=0,0,(AK9*((LOG(AK9))/LOG(2)))) -> -0.3899750005 | AN9: =N9 -> 21 | AO9: =COUNTIF(L49:L59,AN9) -> 2 | AP9: =AO9/(AQ4-AO8) -> 0.3333333333 | AQ9: =IF(AP9=0,0,(AP9*((LOG(AP9))/LOG(2)))) -> -0.5283208336 | AS9: =N9 -> 21 | AT9: =COUNTIF(L60:L69,AS9) -> 2 | AU9: =AT9/(AV4-AT8) -> 0.5 | AV9: =IF(AU9=0,0,(AU9*((LOG(AU9))/LOG(2)))) -> -0.5
A10: 11 | B10: 296 | C10: 21 | D10: 303 | K10: 0 | L10: 12 | N10: 22 | O10: =COUNTIF($L$7:$L$500,N10) -> 13 | P10: =O10/$Q$4 -> 0.2063492063 | Q10: =IF(P10=0,0,(P10*((LOG(P10))/LOG(2)))) -> -0.4698241694 | T10: =N10 -> 22 | U10: =COUNTIF(L7:L17,T10) -> 2 | V10: =U10/(W4-U8) -> 1 | W10: =IF(V10=0,0,(V10*((LOG(V10))/LOG(2)))) -> 0 | Y10: =N10 -> 22 | Z10: =COUNTIF(L18:L27,Y10) -> 2 | AA10: =Z10/(AB4-Z8) -> 0.6666666667 | AB10: =IF(AA10=0,0,(AA10*((LOG(AA10))/LOG(2)))) -> -0.3899750005 | AD10: =N10 -> 22 | AE10: =COUNTIF(L28:L38,AD10) -> 3 | AF10: =AE10/(AG4-AE8) -> 0.6 | AG10: =IF(AF10=0,0,(AF10*((LOG(AF10))/LOG(2)))) -> -0.4421793565 | AI10: =N10 -> 22 | AJ10: =COUNTIF(L39:L48,AI10) -> 1 | AK10: =AJ10/(AL4-AJ8) -> 0.3333333333 | AL10: =IF(AK10=0,0,(AK10*((LOG(AK10))/LOG(2)))) -> -0.5283208336 | AN10: =N10 -> 22 | AO10: =COUNTIF(L49:L59,AN10) -> 3 | AP10: =AO10/(AQ4-AO8) -> 0.5 | AQ10: =IF(AP10=0,0,(AP10*((LOG(AP10))/LOG(2)))) -> -0.5 | AS10: =N10 -> 22 | AT10: =COUNTIF(L60:L69,AS10) -> 2 | AU10: =AT10/(AV4-AT8) -> 0.5 | AV10: =IF(AU10=0,0,(AU10*((LOG(AU10))/LOG(2)))) -> -0.5
A11: 22 | B11: 398 | C11: 23 | D11: 413 | K11: 0 | L11: 22 | T11: =N11 -> 0 | U11: =COUNTIF(L7:L17,T11) -> 0 | V11: =U11/(W4-U8) -> 0 | W11: =IF(V11=0,0,(V11*((LOG(V11))/LOG(2)))) -> 0 | Y11: =N11 -> 0 | Z11: =COUNTIF(L18:L27,Y11) -> 0 | AA11: =Z11/(AB4-Z8) -> 0 | AB11: =IF(AA11=0,0,(AA11*((LOG(AA11))/LOG(2)))) -> 0 | AD11: =N11 -> 0 | AE11: =COUNTIF(L28:L38,AD11) -> 0 | AF11: =AE11/(AG4-AE8) -> 0 | AG11: =IF(AF11=0,0,(AF11*((LOG(AF11))/LOG(2)))) -> 0 | AI11: =N11 -> 0 | AJ11: =COUNTIF(L39:L48,AI11) -> 0 | AK11: =AJ11/(AL4-AJ8) -> 0 | AL11: =IF(AK11=0,0,(AK11*((LOG(AK11))/LOG(2)))) -> 0 | AN11: =N11 -> 0 | AO11: =COUNTIF(L49:L59,AN11) -> 0 | AP11: =AO11/(AQ4-AO8) -> 0 | AQ11: =IF(AP11=0,0,(AP11*((LOG(AP11))/LOG(2)))) -> 0 | AS11: =N11 -> 0 | AT11: =COUNTIF(L60:L69,AS11) -> 0 | AU11: =AT11/(AV4-AT8) -> 0 | AV11: =IF(AU11=0,0,(AU11*((LOG(AU11))/LOG(2)))) -> 0
A12: 22 | B12: 524 | C12: 23 | D12: 545 | K12: 0 | L12: 22 | T12: =N12 -> 0 | U12: =COUNTIF(L7:L17,T12) -> 0 | V12: =U12/(W4-U8) -> 0 | W12: =IF(V12=0,0,(V12*((LOG(V12))/LOG(2)))) -> 0 | Y12: =N12 -> 0 | Z12: =COUNTIF(L18:L27,Y12) -> 0 | AA12: =Z12/(AB4-Z8) -> 0 | AB12: =IF(AA12=0,0,(AA12*((LOG(AA12))/LOG(2)))) -> 0 | AD12: =N12 -> 0 | AE12: =COUNTIF(L28:L38,AD12) -> 0 | AF12: =AE12/(AG4-AE8) -> 0 | AG12: =IF(AF12=0,0,(AF12*((LOG(AF12))/LOG(2)))) -> 0 | AI12: =N12 -> 0 | AJ12: =COUNTIF(L39:L48,AI12) -> 0 | AK12: =AJ12/(AL4-AJ8) -> 0 | AL12: =IF(AK12=0,0,(AK12*((LOG(AK12))/LOG(2)))) -> 0 | AN12: =N12 -> 0 | AO12: =COUNTIF(L49:L59,AN12) -> 0 | AP12: =AO12/(AQ4-AO8) -> 0 | AQ12: =IF(AP12=0,0,(AP12*((LOG(AP12))/LOG(2)))) -> 0 | AS12: =N12 -> 0 | AT12: =COUNTIF(L60:L69,AS12) -> 0 | AU12: =AT12/(AV4-AT8) -> 0 | AV12: =IF(AU12=0,0,(AU12*((LOG(AU12))/LOG(2)))) -> 0
A13: 11 | B13: 642 | C13: 21 | D13: 663 | K13: 0 | L13: 12 | T13: =N13 -> 0 | U13: =COUNTIF(L7:L17,T13) -> 0 | V13: =U13/(W4-U8) -> 0 | W13: =IF(V13=0,0,(V13*((LOG(V13))/LOG(2)))) -> 0 | Y13: =N13 -> 0 | Z13: =COUNTIF(L18:L27,Y13) -> 0 | AA13: =Z13/(AB4-Z8) -> 0 | AB13: =IF(AA13=0,0,(AA13*((LOG(AA13))/LOG(2)))) -> 0 | AD13: =N13 -> 0 | AE13: =COUNTIF(L28:L38,AD13) -> 0 | AF13: =AE13/(AG4-AE8) -> 0 | AG13: =IF(AF13=0,0,(AF13*((LOG(AF13))/LOG(2)))) -> 0 | AI13: =N13 -> 0 | AJ13: =COUNTIF(L39:L48,AI13) -> 0 | AK13: =AJ13/(AL4-AJ8) -> 0 | AL13: =IF(AK13=0,0,(AK13*((LOG(AK13))/LOG(2)))) -> 0 | AN13: =N13 -> 0 | AO13: =COUNTIF(L49:L59,AN13) -> 0 | AP13: =AO13/(AQ4-AO8) -> 0 | AQ13: =IF(AP13=0,0,(AP13*((LOG(AP13))/LOG(2)))) -> 0 | AS13: =N13 -> 0 | AT13: =COUNTIF(L60:L69,AS13) -> 0 | AU13: =AT13/(AV4-AT8) -> 0 | AV13: =IF(AU13=0,0,(AU13*((LOG(AU13))/LOG(2)))) -> 0
A14: 11 | B14: 752 | C14: 21 | D14: 775 | K14: 0 | L14: 12 | T14: =N14 -> 0 | U14: =COUNTIF(L7:L17,T14) -> 0 | V14: =U14/(W4-U8) -> 0 | W14: =IF(V14=0,0,(V14*((LOG(V14))/LOG(2)))) -> 0 | Y14: =N14 -> 0 | Z14: =COUNTIF(L18:L27,Y14) -> 0 | AA14: =Z14/(AB4-Z8) -> 0 | AB14: =IF(AA14=0,0,(AA14*((LOG(AA14))/LOG(2)))) -> 0 | AD14: =N14 -> 0 | AE14: =COUNTIF(L28:L38,AD14) -> 0 | AF14: =AE14/(AG4-AE8) -> 0 | AG14: =IF(AF14=0,0,(AF14*((LOG(AF14))/LOG(2)))) -> 0 | AI14: =N14 -> 0 | AJ14: =COUNTIF(L39:L48,AI14) -> 0 | AK14: =AJ14/(AL4-AJ8) -> 0 | AL14: =IF(AK14=0,0,(AK14*((LOG(AK14))/LOG(2)))) -> 0 | AN14: =N14 -> 0 | AO14: =COUNTIF(L49:L59,AN14) -> 0 | AP14: =AO14/(AQ4-AO8) -> 0 | AQ14: =IF(AP14=0,0,(AP14*((LOG(AP14))/LOG(2)))) -> 0 | AS14: =N14 -> 0 | AT14: =COUNTIF(L60:L69,AS14) -> 0 | AU14: =AT14/(AV4-AT8) -> 0 | AV14: =IF(AU14=0,0,(AU14*((LOG(AU14))/LOG(2)))) -> 0
A15: 11 | B15: 862 | C15: 21 | D15: 879 | K15: 0 | L15: 12 | P15: =SUM(P7:P14) -> 1 | Q15: =-SUM(Q7:Q14) -> 1.44729243 | V15: =SUM(V7:V14) -> 1 | W15: =-SUM(W7:W14) -> 0 | AA15: =SUM(AA7:AA14) -> 1 | AB15: =-SUM(AB7:AB14) -> 0.9182958341 | AF15: =SUM(AF7:AF14) -> 1 | AG15: =-SUM(AG7:AG14) -> 1.370950594 | AK15: =SUM(AK7:AK14) -> 1 | AL15: =-SUM(AL7:AL14) -> 0.9182958341 | AP15: =SUM(AP7:AP14) -> 1 | AQ15: =-SUM(AQ7:AQ14) -> 1.459147917 | AU15: =SUM(AU7:AU14) -> 1 | AV15: =-SUM(AV7:AV14) -> 1
A16: 11 | B16: 968 | C16: 21 | D16: 987 | K16: 0 | L16: 12 | P16: U= | Q16: =Q15/(LOG(Q4)/LOG(2)) -> 0.2421322823 | V16: U1= | W16: =W15/(LOG(W4)/LOG(2)) -> 0 | AA16: U2= | AB16: =AB15/(LOG(AB4)/LOG(2)) -> 0.2764345909 | AF16: U3= | AG16: =AG15/(LOG(AG4)/LOG(2)) -> 0.3962935955 | AK16: U4= | AL16: =AL15/(LOG(AL4)/LOG(2)) -> 0.2764345909 | AP16: U5= | AQ16: =AQ15/(LOG(AQ4)/LOG(2)) -> 0.4217883392 | AU16: U6= | AV16: =AV15/(LOG(AV4)/LOG(2)) -> 0.3010299957
A17: 11 | B17: 1074 | C17: 21 | D17: 1090 | K17: 0 | L17: 12
A18: 11 | B18: 1182 | C18: 12 | D18: 1196 | K18: 0 | L18: 11
A19: 11 | B19: 1284 | C19: 21 | D19: 1335 | K19: 0 | L19: 12 | N19: Total Target Seq
A20: 11 | B20: 1421 | C20: 21 | D20: 1438 | K20: 0 | L20: 12 | N20: =COUNTIF(L7:L69,G3) -> 40 | P20: 11 | Q20: 10 | R20: 11 | S20: 10 | T20: 11 | U20: 10
A21: 11 | B21: 1525 | C21: 21 | D21: 1540 | K21: 0 | L21: 12 | P21: % of reinforcement given in 6 equal intervals based on number of trials
A22: 11 | B22: 1627 | C22: 21 | D22: 1702 | K22: 0 | L22: 12 | P22: %_1 | Q22: %_2 | R22: %_3 | S22: %_4 | T22: %_5 | U22: %_6
A23: 11 | B23: 1793 | C23: 21 | D23: 1805 | K23: 0 | L23: 12 | O23: target sequence | P23: =$G$3 -> 12 | Q23: =$G$3 -> 12 | R23: =$G$3 -> 12 | S23: =$G$3 -> 12 | T23: =$G$3 -> 12 | U23: =$G$3 -> 12
A24: 22 | B24: 1901 | C24: 23 | D24: 1909 | K24: 0 | L24: 22 | O24: total reinforcement | P24: =U8 -> 9 | Q24: =Z8 -> 7 | R24: =AE8 -> 6 | S24: =AJ8 -> 7 | T24: =AO8 -> 5 | U24: =AT8 -> 6
A25: 11 | B25: 2007 | C25: 21 | D25: 2023 | K25: 0 | L25: 12 | O25: % target
A26: 11 | B26: 2111 | C26: 21 | D26: 2120 | K26: 0 | L26: 12 | O26: CCRF
A27: 22 | B27: 2212 | C27: 23 | D27: 2263 | K27: 0 | L27: 22 | O27: % CCRf
A28: 22 | B28: 2371 | C28: 23 | D28: 2391 | K28: 0 | L28: 22 | O28: average response rate | P28: =D17/P20 -> 99.09090909 | Q28: =(D27-D17)/Q20 -> 117.3 | R28: =(D38-D27)/R20 -> 119.0909091 | S28: =(D48-D38)/S20 -> 123.1 | T28: =(D59-D48)/T20 -> 116.5454545 | U28: =(D69-D59)/U20 -> 116.7
A29: 11 | B29: 2490 | C29: 21 | D29: 2498 | K29: 0 | L29: 12
A30: 11 | B30: 2588 | C30: 21 | D30: 2596 | K30: 0 | L30: 12
A31: 22 | B31: 2697 | C31: 14 | D31: 2713 | K31: 0 | L31: 21
A32: 11 | B32: 2813 | C32: 21 | D32: 2828 | K32: 0 | L32: 12
A33: 22 | B33: 2931 | C33: 23 | D33: 2956 | K33: 0 | L33: 22
A34: 11 | B34: 3059 | C34: 21 | D34: 3122 | K34: 0 | L34: 12
A35: 11 | B35: 3215 | C35: 12 | D35: 3241 | K35: 0 | L35: 11
A36: 11 | B36: 3339 | C36: 21 | D36: 3347 | K36: 0 | L36: 12
A37: 11 | B37: 3437 | C37: 21 | D37: 3449 | K37: 0 | L37: 12
A38: 22 | B38: 3550 | C38: 23 | D38: 3573 | K38: 0 | L38: 22
A39: 11 | B39: 3670 | C39: 21 | D39: 3678 | K39: 0 | L39: 12
A40: 22 | B40: 3772 | C40: 23 | D40: 3809 | K40: 0 | L40: 22
A41: 11 | B41: 3906 | C41: 21 | D41: 3971 | K41: 0 | L41: 12
A42: 22 | B42: 4110 | C42: 14 | D42: 4118 | K42: 0 | L42: 21
A43: 11 | B43: 4216 | C43: 21 | D43: 4249 | K43: 0 | L43: 12
A44: 11 | B44: 4358 | C44: 21 | D44: 4365 | K44: 0 | L44: 12
A45: 11 | B45: 4456 | C45: 21 | D45: 4479 | K45: 0 | L45: 12
A46: 22 | B46: 4574 | C46: 14 | D46: 4589 | K46: 0 | L46: 21
A47: 11 | B47: 4686 | C47: 21 | D47: 4705 | K47: 0 | L47: 12
A48: 11 | B48: 4792 | C48: 21 | D48: 4804 | K48: 0 | L48: 12
A49: 22 | B49: 4908 | C49: 23 | D49: 4924 | K49: 0 | L49: 22
A50: 11 | B50: 5022 | C50: 21 | D50: 5029 | K50: 0 | L50: 12
A51: 11 | B51: 5120 | C51: 12 | D51: 5153 | K51: 0 | L51: 11
A52: 11 | B52: 5253 | C52: 21 | D52: 5270 | K52: 0 | L52: 12
A53: 22 | B53: 5373 | C53: 14 | D53: 5384 | K53: 0 | L53: 21
A54: 22 | B54: 5488 | C54: 23 | D54: 5503 | K54: 0 | L54: 22
A55: 11 | B55: 5601 | C55: 21 | D55: 5608 | K55: 0 | L55: 12
A56: 22 | B56: 5716 | C56: 14 | D56: 5732 | K56: 0 | L56: 21
A57: 11 | B57: 5830 | C57: 21 | D57: 5851 | K57: 0 | L57: 12
A58: 22 | B58: 5946 | C58: 23 | D58: 5961 | K58: 0 | L58: 22
A59: 11 | B59: 6058 | C59: 21 | D59: 6086 | K59: 0 | L59: 12
A60: 22 | B60: 6201 | C60: 14 | D60: 6213 | K60: 0 | L60: 21
A61: 11 | B61: 6310 | C61: 21 | D61: 6318 | K61: 0 | L61: 12
A62: 11 | B62: 6412 | C62: 21 | D62: 6439 | K62: 0 | L62: 12
A63: 22 | B63: 6546 | C63: 14 | D63: 6555 | K63: 0 | L63: 21
A64: 11 | B64: 6652 | C64: 21 | D64: 6666 | K64: 0 | L64: 12
A65: 22 | B65: 6771 | C65: 23 | D65: 6794 | K65: 0 | L65: 22
A66: 11 | B66: 6891 | C66: 21 | D66: 6898 | K66: 0 | L66: 12
A67: 22 | B67: 7036 | C67: 23 | D67: 7047 | K67: 0 | L67: 22
A68: 11 | B68: 7147 | C68: 21 | D68: 7154 | K68: 0 | L68: 12
A69: 11 | B69: 7246 | C69: 21 | D69: 7253 | K69: 1 | L69: 12

Sheet !N212A10.096
A1: Report for:!N212A10.096
A2: Date: | B2: <date>
A3: Hen: | B3: <hen> | F3: Correct Sequence | G3: =Start!J2 -> 12 | P3: Total Sequences in Data | Q3: =4994-COUNTBLANK(L7:L5000) -> 45 | V3: Total Sequences in Block Data | W3: =COUNTA(L7:L14) -> 8 | AA3: Total Sequences in Block Data | AB3: =COUNTA(L15:L21) -> 7 | AF3: Total Sequences in Block Data | AG3: =COUNTA(L22:L29) -> 8 | AK3: Total Sequences in Block Data | AL3: =COUNTA(L30:L36) -> 7 | AP3: Total Sequences in Block Data | AQ3: =COUNTA(L37:L44) -> 8 | AU3: Total Sequences in Block Data | AV3: =COUNTA(L45:L51) -> 7
P4: Total Sequences in Summary | Q4: =SUM(O7:O14) -> 45 | V4: Total Sequences in Block Summary | W4: =SUM(U7:U14) -> 8 | AA4: Total Sequences in Block Summary | AB4: =SUM(Z7:Z14) -> 7 | AF4: Total Sequences in Block Summary | AG4: =SUM(AE7:AE14) -> 8 | AK4: Total Sequences in Block Summary | AL4: =SUM(AJ7:AJ14) -> 7 | AP4: Total Sequences in Block Summary | AQ4: =SUM(AO7:AO14) -> 8 | AU4: Total Sequences in Block Summary | AV4: =SUM(AT7:AT14) -> 7
T5: Block 1 | Y5: Block 2 | AD5: Block 3 | AI5: Block 4 | AN5: Block 5 | AS5: Block 6
A6: Sequence Component 1 | B6: Time 1 | C6: Sequence Component 2 | D6: Time 2 | E6: Sequence Component 3 | F6: Time 3 | G6: Sequence Component 4 | H6: Time 4 | I6: Sequence Component 5 | J6: Time 5 | K6: Correct? 0=No 1=Yes | L6: Sequence | N6: Frequency | P6: Relative Frequency | Q6: Variability | T6: Frequency | V6: Relative Frequency | W6: Variability | Y6: Frequency | AA6: Relative Frequency | AB6: Variability | AD6: Frequency | AF6: Relative Frequency | AG6: Variability | AI6: Frequency | AK6: Relative Frequency | AL6: Variability | AN6: Frequency | AP6: Relative Frequency | AQ6: Variability | AS6: Frequency | AU6: Relative Frequency | AV6: Variability
A7: 11 | B7: 7 | C7: 21 | D7: 15 | K7: 0 | L7: 12 | N7: 11 | O7: =COUNTIF($L$7:$L$500,N7) -> 0 | P7: =O7/$Q$4 -> 0 | Q7: =IF(P7=0,0,(P7*((LOG(P7))/LOG(2)))) -> 0 | T7: =N7 -> 11 | U7: =COUNTIF(L7:L14,T7) -> 0 | V7: =U7/(W4-U8) -> 0 | W7: =IF(V7=0,0,(V7*((LOG(V7))/LOG(2)))) -> 0 | Y7: =N7 -> 11 | Z7: =COUNTIF(L15:L21,Y7) -> 0 | AA7: =Z7/(AB4-Z8) ->  | AB7: =IF(AA7=0,0,(AA7*((LOG(AA7))/LOG(2)))) ->  | AD7: =N7 -> 11 | AE7: =COUNTIF(L22:L29,AD7) -> 0 | AF7: =AE7/(AG4-AE8) ->  | AG7: =IF(AF7=0,0,(AF7*((LOG(AF7))/LOG(2)))) ->  | AI7: =N7 -> 11 | AJ7: =COUNTIF(L30:L36,AI7) -> 0 | AK7: =AJ7/(AL4-AJ8) -> 0 | AL7: =IF(AK7=0,0,(AK7*((LOG(AK7))/LOG(2)))) -> 0 | AN7: =N7 -> 11 | AO7: =COUNTIF(L37:L44,AN7) -> 0 | AP7: =AO7/(AQ4-AO8) -> 0 | AQ7: =IF(AP7=0,0,(AP7*((LOG(AP7))/LOG(2)))) -> 0 | AS7: =N7 -> 11 | AT7: =COUNTIF(L45:L51,AS7) -> 0 | AU7: =AT7/(AV4-AT8) ->  | AV7: =IF(AU7=0,0,(AU7*((LOG(AU7))/LOG(2)))) -> 
A8: 22 | B8: 106 | C8: 23 | D8: 115 | K8: 0 | L8: 22 | N8: 12 | O8: =COUNTIF($L$7:$L$500,N8) -> 40 | P8: =O8/$Q$4 -> 0.8888888889 | Q8: =IF(P8=0,0,(P8*((LOG(P8))/LOG(2)))) -> -0.1510444457 | T8: =N8 -> 12 | U8: =COUNTIF(L7:L14,T8) -> 5 | Y8: =N8 -> 12 | Z8: =COUNTIF(L15:L21,Y8) -> 7 | AD8: =N8 -> 12 | AE8: =COUNTIF(L22:L29,AD8) -> 8 | AI8: =N8 -> 12 | AJ8: =COUNTIF(L30:L36,AI8) -> 6 | AN8: =N8 -> 12 | AO8: =COUNTIF(L37:L44,AN8) -> 7 | AS8: =N8 -> 12 | AT8: =COUNTIF(L45:L51,AS8) -> 7
A9: 22 | B9: 218 | C9: 23 | D9: 225 | K9: 0 | L9: 22 | N9: 21 | O9: =COUNTIF($L$7:$L$500,N9) -> 0 | P9: =O9/$Q$4 -> 0 | Q9: =IF(P9=0,0,(P9*((LOG(P9))/LOG(2)))) -> 0 | T9: =N9 -> 21 | U9: =COUNTIF(L7:L14,T9) -> 0 | V9: =U9/(W4-U8) -> 0 | W9: =IF(V9=0,0,(V9*((LOG(V9))/LOG(2)))) -> 0 | Y9: =N9 -> 21 | Z9: =COUNTIF(L15:L21,Y9) -> 0 | AA9: =Z9/(AB4-Z8) ->  | AB9: =IF(AA9=0,0,(AA9*((LOG(AA9))/LOG(2)))) ->  | AD9: =N9 -> 21 | AE9: =COUNTIF(L22:L29,AD9) -> 0 | AF9: =AE9/(AG4-AE8) ->  | AG9: =IF(AF9=0,0,(AF9*((LOG(AF9))/LOG(2)))) ->  | AI9: =N9 -> 21 | AJ9: =COUNTIF(L30:L36,AI9) -> 0 | AK9: =AJ9/(AL4-AJ8) -> 0 | AL9: =IF(AK9=0,0,(AK9*((LOG(AK9))/LOG(2)))) -> 0 | AN9: =N9 -> 21 | AO9: =COUNTIF(L37:L44,AN9) -> 0 | AP9: =AO9/(AQ4-AO8) -> 0 | AQ9: =IF(AP9=0,0,(AP9*((LOG(AP9))/LOG(2)))) -> 0 | AS9: =N9 -> 21 | AT9: =COUNTIF(L45:L51,AS9) -> 0 | AU9: =AT9/(AV4-AT8) ->  | AV9: =IF(AU9=0,0,(AU9*((LOG(AU9))/LOG(2)))) -> 
A10: 22 | B10: 326 | C10: 23 | D10: 336 | K10: 0 | L10: 22 | N10: 22 | O10: =COUNTIF($L$7:$L$500,N10) -> 5 | P10: =O10/$Q$4 -> 0.1111111111 | Q10: =IF(P10=0,0,(P10*((LOG(P10))/LOG(2)))) -> -0.352213889 | T10: =N10 -> 22 | U10: =COUNTIF(L7:L14,T10) -> 3 | V10: =U10/(W4-U8) -> 1 | W10: =IF(V10=0,0,(V10*((LOG(V10))/LOG(2)))) -> 0 | Y10: =N10 -> 22 | Z10: =COUNTIF(L15:L21,Y10) -> 0 | AA10: =Z10/(AB4-Z8) ->  | AB10: =IF(AA10=0,0,(AA10*((LOG(AA10))/LOG(2)))) ->  | AD10: =N10 -> 22 | AE10: =COUNTIF(L22:L29,AD10) -> 0 | AF10: =AE10/(AG4-AE8) ->  | AG10: =IF(AF10=0,0,(AF10*((LOG(AF10))/LOG(2)))) ->  | AI10: =N10 -> 22 | AJ10: =COUNTIF(L30:L36,AI10) -> 1 | AK10: =AJ10/(AL4-AJ8) -> 1 | AL10: =IF(AK10=0,0,(AK10*((LOG(AK10))/LOG(2)))) -> 0 | AN10: =N10 -> 22 | AO10: =COUNTIF(L37:L44,AN10) -> 1 | AP10: =AO10/(AQ4-AO8) -> 1 | AQ10: =IF(AP10=0,0,(AP10*((LOG(AP10))/LOG(2)))) -> 0 | AS10: =N10 -> 22 | AT10: =COUNTIF(L45:L51,AS10) -> 0 | AU10: =AT10/(AV4-AT8) ->  | AV10: =IF(AU10=0,0,(AU10*((LOG(AU10))/LOG(2)))) -> 
A11: 11 | B11: 432 | C11: 21 | D11: 440 | K11: 0 | L11: 12 | T11: =N11 -> 0 | U11: =COUNTIF(L7:L14,T11) -> 0 | V11: =U11/(W4-U8) -> 0 | W11: =IF(V11=0,0,(V11*((LOG(V11))/LOG(2)))) -> 0 | Y11: =N11 -> 0 | Z11: =COUNTIF(L15:L21,Y11) -> 0 | AA11: =Z11/(AB4-Z8) ->  | AB11: =IF(AA11=0,0,(AA11*((LOG(AA11))/LOG(2)))) ->  | AD11: =N11 -> 0 | AE11: =COUNTIF(L22:L29,AD11) -> 0 | AF11: =AE11/(AG4-AE8) ->  | AG11: =IF(AF11=0,0,(AF11*((LOG(AF11))/LOG(2)))) ->  | AI11: =N11 -> 0 | AJ11: =COUNTIF(L30:L36,AI11) -> 0 | AK11: =AJ11/(AL4-AJ8) -> 0 | AL11: =IF(AK11=0,0,(AK11*((LOG(AK11))/LOG(2)))) -> 0 | AN11: =N11 -> 0 | AO11: =COUNTIF(L37:L44,AN11) -> 0 | AP11: =AO11/(AQ4-AO8) -> 0 | AQ11: =IF(AP11=0,0,(AP11*((LOG(AP11))/LOG(2)))) -> 0 | AS11: =N11 -> 0 | AT11: =COUNTIF(L45:L51,AS11) -> 0 | AU11: =AT11/(AV4-AT8) ->  | AV11: =IF(AU11=0,0,(AU11*((LOG(AU11))/LOG(2)))) -> 
A12: 11 | B12: 527 | C12: 21 | D12: 534 | K12: 0 | L12: 12 | T12: =N12 -> 0 | U12: =COUNTIF(L7:L14,T12) -> 0 | V12: =U12/(W4-U8) -> 0 | W12: =IF(V12=0,0,(V12*((LOG(V12))/LOG(2)))) -> 0 | Y12: =N12 -> 0 | Z12: =COUNTIF(L15:L21,Y12) -> 0 | AA12: =Z12/(AB4-Z8) ->  | AB12: =IF(AA12=0,0,(AA12*((LOG(AA12))/LOG(2)))) ->  | AD12: =N12 -> 0 | AE12: =COUNTIF(L22:L29,AD12) -> 0 | AF12: =AE12/(AG4-AE8) ->  | AG12: =IF(AF12=0,0,(AF12*((LOG(AF12))/LOG(2)))) ->  | AI12: =N12 -> 0 | AJ12: =COUNTIF(L30:L36,AI12) -> 0 | AK12: =AJ12/(AL4-AJ8) -> 0 | AL12: =IF(AK12=0,0,(AK12*((LOG(AK12))/LOG(2)))) -> 0 | AN12: =N12 -> 0 | AO12: =COUNTIF(L37:L44,AN12) -> 0 | AP12: =AO12/(AQ4-AO8) -> 0 | AQ12: =IF(AP12=0,0,(AP12*((LOG(AP12))/LOG(2)))) -> 0 | AS12: =N12 -> 0 | AT12: =COUNTIF(L45:L51,AS12) -> 0 | AU12: =AT12/(AV4-AT8) ->  | AV12: =IF(AU12=0,0,(AU12*((LOG(AU12))/LOG(2)))) -> 
A13: 11 | B13: 621 | C13: 21 | D13: 628 | K13: 0 | L13: 12 | T13: =N13 -> 0 | U13: =COUNTIF(L7:L14,T13) -> 0 | V13: =U13/(W4-U8) -> 0 | W13: =IF(V13=0,0,(V13*((LOG(V13))/LOG(2)))) -> 0 | Y13: =N13 -> 0 | Z13: =COUNTIF(L15:L21,Y13) -> 0 | AA13: =Z13/(AB4-Z8) ->  | AB13: =IF(AA13=0,0,(AA13*((LOG(AA13))/LOG(2)))) ->  | AD13: =N13 -> 0 | AE13: =COUNTIF(L22:L29,AD13) -> 0 | AF13: =AE13/(AG4-AE8) ->  | AG13: =IF(AF13=0,0,(AF13*((LOG(AF13))/LOG(2)))) ->  | AI13: =N13 -> 0 | AJ13: =COUNTIF(L30:L36,AI13) -> 0 | AK13: =AJ13/(AL4-AJ8) -> 0 | AL13: =IF(AK13=0,0,(AK13*((LOG(AK13))/LOG(2)))) -> 0 | AN13: =N13 -> 0 | AO13: =COUNTIF(L37:L44,AN13) -> 0 | AP13: =AO13/(AQ4-AO8) -> 0 | AQ13: =IF(AP13=0,0,(AP13*((LOG(AP13))/LOG(2)))) -> 0 | AS13: =N13 -> 0 | AT13: =COUNTIF(L45:L51,AS13) -> 0 | AU13: =AT13/(AV4-AT8) ->  | AV13: =IF(AU13=0,0,(AU13*((LOG(AU13))/LOG(2)))) -> 
A14: 11 | B14: 715 | C14: 21 | D14: 722 | K14: 0 | L14: 12 | T14: =N14 -> 0 | U14: =COUNTIF(L7:L14,T14) -> 0 | V14: =U14/(W4-U8) -> 0 | W14: =IF(V14=0,0,(V14*((LOG(V14))/LOG(2)))) -> 0 | Y14: =N14 -> 0 | Z14: =COUNTIF(L15:L21,Y14) -> 0 | AA14: =Z14/(AB4-Z8) ->  | AB14: =IF(AA14=0,0,(AA14*((LOG(AA14))/LOG(2)))) ->  | AD14: =N14 -> 0 | AE14: =COUNTIF(L22:L29,AD14) -> 0 | AF14: =AE14/(AG4-AE8) ->  | AG14: =IF(AF14=0,0,(AF14*((LOG(AF14))/LOG(2)))) ->  | AI14: =N14 -> 0 | AJ14: =COUNTIF(L30:L36,AI14) -> 0 | AK14: =AJ14/(AL4-AJ8) -> 0 | AL14: =IF(AK14=0,0,(AK14*((LOG(AK14))/LOG(2)))) -> 0 | AN14: =N14 -> 0 | AO14: =COUNTIF(L37:L44,AN14) -> 0 | AP14: =AO14/(AQ4-AO8) -> 0 | AQ14: =IF(AP14=0,0,(AP14*((LOG(AP14))/LOG(2)))) -> 0 | AS14: =N14 -> 0 | AT14: =COUNTIF(L45:L51,AS14) -> 0 | AU14: =AT14/(AV4-AT8) ->  | AV14: =IF(AU14=0,0,(AU14*((LOG(AU14))/LOG(2)))) -> 
A15: 11 | B15: 809 | C15: 21 | D15: 816 | K15: 0 | L15: 12 | P15: =SUM(P7:P14) -> 1 | Q15: =-SUM(Q7:Q14) -> 0.5032583348 | V15: =SUM(V7:V14) -> 1 | W15: =-SUM(W7:W14) -> 0 | AA15: =SUM(AA7:AA14) ->  | AB15: =-SUM(AB7:AB14) ->  | AF15: =SUM(AF7:AF14) ->  | AG15: =-SUM(AG7:AG14) ->  | AK15: =SUM(AK7:AK14) -> 1 | AL15: =-SUM(AL7:AL14) -> 0 | AP15: =SUM(AP7:AP14) -> 1 | AQ15: =-SUM(AQ7:AQ14) -> 0 | AU15: =SUM(AU7:AU14) ->  | AV15: =-SUM(AV7:AV14) -> 
A16: 11 | B16: 903 | C16: 21 | D16: 909 | K16: 0 | L16: 12 | P16: U= | Q16: =Q15/(LOG(Q4)/LOG(2)) -> 0.09163725357 | V16: U1= | W16: =W15/(LOG(W4)/LOG(2)) -> 0 | AA16: U2= | AB16: =AB15/(LOG(AB4)/LOG(2)) ->  | AF16: U3= | AG16: =AG15/(LOG(AG4)/LOG(2)) ->  | AK16: U4= | AL16: =AL15/(LOG(AL4)/LOG(2)) -> 0 | AP16: U5= | AQ16: =AQ15/(LOG(AQ4)/LOG(2)) -> 0 | AU16: U6= | AV16: =AV15/(LOG(AV4)/LOG(2)) -> 
A17: 11 | B17: 995 | C17: 21 | D17: 1002 | K17: 0 | L17: 12
A18: 11 | B18: 1090 | C18: 21 | D18: 1097 | K18: 0 | L18: 12
A19: 11 | B19: 1183 | C19: 21 | D19: 1191 | K19: 0 | L19: 12 | N19: Total Target Seq
A20: 11 | B20: 1277 | C20: 21 | D20: 1284 | K20: 0 | L20: 12 | N20: =COUNTIF(L7:L51,G3) -> 40 | P20: 8 | Q20: 7 | R20: 8 | S20: 7 | T20: 8 | U20: 7
A21: 11 | B21: 1371 | C21: 21 | D21: 1378 | K21: 0 | L21: 12 | P21: % of reinforcement given in 6 equal intervals based on number of trials
A22: 11 | B22: 1464 | C22: 21 | D22: 1471 | K22: 0 | L22: 12 | P22: %_1 | Q22: %_2 | R22: %_3 | S22: %_4 | T22: %_5 | U22: %_6
A23: 11 | B23: 1558 | C23: 21 | D23: 1565 | K23: 0 | L23: 12 | O23: target sequence | P23: =$G$3 -> 12 | Q23: =$G$3 -> 12 | R23: =$G$3 -> 12 | S23: =$G$3 -> 12 | T23: =$G$3 -> 12 | U23: =$G$3 -> 12
A24: 11 | B24: 1657 | C24: 21 | D24: 1664 | K24: 0 | L24: 12 | O24: total reinforcement | P24: =U8 -> 5 | Q24: =Z8 -> 7 | R24: =AE8 -> 8 | S24: =AJ8 -> 6 | T24: =AO8 -> 7 | U24: =AT8 -> 7
A25: 11 | B25: 1752 | C25: 21 | D25: 1759 | K25: 0 | L25: 12 | O25: % target
A26: 11 | B26: 1845 | C26: 21 | D26: 1853 | K26: 0 | L26: 12 | O26: CCRF
A27: 11 | B27: 1938 | C27: 21 | D27: 1945 | K27: 0 | L27: 12 | O27: % CCRf
A28: 11 | B28: 2032 | C28: 21 | D28: 2039 | K28: 0 | L28: 12 | O28: average response rate | P28: =D14/P20 -> 90.25 | Q28: =(D21-D14)/Q20 -> 93.71428571 | R28: =(D29-D21)/R20 -> 94.5 | S28: =(D36-D29)/S20 -> 98.57142857 | T28: =(D44-D36)/T20 -> 102.875 | U28: =(D51-D44)/U20 -> 99
A29: 11 | B29: 2126 | C29: 21 | D29: 2134 | K29: 0 | L29: 12
A30: 11 | B30: 2220 | C30: 21 | D30: 2227 | K30: 0 | L30: 12
A31: 22 | B31: 2325 | C31: 23 | D31: 2343 | K31: 0 | L31: 22
A32: 11 | B32: 2439 | C32: 21 | D32: 2446 | K32: 0 | L32: 12
A33: 11 | B33: 2532 | C33: 21 | D33: 2540 | K33: 0 | L33: 12
A34: 11 | B34: 2626 | C34: 21 | D34: 2633 | K34: 0 | L34: 12
A35: 11 | B35: 2720 | C35: 21 | D35: 2727 | K35: 0 | L35: 12
A36: 11 | B36: 2815 | C36: 21 | D36: 2824 | K36: 0 | L36: 12
A37: 11 | B37: 2909 | C37: 21 | D37: 2916 | K37: 0 | L37: 12
A38: 11 | B38: 3005 | C38: 21 | D38: 3012 | K38: 0 | L38: 12
A39: 22 | B39: 3105 | C39: 23 | D39: 3116 | K39: 0 | L39: 22
A40: 11 | B40: 3213 | C40: 21 | D40: 3219 | K40: 0 | L40: 12
A41: 11 | B41: 3305 | C41: 21 | D41: 3313 | K41: 0 | L41: 12
A42: 11 | B42: 3399 | C42: 21 | D42: 3447 | K42: 0 | L42: 12
A43: 11 | B43: 3533 | C43: 21 | D43: 3553 | K43: 0 | L43: 12
A44: 11 | B44: 3640 | C44: 21 | D44: 3647 | K44: 0 | L44: 12
A45: 11 | B45: 3732 | C45: 21 | D45: 3739 | K45: 0 | L45: 12
A46: 11 | B46: 3825 | C46: 21 | D46: 3853 | K46: 0 | L46: 12
A47: 11 | B47: 3940 | C47: 21 | D47: 3945 | K47: 0 | L47: 12
A48: 11 | B48: 4032 | C48: 21 | D48: 4038 | K48: 0 | L48: 12
A49: 11 | B49: 4125 | C49: 21 | D49: 4153 | K49: 0 | L49: 12
A50: 11 | B50: 4238 | C50: 21 | D50: 4246 | K50: 0 | L50: 12
A51: 11 | B51: 4333 | C51: 21 | D51: 4340 | K51: 1 | L51: 12

Sheet !N213A10.096
A1: Report for:!N213A10.096
A2: Date: | B2: <date>
A3: Hen: | B3: <hen> | F3: Correct Sequence | G3: =Start!J2 -> 12 | P3: Total Sequences in Data | Q3: =4994-COUNTBLANK(L7:L5000) -> 47 | V3: Total Sequences in Block Data | W3: =COUNTA(L7:L14) -> 8 | AA3: Total Sequences in Block Data | AB3: =COUNTA(L15:L22) -> 8 | AF3: Total Sequences in Block Data | AG3: =COUNTA(L23:L29) -> 7 | AK3: Total Sequences in Block Data | AL3: =COUNTA(L30:L37) -> 8 | AP3: Total Sequences in Block Data | AQ3: =COUNTA(L38:L45) -> 8 | AU3: Total Sequences in Block Data | AV3: =COUNTA(L46:L53) -> 8
P4: Total Sequences in Summary | Q4: =SUM(O7:O14) -> 47 | V4: Total Sequences in Block Summary | W4: =SUM(U7:U14) -> 8 | AA4: Total Sequences in Block Summary | AB4: =SUM(Z7:Z14) -> 8 | AF4: Total Sequences in Block Summary | AG4: =SUM(AE7:AE14) -> 7 | AK4: Total Sequences in Block Summary | AL4: =SUM(AJ7:AJ14) -> 8 | AP4: Total Sequences in Block Summary | AQ4: =SUM(AO7:AO14) -> 8 | AU4: Total Sequences in Block Summary | AV4: =SUM(AT7:AT14) -> 8
T5: Block 1 | Y5: Block 2 | AD5: Block 3 | AI5: Block 4 | AN5: Block 5 | AS5: Block 6
A6: Sequence Component 1 | B6: Time 1 | C6: Sequence Component 2 | D6: Time 2 | E6: Sequence Component 3 | F6: Time 3 | G6: Sequence Component 4 | H6: Time 4 | I6: Sequence Component 5 | J6: Time 5 | K6: Correct? 0=No 1=Yes | L6: Sequence | N6: Frequency | P6: Relative Frequency | Q6: Variability | T6: Frequency | V6: Relative Frequency | W6: Variability | Y6: Frequency | AA6: Relative Frequency | AB6: Variability | AD6: Frequency | AF6: Relative Frequency | AG6: Variability | AI6: Frequency | AK6: Relative Frequency | AL6: Variability | AN6: Frequency | AP6: Relative Frequency | AQ6: Variability | AS6: Frequency | AU6: Relative Frequency | AV6: Variability
A7: 11 | B7: 8 | C7: 21 | D7: 16 | K7: 0 | L7: 12 | N7: 11 | O7: =COUNTIF($L$7:$L$500,N7) -> 2 | P7: =O7/$Q$4 -> 0.04255319149 | Q7: =IF(P7=0,0,(P7*((LOG(P7))/LOG(2)))) -> -0.1938122916 | T7: =N7 -> 11 | U7: =COUNTIF(L7:L14,T7) -> 0 | V7: =U7/(W4-U8) -> 0 | W7: =IF(V7=0,0,(V7*((LOG(V7))/LOG(2)))) -> 0 | Y7: =N7 -> 11 | Z7: =COUNTIF(L15:L22,Y7) -> 0 | AA7: =Z7/(AB4-Z8) -> 0 | AB7: =IF(AA7=0,0,(AA7*((LOG(AA7))/LOG(2)))) -> 0 | AD7: =N7 -> 11 | AE7: =COUNTIF(L23:L29,AD7) -> 2 | AF7: =AE7/(AG4-AE8) -> 1 | AG7: =IF(AF7=0,0,(AF7*((LOG(AF7))/LOG(2)))) -> 0 | AI7: =N7 -> 11 | AJ7: =COUNTIF(L30:L37,AI7) -> 0 | AK7: =AJ7/(AL4-AJ8) ->  | AL7: =IF(AK7=0,0,(AK7*((LOG(AK7))/LOG(2)))) ->  | AN7: =N7 -> 11 | AO7: =COUNTIF(L38:L45,AN7) -> 0 | AP7: =AO7/(AQ4-AO8) ->  | AQ7: =IF(AP7=0,0,(AP7*((LOG(AP7))/LOG(2)))) ->  | AS7: =N7 -> 11 | AT7: =COUNTIF(L46:L53,AS7) -> 0 | AU7: =AT7/(AV4-AT8) -> 0 | AV7: =IF(AU7=0,0,(AU7*((LOG(AU7))/LOG(2)))) -> 0
A8: 22 | B8: 111 | C8: 23 | D8: 121 | K8: 0 | L8: 22 | N8: 12 | O8: =COUNTIF($L$7:$L$500,N8) -> 40 | P8: =O8/$Q$4 -> 0.8510638298 | Q8: =IF(P8=0,0,(P8*((LOG(P8))/LOG(2)))) -> -0.1980091547 | T8: =N8 -> 12 | U8: =COUNTIF(L7:L14,T8) -> 5 | Y8: =N8 -> 12 | Z8: =COUNTIF(L15:L22,Y8) -> 7 | AD8: =N8 -> 12 | AE8: =COUNTIF(L23:L29,AD8) -> 5 | AI8: =N8 -> 12 | AJ8: =COUNTIF(L30:L37,AI8) -> 8 | AN8: =N8 -> 12 | AO8: =COUNTIF(L38:L45,AN8) -> 8 | AS8: =N8 -> 12 | AT8: =COUNTIF(L46:L53,AS8) -> 7
A9: 22 | B9: 220 | C9: 23 | D9: 241 | K9: 0 | L9: 22 | N9: 21 | O9: =COUNTIF($L$7:$L$500,N9) -> 2 | P9: =O9/$Q$4 -> 0.04255319149 | Q9: =IF(P9=0,0,(P9*((LOG(P9))/LOG(2)))) -> -0.1938122916 | T9: =N9 -> 21 | U9: =COUNTIF(L7:L14,T9) -> 1 | V9: =U9/(W4-U8) -> 0.3333333333 | W9: =IF(V9=0,0,(V9*((LOG(V9))/LOG(2)))) -> -0.5283208336 | Y9: =N9 -> 21 | Z9: =COUNTIF(L15:L22,Y9) -> 1 | AA9: =Z9/(AB4-Z8) -> 1 | AB9: =IF(AA9=0,0,(AA9*((LOG(AA9))/LOG(2)))) -> 0 | AD9: =N9 -> 21 | AE9: =COUNTIF(L23:L29,AD9) -> 0 | AF9: =AE9/(AG4-AE8) -> 0 | AG9: =IF(AF9=0,0,(AF9*((LOG(AF9))/LOG(2)))) -> 0 | AI9: =N9 -> 21 | AJ9: =COUNTIF(L30:L37,AI9) -> 0 | AK9: =AJ9/(AL4-AJ8) ->  | AL9: =IF(AK9=0,0,(AK9*((LOG(AK9))/LOG(2)))) ->  | AN9: =N9 -> 21 | AO9: =COUNTIF(L38:L45,AN9) -> 0 | AP9: =AO9/(AQ4-AO8) ->  | AQ9: =IF(AP9=0,0,(AP9*((LOG(AP9))/LOG(2)))) ->  | AS9: =N9 -> 21 | AT9: =COUNTIF(L46:L53,AS9) -> 0 | AU9: =AT9/(AV4-AT8) -> 0 | AV9: =IF(AU9=0,0,(AU9*((LOG(AU9))/LOG(2)))) -> 0
A10: 11 | B10: 338 | C10: 21 | D10: 346 | K10: 0 | L10: 12 | N10: 22 | O10: =COUNTIF($L$7:$L$500,N10) -> 3 | P10: =O10/$Q$4 -> 0.06382978723 | Q10: =IF(P10=0,0,(P10*((LOG(P10))/LOG(2)))) -> -0.2533804054 | T10: =N10 -> 22 | U10: =COUNTIF(L7:L14,T10) -> 2 | V10: =U10/(W4-U8) -> 0.6666666667 | W10: =IF(V10=0,0,(V10*((LOG(V10))/LOG(2)))) -> -0.3899750005 | Y10: =N10 -> 22 | Z10: =COUNTIF(L15:L22,Y10) -> 0 | AA10: =Z10/(AB4-Z8) -> 0 | AB10: =IF(AA10=0,0,(AA10*((LOG(AA10))/LOG(2)))) -> 0 | AD10: =N10 -> 22 | AE10: =COUNTIF(L23:L29,AD10) -> 0 | AF10: =AE10/(AG4-AE8) -> 0 | AG10: =IF(AF10=0,0,(AF10*((LOG(AF10))/LOG(2)))) -> 0 | AI10: =N10 -> 22 | AJ10: =COUNTIF(L30:L37,AI10) -> 0 | AK10: =AJ10/(AL4-AJ8) ->  | AL10: =IF(AK10=0,0,(AK10*((LOG(AK10))/LOG(2)))) ->  | AN10: =N10 -> 22 | AO10: =COUNTIF(L38:L45,AN10) -> 0 | AP10: =AO10/(AQ4-AO8) ->  | AQ10: =IF(AP10=0,0,(AP10*((LOG(AP10))/LOG(2)))) ->  | AS10: =N10 -> 22 | AT10: =COUNTIF(L46:L53,AS10) -> 1 | AU10: =AT10/(AV4-AT8) -> 1 | AV10: =IF(AU10=0,0,(AU10*((LOG(AU10))/LOG(2)))) -> 0
A11: 22 | B11: 435 | C11: 14 | D11: 445 | K11: 0 | L11: 21 | T11: =N11 -> 0 | U11: =COUNTIF(L7:L14,T11) -> 0 | V11: =U11/(W4-U8) -> 0 | W11: =IF(V11=0,0,(V11*((LOG(V11))/LOG(2)))) -> 0 | Y11: =N11 -> 0 | Z11: =COUNTIF(L15:L22,Y11) -> 0 | AA11: =Z11/(AB4-Z8) -> 0 | AB11: =IF(AA11=0,0,(AA11*((LOG(AA11))/LOG(2)))) -> 0 | AD11: =N11 -> 0 | AE11: =COUNTIF(L23:L29,AD11) -> 0 | AF11: =AE11/(AG4-AE8) -> 0 | AG11: =IF(AF11=0,0,(AF11*((LOG(AF11))/LOG(2)))) -> 0 | AI11: =N11 -> 0 | AJ11: =COUNTIF(L30:L37,AI11) -> 0 | AK11: =AJ11/(AL4-AJ8) ->  | AL11: =IF(AK11=0,0,(AK11*((LOG(AK11))/LOG(2)))) ->  | AN11: =N11 -> 0 | AO11: =COUNTIF(L38:L45,AN11) -> 0 | AP11: =AO11/(AQ4-AO8) ->  | AQ11: =IF(AP11=0,0,(AP11*((LOG(AP11))/LOG(2)))) ->  | AS11: =N11 -> 0 | AT11: =COUNTIF(L46:L53,AS11) -> 0 | AU11: =AT11/(AV4-AT8) -> 0 | AV11: =IF(AU11=0,0,(AU11*((LOG(AU11))/LOG(2)))) -> 0
A12: 11 | B12: 541 | C12: 21 | D12: 548 | K12: 0 | L12: 12 | T12: =N12 -> 0 | U12: =COUNTIF(L7:L14,T12) -> 0 | V12: =U12/(W4-U8) -> 0 | W12: =IF(V12=0,0,(V12*((LOG(V12))/LOG(2)))) -> 0 | Y12: =N12 -> 0 | Z12: =COUNTIF(L15:L22,Y12) -> 0 | AA12: =Z12/(AB4-Z8) -> 0 | AB12: =IF(AA12=0,0,(AA12*((LOG(AA12))/LOG(2)))) -> 0 | AD12: =N12 -> 0 | AE12: =COUNTIF(L23:L29,AD12) -> 0 | AF12: =AE12/(AG4-AE8) -> 0 | AG12: =IF(AF12=0,0,(AF12*((LOG(AF12))/LOG(2)))) -> 0 | AI12: =N12 -> 0 | AJ12: =COUNTIF(L30:L37,AI12) -> 0 | AK12: =AJ12/(AL4-AJ8) ->  | AL12: =IF(AK12=0,0,(AK12*((LOG(AK12))/LOG(2)))) ->  | AN12: =N12 -> 0 | AO12: =COUNTIF(L38:L45,AN12) -> 0 | AP12: =AO12/(AQ4-AO8) ->  | AQ12: =IF(AP12=0,0,(AP12*((LOG(AP12))/LOG(2)))) ->  | AS12: =N12 -> 0 | AT12: =COUNTIF(L46:L53,AS12) -> 0 | AU12: =AT12/(AV4-AT8) -> 0 | AV12: =IF(AU12=0,0,(AU12*((LOG(AU12))/LOG(2)))) -> 0
A13: 11 | B13: 633 | C13: 21 | D13: 640 | K13: 0 | L13: 12 | T13: =N13 -> 0 | U13: =COUNTIF(L7:L14,T13) -> 0 | V13: =U13/(W4-U8) -> 0 | W13: =IF(V13=0,0,(V13*((LOG(V13))/LOG(2)))) -> 0 | Y13: =N13 -> 0 | Z13: =COUNTIF(L15:L22,Y13) -> 0 | AA13: =Z13/(AB4-Z8) -> 0 | AB13: =IF(AA13=0,0,(AA13*((LOG(AA13))/LOG(2)))) -> 0 | AD13: =N13 -> 0 | AE13: =COUNTIF(L23:L29,AD13) -> 0 | AF13: =AE13/(AG4-AE8) -> 0 | AG13: =IF(AF13=0,0,(AF13*((LOG(AF13))/LOG(2)))) -> 0 | AI13: =N13 -> 0 | AJ13: =COUNTIF(L30:L37,AI13) -> 0 | AK13: =AJ13/(AL4-AJ8) ->  | AL13: =IF(AK13=0,0,(AK13*((LOG(AK13))/LOG(2)))) ->  | AN13: =N13 -> 0 | AO13: =COUNTIF(L38:L45,AN13) -> 0 | AP13: =AO13/(AQ4-AO8) ->  | AQ13: =IF(AP13=0,0,(AP13*((LOG(AP13))/LOG(2)))) ->  | AS13: =N13 -> 0 | AT13: =COUNTIF(L46:L53,AS13) -> 0 | AU13: =AT13/(AV4-AT8) -> 0 | AV13: =IF(AU13=0,0,(AU13*((LOG(AU13))/LOG(2)))) -> 0
A14: 11 | B14: 726 | C14: 21 | D14: 734 | K14: 0 | L14: 12 | T14: =N14 -> 0 | U14: =COUNTIF(L7:L14,T14) -> 0 | V14: =U14/(W4-U8) -> 0 | W14: =IF(V14=0,0,(V14*((LOG(V14))/LOG(2)))) -> 0 | Y14: =N14 -> 0 | Z14: =COUNTIF(L15:L22,Y14) -> 0 | AA14: =Z14/(AB4-Z8) -> 0 | AB14: =IF(AA14=0,0,(AA14*((LOG(AA14))/LOG(2)))) -> 0 | AD14: =N14 -> 0 | AE14: =COUNTIF(L23:L29,AD14) -> 0 | AF14: =AE14/(AG4-AE8) -> 0 | AG14: =IF(AF14=0,0,(AF14*((LOG(AF14))/LOG(2)))) -> 0 | AI14: =N14 -> 0 | AJ14: =COUNTIF(L30:L37,AI14) -> 0 | AK14: =AJ14/(AL4-AJ8) ->  | AL14: =IF(AK14=0,0,(AK14*((LOG(AK14))/LOG(2)))) ->  | AN14: =N14 -> 0 | AO14: =COUNTIF(L38:L45,AN14) -> 0 | AP14: =AO14/(AQ4-AO8) ->  | AQ14: =IF(AP14=0,0,(AP14*((LOG(AP14))/LOG(2)))) ->  | AS14: =N14 -> 0 | AT14: =COUNTIF(L46:L53,AS14) -> 0 | AU14: =AT14/(AV4-AT8) -> 0 | AV14: =IF(AU14=0,0,(AU14*((LOG(AU14))/LOG(2)))) -> 0
A15: 22 | B15: 826 | C15: 14 | D15: 837 | K15: 0 | L15: 21 | P15: =SUM(P7:P14) -> 1 | Q15: =-SUM(Q7:Q14) -> 0.8390141432 | V15: =SUM(V7:V14) -> 1 | W15: =-SUM(W7:W14) -> 0.9182958341 | AA15: =SUM(AA7:AA14) -> 1 | AB15: =-SUM(AB7:AB14) -> 0 | AF15: =SUM(AF7:AF14) -> 1 | AG15: =-SUM(AG7:AG14) -> 0 | AK15: =SUM(AK7:AK14) ->  | AL15: =-SUM(AL7:AL14) ->  | AP15: =SUM(AP7:AP14) ->  | AQ15: =-SUM(AQ7:AQ14) ->  | AU15: =SUM(AU7:AU14) -> 1 | AV15: =-SUM(AV7:AV14) -> 0
A16: 11 | B16: 934 | C16: 21 | D16: 941 | K16: 0 | L16: 12 | P16: U= | Q16: =Q15/(LOG(Q4)/LOG(2)) -> 0.1510488293 | V16: U1= | W16: =W15/(LOG(W4)/LOG(2)) -> 0.3060986114 | AA16: U2= | AB16: =AB15/(LOG(AB4)/LOG(2)) -> 0 | AF16: U3= | AG16: =AG15/(LOG(AG4)/LOG(2)) -> 0 | AK16: U4= | AL16: =AL15/(LOG(AL4)/LOG(2)) ->  | AP16: U5= | AQ16: =AQ15/(LOG(AQ4)/LOG(2)) ->  | AU16: U6= | AV16: =AV15/(LOG(AV4)/LOG(2)) -> 0
A17: 11 | B17: 1032 | C17: 21 | D17: 1039 | K17: 0 | L17: 12
A18: 11 | B18: 1129 | C18: 21 | D18: 1136 | K18: 0 | L18: 12
A19: 11 | B19: 1223 | C19: 21 | D19: 1230 | K19: 0 | L19: 12 | N19: Total Target Seq
A20: 11 | B20: 1317 | C20: 21 | D20: 1323 | K20: 0 | L20: 12 | N20: =COUNTIF(L7:L53,G3) -> 40 | P20: 8 | Q20: 8 | R20: 7 | S20: 8 | T20: 8 | U20: 8
A21: 11 | B21: 1410 | C21: 21 | D21: 1417 | K21: 0 | L21: 12 | P21: % of reinforcement given in 6 equal intervals based on number of trials
A22: 11 | B22: 1503 | C22: 21 | D22: 1510 | K22: 0 | L22: 12 | P22: %_1 | Q22: %_2 | R22: %_3 | S22: %_4 | T22: %_5 | U22: %_6
A23: 11 | B23: 1597 | C23: 21 | D23: 1604 | K23: 0 | L23: 12 | O23: target sequence | P23: =$G$3 -> 12 | Q23: =$G$3 -> 12 | R23: =$G$3 -> 12 | S23: =$G$3 -> 12 | T23: =$G$3 -> 12 | U23: =$G$3 -> 12
A24: 11 | B24: 1686 | C24: 12 | D24: 1696 | K24: 0 | L24: 11 | O24: total reinforcement | P24: =U8 -> 5 | Q24: =Z8 -> 7 | R24: =AE8 -> 5 | S24: =AJ8 -> 8 | T24: =AO8 -> 8 | U24: =AT8 -> 7
A25: 11 | B25: 1783 | C25: 21 | D25: 1790 | K25: 0 | L25: 12 | O25: % target
A26: 11 | B26: 1876 | C26: 21 | D26: 1884 | K26: 0 | L26: 12 | O26: CCRF
A27: 11 | B27: 1971 | C27: 21 | D27: 1982 | K27: 0 | L27: 12 | O27: % CCRf
A28: 11 | B28: 2071 | C28: 21 | D28: 2110 | K28: 0 | L28: 12 | O28: average response rate | P28: =D14/P20 -> 91.75 | Q28: =(D22-D14)/Q20 -> 97 | R28: =(D29-D22)/R20 -> 98.71428571 | S28: =(D37-D29)/S20 -> 97.875 | T28: =(D45-D37)/T20 -> 96.75 | U28: =(D53-D45)/U20 -> 112.125
A29: 11 | B29: 2195 | C29: 12 | D29: 2201 | K29: 0 | L29: 11
A30: 11 | B30: 2297 | C30: 21 | D30: 2304 | K30: 0 | L30: 12
A31: 11 | B31: 2393 | C31: 21 | D31: 2400 | K31: 0 | L31: 12
A32: 11 | B32: 2487 | C32: 21 | D32: 2494 | K32: 0 | L32: 12
A33: 11 | B33: 2581 | C33: 21 | D33: 2587 | K33: 0 | L33: 12
A34: 11 | B34: 2674 | C34: 21 | D34: 2699 | K34: 0 | L34: 12
A35: 11 | B35: 2786 | C35: 21 | D35: 2794 | K35: 0 | L35: 12
A36: 11 | B36: 2880 | C36: 21 | D36: 2889 | K36: 0 | L36: 12
A37: 11 | B37: 2977 | C37: 21 | D37: 2984 | K37: 0 | L37: 12
A38: 11 | B38: 3073 | C38: 21 | D38: 3081 | K38: 0 | L38: 12
A39: 11 | B39: 3167 | C39: 21 | D39: 3175 | K39: 0 | L39: 12
A40: 11 | B40: 3262 | C40: 21 | D40: 3269 | K40: 0 | L40: 12
A41: 11 | B41: 3356 | C41: 21 | D41: 3362 | K41: 0 | L41: 12
A42: 11 | B42: 3448 | C42: 21 | D42: 3454 | K42: 0 | L42: 12
A43: 11 | B43: 3538 | C43: 21 | D43: 3545 | K43: 0 | L43: 12
A44: 11 | B44: 3633 | C44: 21 | D44: 3640 | K44: 0 | L44: 12
A45: 11 | B45: 3728 | C45: 21 | D45: 3758 | K45: 0 | L45: 12
A46: 11 | B46: 3853 | C46: 21 | D46: 3860 | K46: 0 | L46: 12
A47: 22 | B47: 4020 | C47: 23 | D47: 4032 | K47: 0 | L47: 22
A48: 11 | B48: 4128 | C48: 21 | D48: 4173 | K48: 0 | L48: 12
A49: 11 | B49: 4258 | C49: 21 | D49: 4275 | K49: 0 | L49: 12
A50: 11 | B50: 4365 | C50: 21 | D50: 4373 | K50: 0 | L50: 12
A51: 11 | B51: 4458 | C51: 21 | D51: 4466 | K51: 0 | L51: 12
A52: 11 | B52: 4552 | C52: 21 | D52: 4559 | K52: 0 | L52: 12
A53: 11 | B53: 4648 | C53: 21 | D53: 4655 | K53: 1 | L53: 12

Sheet !N217930.096
A1: Report for:!N217930.096
A2: Date: | B2: <date>
A3: Hen: | B3: <hen> | F3: Correct Sequence | G3: =Start!J2 -> 12 | P3: Total Sequences in Data | Q3: =4994-COUNTBLANK(L7:L5000) -> 47 | V3: Total Sequences in Block Data | W3: =COUNTA(L7:L14) -> 8 | AA3: Total Sequences in Block Data | AB3: =COUNTA(L15:L22) -> 8 | AF3: Total Sequences in Block Data | AG3: =COUNTA(L23:L29) -> 7 | AK3: Total Sequences in Block Data | AL3: =COUNTA(L30:L37) -> 8 | AP3: Total Sequences in Block Data | AQ3: =COUNTA(L38:L45) -> 8 | AU3: Total Sequences in Block Data | AV3: =COUNTA(L46:L53) -> 8
P4: Total Sequences in Summary | Q4: =SUM(O7:O14) -> 47 | V4: Total Sequences in Block Summary | W4: =SUM(U7:U14) -> 8 | AA4: Total Sequences in Block Summary | AB4: =SUM(Z7:Z14) -> 8 | AF4: Total Sequences in Block Summary | AG4: =SUM(AE7:AE14) -> 7 | AK4: Total Sequences in Block Summary | AL4: =SUM(AJ7:AJ14) -> 8 | AP4: Total Sequences in Block Summary | AQ4: =SUM(AO7:AO14) -> 8 | AU4: Total Sequences in Block Summary | AV4: =SUM(AT7:AT14) -> 8
T5: Block 1 | Y5: Block 2 | AD5: Block 3 | AI5: Block 4 | AN5: Block 5 | AS5: Block 6
A6: Sequence Component 1 | B6: Time 1 | C6: Sequence Component 2 | D6: Time 2 | E6: Sequence Component 3 | F6: Time 3 | G6: Sequence Component 4 | H6: Time 4 | I6: Sequence Component 5 | J6: Time 5 | K6: Correct? 0=No 1=Yes | L6: Sequence | N6: Frequency | P6: Relative Frequency | Q6: Variability | T6: Frequency | V6: Relative Frequency | W6: Variability | Y6: Frequency | AA6: Relative Frequency | AB6: Variability | AD6: Frequency | AF6: Relative Frequency | AG6: Variability | AI6: Frequency | AK6: Relative Frequency | AL6: Variability | AN6: Frequency | AP6: Relative Frequency | AQ6: Variability | AS6: Frequency | AU6: Relative Frequency | AV6: Variability
A7: 11 | B7: 7 | C7: 21 | D7: 15 | K7: 0 | L7: 12 | N7: 11 | O7: =COUNTIF($L$7:$L$500,N7) -> 3 | P7: =O7/$Q$4 -> 0.06382978723 | Q7: =IF(P7=0,0,(P7*((LOG(P7))/LOG(2)))) -> -0.2533804054 | T7: =N7 -> 11 | U7: =COUNTIF(L7:L14,T7) -> 0 | V7: =U7/(W4-U8) ->  | W7: =IF(V7=0,0,(V7*((LOG(V7))/LOG(2)))) ->  | Y7: =N7 -> 11 | Z7: =COUNTIF(L15:L22,Y7) -> 0 | AA7: =Z7/(AB4-Z8) -> 0 | AB7: =IF(AA7=0,0,(AA7*((LOG(AA7))/LOG(2)))) -> 0 | AD7: =N7 -> 11 | AE7: =COUNTIF(L23:L29,AD7) -> 0 | AF7: =AE7/(AG4-AE8) ->  | AG7: =IF(AF7=0,0,(AF7*((LOG(AF7))/LOG(2)))) ->  | AI7: =N7 -> 11 | AJ7: =COUNTIF(L30:L37,AI7) -> 0 | AK7: =AJ7/(AL4-AJ8) ->  | AL7: =IF(AK7=0,0,(AK7*((LOG(AK7))/LOG(2)))) ->  | AN7: =N7 -> 11 | AO7: =COUNTIF(L38:L45,AN7) -> 2 | AP7: =AO7/(AQ4-AO8) -> 0.6666666667 | AQ7: =IF(AP7=0,0,(AP7*((LOG(AP7))/LOG(2)))) -> -0.3899750005 | AS7: =N7 -> 11 | AT7: =COUNTIF(L46:L53,AS7) -> 1 | AU7: =AT7/(AV4-AT8) -> 1 | AV7: =IF(AU7=0,0,(AU7*((LOG(AU7))/LOG(2)))) -> 0
A8: 11 | B8: 103 | C8: 21 | D8: 110 | K8: 0 | L8: 12 | N8: 12 | O8: =COUNTIF($L$7:$L$500,N8) -> 40 | P8: =O8/$Q$4 -> 0.8510638298 | Q8: =IF(P8=0,0,(P8*((LOG(P8))/LOG(2)))) -> -0.1980091547 | T8: =N8 -> 12 | U8: =COUNTIF(L7:L14,T8) -> 8 | Y8: =N8 -> 12 | Z8: =COUNTIF(L15:L22,Y8) -> 5 | AD8: =N8 -> 12 | AE8: =COUNTIF(L23:L29,AD8) -> 7 | AI8: =N8 -> 12 | AJ8: =COUNTIF(L30:L37,AI8) -> 8 | AN8: =N8 -> 12 | AO8: =COUNTIF(L38:L45,AN8) -> 5 | AS8: =N8 -> 12 | AT8: =COUNTIF(L46:L53,AS8) -> 7
A9: 11 | B9: 200 | C9: 21 | D9: 207 | K9: 0 | L9: 12 | N9: 21 | O9: =COUNTIF($L$7:$L$500,N9) -> 0 | P9: =O9/$Q$4 -> 0 | Q9: =IF(P9=0,0,(P9*((LOG(P9))/LOG(2)))) -> 0 | T9: =N9 -> 21 | U9: =COUNTIF(L7:L14,T9) -> 0 | V9: =U9/(W4-U8) ->  | W9: =IF(V9=0,0,(V9*((LOG(V9))/LOG(2)))) ->  | Y9: =N9 -> 21 | Z9: =COUNTIF(L15:L22,Y9) -> 0 | AA9: =Z9/(AB4-Z8) -> 0 | AB9: =IF(AA9=0,0,(AA9*((LOG(AA9))/LOG(2)))) -> 0 | AD9: =N9 -> 21 | AE9: =COUNTIF(L23:L29,AD9) -> 0 | AF9: =AE9/(AG4-AE8) ->  | AG9: =IF(AF9=0,0,(AF9*((LOG(AF9))/LOG(2)))) ->  | AI9: =N9 -> 21 | AJ9: =COUNTIF(L30:L37,AI9) -> 0 | AK9: =AJ9/(AL4-AJ8) ->  | AL9: =IF(AK9=0,0,(AK9*((LOG(AK9))/LOG(2)))) ->  | AN9: =N9 -> 21 | AO9: =COUNTIF(L38:L45,AN9) -> 0 | AP9: =AO9/(AQ4-AO8) -> 0 | AQ9: =IF(AP9=0,0,(AP9*((LOG(AP9))/LOG(2)))) -> 0 | AS9: =N9 -> 21 | AT9: =COUNTIF(L46:L53,AS9) -> 0 | AU9: =AT9/(AV4-AT8) -> 0 | AV9: =IF(AU9=0,0,(AU9*((LOG(AU9))/LOG(2)))) -> 0
A10: 11 | B10: 296 | C10: 21 | D10: 303 | K10: 0 | L10: 12 | N10: 22 | O10: =COUNTIF($L$7:$L$500,N10) -> 4 | P10: =O10/$Q$4 -> 0.08510638298 | Q10: =IF(P10=0,0,(P10*((LOG(P10))/LOG(2)))) -> -0.3025182001 | T10: =N10 -> 22 | U10: =COUNTIF(L7:L14,T10) -> 0 | V10: =U10/(W4-U8) ->  | W10: =IF(V10=0,0,(V10*((LOG(V10))/LOG(2)))) ->  | Y10: =N10 -> 22 | Z10: =COUNTIF(L15:L22,Y10) -> 3 | AA10: =Z10/(AB4-Z8) -> 1 | AB10: =IF(AA10=0,0,(AA10*((LOG(AA10))/LOG(2)))) -> 0 | AD10: =N10 -> 22 | AE10: =COUNTIF(L23:L29,AD10) -> 0 | AF10: =AE10/(AG4-AE8) ->  | AG10: =IF(AF10=0,0,(AF10*((LOG(AF10))/LOG(2)))) ->  | AI10: =N10 -> 22 | AJ10: =COUNTIF(L30:L37,AI10) -> 0 | AK10: =AJ10/(AL4-AJ8) ->  | AL10: =IF(AK10=0,0,(AK10*((LOG(AK10))/LOG(2)))) ->  | AN10: =N10 -> 22 | AO10: =COUNTIF(L38:L45,AN10) -> 1 | AP10: =AO10/(AQ4-AO8) -> 0.3333333333 | AQ10: =IF(AP10=0,0,(AP10*((LOG(AP10))/LOG(2)))) -> -0.5283208336 | AS10: =N10 -> 22 | AT10: =COUNTIF(L46:L53,AS10) -> 0 | AU10: =AT10/(AV4-AT8) -> 0 | AV10: =IF(AU10=0,0,(AU10*((LOG(AU10))/LOG(2)))) -> 0
A11: 11 | B11: 393 | C11: 21 | D11: 401 | K11: 0 | L11: 12 | T11: =N11 -> 0 | U11: =COUNTIF(L7:L14,T11) -> 0 | V11: =U11/(W4-U8) ->  | W11: =IF(V11=0,0,(V11*((LOG(V11))/LOG(2)))) ->  | Y11: =N11 -> 0 | Z11: =COUNTIF(L15:L22,Y11) -> 0 | AA11: =Z11/(AB4-Z8) -> 0 | AB11: =IF(AA11=0,0,(AA11*((LOG(AA11))/LOG(2)))) -> 0 | AD11: =N11 -> 0 | AE11: =COUNTIF(L23:L29,AD11) -> 0 | AF11: =AE11/(AG4-AE8) ->  | AG11: =IF(AF11=0,0,(AF11*((LOG(AF11))/LOG(2)))) ->  | AI11: =N11 -> 0 | AJ11: =COUNTIF(L30:L37,AI11) -> 0 | AK11: =AJ11/(AL4-AJ8) ->  | AL11: =IF(AK11=0,0,(AK11*((LOG(AK11))/LOG(2)))) ->  | AN11: =N11 -> 0 | AO11: =COUNTIF(L38:L45,AN11) -> 0 | AP11: =AO11/(AQ4-AO8) -> 0 | AQ11: =IF(AP11=0,0,(AP11*((LOG(AP11))/LOG(2)))) -> 0 | AS11: =N11 -> 0 | AT11: =COUNTIF(L46:L53,AS11) -> 0 | AU11: =AT11/(AV4-AT8) -> 0 | AV11: =IF(AU11=0,0,(AU11*((LOG(AU11))/LOG(2)))) -> 0
A12: 11 | B12: 487 | C12: 21 | D12: 505 | K12: 0 | L12: 12 | T12: =N12 -> 0 | U12: =COUNTIF(L7:L14,T12) -> 0 | V12: =U12/(W4-U8) ->  | W12: =IF(V12=0,0,(V12*((LOG(V12))/LOG(2)))) ->  | Y12: =N12 -> 0 | Z12: =COUNTIF(L15:L22,Y12) -> 0 | AA12: =Z12/(AB4-Z8) -> 0 | AB12: =IF(AA12=0,0,(AA12*((LOG(AA12))/LOG(2)))) -> 0 | AD12: =N12 -> 0 | AE12: =COUNTIF(L23:L29,AD12) -> 0 | AF12: =AE12/(AG4-AE8) ->  | AG12: =IF(AF12=0,0,(AF12*((LOG(AF12))/LOG(2)))) ->  | AI12: =N12 -> 0 | AJ12: =COUNTIF(L30:L37,AI12) -> 0 | AK12: =AJ12/(AL4-AJ8) ->  | AL12: =IF(AK12=0,0,(AK12*((LOG(AK12))/LOG(2)))) ->  | AN12: =N12 -> 0 | AO12: =COUNTIF(L38:L45,AN12) -> 0 | AP12: =AO12/(AQ4-AO8) -> 0 | AQ12: =IF(AP12=0,0,(AP12*((LOG(AP12))/LOG(2)))) -> 0 | AS12: =N12 -> 0 | AT12: =COUNTIF(L46:L53,AS12) -> 0 | AU12: =AT12/(AV4-AT8) -> 0 | AV12: =IF(AU12=0,0,(AU12*((LOG(AU12))/LOG(2)))) -> 0
A13: 11 | B13: 594 | C13: 21 | D13: 602 | K13: 0 | L13: 12 | T13: =N13 -> 0 | U13: =COUNTIF(L7:L14,T13) -> 0 | V13: =U13/(W4-U8) ->  | W13: =IF(V13=0,0,(V13*((LOG(V13))/LOG(2)))) ->  | Y13: =N13 -> 0 | Z13: =COUNTIF(L15:L22,Y13) -> 0 | AA13: =Z13/(AB4-Z8) -> 0 | AB13: =IF(AA13=0,0,(AA13*((LOG(AA13))/LOG(2)))) -> 0 | AD13: =N13 -> 0 | AE13: =COUNTIF(L23:L29,AD13) -> 0 | AF13: =AE13/(AG4-AE8) ->  | AG13: =IF(AF13=0,0,(AF13*((LOG(AF13))/LOG(2)))) ->  | AI13: =N13 -> 0 | AJ13: =COUNTIF(L30:L37,AI13) -> 0 | AK13: =AJ13/(AL4-AJ8) ->  | AL13: =IF(AK13=0,0,(AK13*((LOG(AK13))/LOG(2)))) ->  | AN13: =N13 -> 0 | AO13: =COUNTIF(L38:L45,AN13) -> 0 | AP13: =AO13/(AQ4-AO8) -> 0 | AQ13: =IF(AP13=0,0,(AP13*((LOG(AP13))/LOG(2)))) -> 0 | AS13: =N13 -> 0 | AT13: =COUNTIF(L46:L53,AS13) -> 0 | AU13: =AT13/(AV4-AT8) -> 0 | AV13: =IF(AU13=0,0,(AU13*((LOG(AU13))/LOG(2)))) -> 0
A14: 11 | B14: 689 | C14: 21 | D14: 697 | K14: 0 | L14: 12 | T14: =N14 -> 0 | U14: =COUNTIF(L7:L14,T14) -> 0 | V14: =U14/(W4-U8) ->  | W14: =IF(V14=0,0,(V14*((LOG(V14))/LOG(2)))) ->  | Y14: =N14 -> 0 | Z14: =COUNTIF(L15:L22,Y14) -> 0 | AA14: =Z14/(AB4-Z8) -> 0 | AB14: =IF(AA14=0,0,(AA14*((LOG(AA14))/LOG(2)))) -> 0 | AD14: =N14 -> 0 | AE14: =COUNTIF(L23:L29,AD14) -> 0 | AF14: =AE14/(AG4-AE8) ->  | AG14: =IF(AF14=0,0,(AF14*((LOG(AF14))/LOG(2)))) ->  | AI14: =N14 -> 0 | AJ14: =COUNTIF(L30:L37,AI14) -> 0 | AK14: =AJ14/(AL4-AJ8) ->  | AL14: =IF(AK14=0,0,(AK14*((LOG(AK14))/LOG(2)))) ->  | AN14: =N14 -> 0 | AO14: =COUNTIF(L38:L45,AN14) -> 0 | AP14: =AO14/(AQ4-AO8) -> 0 | AQ14: =IF(AP14=0,0,(AP14*((LOG(AP14))/LOG(2)))) -> 0 | AS14: =N14 -> 0 | AT14: =COUNTIF(L46:L53,AS14) -> 0 | AU14: =AT14/(AV4-AT8) -> 0 | AV14: =IF(AU14=0,0,(AU14*((LOG(AU14))/LOG(2)))) -> 0
A15: 11 | B15: 785 | C15: 21 | D15: 792 | K15: 0 | L15: 12 | P15: =SUM(P7:P14) -> 1 | Q15: =-SUM(Q7:Q14) -> 0.7539077602 | V15: =SUM(V7:V14) ->  | W15: =-SUM(W7:W14) ->  | AA15: =SUM(AA7:AA14) -> 1 | AB15: =-SUM(AB7:AB14) -> 0 | AF15: =SUM(AF7:AF14) ->  | AG15: =-SUM(AG7:AG14) ->  | AK15: =SUM(AK7:AK14) ->  | AL15: =-SUM(AL7:AL14) ->  | AP15: =SUM(AP7:AP14) -> 1 | AQ15: =-SUM(AQ7:AQ14) -> 0.9182958341 | AU15: =SUM(AU7:AU14) -> 1 | AV15: =-SUM(AV7:AV14) -> 0
A16: 22 | B16: 882 | C16: 23 | D16: 894 | K16: 0 | L16: 22 | P16: U= | Q16: =Q15/(LOG(Q4)/LOG(2)) -> 0.1357270143 | V16: U1= | W16: =W15/(LOG(W4)/LOG(2)) ->  | AA16: U2= | AB16: =AB15/(LOG(AB4)/LOG(2)) -> 0 | AF16: U3= | AG16: =AG15/(LOG(AG4)/LOG(2)) ->  | AK16: U4= | AL16: =AL15/(LOG(AL4)/LOG(2)) ->  | AP16: U5= | AQ16: =AQ15/(LOG(AQ4)/LOG(2)) -> 0.3060986114 | AU16: U6= | AV16: =AV15/(LOG(AV4)/LOG(2)) -> 0
A17: 22 | B17: 993 | C17: 23 | D17: 1004 | K17: 0 | L17: 22
A18: 11 | B18: 1101 | C18: 21 | D18: 1109 | K18: 0 | L18: 12
A19: 11 | B19: 1196 | C19: 21 | D19: 1203 | K19: 0 | L19: 12 | N19: Total Target Seq
A20: 22 | B20: 1301 | C20: 23 | D20: 1312 | K20: 0 | L20: 22 | N20: =COUNTIF(L7:L53,G3) -> 40 | P20: 8 | Q20: 8 | R20: 7 | S20: 8 | T20: 8 | U20: 8
A21: 11 | B21: 1407 | C21: 21 | D21: 1415 | K21: 0 | L21: 12 | P21: % of reinforcement given in 6 equal intervals based on number of trials
A22: 11 | B22: 1505 | C22: 21 | D22: 1513 | K22: 0 | L22: 12 | P22: %_1 | Q22: %_2 | R22: %_3 | S22: %_4 | T22: %_5 | U22: %_6
A23: 11 | B23: 1599 | C23: 21 | D23: 1607 | K23: 0 | L23: 12 | O23: target sequence | P23: =$G$3 -> 12 | Q23: =$G$3 -> 12 | R23: =$G$3 -> 12 | S23: =$G$3 -> 12 | T23: =$G$3 -> 12 | U23: =$G$3 -> 12
A24: 11 | B24: 1693 | C24: 21 | D24: 1701 | K24: 0 | L24: 12 | O24: total reinforcement | P24: =U8 -> 8 | Q24: =Z8 -> 5 | R24: =AE8 -> 7 | S24: =AJ8 -> 8 | T24: =AO8 -> 5 | U24: =AT8 -> 7
A25: 11 | B25: 1788 | C25: 21 | D25: 1811 | K25: 0 | L25: 12 | O25: % target
A26: 11 | B26: 1899 | C26: 21 | D26: 1907 | K26: 0 | L26: 12 | O26: CCRF
A27: 11 | B27: 2001 | C27: 21 | D27: 2011 | K27: 0 | L27: 12 | O27: % CCRf
A28: 11 | B28: 2097 | C28: 21 | D28: 2104 | K28: 0 | L28: 12 | O28: average response rate | P28: =D14/P20 -> 87.125 | Q28: =(D22-D14)/Q20 -> 102 | R28: =(D29-D22)/R20 -> 97.85714286 | S28: =(D37-D29)/S20 -> 94.25 | T28: =(D45-D37)/T20 -> 98.5 | U28: =(D53-D45)/U20 -> 107.5
A29: 11 | B29: 2190 | C29: 21 | D29: 2198 | K29: 0 | L29: 12
A30: 11 | B30: 2284 | C30: 21 | D30: 2292 | K30: 0 | L30: 12
A31: 11 | B31: 2379 | C31: 21 | D31: 2386 | K31: 0 | L31: 12
A32: 11 | B32: 2473 | C32: 21 | D32: 2480 | K32: 0 | L32: 12
A33: 11 | B33: 2566 | C33: 21 | D33: 2574 | K33: 0 | L33: 12
A34: 11 | B34: 2661 | C34: 21 | D34: 2668 | K34: 0 | L34: 12
A35: 11 | B35: 2755 | C35: 21 | D35: 2763 | K35: 0 | L35: 12
A36: 11 | B36: 2850 | C36: 21 | D36: 2858 | K36: 0 | L36: 12
A37: 11 | B37: 2944 | C37: 21 | D37: 2952 | K37: 0 | L37: 12
A38: 11 | B38: 3043 | C38: 21 | D38: 3051 | K38: 0 | L38: 12
A39: 11 | B39: 3137 | C39: 21 | D39: 3144 | K39: 0 | L39: 12
A40: 11 | B40: 3229 | C40: 12 | D40: 3241 | K40: 0 | L40: 11
A41: 11 | B41: 3325 | C41: 21 | D41: 3348 | K41: 0 | L41: 12
A42: 11 | B42: 3434 | C42: 21 | D42: 3441 | K42: 0 | L42: 12
A43: 11 | B43: 3528 | C43: 21 | D43: 3536 | K43: 0 | L43: 12
A44: 22 | B44: 3625 | C44: 23 | D44: 3636 | K44: 0 | L44: 22
A45: 11 | B45: 3730 | C45: 12 | D45: 3740 | K45: 0 | L45: 11
A46: 11 | B46: 3838 | C46: 21 | D46: 3846 | K46: 0 | L46: 12
A47: 11 | B47: 3934 | C47: 21 | D47: 3941 | K47: 0 | L47: 12
A48: 11 | B48: 4029 | C48: 21 | D48: 4036 | K48: 0 | L48: 12
A49: 11 | B49: 4124 | C49: 21 | D49: 4131 | K49: 0 | L49: 12
A50: 11 | B50: 4291 | C50: 12 | D50: 4305 | K50: 0 | L50: 11
A51: 11 | B51: 4399 | C51: 21 | D51: 4407 | K51: 0 | L51: 12
A52: 11 | B52: 4494 | C52: 21 | D52: 4502 | K52: 0 | L52: 12
A53: 11 | B53: 4592 | C53: 21 | D53: 4600 | K53: 1 | L53: 12

Sheet !N218A30.096
A1: Report for:!N218A30.096
A2: Date: | B2: <date>
A3: Hen: | B3: <hen> | F3: Correct Sequence | G3: =Start!J2 -> 12 | P3: Total Sequences in Data | Q3: =4994-COUNTBLANK(L7:L5000) -> 45 | V3: Total Sequences in Block Data | W3: =COUNTA(L7:L14) -> 8 | AA3: Total Sequences in Block Data | AB3: =COUNTA(L15:L21) -> 7 | AF3: Total Sequences in Block Data | AG3: =COUNTA(L22:L29) -> 8 | AK3: Total Sequences in Block Data | AL3: =COUNTA(L30:L36) -> 7 | AP3: Total Sequences in Block Data | AQ3: =COUNTA(L37:L44) -> 8 | AU3: Total Sequences in Block Data | AV3: =COUNTA(L45:L51) -> 7
P4: Total Sequences in Summary | Q4: =SUM(O7:O14) -> 45 | V4: Total Sequences in Block Summary | W4: =SUM(U7:U14) -> 8 | AA4: Total Sequences in Block Summary | AB4: =SUM(Z7:Z14) -> 7 | AF4: Total Sequences in Block Summary | AG4: =SUM(AE7:AE14) -> 8 | AK4: Total Sequences in Block Summary | AL4: =SUM(AJ7:AJ14) -> 7 | AP4: Total Sequences in Block Summary | AQ4: =SUM(AO7:AO14) -> 8 | AU4: Total Sequences in Block Summary | AV4: =SUM(AT7:AT14) -> 7
T5: Block 1 | Y5: Block 2 | AD5: Block 3 | AI5: Block 4 | AN5: Block 5 | AS5: Block 6
A6: Sequence Component 1 | B6: Time 1 | C6: Sequence Component 2 | D6: Time 2 | E6: Sequence Component 3 | F6: Time 3 | G6: Sequence Component 4 | H6: Time 4 | I6: Sequence Component 5 | J6: Time 5 | K6: Correct? 0=No 1=Yes | L6: Sequence | N6: Frequency | P6: Relative Frequency | Q6: Variability | T6: Frequency | V6: Relative Frequency | W6: Variability | Y6: Frequency | AA6: Relative Frequency | AB6: Variability | AD6: Frequency | AF6: Relative Frequency | AG6: Variability | AI6: Frequency | AK6: Relative Frequency | AL6: Variability | AN6: Frequency | AP6: Relative Frequency | AQ6: Variability | AS6: Frequency | AU6: Relative Frequency | AV6: Variability
A7: 11 | B7: 6 | C7: 21 | D7: 15 | K7: 0 | L7: 12 | N7: 11 | O7: =COUNTIF($L$7:$L$500,N7) -> 4 | P7: =O7/$Q$4 -> 0.08888888889 | Q7: =IF(P7=0,0,(P7*((LOG(P7))/LOG(2)))) -> -0.3103869419 | T7: =N7 -> 11 | U7: =COUNTIF(L7:L14,T7) -> 0 | V7: =U7/(W4-U8) -> 0 | W7: =IF(V7=0,0,(V7*((LOG(V7))/LOG(2)))) -> 0 | Y7: =N7 -> 11 | Z7: =COUNTIF(L15:L21,Y7) -> 2 | AA7: =Z7/(AB4-Z8) -> 1 | AB7: =IF(AA7=0,0,(AA7*((LOG(AA7))/LOG(2)))) -> 0 | AD7: =N7 -> 11 | AE7: =COUNTIF(L22:L29,AD7) -> 1 | AF7: =AE7/(AG4-AE8) -> 1 | AG7: =IF(AF7=0,0,(AF7*((LOG(AF7))/LOG(2)))) -> 0 | AI7: =N7 -> 11 | AJ7: =COUNTIF(L30:L36,AI7) -> 1 | AK7: =AJ7/(AL4-AJ8) -> 1 | AL7: =IF(AK7=0,0,(AK7*((LOG(AK7))/LOG(2)))) -> 0 | AN7: =N7 -> 11 | AO7: =COUNTIF(L37:L44,AN7) -> 0 | AP7: =AO7/(AQ4-AO8) ->  | AQ7: =IF(AP7=0,0,(AP7*((LOG(AP7))/LOG(2)))) ->  | AS7: =N7 -> 11 | AT7: =COUNTIF(L45:L51,AS7) -> 0 | AU7: =AT7/(AV4-AT8) ->  | AV7: =IF(AU7=0,0,(AU7*((LOG(AU7))/LOG(2)))) -> 
A8: 22 | B8: 104 | C8: 23 | D8: 117 | K8: 0 | L8: 22 | N8: 12 | O8: =COUNTIF($L$7:$L$500,N8) -> 40 | P8: =O8/$Q$4 -> 0.8888888889 | Q8: =IF(P8=0,0,(P8*((LOG(P8))/LOG(2)))) -> -0.1510444457 | T8: =N8 -> 12 | U8: =COUNTIF(L7:L14,T8) -> 7 | Y8: =N8 -> 12 | Z8: =COUNTIF(L15:L21,Y8) -> 5 | AD8: =N8 -> 12 | AE8: =COUNTIF(L22:L29,AD8) -> 7 | AI8: =N8 -> 12 | AJ8: =COUNTIF(L30:L36,AI8) -> 6 | AN8: =N8 -> 12 | AO8: =COUNTIF(L37:L44,AN8) -> 8 | AS8: =N8 -> 12 | AT8: =COUNTIF(L45:L51,AS8) -> 7
A9: 11 | B9: 216 | C9: 21 | D9: 223 | K9: 0 | L9: 12 | N9: 21 | O9: =COUNTIF($L$7:$L$500,N9) -> 0 | P9: =O9/$Q$4 -> 0 | Q9: =IF(P9=0,0,(P9*((LOG(P9))/LOG(2)))) -> 0 | T9: =N9 -> 21 | U9: =COUNTIF(L7:L14,T9) -> 0 | V9: =U9/(W4-U8) -> 0 | W9: =IF(V9=0,0,(V9*((LOG(V9))/LOG(2)))) -> 0 | Y9: =N9 -> 21 | Z9: =COUNTIF(L15:L21,Y9) -> 0 | AA9: =Z9/(AB4-Z8) -> 0 | AB9: =IF(AA9=0,0,(AA9*((LOG(AA9))/LOG(2)))) -> 0 | AD9: =N9 -> 21 | AE9: =COUNTIF(L22:L29,AD9) -> 0 | AF9: =AE9/(AG4-AE8) -> 0 | AG9: =IF(AF9=0,0,(AF9*((LOG(AF9))/LOG(2)))) -> 0 | AI9: =N9 -> 21 | AJ9: =COUNTIF(L30:L36,AI9) -> 0 | AK9: =AJ9/(AL4-AJ8) -> 0 | AL9: =IF(AK9=0,0,(AK9*((LOG(AK9))/LOG(2)))) -> 0 | AN9: =N9 -> 21 | AO9: =COUNTIF(L37:L44,AN9) -> 0 | AP9: =AO9/(AQ4-AO8) ->  | AQ9: =IF(AP9=0,0,(AP9*((LOG(AP9))/LOG(2)))) ->  | AS9: =N9 -> 21 | AT9: =COUNTIF(L45:L51,AS9) -> 0 | AU9: =AT9/(AV4-AT8) ->  | AV9: =IF(AU9=0,0,(AU9*((LOG(AU9))/LOG(2)))) -> 
A10: 11 | B10: 310 | C10: 21 | D10: 317 | K10: 0 | L10: 12 | N10: 22 | O10: =COUNTIF($L$7:$L$500,N10) -> 1 | P10: =O10/$Q$4 -> 0.02222222222 | Q10: =IF(P10=0,0,(P10*((LOG(P10))/LOG(2)))) -> -0.1220411799 | T10: =N10 -> 22 | U10: =COUNTIF(L7:L14,T10) -> 1 | V10: =U10/(W4-U8) -> 1 | W10: =IF(V10=0,0,(V10*((LOG(V10))/LOG(2)))) -> 0 | Y10: =N10 -> 22 | Z10: =COUNTIF(L15:L21,Y10) -> 0 | AA10: =Z10/(AB4-Z8) -> 0 | AB10: =IF(AA10=0,0,(AA10*((LOG(AA10))/LOG(2)))) -> 0 | AD10: =N10 -> 22 | AE10: =COUNTIF(L22:L29,AD10) -> 0 | AF10: =AE10/(AG4-AE8) -> 0 | AG10: =IF(AF10=0,0,(AF10*((LOG(AF10))/LOG(2)))) -> 0 | AI10: =N10 -> 22 | AJ10: =COUNTIF(L30:L36,AI10) -> 0 | AK10: =AJ10/(AL4-AJ8) -> 0 | AL10: =IF(AK10=0,0,(AK10*((LOG(AK10))/LOG(2)))) -> 0 | AN10: =N10 -> 22 | AO10: =COUNTIF(L37:L44,AN10) -> 0 | AP10: =AO10/(AQ4-AO8) ->  | AQ10: =IF(AP10=0,0,(AP10*((LOG(AP10))/LOG(2)))) ->  | AS10: =N10 -> 22 | AT10: =COUNTIF(L45:L51,AS10) -> 0 | AU10: =AT10/(AV4-AT8) ->  | AV10: =IF(AU10=0,0,(AU10*((LOG(AU10))/LOG(2)))) -> 
A11: 11 | B11: 405 | C11: 21 | D11: 413 | K11: 0 | L11: 12 | T11: =N11 -> 0 | U11: =COUNTIF(L7:L14,T11) -> 0 | V11: =U11/(W4-U8) -> 0 | W11: =IF(V11=0,0,(V11*((LOG(V11))/LOG(2)))) -> 0 | Y11: =N11 -> 0 | Z11: =COUNTIF(L15:L21,Y11) -> 0 | AA11: =Z11/(AB4-Z8) -> 0 | AB11: =IF(AA11=0,0,(AA11*((LOG(AA11))/LOG(2)))) -> 0 | AD11: =N11 -> 0 | AE11: =COUNTIF(L22:L29,AD11) -> 0 | AF11: =AE11/(AG4-AE8) -> 0 | AG11: =IF(AF11=0,0,(AF11*((LOG(AF11))/LOG(2)))) -> 0 | AI11: =N11 -> 0 | AJ11: =COUNTIF(L30:L36,AI11) -> 0 | AK11: =AJ11/(AL4-AJ8) -> 0 | AL11: =IF(AK11=0,0,(AK11*((LOG(AK11))/LOG(2)))) -> 0 | AN11: =N11 -> 0 | AO11: =COUNTIF(L37:L44,AN11) -> 0 | AP11: =AO11/(AQ4-AO8) ->  | AQ11: =IF(AP11=0,0,(AP11*((LOG(AP11))/LOG(2)))) ->  | AS11: =N11 -> 0 | AT11: =COUNTIF(L45:L51,AS11) -> 0 | AU11: =AT11/(AV4-AT8) ->  | AV11: =IF(AU11=0,0,(AU11*((LOG(AU11))/LOG(2)))) -> 
A12: 11 | B12: 500 | C12: 21 | D12: 507 | K12: 0 | L12: 12 | T12: =N12 -> 0 | U12: =COUNTIF(L7:L14,T12) -> 0 | V12: =U12/(W4-U8) -> 0 | W12: =IF(V12=0,0,(V12*((LOG(V12))/LOG(2)))) -> 0 | Y12: =N12 -> 0 | Z12: =COUNTIF(L15:L21,Y12) -> 0 | AA12: =Z12/(AB4-Z8) -> 0 | AB12: =IF(AA12=0,0,(AA12*((LOG(AA12))/LOG(2)))) -> 0 | AD12: =N12 -> 0 | AE12: =COUNTIF(L22:L29,AD12) -> 0 | AF12: =AE12/(AG4-AE8) -> 0 | AG12: =IF(AF12=0,0,(AF12*((LOG(AF12))/LOG(2)))) -> 0 | AI12: =N12 -> 0 | AJ12: =COUNTIF(L30:L36,AI12) -> 0 | AK12: =AJ12/(AL4-AJ8) -> 0 | AL12: =IF(AK12=0,0,(AK12*((LOG(AK12))/LOG(2)))) -> 0 | AN12: =N12 -> 0 | AO12: =COUNTIF(L37:L44,AN12) -> 0 | AP12: =AO12/(AQ4-AO8) ->  | AQ12: =IF(AP12=0,0,(AP12*((LOG(AP12))/LOG(2)))) ->  | AS12: =N12 -> 0 | AT12: =COUNTIF(L45:L51,AS12) -> 0 | AU12: =AT12/(AV4-AT8) ->  | AV12: =IF(AU12=0,0,(AU12*((LOG(AU12))/LOG(2)))) -> 
A13: 11 | B13: 595 | C13: 21 | D13: 603 | K13: 0 | L13: 12 | T13: =N13 -> 0 | U13: =COUNTIF(L7:L14,T13) -> 0 | V13: =U13/(W4-U8) -> 0 | W13: =IF(V13=0,0,(V13*((LOG(V13))/LOG(2)))) -> 0 | Y13: =N13 -> 0 | Z13: =COUNTIF(L15:L21,Y13) -> 0 | AA13: =Z13/(AB4-Z8) -> 0 | AB13: =IF(AA13=0,0,(AA13*((LOG(AA13))/LOG(2)))) -> 0 | AD13: =N13 -> 0 | AE13: =COUNTIF(L22:L29,AD13) -> 0 | AF13: =AE13/(AG4-AE8) -> 0 | AG13: =IF(AF13=0,0,(AF13*((LOG(AF13))/LOG(2)))) -> 0 | AI13: =N13 -> 0 | AJ13: =COUNTIF(L30:L36,AI13) -> 0 | AK13: =AJ13/(AL4-AJ8) -> 0 | AL13: =IF(AK13=0,0,(AK13*((LOG(AK13))/LOG(2)))) -> 0 | AN13: =N13 -> 0 | AO13: =COUNTIF(L37:L44,AN13) -> 0 | AP13: =AO13/(AQ4-AO8) ->  | AQ13: =IF(AP13=0,0,(AP13*((LOG(AP13))/LOG(2)))) ->  | AS13: =N13 -> 0 | AT13: =COUNTIF(L45:L51,AS13) -> 0 | AU13: =AT13/(AV4-AT8) ->  | AV13: =IF(AU13=0,0,(AU13*((LOG(AU13))/LOG(2)))) -> 
A14: 11 | B14: 689 | C14: 21 | D14: 696 | K14: 0 | L14: 12 | T14: =N14 -> 0 | U14: =COUNTIF(L7:L14,T14) -> 0 | V14: =U14/(W4-U8) -> 0 | W14: =IF(V14=0,0,(V14*((LOG(V14))/LOG(2)))) -> 0 | Y14: =N14 -> 0 | Z14: =COUNTIF(L15:L21,Y14) -> 0 | AA14: =Z14/(AB4-Z8) -> 0 | AB14: =IF(AA14=0,0,(AA14*((LOG(AA14))/LOG(2)))) -> 0 | AD14: =N14 -> 0 | AE14: =COUNTIF(L22:L29,AD14) -> 0 | AF14: =AE14/(AG4-AE8) -> 0 | AG14: =IF(AF14=0,0,(AF14*((LOG(AF14))/LOG(2)))) -> 0 | AI14: =N14 -> 0 | AJ14: =COUNTIF(L30:L36,AI14) -> 0 | AK14: =AJ14/(AL4-AJ8) -> 0 | AL14: =IF(AK14=0,0,(AK14*((LOG(AK14))/LOG(2)))) -> 0 | AN14: =N14 -> 0 | AO14: =COUNTIF(L37:L44,AN14) -> 0 | AP14: =AO14/(AQ4-AO8) ->  | AQ14: =IF(AP14=0,0,(AP14*((LOG(AP14))/LOG(2)))) ->  | AS14: =N14 -> 0 | AT14: =COUNTIF(L45:L51,AS14) -> 0 | AU14: =AT14/(AV4-AT8) ->  | AV14: =IF(AU14=0,0,(AU14*((LOG(AU14))/LOG(2)))) -> 
A15: 11 | B15: 782 | C15: 21 | D15: 790 | K15: 0 | L15: 12 | P15: =SUM(P7:P14) -> 1 | Q15: =-SUM(Q7:Q14) -> 0.5834725675 | V15: =SUM(V7:V14) -> 1 | W15: =-SUM(W7:W14) -> 0 | AA15: =SUM(AA7:AA14) -> 1 | AB15: =-SUM(AB7:AB14) -> 0 | AF15: =SUM(AF7:AF14) -> 1 | AG15: =-SUM(AG7:AG14) -> 0 | AK15: =SUM(AK7:AK14) -> 1 | AL15: =-SUM(AL7:AL14) -> 0 | AP15: =SUM(AP7:AP14) ->  | AQ15: =-SUM(AQ7:AQ14) ->  | AU15: =SUM(AU7:AU14) ->  | AV15: =-SUM(AV7:AV14) -> 
A16: 11 | B16: 877 | C16: 21 | D16: 897 | K16: 0 | L16: 12 | P16: U= | Q16: =Q15/(LOG(Q4)/LOG(2)) -> 0.1062432948 | V16: U1= | W16: =W15/(LOG(W4)/LOG(2)) -> 0 | AA16: U2= | AB16: =AB15/(LOG(AB4)/LOG(2)) -> 0 | AF16: U3= | AG16: =AG15/(LOG(AG4)/LOG(2)) -> 0 | AK16: U4= | AL16: =AL15/(LOG(AL4)/LOG(2)) -> 0 | AP16: U5= | AQ16: =AQ15/(LOG(AQ4)/LOG(2)) ->  | AU16: U6= | AV16: =AV15/(LOG(AV4)/LOG(2)) -> 
A17: 11 | B17: 984 | C17: 21 | D17: 991 | K17: 0 | L17: 12
A18: 11 | B18: 1079 | C18: 12 | D18: 1110 | K18: 0 | L18: 11
A19: 11 | B19: 1205 | C19: 12 | D19: 1234 | K19: 0 | L19: 11 | N19: Total Target Seq
A20: 11 | B20: 1331 | C20: 21 | D20: 1338 | K20: 0 | L20: 12 | N20: =COUNTIF(L7:L51,G3) -> 40 | P20: 8 | Q20: 7 | R20: 8 | S20: 7 | T20: 8 | U20: 7
A21: 11 | B21: 1425 | C21: 21 | D21: 1435 | K21: 0 | L21: 12 | P21: % of reinforcement given in 6 equal intervals based on number of trials
A22: 11 | B22: 1522 | C22: 12 | D22: 1547 | K22: 0 | L22: 11 | P22: %_1 | Q22: %_2 | R22: %_3 | S22: %_4 | T22: %_5 | U22: %_6
A23: 11 | B23: 1646 | C23: 21 | D23: 1670 | K23: 0 | L23: 12 | O23: target sequence | P23: =$G$3 -> 12 | Q23: =$G$3 -> 12 | R23: =$G$3 -> 12 | S23: =$G$3 -> 12 | T23: =$G$3 -> 12 | U23: =$G$3 -> 12
A24: 11 | B24: 1764 | C24: 21 | D24: 1772 | K24: 0 | L24: 12 | O24: total reinforcement | P24: =U8 -> 7 | Q24: =Z8 -> 5 | R24: =AE8 -> 7 | S24: =AJ8 -> 6 | T24: =AO8 -> 8 | U24: =AT8 -> 7
A25: 11 | B25: 1863 | C25: 21 | D25: 1900 | K25: 0 | L25: 12 | O25: % target
A26: 11 | B26: 1993 | C26: 21 | D26: 2000 | K26: 0 | L26: 12 | O26: CCRF
A27: 11 | B27: 2093 | C27: 21 | D27: 2164 | K27: 0 | L27: 12 | O27: % CCRf
A28: 11 | B28: 2251 | C28: 21 | D28: 2258 | K28: 0 | L28: 12 | O28: average response rate | P28: =D14/P20 -> 87 | Q28: =(D21-D14)/Q20 -> 105.5714286 | R28: =(D29-D21)/R20 -> 116.125 | S28: =(D36-D29)/S20 -> 106.5714286 | T28: =(D44-D36)/T20 -> 106.75 | U28: =(D51-D44)/U20 -> 110.1428571
A29: 11 | B29: 2345 | C29: 21 | D29: 2364 | K29: 0 | L29: 12
A30: 11 | B30: 2450 | C30: 21 | D30: 2457 | K30: 0 | L30: 12
A31: 11 | B31: 2544 | C31: 21 | D31: 2564 | K31: 0 | L31: 12
A32: 11 | B32: 2654 | C32: 21 | D32: 2662 | K32: 0 | L32: 12
A33: 11 | B33: 2748 | C33: 21 | D33: 2775 | K33: 0 | L33: 12
A34: 11 | B34: 2862 | C34: 21 | D34: 2870 | K34: 0 | L34: 12
A35: 11 | B35: 2955 | C35: 12 | D35: 2992 | K35: 0 | L35: 11
A36: 11 | B36: 3087 | C36: 21 | D36: 3110 | K36: 0 | L36: 12
A37: 11 | B37: 3200 | C37: 21 | D37: 3221 | K37: 0 | L37: 12
A38: 11 | B38: 3308 | C38: 21 | D38: 3316 | K38: 0 | L38: 12
A39: 11 | B39: 3402 | C39: 21 | D39: 3444 | K39: 0 | L39: 12
A40: 11 | B40: 3530 | C40: 21 | D40: 3538 | K40: 0 | L40: 12
A41: 11 | B41: 3624 | C41: 21 | D41: 3631 | K41: 0 | L41: 12
A42: 11 | B42: 3719 | C42: 21 | D42: 3750 | K42: 0 | L42: 12
A43: 11 | B43: 3839 | C43: 21 | D43: 3858 | K43: 0 | L43: 12
A44: 11 | B44: 3944 | C44: 21 | D44: 3964 | K44: 0 | L44: 12
A45: 11 | B45: 4051 | C45: 21 | D45: 4088 | K45: 0 | L45: 12
A46: 11 | B46: 4174 | C46: 21 | D46: 4194 | K46: 0 | L46: 12
A47: 11 | B47: 4280 | C47: 21 | D47: 4288 | K47: 0 | L47: 12
A48: 11 | B48: 4374 | C48: 21 | D48: 4386 | K48: 0 | L48: 12
A49: 11 | B49: 4472 | C49: 21 | D49: 4480 | K49: 0 | L49: 12
A50: 11 | B50: 4610 | C50: 21 | D50: 4618 | K50: 0 | L50: 12
A51: 11 | B51: 4705 | C51: 21 | D51: 4735 | K51: 1 | L51: 12

Sheet !N219A40.096
A1: Report for:!N219A40.096
A2: Date: | B2: <date>
A3: Hen: | B3: <hen> | F3: Correct Sequence | G3: =Start!J2 -> 12 | P3: Total Sequences in Data | Q3: =4994-COUNTBLANK(L7:L5000) -> 55 | V3: Total Sequences in Block Data | W3: =COUNTA(L7:L15) -> 9 | AA3: Total Sequences in Block Data | AB3: =COUNTA(L16:L24) -> 9 | AF3: Total Sequences in Block Data | AG3: =COUNTA(L25:L34) -> 10 | AK3: Total Sequences in Block Data | AL3: =COUNTA(L35:L43) -> 9 | AP3: Total Sequences in Block Data | AQ3: =COUNTA(L44:L52) -> 9 | AU3: Total Sequences in Block Data | AV3: =COUNTA(L53:L61) -> 9
P4: Total Sequences in Summary | Q4: =SUM(O7:O14) -> 55 | V4: Total Sequences in Block Summary | W4: =SUM(U7:U14) -> 9 | AA4: Total Sequences in Block Summary | AB4: =SUM(Z7:Z14) -> 9 | AF4: Total Sequences in Block Summary | AG4: =SUM(AE7:AE14) -> 10 | AK4: Total Sequences in Block Summary | AL4: =SUM(AJ7:AJ14) -> 9 | AP4: Total Sequences in Block Summary | AQ4: =SUM(AO7:AO14) -> 9 | AU4: Total Sequences in Block Summary | AV4: =SUM(AT7:AT14) -> 9
T5: Block 1 | Y5: Block 2 | AD5: Block 3 | AI5: Block 4 | AN5: Block 5 | AS5: Block 6
A6: Sequence Component 1 | B6: Time 1 | C6: Sequence Component 2 | D6: Time 2 | E6: Sequence Component 3 | F6: Time 3 | G6: Sequence Component 4 | H6: Time 4 | I6: Sequence Component 5 | J6: Time 5 | K6: Correct? 0=No 1=Yes | L6: Sequence | N6: Frequency | P6: Relative Frequency | Q6: Variability | T6: Frequency | V6: Relative Frequency | W6: Variability | Y6: Frequency | AA6: Relative Frequency | AB6: Variability | AD6: Frequency | AF6: Relative Frequency | AG6: Variability | AI6: Frequency | AK6: Relative Frequency | AL6: Variability | AN6: Frequency | AP6: Relative Frequency | AQ6: Variability | AS6: Frequency | AU6: Relative Frequency | AV6: Variability
A7: 11 | B7: 7 | C7: 21 | D7: 15 | K7: 0 | L7: 12 | N7: 11 | O7: =COUNTIF($L$7:$L$500,N7) -> 1 | P7: =O7/$Q$4 -> 0.01818181818 | Q7: =IF(P7=0,0,(P7*((LOG(P7))/LOG(2)))) -> -0.1051156312 | T7: =N7 -> 11 | U7: =COUNTIF(L7:L15,T7) -> 0 | V7: =U7/(W4-U8) ->  | W7: =IF(V7=0,0,(V7*((LOG(V7))/LOG(2)))) ->  | Y7: =N7 -> 11 | Z7: =COUNTIF(L16:L24,Y7) -> 1 | AA7: =Z7/(AB4-Z8) -> 0.25 | AB7: =IF(AA7=0,0,(AA7*((LOG(AA7))/LOG(2)))) -> -0.5 | AD7: =N7 -> 11 | AE7: =COUNTIF(L25:L34,AD7) -> 0 | AF7: =AE7/(AG4-AE8) -> 0 | AG7: =IF(AF7=0,0,(AF7*((LOG(AF7))/LOG(2)))) -> 0 | AI7: =N7 -> 11 | AJ7: =COUNTIF(L35:L43,AI7) -> 0 | AK7: =AJ7/(AL4-AJ8) -> 0 | AL7: =IF(AK7=0,0,(AK7*((LOG(AK7))/LOG(2)))) -> 0 | AN7: =N7 -> 11 | AO7: =COUNTIF(L44:L52,AN7) -> 0 | AP7: =AO7/(AQ4-AO8) -> 0 | AQ7: =IF(AP7=0,0,(AP7*((LOG(AP7))/LOG(2)))) -> 0 | AS7: =N7 -> 11 | AT7: =COUNTIF(L53:L61,AS7) -> 0 | AU7: =AT7/(AV4-AT8) -> 0 | AV7: =IF(AU7=0,0,(AU7*((LOG(AU7))/LOG(2)))) -> 0
A8: 11 | B8: 101 | C8: 21 | D8: 108 | K8: 0 | L8: 12 | N8: 12 | O8: =COUNTIF($L$7:$L$500,N8) -> 40 | P8: =O8/$Q$4 -> 0.7272727273 | Q8: =IF(P8=0,0,(P8*((LOG(P8))/LOG(2)))) -> -0.3341320863 | T8: =N8 -> 12 | U8: =COUNTIF(L7:L15,T8) -> 9 | Y8: =N8 -> 12 | Z8: =COUNTIF(L16:L24,Y8) -> 5 | AD8: =N8 -> 12 | AE8: =COUNTIF(L25:L34,AD8) -> 6 | AI8: =N8 -> 12 | AJ8: =COUNTIF(L35:L43,AI8) -> 5 | AN8: =N8 -> 12 | AO8: =COUNTIF(L44:L52,AN8) -> 8 | AS8: =N8 -> 12 | AT8: =COUNTIF(L53:L61,AS8) -> 7
A9: 11 | B9: 200 | C9: 21 | D9: 207 | K9: 0 | L9: 12 | N9: 21 | O9: =COUNTIF($L$7:$L$500,N9) -> 3 | P9: =O9/$Q$4 -> 0.05454545455 | Q9: =IF(P9=0,0,(P9*((LOG(P9))/LOG(2)))) -> -0.2288943934 | T9: =N9 -> 21 | U9: =COUNTIF(L7:L15,T9) -> 0 | V9: =U9/(W4-U8) ->  | W9: =IF(V9=0,0,(V9*((LOG(V9))/LOG(2)))) ->  | Y9: =N9 -> 21 | Z9: =COUNTIF(L16:L24,Y9) -> 1 | AA9: =Z9/(AB4-Z8) -> 0.25 | AB9: =IF(AA9=0,0,(AA9*((LOG(AA9))/LOG(2)))) -> -0.5 | AD9: =N9 -> 21 | AE9: =COUNTIF(L25:L34,AD9) -> 0 | AF9: =AE9/(AG4-AE8) -> 0 | AG9: =IF(AF9=0,0,(AF9*((LOG(AF9))/LOG(2)))) -> 0 | AI9: =N9 -> 21 | AJ9: =COUNTIF(L35:L43,AI9) -> 1 | AK9: =AJ9/(AL4-AJ8) -> 0.25 | AL9: =IF(AK9=0,0,(AK9*((LOG(AK9))/LOG(2)))) -> -0.5 | AN9: =N9 -> 21 | AO9: =COUNTIF(L44:L52,AN9) -> 0 | AP9: =AO9/(AQ4-AO8) -> 0 | AQ9: =IF(AP9=0,0,(AP9*((LOG(AP9))/LOG(2)))) -> 0 | AS9: =N9 -> 21 | AT9: =COUNTIF(L53:L61,AS9) -> 1 | AU9: =AT9/(AV4-AT8) -> 0.5 | AV9: =IF(AU9=0,0,(AU9*((LOG(AU9))/LOG(2)))) -> -0.5
A10: 11 | B10: 295 | C10: 21 | D10: 303 | K10: 0 | L10: 12 | N10: 22 | O10: =COUNTIF($L$7:$L$500,N10) -> 11 | P10: =O10/$Q$4 -> 0.2 | Q10: =IF(P10=0,0,(P10*((LOG(P10))/LOG(2)))) -> -0.464385619 | T10: =N10 -> 22 | U10: =COUNTIF(L7:L15,T10) -> 0 | V10: =U10/(W4-U8) ->  | W10: =IF(V10=0,0,(V10*((LOG(V10))/LOG(2)))) ->  | Y10: =N10 -> 22 | Z10: =COUNTIF(L16:L24,Y10) -> 2 | AA10: =Z10/(AB4-Z8) -> 0.5 | AB10: =IF(AA10=0,0,(AA10*((LOG(AA10))/LOG(2)))) -> -0.5 | AD10: =N10 -> 22 | AE10: =COUNTIF(L25:L34,AD10) -> 4 | AF10: =AE10/(AG4-AE8) -> 1 | AG10: =IF(AF10=0,0,(AF10*((LOG(AF10))/LOG(2)))) -> 0 | AI10: =N10 -> 22 | AJ10: =COUNTIF(L35:L43,AI10) -> 3 | AK10: =AJ10/(AL4-AJ8) -> 0.75 | AL10: =IF(AK10=0,0,(AK10*((LOG(AK10))/LOG(2)))) -> -0.3112781245 | AN10: =N10 -> 22 | AO10: =COUNTIF(L44:L52,AN10) -> 1 | AP10: =AO10/(AQ4-AO8) -> 1 | AQ10: =IF(AP10=0,0,(AP10*((LOG(AP10))/LOG(2)))) -> 0 | AS10: =N10 -> 22 | AT10: =COUNTIF(L53:L61,AS10) -> 1 | AU10: =AT10/(AV4-AT8) -> 0.5 | AV10: =IF(AU10=0,0,(AU10*((LOG(AU10))/LOG(2)))) -> -0.5
A11: 11 | B11: 389 | C11: 21 | D11: 396 | K11: 0 | L11: 12 | T11: =N11 -> 0 | U11: =COUNTIF(L7:L15,T11) -> 0 | V11: =U11/(W4-U8) ->  | W11: =IF(V11=0,0,(V11*((LOG(V11))/LOG(2)))) ->  | Y11: =N11 -> 0 | Z11: =COUNTIF(L16:L24,Y11) -> 0 | AA11: =Z11/(AB4-Z8) -> 0 | AB11: =IF(AA11=0,0,(AA11*((LOG(AA11))/LOG(2)))) -> 0 | AD11: =N11 -> 0 | AE11: =COUNTIF(L25:L34,AD11) -> 0 | AF11: =AE11/(AG4-AE8) -> 0 | AG11: =IF(AF11=0,0,(AF11*((LOG(AF11))/LOG(2)))) -> 0 | AI11: =N11 -> 0 | AJ11: =COUNTIF(L35:L43,AI11) -> 0 | AK11: =AJ11/(AL4-AJ8) -> 0 | AL11: =IF(AK11=0,0,(AK11*((LOG(AK11))/LOG(2)))) -> 0 | AN11: =N11 -> 0 | AO11: =COUNTIF(L44:L52,AN11) -> 0 | AP11: =AO11/(AQ4-AO8) -> 0 | AQ11: =IF(AP11=0,0,(AP11*((LOG(AP11))/LOG(2)))) -> 0 | AS11: =N11 -> 0 | AT11: =COUNTIF(L53:L61,AS11) -> 0 | AU11: =AT11/(AV4-AT8) -> 0 | AV11: =IF(AU11=0,0,(AU11*((LOG(AU11))/LOG(2)))) -> 0
A12: 11 | B12: 483 | C12: 21 | D12: 490 | K12: 0 | L12: 12 | T12: =N12 -> 0 | U12: =COUNTIF(L7:L15,T12) -> 0 | V12: =U12/(W4-U8) ->  | W12: =IF(V12=0,0,(V12*((LOG(V12))/LOG(2)))) ->  | Y12: =N12 -> 0 | Z12: =COUNTIF(L16:L24,Y12) -> 0 | AA12: =Z12/(AB4-Z8) -> 0 | AB12: =IF(AA12=0,0,(AA12*((LOG(AA12))/LOG(2)))) -> 0 | AD12: =N12 -> 0 | AE12: =COUNTIF(L25:L34,AD12) -> 0 | AF12: =AE12/(AG4-AE8) -> 0 | AG12: =IF(AF12=0,0,(AF12*((LOG(AF12))/LOG(2)))) -> 0 | AI12: =N12 -> 0 | AJ12: =COUNTIF(L35:L43,AI12) -> 0 | AK12: =AJ12/(AL4-AJ8) -> 0 | AL12: =IF(AK12=0,0,(AK12*((LOG(AK12))/LOG(2)))) -> 0 | AN12: =N12 -> 0 | AO12: =COUNTIF(L44:L52,AN12) -> 0 | AP12: =AO12/(AQ4-AO8) -> 0 | AQ12: =IF(AP12=0,0,(AP12*((LOG(AP12))/LOG(2)))) -> 0 | AS12: =N12 -> 0 | AT12: =COUNTIF(L53:L61,AS12) -> 0 | AU12: =AT12/(AV4-AT8) -> 0 | AV12: =IF(AU12=0,0,(AU12*((LOG(AU12))/LOG(2)))) -> 0
A13: 11 | B13: 578 | C13: 21 | D13: 587 | K13: 0 | L13: 12 | T13: =N13 -> 0 | U13: =COUNTIF(L7:L15,T13) -> 0 | V13: =U13/(W4-U8) ->  | W13: =IF(V13=0,0,(V13*((LOG(V13))/LOG(2)))) ->  | Y13: =N13 -> 0 | Z13: =COUNTIF(L16:L24,Y13) -> 0 | AA13: =Z13/(AB4-Z8) -> 0 | AB13: =IF(AA13=0,0,(AA13*((LOG(AA13))/LOG(2)))) -> 0 | AD13: =N13 -> 0 | AE13: =COUNTIF(L25:L34,AD13) -> 0 | AF13: =AE13/(AG4-AE8) -> 0 | AG13: =IF(AF13=0,0,(AF13*((LOG(AF13))/LOG(2)))) -> 0 | AI13: =N13 -> 0 | AJ13: =COUNTIF(L35:L43,AI13) -> 0 | AK13: =AJ13/(AL4-AJ8) -> 0 | AL13: =IF(AK13=0,0,(AK13*((LOG(AK13))/LOG(2)))) -> 0 | AN13: =N13 -> 0 | AO13: =COUNTIF(L44:L52,AN13) -> 0 | AP13: =AO13/(AQ4-AO8) -> 0 | AQ13: =IF(AP13=0,0,(AP13*((LOG(AP13))/LOG(2)))) -> 0 | AS13: =N13 -> 0 | AT13: =COUNTIF(L53:L61,AS13) -> 0 | AU13: =AT13/(AV4-AT8) -> 0 | AV13: =IF(AU13=0,0,(AU13*((LOG(AU13))/LOG(2)))) -> 0
A14: 11 | B14: 673 | C14: 21 | D14: 692 | K14: 0 | L14: 12 | T14: =N14 -> 0 | U14: =COUNTIF(L7:L15,T14) -> 0 | V14: =U14/(W4-U8) ->  | W14: =IF(V14=0,0,(V14*((LOG(V14))/LOG(2)))) ->  | Y14: =N14 -> 0 | Z14: =COUNTIF(L16:L24,Y14) -> 0 | AA14: =Z14/(AB4-Z8) -> 0 | AB14: =IF(AA14=0,0,(AA14*((LOG(AA14))/LOG(2)))) -> 0 | AD14: =N14 -> 0 | AE14: =COUNTIF(L25:L34,AD14) -> 0 | AF14: =AE14/(AG4-AE8) -> 0 | AG14: =IF(AF14=0,0,(AF14*((LOG(AF14))/LOG(2)))) -> 0 | AI14: =N14 -> 0 | AJ14: =COUNTIF(L35:L43,AI14) -> 0 | AK14: =AJ14/(AL4-AJ8) -> 0 | AL14: =IF(AK14=0,0,(AK14*((LOG(AK14))/LOG(2)))) -> 0 | AN14: =N14 -> 0 | AO14: =COUNTIF(L44:L52,AN14) -> 0 | AP14: =AO14/(AQ4-AO8) -> 0 | AQ14: =IF(AP14=0,0,(AP14*((LOG(AP14))/LOG(2)))) -> 0 | AS14: =N14 -> 0 | AT14: =COUNTIF(L53:L61,AS14) -> 0 | AU14: =AT14/(AV4-AT8) -> 0 | AV14: =IF(AU14=0,0,(AU14*((LOG(AU14))/LOG(2)))) -> 0
A15: 11 | B15: 780 | C15: 21 | D15: 788 | K15: 0 | L15: 12 | P15: =SUM(P7:P14) -> 1 | Q15: =-SUM(Q7:Q14) -> 1.13252773 | V15: =SUM(V7:V14) ->  | W15: =-SUM(W7:W14) ->  | AA15: =SUM(AA7:AA14) -> 1 | AB15: =-SUM(AB7:AB14) -> 1.5 | AF15: =SUM(AF7:AF14) -> 1 | AG15: =-SUM(AG7:AG14) -> 0 | AK15: =SUM(AK7:AK14) -> 1 | AL15: =-SUM(AL7:AL14) -> 0.8112781245 | AP15: =SUM(AP7:AP14) -> 1 | AQ15: =-SUM(AQ7:AQ14) -> 0 | AU15: =SUM(AU7:AU14) -> 1 | AV15: =-SUM(AV7:AV14) -> 1
A16: 11 | B16: 875 | C16: 21 | D16: 883 | K16: 0 | L16: 12 | P16: U= | Q16: =Q15/(LOG(Q4)/LOG(2)) -> 0.1958929709 | V16: U1= | W16: =W15/(LOG(W4)/LOG(2)) ->  | AA16: U2= | AB16: =AB15/(LOG(AB4)/LOG(2)) -> 0.4731973152 | AF16: U3= | AG16: =AG15/(LOG(AG4)/LOG(2)) -> 0 | AK16: U4= | AL16: =AL15/(LOG(AL4)/LOG(2)) -> 0.2559297536 | AP16: U5= | AQ16: =AQ15/(LOG(AQ4)/LOG(2)) -> 0 | AU16: U6= | AV16: =AV15/(LOG(AV4)/LOG(2)) -> 0.3154648768
A17: 22 | B17: 977 | C17: 23 | D17: 999 | K17: 0 | L17: 22
A18: 11 | B18: 1095 | C18: 21 | D18: 1102 | K18: 0 | L18: 12
A19: 11 | B19: 1184 | C19: 12 | D19: 1190 | K19: 0 | L19: 11 | N19: Total Target Seq
A20: 22 | B20: 1284 | C20: 14 | D20: 1299 | K20: 0 | L20: 21 | N20: =COUNTIF(L7:L61,G3) -> 40 | P20: 9 | Q20: 9 | R20: 10 | S20: 9 | T20: 9 | U20: 9
A21: 11 | B21: 1395 | C21: 21 | D21: 1403 | K21: 0 | L21: 12 | P21: % of reinforcement given in 6 equal intervals based on number of trials
A22: 22 | B22: 1516 | C22: 23 | D22: 1528 | K22: 0 | L22: 22 | P22: %_1 | Q22: %_2 | R22: %_3 | S22: %_4 | T22: %_5 | U22: %_6
A23: 11 | B23: 1622 | C23: 21 | D23: 1630 | K23: 0 | L23: 12 | O23: target sequence | P23: =$G$3 -> 12 | Q23: =$G$3 -> 12 | R23: =$G$3 -> 12 | S23: =$G$3 -> 12 | T23: =$G$3 -> 12 | U23: =$G$3 -> 12
A24: 11 | B24: 1716 | C24: 21 | D24: 1733 | K24: 0 | L24: 12 | O24: total reinforcement | P24: =U8 -> 9 | Q24: =Z8 -> 5 | R24: =AE8 -> 6 | S24: =AJ8 -> 5 | T24: =AO8 -> 8 | U24: =AT8 -> 7
A25: 11 | B25: 1822 | C25: 21 | D25: 1829 | K25: 0 | L25: 12 | O25: % target
A26: 11 | B26: 1914 | C26: 21 | D26: 1922 | K26: 0 | L26: 12 | O26: CCRF
A27: 11 | B27: 2007 | C27: 21 | D27: 2015 | K27: 0 | L27: 12 | O27: % CCRf
A28: 11 | B28: 2101 | C28: 21 | D28: 2109 | K28: 0 | L28: 12 | O28: average response rate | P28: =D15/P20 -> 87.55555556 | Q28: =(D24-D15)/Q20 -> 105 | R28: =(D34-D24)/R20 -> 103.5 | S28: =(D43-D34)/S20 -> 109.1111111 | T28: =(D52-D43)/T20 -> 96.66666667 | U28: =(D61-D52)/U20 -> 100.7777778
A29: 22 | B29: 2203 | C29: 23 | D29: 2215 | K29: 0 | L29: 22
A30: 11 | B30: 2309 | C30: 21 | D30: 2317 | K30: 0 | L30: 12
A31: 22 | B31: 2410 | C31: 23 | D31: 2435 | K31: 0 | L31: 22
A32: 11 | B32: 2532 | C32: 21 | D32: 2539 | K32: 0 | L32: 12
A33: 22 | B33: 2635 | C33: 23 | D33: 2649 | K33: 0 | L33: 22
A34: 22 | B34: 2756 | C34: 23 | D34: 2768 | K34: 0 | L34: 22
A35: 22 | B35: 2881 | C35: 23 | D35: 2892 | K35: 0 | L35: 22
A36: 11 | B36: 2992 | C36: 21 | D36: 3000 | K36: 0 | L36: 12
A37: 22 | B37: 3102 | C37: 14 | D37: 3119 | K37: 0 | L37: 21
A38: 22 | B38: 3227 | C38: 23 | D38: 3238 | K38: 0 | L38: 22
A39: 11 | B39: 3334 | C39: 21 | D39: 3341 | K39: 0 | L39: 12
A40: 22 | B40: 3448 | C40: 23 | D40: 3458 | K40: 0 | L40: 22
A41: 11 | B41: 3556 | C41: 21 | D41: 3563 | K41: 0 | L41: 12
A42: 11 | B42: 3649 | C42: 21 | D42: 3656 | K42: 0 | L42: 12
A43: 11 | B43: 3743 | C43: 21 | D43: 3750 | K43: 0 | L43: 12
A44: 11 | B44: 3838 | C44: 21 | D44: 3851 | K44: 0 | L44: 12
A45: 11 | B45: 3937 | C45: 21 | D45: 3945 | K45: 0 | L45: 12
A46: 11 | B46: 4032 | C46: 21 | D46: 4040 | K46: 0 | L46: 12
A47: 11 | B47: 4125 | C47: 21 | D47: 4133 | K47: 0 | L47: 12
A48: 11 | B48: 4221 | C48: 21 | D48: 4228 | K48: 0 | L48: 12
A49: 11 | B49: 4315 | C49: 21 | D49: 4322 | K49: 0 | L49: 12
A50: 22 | B50: 4416 | C50: 23 | D50: 4427 | K50: 0 | L50: 22
A51: 11 | B51: 4522 | C51: 21 | D51: 4529 | K51: 0 | L51: 12
A52: 11 | B52: 4613 | C52: 21 | D52: 4620 | K52: 0 | L52: 12
A53: 22 | B53: 4720 | C53: 23 | D53: 4734 | K53: 0 | L53: 22
A54: 11 | B54: 4831 | C54: 21 | D54: 4838 | K54: 0 | L54: 12
A55: 11 | B55: 4924 | C55: 21 | D55: 4932 | K55: 0 | L55: 12
A56: 11 | B56: 5016 | C56: 21 | D56: 5024 | K56: 0 | L56: 12
A57: 11 | B57: 5110 | C57: 21 | D57: 5125 | K57: 0 | L57: 12
A58: 11 | B58: 5211 | C58: 21 | D58: 5218 | K58: 0 | L58: 12
A59: 11 | B59: 5308 | C59: 21 | D59: 5316 | K59: 0 | L59: 12
A60: 22 | B60: 5412 | C60: 14 | D60: 5423 | K60: 0 | L60: 21
A61: 11 | B61: 5520 | C61: 21 | D61: 5527 | K61: 1 | L61: 12

Sheet !N220C30.096
A1: Report for:!N220C30.096
A2: Date: | B2: <date>
A3: Hen: | B3: <hen> | F3: Correct Sequence | G3: =Start!J2 -> 12 | P3: Total Sequences in Data | Q3: =4994-COUNTBLANK(L7:L5000) -> 45 | V3: Total Sequences in Block Data | W3: =COUNTA(L7:L14) -> 8 | AA3: Total Sequences in Block Data | AB3: =COUNTA(L15:L21) -> 7 | AF3: Total Sequences in Block Data | AG3: =COUNTA(L22:L29) -> 8 | AK3: Total Sequences in Block Data | AL3: =COUNTA(L30:L36) -> 7 | AP3: Total Sequences in Block Data | AQ3: =COUNTA(L37:L44) -> 8 | AU3: Total Sequences in Block Data | AV3: =COUNTA(L45:L51) -> 7
P4: Total Sequences in Summary | Q4: =SUM(O7:O14) -> 45 | V4: Total Sequences in Block Summary | W4: =SUM(U7:U14) -> 8 | AA4: Total Sequences in Block Summary | AB4: =SUM(Z7:Z14) -> 7 | AF4: Total Sequences in Block Summary | AG4: =SUM(AE7:AE14) -> 8 | AK4: Total Sequences in Block Summary | AL4: =SUM(AJ7:AJ14) -> 7 | AP4: Total Sequences in Block Summary | AQ4: =SUM(AO7:AO14) -> 8 | AU4: Total Sequences in Block Summary | AV4: =SUM(AT7:AT14) -> 7
T5: Block 1 | Y5: Block 2 | AD5: Block 3 | AI5: Block 4 | AN5: Block 5 | AS5: Block 6
A6: Sequence Component 1 | B6: Time 1 | C6: Sequence Component 2 | D6: Time 2 | E6: Sequence Component 3 | F6: Time 3 | G6: Sequence Component 4 | H6: Time 4 | I6: Sequence Component 5 | J6: Time 5 | K6: Correct? 0=No 1=Yes | L6: Sequence | N6: Frequency | P6: Relative Frequency | Q6: Variability | T6: Frequency | V6: Relative Frequency | W6: Variability | Y6: Frequency | AA6: Relative Frequency | AB6: Variability | AD6: Frequency | AF6: Relative Frequency | AG6: Variability | AI6: Frequency | AK6: Relative Frequency | AL6: Variability | AN6: Frequency | AP6: Relative Frequency | AQ6: Variability | AS6: Frequency | AU6: Relative Frequency | AV6: Variability
A7: 11 | B7: 8 | C7: 21 | D7: 16 | K7: 0 | L7: 12 | N7: 11 | O7: =COUNTIF($L$7:$L$500,N7) -> 4 | P7: =O7/$Q$4 -> 0.08888888889 | Q7: =IF(P7=0,0,(P7*((LOG(P7))/LOG(2)))) -> -0.3103869419 | T7: =N7 -> 11 | U7: =COUNTIF(L7:L14,T7) -> 0 | V7: =U7/(W4-U8) ->  | W7: =IF(V7=0,0,(V7*((LOG(V7))/LOG(2)))) ->  | Y7: =N7 -> 11 | Z7: =COUNTIF(L15:L21,Y7) -> 3 | AA7: =Z7/(AB4-Z8) -> 1 | AB7: =IF(AA7=0,0,(AA7*((LOG(AA7))/LOG(2)))) -> 0 | AD7: =N7 -> 11 | AE7: =COUNTIF(L22:L29,AD7) -> 1 | AF7: =AE7/(AG4-AE8) -> 0.5 | AG7: =IF(AF7=0,0,(AF7*((LOG(AF7))/LOG(2)))) -> -0.5 | AI7: =N7 -> 11 | AJ7: =COUNTIF(L30:L36,AI7) -> 0 | AK7: =AJ7/(AL4-AJ8) ->  | AL7: =IF(AK7=0,0,(AK7*((LOG(AK7))/LOG(2)))) ->  | AN7: =N7 -> 11 | AO7: =COUNTIF(L37:L44,AN7) -> 0 | AP7: =AO7/(AQ4-AO8) ->  | AQ7: =IF(AP7=0,0,(AP7*((LOG(AP7))/LOG(2)))) ->  | AS7: =N7 -> 11 | AT7: =COUNTIF(L45:L51,AS7) -> 0 | AU7: =AT7/(AV4-AT8) ->  | AV7: =IF(AU7=0,0,(AU7*((LOG(AU7))/LOG(2)))) -> 
A8: 11 | B8: 103 | C8: 21 | D8: 111 | K8: 0 | L8: 12 | N8: 12 | O8: =COUNTIF($L$7:$L$500,N8) -> 40 | P8: =O8/$Q$4 -> 0.8888888889 | Q8: =IF(P8=0,0,(P8*((LOG(P8))/LOG(2)))) -> -0.1510444457 | T8: =N8 -> 12 | U8: =COUNTIF(L7:L14,T8) -> 8 | Y8: =N8 -> 12 | Z8: =COUNTIF(L15:L21,Y8) -> 4 | AD8: =N8 -> 12 | AE8: =COUNTIF(L22:L29,AD8) -> 6 | AI8: =N8 -> 12 | AJ8: =COUNTIF(L30:L36,AI8) -> 7 | AN8: =N8 -> 12 | AO8: =COUNTIF(L37:L44,AN8) -> 8 | AS8: =N8 -> 12 | AT8: =COUNTIF(L45:L51,AS8) -> 7
A9: 11 | B9: 201 | C9: 21 | D9: 208 | K9: 0 | L9: 12 | N9: 21 | O9: =COUNTIF($L$7:$L$500,N9) -> 1 | P9: =O9/$Q$4 -> 0.02222222222 | Q9: =IF(P9=0,0,(P9*((LOG(P9))/LOG(2)))) -> -0.1220411799 | T9: =N9 -> 21 | U9: =COUNTIF(L7:L14,T9) -> 0 | V9: =U9/(W4-U8) ->  | W9: =IF(V9=0,0,(V9*((LOG(V9))/LOG(2)))) ->  | Y9: =N9 -> 21 | Z9: =COUNTIF(L15:L21,Y9) -> 0 | AA9: =Z9/(AB4-Z8) -> 0 | AB9: =IF(AA9=0,0,(AA9*((LOG(AA9))/LOG(2)))) -> 0 | AD9: =N9 -> 21 | AE9: =COUNTIF(L22:L29,AD9) -> 1 | AF9: =AE9/(AG4-AE8) -> 0.5 | AG9: =IF(AF9=0,0,(AF9*((LOG(AF9))/LOG(2)))) -> -0.5 | AI9: =N9 -> 21 | AJ9: =COUNTIF(L30:L36,AI9) -> 0 | AK9: =AJ9/(AL4-AJ8) ->  | AL9: =IF(AK9=0,0,(AK9*((LOG(AK9))/LOG(2)))) ->  | AN9: =N9 -> 21 | AO9: =COUNTIF(L37:L44,AN9) -> 0 | AP9: =AO9/(AQ4-AO8) ->  | AQ9: =IF(AP9=0,0,(AP9*((LOG(AP9))/LOG(2)))) ->  | AS9: =N9 -> 21 | AT9: =COUNTIF(L45:L51,AS9) -> 0 | AU9: =AT9/(AV4-AT8) ->  | AV9: =IF(AU9=0,0,(AU9*((LOG(AU9))/LOG(2)))) -> 
A10: 11 | B10: 294 | C10: 21 | D10: 301 | K10: 0 | L10: 12 | N10: 22 | O10: =COUNTIF($L$7:$L$500,N10) -> 0 | P10: =O10/$Q$4 -> 0 | Q10: =IF(P10=0,0,(P10*((LOG(P10))/LOG(2)))) -> 0 | T10: =N10 -> 22 | U10: =COUNTIF(L7:L14,T10) -> 0 | V10: =U10/(W4-U8) ->  | W10: =IF(V10=0,0,(V10*((LOG(V10))/LOG(2)))) ->  | Y10: =N10 -> 22 | Z10: =COUNTIF(L15:L21,Y10) -> 0 | AA10: =Z10/(AB4-Z8) -> 0 | AB10: =IF(AA10=0,0,(AA10*((LOG(AA10))/LOG(2)))) -> 0 | AD10: =N10 -> 22 | AE10: =COUNTIF(L22:L29,AD10) -> 0 | AF10: =AE10/(AG4-AE8) -> 0 | AG10: =IF(AF10=0,0,(AF10*((LOG(AF10))/LOG(2)))) -> 0 | AI10: =N10 -> 22 | AJ10: =COUNTIF(L30:L36,AI10) -> 0 | AK10: =AJ10/(AL4-AJ8) ->  | AL10: =IF(AK10=0,0,(AK10*((LOG(AK10))/LOG(2)))) ->  | AN10: =N10 -> 22 | AO10: =COUNTIF(L37:L44,AN10) -> 0 | AP10: =AO10/(AQ4-AO8) ->  | AQ10: =IF(AP10=0,0,(AP10*((LOG(AP10))/LOG(2)))) ->  | AS10: =N10 -> 22 | AT10: =COUNTIF(L45:L51,AS10) -> 0 | AU10: =AT10/(AV4-AT8) ->  | AV10: =IF(AU10=0,0,(AU10*((LOG(AU10))/LOG(2)))) -> 
A11: 11 | B11: 387 | C11: 21 | D11: 395 | K11: 0 | L11: 12 | T11: =N11 -> 0 | U11: =COUNTIF(L7:L14,T11) -> 0 | V11: =U11/(W4-U8) ->  | W11: =IF(V11=0,0,(V11*((LOG(V11))/LOG(2)))) ->  | Y11: =N11 -> 0 | Z11: =COUNTIF(L15:L21,Y11) -> 0 | AA11: =Z11/(AB4-Z8) -> 0 | AB11: =IF(AA11=0,0,(AA11*((LOG(AA11))/LOG(2)))) -> 0 | AD11: =N11 -> 0 | AE11: =COUNTIF(L22:L29,AD11) -> 0 | AF11: =AE11/(AG4-AE8) -> 0 | AG11: =IF(AF11=0,0,(AF11*((LOG(AF11))/LOG(2)))) -> 0 | AI11: =N11 -> 0 | AJ11: =COUNTIF(L30:L36,AI11) -> 0 | AK11: =AJ11/(AL4-AJ8) ->  | AL11: =IF(AK11=0,0,(AK11*((LOG(AK11))/LOG(2)))) ->  | AN11: =N11 -> 0 | AO11: =COUNTIF(L37:L44,AN11) -> 0 | AP11: =AO11/(AQ4-AO8) ->  | AQ11: =IF(AP11=0,0,(AP11*((LOG(AP11))/LOG(2)))) ->  | AS11: =N11 -> 0 | AT11: =COUNTIF(L45:L51,AS11) -> 0 | AU11: =AT11/(AV4-AT8) ->  | AV11: =IF(AU11=0,0,(AU11*((LOG(AU11))/LOG(2)))) -> 
A12: 11 | B12: 480 | C12: 21 | D12: 488 | K12: 0 | L12: 12 | T12: =N12 -> 0 | U12: =COUNTIF(L7:L14,T12) -> 0 | V12: =U12/(W4-U8) ->  | W12: =IF(V12=0,0,(V12*((LOG(V12))/LOG(2)))) ->  | Y12: =N12 -> 0 | Z12: =COUNTIF(L15:L21,Y12) -> 0 | AA12: =Z12/(AB4-Z8) -> 0 | AB12: =IF(AA12=0,0,(AA12*((LOG(AA12))/LOG(2)))) -> 0 | AD12: =N12 -> 0 | AE12: =COUNTIF(L22:L29,AD12) -> 0 | AF12: =AE12/(AG4-AE8) -> 0 | AG12: =IF(AF12=0,0,(AF12*((LOG(AF12))/LOG(2)))) -> 0 | AI12: =N12 -> 0 | AJ12: =COUNTIF(L30:L36,AI12) -> 0 | AK12: =AJ12/(AL4-AJ8) ->  | AL12: =IF(AK12=0,0,(AK12*((LOG(AK12))/LOG(2)))) ->  | AN12: =N12 -> 0 | AO12: =COUNTIF(L37:L44,AN12) -> 0 | AP12: =AO12/(AQ4-AO8) ->  | AQ12: =IF(AP12=0,0,(AP12*((LOG(AP12))/LOG(2)))) ->  | AS12: =N12 -> 0 | AT12: =COUNTIF(L45:L51,AS12) -> 0 | AU12: =AT12/(AV4-AT8) ->  | AV12: =IF(AU12=0,0,(AU12*((LOG(AU12))/LOG(2)))) -> 
A13: 11 | B13: 575 | C13: 21 | D13: 582 | K13: 0 | L13: 12 | T13: =N13 -> 0 | U13: =COUNTIF(L7:L14,T13) -> 0 | V13: =U13/(W4-U8) ->  | W13: =IF(V13=0,0,(V13*((LOG(V13))/LOG(2)))) ->  | Y13: =N13 -> 0 | Z13: =COUNTIF(L15:L21,Y13) -> 0 | AA13: =Z13/(AB4-Z8) -> 0 | AB13: =IF(AA13=0,0,(AA13*((LOG(AA13))/LOG(2)))) -> 0 | AD13: =N13 -> 0 | AE13: =COUNTIF(L22:L29,AD13) -> 0 | AF13: =AE13/(AG4-AE8) -> 0 | AG13: =IF(AF13=0,0,(AF13*((LOG(AF13))/LOG(2)))) -> 0 | AI13: =N13 -> 0 | AJ13: =COUNTIF(L30:L36,AI13) -> 0 | AK13: =AJ13/(AL4-AJ8) ->  | AL13: =IF(AK13=0,0,(AK13*((LOG(AK13))/LOG(2)))) ->  | AN13: =N13 -> 0 | AO13: =COUNTIF(L37:L44,AN13) -> 0 | AP13: =AO13/(AQ4-AO8) ->  | AQ13: =IF(AP13=0,0,(AP13*((LOG(AP13))/LOG(2)))) ->  | AS13: =N13 -> 0 | AT13: =COUNTIF(L45:L51,AS13) -> 0 | AU13: =AT13/(AV4-AT8) ->  | AV13: =IF(AU13=0,0,(AU13*((LOG(AU13))/LOG(2)))) -> 
A14: 11 | B14: 669 | C14: 21 | D14: 676 | K14: 0 | L14: 12 | T14: =N14 -> 0 | U14: =COUNTIF(L7:L14,T14) -> 0 | V14: =U14/(W4-U8) ->  | W14: =IF(V14=0,0,(V14*((LOG(V14))/LOG(2)))) ->  | Y14: =N14 -> 0 | Z14: =COUNTIF(L15:L21,Y14) -> 0 | AA14: =Z14/(AB4-Z8) -> 0 | AB14: =IF(AA14=0,0,(AA14*((LOG(AA14))/LOG(2)))) -> 0 | AD14: =N14 -> 0 | AE14: =COUNTIF(L22:L29,AD14) -> 0 | AF14: =AE14/(AG4-AE8) -> 0 | AG14: =IF(AF14=0,0,(AF14*((LOG(AF14))/LOG(2)))) -> 0 | AI14: =N14 -> 0 | AJ14: =COUNTIF(L30:L36,AI14) -> 0 | AK14: =AJ14/(AL4-AJ8) ->  | AL14: =IF(AK14=0,0,(AK14*((LOG(AK14))/LOG(2)))) ->  | AN14: =N14 -> 0 | AO14: =COUNTIF(L37:L44,AN14) -> 0 | AP14: =AO14/(AQ4-AO8) ->  | AQ14: =IF(AP14=0,0,(AP14*((LOG(AP14))/LOG(2)))) ->  | AS14: =N14 -> 0 | AT14: =COUNTIF(L45:L51,AS14) -> 0 | AU14: =AT14/(AV4-AT8) ->  | AV14: =IF(AU14=0,0,(AU14*((LOG(AU14))/LOG(2)))) -> 
A15: 11 | B15: 763 | C15: 21 | D15: 771 | K15: 0 | L15: 12 | P15: =SUM(P7:P14) -> 1 | Q15: =-SUM(Q7:Q14) -> 0.5834725675 | V15: =SUM(V7:V14) ->  | W15: =-SUM(W7:W14) ->  | AA15: =SUM(AA7:AA14) -> 1 | AB15: =-SUM(AB7:AB14) -> 0 | AF15: =SUM(AF7:AF14) -> 1 | AG15: =-SUM(AG7:AG14) -> 1 | AK15: =SUM(AK7:AK14) ->  | AL15: =-SUM(AL7:AL14) ->  | AP15: =SUM(AP7:AP14) ->  | AQ15: =-SUM(AQ7:AQ14) ->  | AU15: =SUM(AU7:AU14) ->  | AV15: =-SUM(AV7:AV14) -> 
A16: 11 | B16: 857 | C16: 21 | D16: 865 | K16: 0 | L16: 12 | P16: U= | Q16: =Q15/(LOG(Q4)/LOG(2)) -> 0.1062432948 | V16: U1= | W16: =W15/(LOG(W4)/LOG(2)) ->  | AA16: U2= | AB16: =AB15/(LOG(AB4)/LOG(2)) -> 0 | AF16: U3= | AG16: =AG15/(LOG(AG4)/LOG(2)) -> 0.3333333333 | AK16: U4= | AL16: =AL15/(LOG(AL4)/LOG(2)) ->  | AP16: U5= | AQ16: =AQ15/(LOG(AQ4)/LOG(2)) ->  | AU16: U6= | AV16: =AV15/(LOG(AV4)/LOG(2)) -> 
A17: 11 | B17: 952 | C17: 12 | D17: 990 | K17: 0 | L17: 11
A18: 11 | B18: 1087 | C18: 12 | D18: 1114 | K18: 0 | L18: 11
A19: 11 | B19: 1211 | C19: 21 | D19: 1219 | K19: 0 | L19: 12 | N19: Total Target Seq
A20: 11 | B20: 1308 | C20: 12 | D20: 1329 | K20: 0 | L20: 11 | N20: =COUNTIF(L7:L51,G3) -> 40 | P20: 8 | Q20: 7 | R20: 8 | S20: 7 | T20: 8 | U20: 7
A21: 11 | B21: 1426 | C21: 21 | D21: 1434 | K21: 0 | L21: 12 | P21: % of reinforcement given in 6 equal intervals based on number of trials
A22: 11 | B22: 1523 | C22: 21 | D22: 1531 | K22: 0 | L22: 12 | P22: %_1 | Q22: %_2 | R22: %_3 | S22: %_4 | T22: %_5 | U22: %_6
A23: 11 | B23: 1617 | C23: 21 | D23: 1624 | K23: 0 | L23: 12 | O23: target sequence | P23: =$G$3 -> 12 | Q23: =$G$3 -> 12 | R23: =$G$3 -> 12 | S23: =$G$3 -> 12 | T23: =$G$3 -> 12 | U23: =$G$3 -> 12
A24: 11 | B24: 1713 | C24: 21 | D24: 1721 | K24: 0 | L24: 12 | O24: total reinforcement | P24: =U8 -> 8 | Q24: =Z8 -> 4 | R24: =AE8 -> 6 | S24: =AJ8 -> 7 | T24: =AO8 -> 8 | U24: =AT8 -> 7
A25: 22 | B25: 1815 | C25: 14 | D25: 1833 | K25: 0 | L25: 21 | O25: % target
A26: 11 | B26: 1927 | C26: 21 | D26: 1934 | K26: 0 | L26: 12 | O26: CCRF
A27: 11 | B27: 2023 | C27: 21 | D27: 2044 | K27: 0 | L27: 12 | O27: % CCRf
A28: 11 | B28: 2131 | C28: 12 | D28: 2157 | K28: 0 | L28: 11 | O28: average response rate | P28: =D14/P20 -> 84.5 | Q28: =(D21-D14)/Q20 -> 108.2857143 | R28: =(D29-D21)/R20 -> 104.75 | S28: =(D36-D29)/S20 -> 96 | T28: =(D44-D36)/T20 -> 103.75 | U28: =(D51-D44)/U20 -> 104
A29: 11 | B29: 2253 | C29: 21 | D29: 2272 | K29: 0 | L29: 12
A30: 11 | B30: 2359 | C30: 21 | D30: 2367 | K30: 0 | L30: 12
A31: 11 | B31: 2454 | C31: 21 | D31: 2462 | K31: 0 | L31: 12
A32: 11 | B32: 2549 | C32: 21 | D32: 2564 | K32: 0 | L32: 12
A33: 11 | B33: 2650 | C33: 21 | D33: 2657 | K33: 0 | L33: 12
A34: 11 | B34: 2743 | C34: 21 | D34: 2756 | K34: 0 | L34: 12
A35: 11 | B35: 2843 | C35: 21 | D35: 2850 | K35: 0 | L35: 12
A36: 11 | B36: 2937 | C36: 21 | D36: 2944 | K36: 0 | L36: 12
A37: 11 | B37: 3030 | C37: 21 | D37: 3037 | K37: 0 | L37: 12
A38: 11 | B38: 3123 | C38: 21 | D38: 3154 | K38: 0 | L38: 12
A39: 11 | B39: 3243 | C39: 21 | D39: 3250 | K39: 0 | L39: 12
A40: 11 | B40: 3338 | C40: 21 | D40: 3350 | K40: 0 | L40: 12
A41: 11 | B41: 3437 | C41: 21 | D41: 3462 | K41: 0 | L41: 12
A42: 11 | B42: 3548 | C42: 21 | D42: 3555 | K42: 0 | L42: 12
A43: 11 | B43: 3642 | C43: 21 | D43: 3674 | K43: 0 | L43: 12
A44: 11 | B44: 3760 | C44: 21 | D44: 3774 | K44: 0 | L44: 12
A45: 11 | B45: 3860 | C45: 21 | D45: 3867 | K45: 0 | L45: 12
A46: 11 | B46: 3953 | C46: 21 | D46: 3964 | K46: 0 | L46: 12
A47: 11 | B47: 4051 | C47: 21 | D47: 4097 | K47: 0 | L47: 12
A48: 11 | B48: 4184 | C48: 21 | D48: 4209 | K48: 0 | L48: 12
A49: 11 | B49: 4295 | C49: 21 | D49: 4302 | K49: 0 | L49: 12
A50: 11 | B50: 4389 | C50: 21 | D50: 4409 | K50: 0 | L50: 12
A51: 11 | B51: 4495 | C51: 21 | D51: 4502 | K51: 1 | L51: 12

Sheet !N225A30.096
A1: Report for:!N225A30.096
A2: Date: | B2: <date>
A3: Hen: | B3: <hen> | F3: Correct Sequence | G3: =Start!J2 -> 12 | P3: Total Sequences in Data | Q3: =4994-COUNTBLANK(L7:L5000) -> 42 | V3: Total Sequences in Block Data | W3: =COUNTA(L7:L13) -> 7 | AA3: Total Sequences in Block Data | AB3: =COUNTA(L14:L20) -> 7 | AF3: Total Sequences in Block Data | AG3: =COUNTA(L21:L27) -> 7 | AK3: Total Sequences in Block Data | AL3: =COUNTA(L28:L34) -> 7 | AP3: Total Sequences in Block Data | AQ3: =COUNTA(L35:L41) -> 7 | AU3: Total Sequences in Block Data | AV3: =COUNTA(L42:L48) -> 7
P4: Total Sequences in Summary | Q4: =SUM(O7:O14) -> 42 | V4: Total Sequences in Block Summary | W4: =SUM(U7:U14) -> 7 | AA4: Total Sequences in Block Summary | AB4: =SUM(Z7:Z14) -> 7 | AF4: Total Sequences in Block Summary | AG4: =SUM(AE7:AE14) -> 7 | AK4: Total Sequences in Block Summary | AL4: =SUM(AJ7:AJ14) -> 7 | AP4: Total Sequences in Block Summary | AQ4: =SUM(AO7:AO14) -> 7 | AU4: Total Sequences in Block Summary | AV4: =SUM(AT7:AT14) -> 7
T5: Block 1 | Y5: Block 2 | AD5: Block 3 | AI5: Block 4 | AN5: Block 5 | AS5: Block 6
A6: Sequence Component 1 | B6: Time 1 | C6: Sequence Component 2 | D6: Time 2 | E6: Sequence Component 3 | F6: Time 3 | G6: Sequence Component 4 | H6: Time 4 | I6: Sequence Component 5 | J6: Time 5 | K6: Correct? 0=No 1=Yes | L6: Sequence | N6: Frequency | P6: Relative Frequency | Q6: Variability | T6: Frequency | V6: Relative Frequency | W6: Variability | Y6: Frequency | AA6: Relative Frequency | AB6: Variability | AD6: Frequency | AF6: Relative Frequency | AG6: Variability | AI6: Frequency | AK6: Relative Frequency | AL6: Variability | AN6: Frequency | AP6: Relative Frequency | AQ6: Variability | AS6: Frequency | AU6: Relative Frequency | AV6: Variability
A7: 11 | B7: 7 | C7: 21 | D7: 14 | K7: 0 | L7: 12 | N7: 11 | O7: =COUNTIF($L$7:$L$500,N7) -> 2 | P7: =O7/$Q$4 -> 0.04761904762 | Q7: =IF(P7=0,0,(P7*((LOG(P7))/LOG(2)))) -> -0.2091579725 | T7: =N7 -> 11 | U7: =COUNTIF(L7:L13,T7) -> 0 | V7: =U7/(W4-U8) ->  | W7: =IF(V7=0,0,(V7*((LOG(V7))/LOG(2)))) ->  | Y7: =N7 -> 11 | Z7: =COUNTIF(L14:L20,Y7) -> 0 | AA7: =Z7/(AB4-Z8) ->  | AB7: =IF(AA7=0,0,(AA7*((LOG(AA7))/LOG(2)))) ->  | AD7: =N7 -> 11 | AE7: =COUNTIF(L21:L27,AD7) -> 0 | AF7: =AE7/(AG4-AE8) ->  | AG7: =IF(AF7=0,0,(AF7*((LOG(AF7))/LOG(2)))) ->  | AI7: =N7 -> 11 | AJ7: =COUNTIF(L28:L34,AI7) -> 0 | AK7: =AJ7/(AL4-AJ8) ->  | AL7: =IF(AK7=0,0,(AK7*((LOG(AK7))/LOG(2)))) ->  | AN7: =N7 -> 11 | AO7: =COUNTIF(L35:L41,AN7) -> 1 | AP7: =AO7/(AQ4-AO8) -> 1 | AQ7: =IF(AP7=0,0,(AP7*((LOG(AP7))/LOG(2)))) -> 0 | AS7: =N7 -> 11 | AT7: =COUNTIF(L42:L48,AS7) -> 1 | AU7: =AT7/(AV4-AT8) -> 1 | AV7: =IF(AU7=0,0,(AU7*((LOG(AU7))/LOG(2)))) -> 0
A8: 11 | B8: 102 | C8: 21 | D8: 110 | K8: 0 | L8: 12 | N8: 12 | O8: =COUNTIF($L$7:$L$500,N8) -> 40 | P8: =O8/$Q$4 -> 0.9523809524 | Q8: =IF(P8=0,0,(P8*((LOG(P8))/LOG(2)))) -> -0.06703745513 | T8: =N8 -> 12 | U8: =COUNTIF(L7:L13,T8) -> 7 | Y8: =N8 -> 12 | Z8: =COUNTIF(L14:L20,Y8) -> 7 | AD8: =N8 -> 12 | AE8: =COUNTIF(L21:L27,AD8) -> 7 | AI8: =N8 -> 12 | AJ8: =COUNTIF(L28:L34,AI8) -> 7 | AN8: =N8 -> 12 | AO8: =COUNTIF(L35:L41,AN8) -> 6 | AS8: =N8 -> 12 | AT8: =COUNTIF(L42:L48,AS8) -> 6
A9: 11 | B9: 196 | C9: 21 | D9: 210 | K9: 0 | L9: 12 | N9: 21 | O9: =COUNTIF($L$7:$L$500,N9) -> 0 | P9: =O9/$Q$4 -> 0 | Q9: =IF(P9=0,0,(P9*((LOG(P9))/LOG(2)))) -> 0 | T9: =N9 -> 21 | U9: =COUNTIF(L7:L13,T9) -> 0 | V9: =U9/(W4-U8) ->  | W9: =IF(V9=0,0,(V9*((LOG(V9))/LOG(2)))) ->  | Y9: =N9 -> 21 | Z9: =COUNTIF(L14:L20,Y9) -> 0 | AA9: =Z9/(AB4-Z8) ->  | AB9: =IF(AA9=0,0,(AA9*((LOG(AA9))/LOG(2)))) ->  | AD9: =N9 -> 21 | AE9: =COUNTIF(L21:L27,AD9) -> 0 | AF9: =AE9/(AG4-AE8) ->  | AG9: =IF(AF9=0,0,(AF9*((LOG(AF9))/LOG(2)))) ->  | AI9: =N9 -> 21 | AJ9: =COUNTIF(L28:L34,AI9) -> 0 | AK9: =AJ9/(AL4-AJ8) ->  | AL9: =IF(AK9=0,0,(AK9*((LOG(AK9))/LOG(2)))) ->  | AN9: =N9 -> 21 | AO9: =COUNTIF(L35:L41,AN9) -> 0 | AP9: =AO9/(AQ4-AO8) -> 0 | AQ9: =IF(AP9=0,0,(AP9*((LOG(AP9))/LOG(2)))) -> 0 | AS9: =N9 -> 21 | AT9: =COUNTIF(L42:L48,AS9) -> 0 | AU9: =AT9/(AV4-AT8) -> 0 | AV9: =IF(AU9=0,0,(AU9*((LOG(AU9))/LOG(2)))) -> 0
A10: 11 | B10: 296 | C10: 21 | D10: 302 | K10: 0 | L10: 12 | N10: 22 | O10: =COUNTIF($L$7:$L$500,N10) -> 0 | P10: =O10/$Q$4 -> 0 | Q10: =IF(P10=0,0,(P10*((LOG(P10))/LOG(2)))) -> 0 | T10: =N10 -> 22 | U10: =COUNTIF(L7:L13,T10) -> 0 | V10: =U10/(W4-U8) ->  | W10: =IF(V10=0,0,(V10*((LOG(V10))/LOG(2)))) ->  | Y10: =N10 -> 22 | Z10: =COUNTIF(L14:L20,Y10) -> 0 | AA10: =Z10/(AB4-Z8) ->  | AB10: =IF(AA10=0,0,(AA10*((LOG(AA10))/LOG(2)))) ->  | AD10: =N10 -> 22 | AE10: =COUNTIF(L21:L27,AD10) -> 0 | AF10: =AE10/(AG4-AE8) ->  | AG10: =IF(AF10=0,0,(AF10*((LOG(AF10))/LOG(2)))) ->  | AI10: =N10 -> 22 | AJ10: =COUNTIF(L28:L34,AI10) -> 0 | AK10: =AJ10/(AL4-AJ8) ->  | AL10: =IF(AK10=0,0,(AK10*((LOG(AK10))/LOG(2)))) ->  | AN10: =N10 -> 22 | AO10: =COUNTIF(L35:L41,AN10) -> 0 | AP10: =AO10/(AQ4-AO8) -> 0 | AQ10: =IF(AP10=0,0,(AP10*((LOG(AP10))/LOG(2)))) -> 0 | AS10: =N10 -> 22 | AT10: =COUNTIF(L42:L48,AS10) -> 0 | AU10: =AT10/(AV4-AT8) -> 0 | AV10: =IF(AU10=0,0,(AU10*((LOG(AU10))/LOG(2)))) -> 0
A11: 11 | B11: 389 | C11: 21 | D11: 396 | K11: 0 | L11: 12 | T11: =N11 -> 0 | U11: =COUNTIF(L7:L13,T11) -> 0 | V11: =U11/(W4-U8) ->  | W11: =IF(V11=0,0,(V11*((LOG(V11))/LOG(2)))) ->  | Y11: =N11 -> 0 | Z11: =COUNTIF(L14:L20,Y11) -> 0 | AA11: =Z11/(AB4-Z8) ->  | AB11: =IF(AA11=0,0,(AA11*((LOG(AA11))/LOG(2)))) ->  | AD11: =N11 -> 0 | AE11: =COUNTIF(L21:L27,AD11) -> 0 | AF11: =AE11/(AG4-AE8) ->  | AG11: =IF(AF11=0,0,(AF11*((LOG(AF11))/LOG(2)))) ->  | AI11: =N11 -> 0 | AJ11: =COUNTIF(L28:L34,AI11) -> 0 | AK11: =AJ11/(AL4-AJ8) ->  | AL11: =IF(AK11=0,0,(AK11*((LOG(AK11))/LOG(2)))) ->  | AN11: =N11 -> 0 | AO11: =COUNTIF(L35:L41,AN11) -> 0 | AP11: =AO11/(AQ4-AO8) -> 0 | AQ11: =IF(AP11=0,0,(AP11*((LOG(AP11))/LOG(2)))) -> 0 | AS11: =N11 -> 0 | AT11: =COUNTIF(L42:L48,AS11) -> 0 | AU11: =AT11/(AV4-AT8) -> 0 | AV11: =IF(AU11=0,0,(AU11*((LOG(AU11))/LOG(2)))) -> 0
A12: 11 | B12: 482 | C12: 21 | D12: 517 | K12: 0 | L12: 12 | T12: =N12 -> 0 | U12: =COUNTIF(L7:L13,T12) -> 0 | V12: =U12/(W4-U8) ->  | W12: =IF(V12=0,0,(V12*((LOG(V12))/LOG(2)))) ->  | Y12: =N12 -> 0 | Z12: =COUNTIF(L14:L20,Y12) -> 0 | AA12: =Z12/(AB4-Z8) ->  | AB12: =IF(AA12=0,0,(AA12*((LOG(AA12))/LOG(2)))) ->  | AD12: =N12 -> 0 | AE12: =COUNTIF(L21:L27,AD12) -> 0 | AF12: =AE12/(AG4-AE8) ->  | AG12: =IF(AF12=0,0,(AF12*((LOG(AF12))/LOG(2)))) ->  | AI12: =N12 -> 0 | AJ12: =COUNTIF(L28:L34,AI12) -> 0 | AK12: =AJ12/(AL4-AJ8) ->  | AL12: =IF(AK12=0,0,(AK12*((LOG(AK12))/LOG(2)))) ->  | AN12: =N12 -> 0 | AO12: =COUNTIF(L35:L41,AN12) -> 0 | AP12: =AO12/(AQ4-AO8) -> 0 | AQ12: =IF(AP12=0,0,(AP12*((LOG(AP12))/LOG(2)))) -> 0 | AS12: =N12 -> 0 | AT12: =COUNTIF(L42:L48,AS12) -> 0 | AU12: =AT12/(AV4-AT8) -> 0 | AV12: =IF(AU12=0,0,(AU12*((LOG(AU12))/LOG(2)))) -> 0
A13: 11 | B13: 604 | C13: 21 | D13: 611 | K13: 0 | L13: 12 | T13: =N13 -> 0 | U13: =COUNTIF(L7:L13,T13) -> 0 | V13: =U13/(W4-U8) ->  | W13: =IF(V13=0,0,(V13*((LOG(V13))/LOG(2)))) ->  | Y13: =N13 -> 0 | Z13: =COUNTIF(L14:L20,Y13) -> 0 | AA13: =Z13/(AB4-Z8) ->  | AB13: =IF(AA13=0,0,(AA13*((LOG(AA13))/LOG(2)))) ->  | AD13: =N13 -> 0 | AE13: =COUNTIF(L21:L27,AD13) -> 0 | AF13: =AE13/(AG4-AE8) ->  | AG13: =IF(AF13=0,0,(AF13*((LOG(AF13))/LOG(2)))) ->  | AI13: =N13 -> 0 | AJ13: =COUNTIF(L28:L34,AI13) -> 0 | AK13: =AJ13/(AL4-AJ8) ->  | AL13: =IF(AK13=0,0,(AK13*((LOG(AK13))/LOG(2)))) ->  | AN13: =N13 -> 0 | AO13: =COUNTIF(L35:L41,AN13) -> 0 | AP13: =AO13/(AQ4-AO8) -> 0 | AQ13: =IF(AP13=0,0,(AP13*((LOG(AP13))/LOG(2)))) -> 0 | AS13: =N13 -> 0 | AT13: =COUNTIF(L42:L48,AS13) -> 0 | AU13: =AT13/(AV4-AT8) -> 0 | AV13: =IF(AU13=0,0,(AU13*((LOG(AU13))/LOG(2)))) -> 0
A14: 11 | B14: 693 | C14: 21 | D14: 707 | K14: 0 | L14: 12 | T14: =N14 -> 0 | U14: =COUNTIF(L7:L13,T14) -> 0 | V14: =U14/(W4-U8) ->  | W14: =IF(V14=0,0,(V14*((LOG(V14))/LOG(2)))) ->  | Y14: =N14 -> 0 | Z14: =COUNTIF(L14:L20,Y14) -> 0 | AA14: =Z14/(AB4-Z8) ->  | AB14: =IF(AA14=0,0,(AA14*((LOG(AA14))/LOG(2)))) ->  | AD14: =N14 -> 0 | AE14: =COUNTIF(L21:L27,AD14) -> 0 | AF14: =AE14/(AG4-AE8) ->  | AG14: =IF(AF14=0,0,(AF14*((LOG(AF14))/LOG(2)))) ->  | AI14: =N14 -> 0 | AJ14: =COUNTIF(L28:L34,AI14) -> 0 | AK14: =AJ14/(AL4-AJ8) ->  | AL14: =IF(AK14=0,0,(AK14*((LOG(AK14))/LOG(2)))) ->  | AN14: =N14 -> 0 | AO14: =COUNTIF(L35:L41,AN14) -> 0 | AP14: =AO14/(AQ4-AO8) -> 0 | AQ14: =IF(AP14=0,0,(AP14*((LOG(AP14))/LOG(2)))) -> 0 | AS14: =N14 -> 0 | AT14: =COUNTIF(L42:L48,AS14) -> 0 | AU14: =AT14/(AV4-AT8) -> 0 | AV14: =IF(AU14=0,0,(AU14*((LOG(AU14))/LOG(2)))) -> 0
A15: 11 | B15: 794 | C15: 21 | D15: 801 | K15: 0 | L15: 12 | P15: =SUM(P7:P14) -> 1 | Q15: =-SUM(Q7:Q14) -> 0.2761954276 | V15: =SUM(V7:V14) ->  | W15: =-SUM(W7:W14) ->  | AA15: =SUM(AA7:AA14) ->  | AB15: =-SUM(AB7:AB14) ->  | AF15: =SUM(AF7:AF14) ->  | AG15: =-SUM(AG7:AG14) ->  | AK15: =SUM(AK7:AK14) ->  | AL15: =-SUM(AL7:AL14) ->  | AP15: =SUM(AP7:AP14) -> 1 | AQ15: =-SUM(AQ7:AQ14) -> 0 | AU15: =SUM(AU7:AU14) -> 1 | AV15: =-SUM(AV7:AV14) -> 0
A16: 11 | B16: 888 | C16: 21 | D16: 912 | K16: 0 | L16: 12 | P16: U= | Q16: =Q15/(LOG(Q4)/LOG(2)) -> 0.05122017233 | V16: U1= | W16: =W15/(LOG(W4)/LOG(2)) ->  | AA16: U2= | AB16: =AB15/(LOG(AB4)/LOG(2)) ->  | AF16: U3= | AG16: =AG15/(LOG(AG4)/LOG(2)) ->  | AK16: U4= | AL16: =AL15/(LOG(AL4)/LOG(2)) ->  | AP16: U5= | AQ16: =AQ15/(LOG(AQ4)/LOG(2)) -> 0 | AU16: U6= | AV16: =AV15/(LOG(AV4)/LOG(2)) -> 0
A17: 11 | B17: 999 | C17: 21 | D17: 1007 | K17: 0 | L17: 12
A18: 11 | B18: 1095 | C18: 21 | D18: 1103 | K18: 0 | L18: 12
A19: 11 | B19: 1190 | C19: 21 | D19: 1197 | K19: 0 | L19: 12 | N19: Total Target Seq
A20: 11 | B20: 1283 | C20: 21 | D20: 1290 | K20: 0 | L20: 12 | N20: =COUNTIF(L7:L48,G3) -> 40 | P20: 7 | Q20: 7 | R20: 7 | S20: 7 | T20: 7 | U20: 7
A21: 11 | B21: 1376 | C21: 21 | D21: 1383 | K21: 0 | L21: 12 | P21: % of reinforcement given in 6 equal intervals based on number of trials
A22: 11 | B22: 1470 | C22: 21 | D22: 1477 | K22: 0 | L22: 12 | P22: %_1 | Q22: %_2 | R22: %_3 | S22: %_4 | T22: %_5 | U22: %_6
A23: 11 | B23: 1564 | C23: 21 | D23: 1571 | K23: 0 | L23: 12 | O23: target sequence | P23: =$G$3 -> 12 | Q23: =$G$3 -> 12 | R23: =$G$3 -> 12 | S23: =$G$3 -> 12 | T23: =$G$3 -> 12 | U23: =$G$3 -> 12
A24: 11 | B24: 1655 | C24: 21 | D24: 1662 | K24: 0 | L24: 12 | O24: total reinforcement | P24: =U8 -> 7 | Q24: =Z8 -> 7 | R24: =AE8 -> 7 | S24: =AJ8 -> 7 | T24: =AO8 -> 6 | U24: =AT8 -> 6
A25: 11 | B25: 1750 | C25: 21 | D25: 1756 | K25: 0 | L25: 12 | O25: % target
A26: 11 | B26: 1842 | C26: 21 | D26: 1849 | K26: 0 | L26: 12 | O26: CCRF
A27: 11 | B27: 1935 | C27: 21 | D27: 1942 | K27: 0 | L27: 12 | O27: % CCRf
A28: 11 | B28: 2032 | C28: 21 | D28: 2048 | K28: 0 | L28: 12 | O28: average response rate | P28: =D13/P20 -> 87.28571429 | Q28: =(D20-D13)/Q20 -> 97 | R28: =(D27-D20)/R20 -> 93.14285714 | S28: =(D34-D27)/S20 -> 104.5714286 | T28: =(D41-D34)/T20 -> 101.4285714 | U28: =(D48-D41)/U20 -> 98.85714286
A29: 11 | B29: 2134 | C29: 21 | D29: 2141 | K29: 0 | L29: 12
A30: 11 | B30: 2227 | C30: 21 | D30: 2234 | K30: 0 | L30: 12
A31: 11 | B31: 2320 | C31: 21 | D31: 2333 | K31: 0 | L31: 12
A32: 11 | B32: 2419 | C32: 21 | D32: 2426 | K32: 0 | L32: 12
A33: 11 | B33: 2515 | C33: 21 | D33: 2533 | K33: 0 | L33: 12
A34: 11 | B34: 2617 | C34: 21 | D34: 2674 | K34: 0 | L34: 12
A35: 11 | B35: 2760 | C35: 21 | D35: 2773 | K35: 0 | L35: 12
A36: 11 | B36: 2856 | C36: 12 | D36: 2862 | K36: 0 | L36: 11
A37: 11 | B37: 2951 | C37: 21 | D37: 2958 | K37: 0 | L37: 12
A38: 11 | B38: 3043 | C38: 21 | D38: 3104 | K38: 0 | L38: 12
A39: 11 | B39: 3191 | C39: 21 | D39: 3198 | K39: 0 | L39: 12
A40: 11 | B40: 3284 | C40: 21 | D40: 3291 | K40: 0 | L40: 12
A41: 11 | B41: 3378 | C41: 21 | D41: 3384 | K41: 0 | L41: 12
A42: 11 | B42: 3472 | C42: 12 | D42: 3482 | K42: 0 | L42: 11
A43: 11 | B43: 3579 | C43: 21 | D43: 3586 | K43: 0 | L43: 12
A44: 11 | B44: 3673 | C44: 21 | D44: 3680 | K44: 0 | L44: 12
A45: 11 | B45: 3766 | C45: 21 | D45: 3792 | K45: 0 | L45: 12
A46: 11 | B46: 3878 | C46: 21 | D46: 3890 | K46: 0 | L46: 12
A47: 11 | B47: 3976 | C47: 21 | D47: 3981 | K47: 0 | L47: 12
A48: 11 | B48: 4068 | C48: 21 | D48: 4076 | K48: 1 | L48: 12

Sheet !N227B10.096
A1: Report for:!N227B10.096
A2: Date: | B2: <date>
A3: Hen: | B3: <hen> | F3: Correct Sequence | G3: =Start!J2 -> 12 | P3: Total Sequences in Data | Q3: =4994-COUNTBLANK(L7:L5000) -> 44 | V3: Total Sequences in Block Data | W3: =COUNTA(L7:L13) -> 7 | AA3: Total Sequences in Block Data | AB3: =COUNTA(L14:L21) -> 8 | AF3: Total Sequences in Block Data | AG3: =COUNTA(L22:L28) -> 7 | AK3: Total Sequences in Block Data | AL3: =COUNTA(L29:L35) -> 7 | AP3: Total Sequences in Block Data | AQ3: =COUNTA(L36:L43) -> 8 | AU3: Total Sequences in Block Data | AV3: =COUNTA(L44:L50) -> 7
P4: Total Sequences in Summary | Q4: =SUM(O7:O14) -> 44 | V4: Total Sequences in Block Summary | W4: =SUM(U7:U14) -> 7 | AA4: Total Sequences in Block Summary | AB4: =SUM(Z7:Z14) -> 8 | AF4: Total Sequences in Block Summary | AG4: =SUM(AE7:AE14) -> 7 | AK4: Total Sequences in Block Summary | AL4: =SUM(AJ7:AJ14) -> 7 | AP4: Total Sequences in Block Summary | AQ4: =SUM(AO7:AO14) -> 8 | AU4: Total Sequences in Block Summary | AV4: =SUM(AT7:AT14) -> 7
T5: Block 1 | Y5: Block 2 | AD5: Block 3 | AI5: Block 4 | AN5: Block 5 | AS5: Block 6
A6: Sequence Component 1 | B6: Time 1 | C6: Sequence Component 2 | D6: Time 2 | E6: Sequence Component 3 | F6: Time 3 | G6: Sequence Component 4 | H6: Time 4 | I6: Sequence Component 5 | J6: Time 5 | K6: Correct? 0=No 1=Yes | L6: Sequence | N6: Frequency | P6: Relative Frequency | Q6: Variability | T6: Frequency | V6: Relative Frequency | W6: Variability | Y6: Frequency | AA6: Relative Frequency | AB6: Variability | AD6: Frequency | AF6: Relative Frequency | AG6: Variability | AI6: Frequency | AK6: Relative Frequency | AL6: Variability | AN6: Frequency | AP6: Relative Frequency | AQ6: Variability | AS6: Frequency | AU6: Relative Frequency | AV6: Variability
A7: 11 | B7: 8 | C7: 21 | D7: 16 | K7: 0 | L7: 12 | N7: 11 | O7: =COUNTIF($L$7:$L$500,N7) -> 0 | P7: =O7/$Q$4 -> 0 | Q7: =IF(P7=0,0,(P7*((LOG(P7))/LOG(2)))) -> 0 | T7: =N7 -> 11 | U7: =COUNTIF(L7:L13,T7) -> 0 | V7: =U7/(W4-U8) -> 0 | W7: =IF(V7=0,0,(V7*((LOG(V7))/LOG(2)))) -> 0 | Y7: =N7 -> 11 | Z7: =COUNTIF(L14:L21,Y7) -> 0 | AA7: =Z7/(AB4-Z8) ->  | AB7: =IF(AA7=0,0,(AA7*((LOG(AA7))/LOG(2)))) ->  | AD7: =N7 -> 11 | AE7: =COUNTIF(L22:L28,AD7) -> 0 | AF7: =AE7/(AG4-AE8) -> 0 | AG7: =IF(AF7=0,0,(AF7*((LOG(AF7))/LOG(2)))) -> 0 | AI7: =N7 -> 11 | AJ7: =COUNTIF(L29:L35,AI7) -> 0 | AK7: =AJ7/(AL4-AJ8) ->  | AL7: =IF(AK7=0,0,(AK7*((LOG(AK7))/LOG(2)))) ->  | AN7: =N7 -> 11 | AO7: =COUNTIF(L36:L43,AN7) -> 0 | AP7: =AO7/(AQ4-AO8) -> 0 | AQ7: =IF(AP7=0,0,(AP7*((LOG(AP7))/LOG(2)))) -> 0 | AS7: =N7 -> 11 | AT7: =COUNTIF(L44:L50,AS7) -> 0 | AU7: =AT7/(AV4-AT8) ->  | AV7: =IF(AU7=0,0,(AU7*((LOG(AU7))/LOG(2)))) -> 
A8: 11 | B8: 104 | C8: 21 | D8: 112 | K8: 0 | L8: 12 | N8: 12 | O8: =COUNTIF($L$7:$L$500,N8) -> 40 | P8: =O8/$Q$4 -> 0.9090909091 | Q8: =IF(P8=0,0,(P8*((LOG(P8))/LOG(2)))) -> -0.1250032034 | T8: =N8 -> 12 | U8: =COUNTIF(L7:L13,T8) -> 5 | Y8: =N8 -> 12 | Z8: =COUNTIF(L14:L21,Y8) -> 8 | AD8: =N8 -> 12 | AE8: =COUNTIF(L22:L28,AD8) -> 6 | AI8: =N8 -> 12 | AJ8: =COUNTIF(L29:L35,AI8) -> 7 | AN8: =N8 -> 12 | AO8: =COUNTIF(L36:L43,AN8) -> 7 | AS8: =N8 -> 12 | AT8: =COUNTIF(L44:L50,AS8) -> 7
A9: 22 | B9: 205 | C9: 14 | D9: 223 | K9: 0 | L9: 21 | N9: 21 | O9: =COUNTIF($L$7:$L$500,N9) -> 1 | P9: =O9/$Q$4 -> 0.02272727273 | Q9: =IF(P9=0,0,(P9*((LOG(P9))/LOG(2)))) -> -0.1240779913 | T9: =N9 -> 21 | U9: =COUNTIF(L7:L13,T9) -> 1 | V9: =U9/(W4-U8) -> 0.5 | W9: =IF(V9=0,0,(V9*((LOG(V9))/LOG(2)))) -> -0.5 | Y9: =N9 -> 21 | Z9: =COUNTIF(L14:L21,Y9) -> 0 | AA9: =Z9/(AB4-Z8) ->  | AB9: =IF(AA9=0,0,(AA9*((LOG(AA9))/LOG(2)))) ->  | AD9: =N9 -> 21 | AE9: =COUNTIF(L22:L28,AD9) -> 0 | AF9: =AE9/(AG4-AE8) -> 0 | AG9: =IF(AF9=0,0,(AF9*((LOG(AF9))/LOG(2)))) -> 0 | AI9: =N9 -> 21 | AJ9: =COUNTIF(L29:L35,AI9) -> 0 | AK9: =AJ9/(AL4-AJ8) ->  | AL9: =IF(AK9=0,0,(AK9*((LOG(AK9))/LOG(2)))) ->  | AN9: =N9 -> 21 | AO9: =COUNTIF(L36:L43,AN9) -> 0 | AP9: =AO9/(AQ4-AO8) -> 0 | AQ9: =IF(AP9=0,0,(AP9*((LOG(AP9))/LOG(2)))) -> 0 | AS9: =N9 -> 21 | AT9: =COUNTIF(L44:L50,AS9) -> 0 | AU9: =AT9/(AV4-AT8) ->  | AV9: =IF(AU9=0,0,(AU9*((LOG(AU9))/LOG(2)))) -> 
A10: 11 | B10: 321 | C10: 21 | D10: 327 | K10: 0 | L10: 12 | N10: 22 | O10: =COUNTIF($L$7:$L$500,N10) -> 3 | P10: =O10/$Q$4 -> 0.06818181818 | Q10: =IF(P10=0,0,(P10*((LOG(P10))/LOG(2)))) -> -0.2641683489 | T10: =N10 -> 22 | U10: =COUNTIF(L7:L13,T10) -> 1 | V10: =U10/(W4-U8) -> 0.5 | W10: =IF(V10=0,0,(V10*((LOG(V10))/LOG(2)))) -> -0.5 | Y10: =N10 -> 22 | Z10: =COUNTIF(L14:L21,Y10) -> 0 | AA10: =Z10/(AB4-Z8) ->  | AB10: =IF(AA10=0,0,(AA10*((LOG(AA10))/LOG(2)))) ->  | AD10: =N10 -> 22 | AE10: =COUNTIF(L22:L28,AD10) -> 1 | AF10: =AE10/(AG4-AE8) -> 1 | AG10: =IF(AF10=0,0,(AF10*((LOG(AF10))/LOG(2)))) -> 0 | AI10: =N10 -> 22 | AJ10: =COUNTIF(L29:L35,AI10) -> 0 | AK10: =AJ10/(AL4-AJ8) ->  | AL10: =IF(AK10=0,0,(AK10*((LOG(AK10))/LOG(2)))) ->  | AN10: =N10 -> 22 | AO10: =COUNTIF(L36:L43,AN10) -> 1 | AP10: =AO10/(AQ4-AO8) -> 1 | AQ10: =IF(AP10=0,0,(AP10*((LOG(AP10))/LOG(2)))) -> 0 | AS10: =N10 -> 22 | AT10: =COUNTIF(L44:L50,AS10) -> 0 | AU10: =AT10/(AV4-AT8) ->  | AV10: =IF(AU10=0,0,(AU10*((LOG(AU10))/LOG(2)))) -> 
A11: 11 | B11: 414 | C11: 21 | D11: 421 | K11: 0 | L11: 12 | T11: =N11 -> 0 | U11: =COUNTIF(L7:L13,T11) -> 0 | V11: =U11/(W4-U8) -> 0 | W11: =IF(V11=0,0,(V11*((LOG(V11))/LOG(2)))) -> 0 | Y11: =N11 -> 0 | Z11: =COUNTIF(L14:L21,Y11) -> 0 | AA11: =Z11/(AB4-Z8) ->  | AB11: =IF(AA11=0,0,(AA11*((LOG(AA11))/LOG(2)))) ->  | AD11: =N11 -> 0 | AE11: =COUNTIF(L22:L28,AD11) -> 0 | AF11: =AE11/(AG4-AE8) -> 0 | AG11: =IF(AF11=0,0,(AF11*((LOG(AF11))/LOG(2)))) -> 0 | AI11: =N11 -> 0 | AJ11: =COUNTIF(L29:L35,AI11) -> 0 | AK11: =AJ11/(AL4-AJ8) ->  | AL11: =IF(AK11=0,0,(AK11*((LOG(AK11))/LOG(2)))) ->  | AN11: =N11 -> 0 | AO11: =COUNTIF(L36:L43,AN11) -> 0 | AP11: =AO11/(AQ4-AO8) -> 0 | AQ11: =IF(AP11=0,0,(AP11*((LOG(AP11))/LOG(2)))) -> 0 | AS11: =N11 -> 0 | AT11: =COUNTIF(L44:L50,AS11) -> 0 | AU11: =AT11/(AV4-AT8) ->  | AV11: =IF(AU11=0,0,(AU11*((LOG(AU11))/LOG(2)))) -> 
A12: 22 | B12: 514 | C12: 23 | D12: 524 | K12: 0 | L12: 22 | T12: =N12 -> 0 | U12: =COUNTIF(L7:L13,T12) -> 0 | V12: =U12/(W4-U8) -> 0 | W12: =IF(V12=0,0,(V12*((LOG(V12))/LOG(2)))) -> 0 | Y12: =N12 -> 0 | Z12: =COUNTIF(L14:L21,Y12) -> 0 | AA12: =Z12/(AB4-Z8) ->  | AB12: =IF(AA12=0,0,(AA12*((LOG(AA12))/LOG(2)))) ->  | AD12: =N12 -> 0 | AE12: =COUNTIF(L22:L28,AD12) -> 0 | AF12: =AE12/(AG4-AE8) -> 0 | AG12: =IF(AF12=0,0,(AF12*((LOG(AF12))/LOG(2)))) -> 0 | AI12: =N12 -> 0 | AJ12: =COUNTIF(L29:L35,AI12) -> 0 | AK12: =AJ12/(AL4-AJ8) ->  | AL12: =IF(AK12=0,0,(AK12*((LOG(AK12))/LOG(2)))) ->  | AN12: =N12 -> 0 | AO12: =COUNTIF(L36:L43,AN12) -> 0 | AP12: =AO12/(AQ4-AO8) -> 0 | AQ12: =IF(AP12=0,0,(AP12*((LOG(AP12))/LOG(2)))) -> 0 | AS12: =N12 -> 0 | AT12: =COUNTIF(L44:L50,AS12) -> 0 | AU12: =AT12/(AV4-AT8) ->  | AV12: =IF(AU12=0,0,(AU12*((LOG(AU12))/LOG(2)))) -> 
A13: 11 | B13: 621 | C13: 21 | D13: 626 | K13: 0 | L13: 12 | T13: =N13 -> 0 | U13: =COUNTIF(L7:L13,T13) -> 0 | V13: =U13/(W4-U8) -> 0 | W13: =IF(V13=0,0,(V13*((LOG(V13))/LOG(2)))) -> 0 | Y13: =N13 -> 0 | Z13: =COUNTIF(L14:L21,Y13) -> 0 | AA13: =Z13/(AB4-Z8) ->  | AB13: =IF(AA13=0,0,(AA13*((LOG(AA13))/LOG(2)))) ->  | AD13: =N13 -> 0 | AE13: =COUNTIF(L22:L28,AD13) -> 0 | AF13: =AE13/(AG4-AE8) -> 0 | AG13: =IF(AF13=0,0,(AF13*((LOG(AF13))/LOG(2)))) -> 0 | AI13: =N13 -> 0 | AJ13: =COUNTIF(L29:L35,AI13) -> 0 | AK13: =AJ13/(AL4-AJ8) ->  | AL13: =IF(AK13=0,0,(AK13*((LOG(AK13))/LOG(2)))) ->  | AN13: =N13 -> 0 | AO13: =COUNTIF(L36:L43,AN13) -> 0 | AP13: =AO13/(AQ4-AO8) -> 0 | AQ13: =IF(AP13=0,0,(AP13*((LOG(AP13))/LOG(2)))) -> 0 | AS13: =N13 -> 0 | AT13: =COUNTIF(L44:L50,AS13) -> 0 | AU13: =AT13/(AV4-AT8) ->  | AV13: =IF(AU13=0,0,(AU13*((LOG(AU13))/LOG(2)))) -> 
A14: 11 | B14: 714 | C14: 21 | D14: 732 | K14: 0 | L14: 12 | T14: =N14 -> 0 | U14: =COUNTIF(L7:L13,T14) -> 0 | V14: =U14/(W4-U8) -> 0 | W14: =IF(V14=0,0,(V14*((LOG(V14))/LOG(2)))) -> 0 | Y14: =N14 -> 0 | Z14: =COUNTIF(L14:L21,Y14) -> 0 | AA14: =Z14/(AB4-Z8) ->  | AB14: =IF(AA14=0,0,(AA14*((LOG(AA14))/LOG(2)))) ->  | AD14: =N14 -> 0 | AE14: =COUNTIF(L22:L28,AD14) -> 0 | AF14: =AE14/(AG4-AE8) -> 0 | AG14: =IF(AF14=0,0,(AF14*((LOG(AF14))/LOG(2)))) -> 0 | AI14: =N14 -> 0 | AJ14: =COUNTIF(L29:L35,AI14) -> 0 | AK14: =AJ14/(AL4-AJ8) ->  | AL14: =IF(AK14=0,0,(AK14*((LOG(AK14))/LOG(2)))) ->  | AN14: =N14 -> 0 | AO14: =COUNTIF(L36:L43,AN14) -> 0 | AP14: =AO14/(AQ4-AO8) -> 0 | AQ14: =IF(AP14=0,0,(AP14*((LOG(AP14))/LOG(2)))) -> 0 | AS14: =N14 -> 0 | AT14: =COUNTIF(L44:L50,AS14) -> 0 | AU14: =AT14/(AV4-AT8) ->  | AV14: =IF(AU14=0,0,(AU14*((LOG(AU14))/LOG(2)))) -> 
A15: 11 | B15: 818 | C15: 21 | D15: 825 | K15: 0 | L15: 12 | P15: =SUM(P7:P14) -> 1 | Q15: =-SUM(Q7:Q14) -> 0.5132495437 | V15: =SUM(V7:V14) -> 1 | W15: =-SUM(W7:W14) -> 1 | AA15: =SUM(AA7:AA14) ->  | AB15: =-SUM(AB7:AB14) ->  | AF15: =SUM(AF7:AF14) -> 1 | AG15: =-SUM(AG7:AG14) -> 0 | AK15: =SUM(AK7:AK14) ->  | AL15: =-SUM(AL7:AL14) ->  | AP15: =SUM(AP7:AP14) -> 1 | AQ15: =-SUM(AQ7:AQ14) -> 0 | AU15: =SUM(AU7:AU14) ->  | AV15: =-SUM(AV7:AV14) -> 
A16: 11 | B16: 913 | C16: 21 | D16: 920 | K16: 0 | L16: 12 | P16: U= | Q16: =Q15/(LOG(Q4)/LOG(2)) -> 0.09401153445 | V16: U1= | W16: =W15/(LOG(W4)/LOG(2)) -> 0.3562071871 | AA16: U2= | AB16: =AB15/(LOG(AB4)/LOG(2)) ->  | AF16: U3= | AG16: =AG15/(LOG(AG4)/LOG(2)) -> 0 | AK16: U4= | AL16: =AL15/(LOG(AL4)/LOG(2)) ->  | AP16: U5= | AQ16: =AQ15/(LOG(AQ4)/LOG(2)) -> 0 | AU16: U6= | AV16: =AV15/(LOG(AV4)/LOG(2)) -> 
A17: 11 | B17: 1006 | C17: 21 | D17: 1013 | K17: 0 | L17: 12
A18: 11 | B18: 1100 | C18: 21 | D18: 1107 | K18: 0 | L18: 12
A19: 11 | B19: 1193 | C19: 21 | D19: 1202 | K19: 0 | L19: 12 | N19: Total Target Seq
A20: 11 | B20: 1290 | C20: 21 | D20: 1298 | K20: 0 | L20: 12 | N20: =COUNTIF(L7:L50,G3) -> 40 | P20: 7 | Q20: 8 | R20: 7 | S20: 7 | T20: 8 | U20: 7
A21: 11 | B21: 1387 | C21: 21 | D21: 1396 | K21: 0 | L21: 12 | P21: % of reinforcement given in 6 equal intervals based on number of trials
A22: 11 | B22: 1484 | C22: 21 | D22: 1491 | K22: 0 | L22: 12 | P22: %_1 | Q22: %_2 | R22: %_3 | S22: %_4 | T22: %_5 | U22: %_6
A23: 11 | B23: 1580 | C23: 21 | D23: 1598 | K23: 0 | L23: 12 | O23: target sequence | P23: =$G$3 -> 12 | Q23: =$G$3 -> 12 | R23: =$G$3 -> 12 | S23: =$G$3 -> 12 | T23: =$G$3 -> 12 | U23: =$G$3 -> 12
A24: 11 | B24: 1684 | C24: 21 | D24: 1692 | K24: 0 | L24: 12 | O24: total reinforcement | P24: =U8 -> 5 | Q24: =Z8 -> 8 | R24: =AE8 -> 6 | S24: =AJ8 -> 7 | T24: =AO8 -> 7 | U24: =AT8 -> 7
A25: 22 | B25: 1787 | C25: 23 | D25: 1795 | K25: 0 | L25: 22 | O25: % target
A26: 11 | B26: 1890 | C26: 21 | D26: 1898 | K26: 0 | L26: 12 | O26: CCRF
A27: 11 | B27: 1985 | C27: 21 | D27: 2028 | K27: 0 | L27: 12 | O27: % CCRf
A28: 11 | B28: 2113 | C28: 21 | D28: 2120 | K28: 0 | L28: 12 | O28: average response rate | P28: =D13/P20 -> 89.42857143 | Q28: =(D21-D13)/Q20 -> 96.25 | R28: =(D28-D21)/R20 -> 103.4285714 | S28: =(D35-D28)/S20 -> 93.57142857 | T28: =(D43-D35)/T20 -> 102.625 | U28: =(D50-D43)/U20 -> 115.7142857
A29: 11 | B29: 2206 | C29: 21 | D29: 2213 | K29: 0 | L29: 12
A30: 11 | B30: 2299 | C30: 21 | D30: 2307 | K30: 0 | L30: 12
A31: 11 | B31: 2394 | C31: 21 | D31: 2401 | K31: 0 | L31: 12
A32: 11 | B32: 2485 | C32: 21 | D32: 2493 | K32: 0 | L32: 12
A33: 11 | B33: 2580 | C33: 21 | D33: 2587 | K33: 0 | L33: 12
A34: 11 | B34: 2674 | C34: 21 | D34: 2681 | K34: 0 | L34: 12
A35: 11 | B35: 2767 | C35: 21 | D35: 2775 | K35: 0 | L35: 12
A36: 11 | B36: 2860 | C36: 21 | D36: 2875 | K36: 0 | L36: 12
A37: 11 | B37: 2959 | C37: 21 | D37: 2999 | K37: 0 | L37: 12
A38: 11 | B38: 3086 | C38: 21 | D38: 3095 | K38: 0 | L38: 12
A39: 11 | B39: 3181 | C39: 21 | D39: 3187 | K39: 0 | L39: 12
A40: 11 | B40: 3271 | C40: 21 | D40: 3285 | K40: 0 | L40: 12
A41: 22 | B41: 3383 | C41: 23 | D41: 3401 | K41: 0 | L41: 22
A42: 11 | B42: 3498 | C42: 21 | D42: 3506 | K42: 0 | L42: 12
A43: 11 | B43: 3591 | C43: 21 | D43: 3596 | K43: 0 | L43: 12
A44: 11 | B44: 3682 | C44: 21 | D44: 3707 | K44: 0 | L44: 12
A45: 11 | B45: 3794 | C45: 21 | D45: 3799 | K45: 0 | L45: 12
A46: 11 | B46: 3885 | C46: 21 | D46: 3919 | K46: 0 | L46: 12
A47: 11 | B47: 4006 | C47: 21 | D47: 4035 | K47: 0 | L47: 12
A48: 11 | B48: 4121 | C48: 21 | D48: 4185 | K48: 0 | L48: 12
A49: 11 | B49: 4269 | C49: 21 | D49: 4315 | K49: 0 | L49: 12
A50: 11 | B50: 4398 | C50: 21 | D50: 4406 | K50: 1 | L50: 12

Sheet !N304B30.096
A1: Report for:!N304B30.096
A2: Date: | B2: <date>
A3: Hen: | B3: <hen> | F3: Correct Sequence | G3: =Start!J2 -> 12 | P3: Total Sequences in Data | Q3: =4994-COUNTBLANK(L7:L5000) -> 42 | V3: Total Sequences in Block Data | W3: =COUNTA(L7:L13) -> 7 | AA3: Total Sequences in Block Data | AB3: =COUNTA(L14:L20) -> 7 | AF3: Total Sequences in Block Data | AG3: =COUNTA(L21:L27) -> 7 | AK3: Total Sequences in Block Data | AL3: =COUNTA(L28:L34) -> 7 | AP3: Total Sequences in Block Data | AQ3: =COUNTA(L35:L41) -> 7 | AU3: Total Sequences in Block Data | AV3: =COUNTA(L42:L48) -> 7
P4: Total Sequences in Summary | Q4: =SUM(O7:O14) -> 42 | V4: Total Sequences in Block Summary | W4: =SUM(U7:U14) -> 7 | AA4: Total Sequences in Block Summary | AB4: =SUM(Z7:Z14) -> 7 | AF4: Total Sequences in Block Summary | AG4: =SUM(AE7:AE14) -> 7 | AK4: Total Sequences in Block Summary | AL4: =SUM(AJ7:AJ14) -> 7 | AP4: Total Sequences in Block Summary | AQ4: =SUM(AO7:AO14) -> 7 | AU4: Total Sequences in Block Summary | AV4: =SUM(AT7:AT14) -> 7
T5: Block 1 | Y5: Block 2 | AD5: Block 3 | AI5: Block 4 | AN5: Block 5 | AS5: Block 6
A6: Sequence Component 1 | B6: Time 1 | C6: Sequence Component 2 | D6: Time 2 | E6: Sequence Component 3 | F6: Time 3 | G6: Sequence Component 4 | H6: Time 4 | I6: Sequence Component 5 | J6: Time 5 | K6: Correct? 0=No 1=Yes | L6: Sequence | N6: Frequency | P6: Relative Frequency | Q6: Variability | T6: Frequency | V6: Relative Frequency | W6: Variability | Y6: Frequency | AA6: Relative Frequency | AB6: Variability | AD6: Frequency | AF6: Relative Frequency | AG6: Variability | AI6: Frequency | AK6: Relative Frequency | AL6: Variability | AN6: Frequency | AP6: Relative Frequency | AQ6: Variability | AS6: Frequency | AU6: Relative Frequency | AV6: Variability
A7: 11 | B7: 7 | C7: 21 | D7: 16 | K7: 0 | L7: 12 | N7: 11 | O7: =COUNTIF($L$7:$L$500,N7) -> 0 | P7: =O7/$Q$4 -> 0 | Q7: =IF(P7=0,0,(P7*((LOG(P7))/LOG(2)))) -> 0 | T7: =N7 -> 11 | U7: =COUNTIF(L7:L13,T7) -> 0 | V7: =U7/(W4-U8) -> 0 | W7: =IF(V7=0,0,(V7*((LOG(V7))/LOG(2)))) -> 0 | Y7: =N7 -> 11 | Z7: =COUNTIF(L14:L20,Y7) -> 0 | AA7: =Z7/(AB4-Z8) ->  | AB7: =IF(AA7=0,0,(AA7*((LOG(AA7))/LOG(2)))) ->  | AD7: =N7 -> 11 | AE7: =COUNTIF(L21:L27,AD7) -> 0 | AF7: =AE7/(AG4-AE8) -> 0 | AG7: =IF(AF7=0,0,(AF7*((LOG(AF7))/LOG(2)))) -> 0 | AI7: =N7 -> 11 | AJ7: =COUNTIF(L28:L34,AI7) -> 0 | AK7: =AJ7/(AL4-AJ8) ->  | AL7: =IF(AK7=0,0,(AK7*((LOG(AK7))/LOG(2)))) ->  | AN7: =N7 -> 11 | AO7: =COUNTIF(L35:L41,AN7) -> 0 | AP7: =AO7/(AQ4-AO8) ->  | AQ7: =IF(AP7=0,0,(AP7*((LOG(AP7))/LOG(2)))) ->  | AS7: =N7 -> 11 | AT7: =COUNTIF(L42:L48,AS7) -> 0 | AU7: =AT7/(AV4-AT8) ->  | AV7: =IF(AU7=0,0,(AU7*((LOG(AU7))/LOG(2)))) -> 
A8: 11 | B8: 107 | C8: 21 | D8: 114 | K8: 0 | L8: 12 | N8: 12 | O8: =COUNTIF($L$7:$L$500,N8) -> 40 | P8: =O8/$Q$4 -> 0.9523809524 | Q8: =IF(P8=0,0,(P8*((LOG(P8))/LOG(2)))) -> -0.06703745513 | T8: =N8 -> 12 | U8: =COUNTIF(L7:L13,T8) -> 6 | Y8: =N8 -> 12 | Z8: =COUNTIF(L14:L20,Y8) -> 7 | AD8: =N8 -> 12 | AE8: =COUNTIF(L21:L27,AD8) -> 6 | AI8: =N8 -> 12 | AJ8: =COUNTIF(L28:L34,AI8) -> 7 | AN8: =N8 -> 12 | AO8: =COUNTIF(L35:L41,AN8) -> 7 | AS8: =N8 -> 12 | AT8: =COUNTIF(L42:L48,AS8) -> 7
A9: 22 | B9: 206 | C9: 23 | D9: 217 | K9: 0 | L9: 22 | N9: 21 | O9: =COUNTIF($L$7:$L$500,N9) -> 0 | P9: =O9/$Q$4 -> 0 | Q9: =IF(P9=0,0,(P9*((LOG(P9))/LOG(2)))) -> 0 | T9: =N9 -> 21 | U9: =COUNTIF(L7:L13,T9) -> 0 | V9: =U9/(W4-U8) -> 0 | W9: =IF(V9=0,0,(V9*((LOG(V9))/LOG(2)))) -> 0 | Y9: =N9 -> 21 | Z9: =COUNTIF(L14:L20,Y9) -> 0 | AA9: =Z9/(AB4-Z8) ->  | AB9: =IF(AA9=0,0,(AA9*((LOG(AA9))/LOG(2)))) ->  | AD9: =N9 -> 21 | AE9: =COUNTIF(L21:L27,AD9) -> 0 | AF9: =AE9/(AG4-AE8) -> 0 | AG9: =IF(AF9=0,0,(AF9*((LOG(AF9))/LOG(2)))) -> 0 | AI9: =N9 -> 21 | AJ9: =COUNTIF(L28:L34,AI9) -> 0 | AK9: =AJ9/(AL4-AJ8) ->  | AL9: =IF(AK9=0,0,(AK9*((LOG(AK9))/LOG(2)))) ->  | AN9: =N9 -> 21 | AO9: =COUNTIF(L35:L41,AN9) -> 0 | AP9: =AO9/(AQ4-AO8) ->  | AQ9: =IF(AP9=0,0,(AP9*((LOG(AP9))/LOG(2)))) ->  | AS9: =N9 -> 21 | AT9: =COUNTIF(L42:L48,AS9) -> 0 | AU9: =AT9/(AV4-AT8) ->  | AV9: =IF(AU9=0,0,(AU9*((LOG(AU9))/LOG(2)))) -> 
A10: 11 | B10: 315 | C10: 21 | D10: 323 | K10: 0 | L10: 12 | N10: 22 | O10: =COUNTIF($L$7:$L$500,N10) -> 2 | P10: =O10/$Q$4 -> 0.04761904762 | Q10: =IF(P10=0,0,(P10*((LOG(P10))/LOG(2)))) -> -0.2091579725 | T10: =N10 -> 22 | U10: =COUNTIF(L7:L13,T10) -> 1 | V10: =U10/(W4-U8) -> 1 | W10: =IF(V10=0,0,(V10*((LOG(V10))/LOG(2)))) -> 0 | Y10: =N10 -> 22 | Z10: =COUNTIF(L14:L20,Y10) -> 0 | AA10: =Z10/(AB4-Z8) ->  | AB10: =IF(AA10=0,0,(AA10*((LOG(AA10))/LOG(2)))) ->  | AD10: =N10 -> 22 | AE10: =COUNTIF(L21:L27,AD10) -> 1 | AF10: =AE10/(AG4-AE8) -> 1 | AG10: =IF(AF10=0,0,(AF10*((LOG(AF10))/LOG(2)))) -> 0 | AI10: =N10 -> 22 | AJ10: =COUNTIF(L28:L34,AI10) -> 0 | AK10: =AJ10/(AL4-AJ8) ->  | AL10: =IF(AK10=0,0,(AK10*((LOG(AK10))/LOG(2)))) ->  | AN10: =N10 -> 22 | AO10: =COUNTIF(L35:L41,AN10) -> 0 | AP10: =AO10/(AQ4-AO8) ->  | AQ10: =IF(AP10=0,0,(AP10*((LOG(AP10))/LOG(2)))) ->  | AS10: =N10 -> 22 | AT10: =COUNTIF(L42:L48,AS10) -> 0 | AU10: =AT10/(AV4-AT8) ->  | AV10: =IF(AU10=0,0,(AU10*((LOG(AU10))/LOG(2)))) -> 
A11: 11 | B11: 411 | C11: 21 | D11: 420 | K11: 0 | L11: 12 | T11: =N11 -> 0 | U11: =COUNTIF(L7:L13,T11) -> 0 | V11: =U11/(W4-U8) -> 0 | W11: =IF(V11=0,0,(V11*((LOG(V11))/LOG(2)))) -> 0 | Y11: =N11 -> 0 | Z11: =COUNTIF(L14:L20,Y11) -> 0 | AA11: =Z11/(AB4-Z8) ->  | AB11: =IF(AA11=0,0,(AA11*((LOG(AA11))/LOG(2)))) ->  | AD11: =N11 -> 0 | AE11: =COUNTIF(L21:L27,AD11) -> 0 | AF11: =AE11/(AG4-AE8) -> 0 | AG11: =IF(AF11=0,0,(AF11*((LOG(AF11))/LOG(2)))) -> 0 | AI11: =N11 -> 0 | AJ11: =COUNTIF(L28:L34,AI11) -> 0 | AK11: =AJ11/(AL4-AJ8) ->  | AL11: =IF(AK11=0,0,(AK11*((LOG(AK11))/LOG(2)))) ->  | AN11: =N11 -> 0 | AO11: =COUNTIF(L35:L41,AN11) -> 0 | AP11: =AO11/(AQ4-AO8) ->  | AQ11: =IF(AP11=0,0,(AP11*((LOG(AP11))/LOG(2)))) ->  | AS11: =N11 -> 0 | AT11: =COUNTIF(L42:L48,AS11) -> 0 | AU11: =AT11/(AV4-AT8) ->  | AV11: =IF(AU11=0,0,(AU11*((LOG(AU11))/LOG(2)))) -> 
A12: 11 | B12: 508 | C12: 21 | D12: 515 | K12: 0 | L12: 12 | T12: =N12 -> 0 | U12: =COUNTIF(L7:L13,T12) -> 0 | V12: =U12/(W4-U8) -> 0 | W12: =IF(V12=0,0,(V12*((LOG(V12))/LOG(2)))) -> 0 | Y12: =N12 -> 0 | Z12: =COUNTIF(L14:L20,Y12) -> 0 | AA12: =Z12/(AB4-Z8) ->  | AB12: =IF(AA12=0,0,(AA12*((LOG(AA12))/LOG(2)))) ->  | AD12: =N12 -> 0 | AE12: =COUNTIF(L21:L27,AD12) -> 0 | AF12: =AE12/(AG4-AE8) -> 0 | AG12: =IF(AF12=0,0,(AF12*((LOG(AF12))/LOG(2)))) -> 0 | AI12: =N12 -> 0 | AJ12: =COUNTIF(L28:L34,AI12) -> 0 | AK12: =AJ12/(AL4-AJ8) ->  | AL12: =IF(AK12=0,0,(AK12*((LOG(AK12))/LOG(2)))) ->  | AN12: =N12 -> 0 | AO12: =COUNTIF(L35:L41,AN12) -> 0 | AP12: =AO12/(AQ4-AO8) ->  | AQ12: =IF(AP12=0,0,(AP12*((LOG(AP12))/LOG(2)))) ->  | AS12: =N12 -> 0 | AT12: =COUNTIF(L42:L48,AS12) -> 0 | AU12: =AT12/(AV4-AT8) ->  | AV12: =IF(AU12=0,0,(AU12*((LOG(AU12))/LOG(2)))) -> 
A13: 11 | B13: 602 | C13: 21 | D13: 612 | K13: 0 | L13: 12 | T13: =N13 -> 0 | U13: =COUNTIF(L7:L13,T13) -> 0 | V13: =U13/(W4-U8) -> 0 | W13: =IF(V13=0,0,(V13*((LOG(V13))/LOG(2)))) -> 0 | Y13: =N13 -> 0 | Z13: =COUNTIF(L14:L20,Y13) -> 0 | AA13: =Z13/(AB4-Z8) ->  | AB13: =IF(AA13=0,0,(AA13*((LOG(AA13))/LOG(2)))) ->  | AD13: =N13 -> 0 | AE13: =COUNTIF(L21:L27,AD13) -> 0 | AF13: =AE13/(AG4-AE8) -> 0 | AG13: =IF(AF13=0,0,(AF13*((LOG(AF13))/LOG(2)))) -> 0 | AI13: =N13 -> 0 | AJ13: =COUNTIF(L28:L34,AI13) -> 0 | AK13: =AJ13/(AL4-AJ8) ->  | AL13: =IF(AK13=0,0,(AK13*((LOG(AK13))/LOG(2)))) ->  | AN13: =N13 -> 0 | AO13: =COUNTIF(L35:L41,AN13) -> 0 | AP13: =AO13/(AQ4-AO8) ->  | AQ13: =IF(AP13=0,0,(AP13*((LOG(AP13))/LOG(2)))) ->  | AS13: =N13 -> 0 | AT13: =COUNTIF(L42:L48,AS13) -> 0 | AU13: =AT13/(AV4-AT8) ->  | AV13: =IF(AU13=0,0,(AU13*((LOG(AU13))/LOG(2)))) -> 
A14: 11 | B14: 698 | C14: 21 | D14: 706 | K14: 0 | L14: 12 | T14: =N14 -> 0 | U14: =COUNTIF(L7:L13,T14) -> 0 | V14: =U14/(W4-U8) -> 0 | W14: =IF(V14=0,0,(V14*((LOG(V14))/LOG(2)))) -> 0 | Y14: =N14 -> 0 | Z14: =COUNTIF(L14:L20,Y14) -> 0 | AA14: =Z14/(AB4-Z8) ->  | AB14: =IF(AA14=0,0,(AA14*((LOG(AA14))/LOG(2)))) ->  | AD14: =N14 -> 0 | AE14: =COUNTIF(L21:L27,AD14) -> 0 | AF14: =AE14/(AG4-AE8) -> 0 | AG14: =IF(AF14=0,0,(AF14*((LOG(AF14))/LOG(2)))) -> 0 | AI14: =N14 -> 0 | AJ14: =COUNTIF(L28:L34,AI14) -> 0 | AK14: =AJ14/(AL4-AJ8) ->  | AL14: =IF(AK14=0,0,(AK14*((LOG(AK14))/LOG(2)))) ->  | AN14: =N14 -> 0 | AO14: =COUNTIF(L35:L41,AN14) -> 0 | AP14: =AO14/(AQ4-AO8) ->  | AQ14: =IF(AP14=0,0,(AP14*((LOG(AP14))/LOG(2)))) ->  | AS14: =N14 -> 0 | AT14: =COUNTIF(L42:L48,AS14) -> 0 | AU14: =AT14/(AV4-AT8) ->  | AV14: =IF(AU14=0,0,(AU14*((LOG(AU14))/LOG(2)))) -> 
A15: 11 | B15: 792 | C15: 21 | D15: 800 | K15: 0 | L15: 12 | P15: =SUM(P7:P14) -> 1 | Q15: =-SUM(Q7:Q14) -> 0.2761954276 | V15: =SUM(V7:V14) -> 1 | W15: =-SUM(W7:W14) -> 0 | AA15: =SUM(AA7:AA14) ->  | AB15: =-SUM(AB7:AB14) ->  | AF15: =SUM(AF7:AF14) -> 1 | AG15: =-SUM(AG7:AG14) -> 0 | AK15: =SUM(AK7:AK14) ->  | AL15: =-SUM(AL7:AL14) ->  | AP15: =SUM(AP7:AP14) ->  | AQ15: =-SUM(AQ7:AQ14) ->  | AU15: =SUM(AU7:AU14) ->  | AV15: =-SUM(AV7:AV14) -> 
A16: 11 | B16: 889 | C16: 21 | D16: 897 | K16: 0 | L16: 12 | P16: U= | Q16: =Q15/(LOG(Q4)/LOG(2)) -> 0.05122017233 | V16: U1= | W16: =W15/(LOG(W4)/LOG(2)) -> 0 | AA16: U2= | AB16: =AB15/(LOG(AB4)/LOG(2)) ->  | AF16: U3= | AG16: =AG15/(LOG(AG4)/LOG(2)) -> 0 | AK16: U4= | AL16: =AL15/(LOG(AL4)/LOG(2)) ->  | AP16: U5= | AQ16: =AQ15/(LOG(AQ4)/LOG(2)) ->  | AU16: U6= | AV16: =AV15/(LOG(AV4)/LOG(2)) -> 
A17: 11 | B17: 983 | C17: 21 | D17: 991 | K17: 0 | L17: 12
A18: 11 | B18: 1082 | C18: 21 | D18: 1090 | K18: 0 | L18: 12
A19: 11 | B19: 1176 | C19: 21 | D19: 1183 | K19: 0 | L19: 12 | N19: Total Target Seq
A20: 11 | B20: 1269 | C20: 21 | D20: 1294 | K20: 0 | L20: 12 | N20: =COUNTIF(L7:L48,G3) -> 40 | P20: 7 | Q20: 7 | R20: 7 | S20: 7 | T20: 7 | U20: 7
A21: 11 | B21: 1381 | C21: 21 | D21: 1389 | K21: 0 | L21: 12 | P21: % of reinforcement given in 6 equal intervals based on number of trials
A22: 22 | B22: 1481 | C22: 23 | D22: 1500 | K22: 0 | L22: 22 | P22: %_1 | Q22: %_2 | R22: %_3 | S22: %_4 | T22: %_5 | U22: %_6
A23: 11 | B23: 1595 | C23: 21 | D23: 1603 | K23: 0 | L23: 12 | O23: target sequence | P23: =$G$3 -> 12 | Q23: =$G$3 -> 12 | R23: =$G$3 -> 12 | S23: =$G$3 -> 12 | T23: =$G$3 -> 12 | U23: =$G$3 -> 12
A24: 11 | B24: 1690 | C24: 21 | D24: 1698 | K24: 0 | L24: 12 | O24: total reinforcement | P24: =U8 -> 6 | Q24: =Z8 -> 7 | R24: =AE8 -> 6 | S24: =AJ8 -> 7 | T24: =AO8 -> 7 | U24: =AT8 -> 7
A25: 11 | B25: 1782 | C25: 21 | D25: 1808 | K25: 0 | L25: 12 | O25: % target
A26: 11 | B26: 1894 | C26: 21 | D26: 1901 | K26: 0 | L26: 12 | O26: CCRF
A27: 11 | B27: 1988 | C27: 21 | D27: 2042 | K27: 0 | L27: 12 | O27: % CCRf
A28: 11 | B28: 2129 | C28: 21 | D28: 2196 | K28: 0 | L28: 12 | O28: average response rate | P28: =D13/P20 -> 87.42857143 | Q28: =(D20-D13)/Q20 -> 97.42857143 | R28: =(D27-D20)/R20 -> 106.8571429 | S28: =(D34-D27)/S20 -> 113 | T28: =(D41-D34)/T20 -> 111.7142857 | U28: =(D48-D41)/U20 -> 114.7142857
A29: 11 | B29: 2283 | C29: 21 | D29: 2290 | K29: 0 | L29: 12
A30: 11 | B30: 2375 | C30: 21 | D30: 2383 | K30: 0 | L30: 12
A31: 11 | B31: 2469 | C31: 21 | D31: 2484 | K31: 0 | L31: 12
A32: 11 | B32: 2570 | C32: 21 | D32: 2610 | K32: 0 | L32: 12
A33: 11 | B33: 2695 | C33: 21 | D33: 2727 | K33: 0 | L33: 12
A34: 11 | B34: 2814 | C34: 21 | D34: 2833 | K34: 0 | L34: 12
A35: 11 | B35: 2924 | C35: 21 | D35: 2932 | K35: 0 | L35: 12
A36: 11 | B36: 3019 | C36: 21 | D36: 3027 | K36: 0 | L36: 12
A37: 11 | B37: 3113 | C37: 21 | D37: 3118 | K37: 0 | L37: 12
A38: 11 | B38: 3204 | C38: 21 | D38: 3212 | K38: 0 | L38: 12
A39: 11 | B39: 3300 | C39: 21 | D39: 3371 | K39: 0 | L39: 12
A40: 11 | B40: 3458 | C40: 21 | D40: 3512 | K40: 0 | L40: 12
A41: 11 | B41: 3600 | C41: 21 | D41: 3615 | K41: 0 | L41: 12
A42: 11 | B42: 3758 | C42: 21 | D42: 3771 | K42: 0 | L42: 12
A43: 11 | B43: 3861 | C43: 21 | D43: 3884 | K43: 0 | L43: 12
A44: 11 | B44: 3972 | C44: 21 | D44: 3992 | K44: 0 | L44: 12
A45: 11 | B45: 4078 | C45: 21 | D45: 4097 | K45: 0 | L45: 12
A46: 11 | B46: 4183 | C46: 21 | D46: 4229 | K46: 0 | L46: 12
A47: 11 | B47: 4315 | C47: 21 | D47: 4323 | K47: 0 | L47: 12
A48: 11 | B48: 4409 | C48: 21 | D48: 4418 | K48: 1 | L48: 12

Sheet !N306A30.096
A1: Report for:!N306A30.096
A2: Date: | B2: <date>
A3: Hen: | B3: <hen> | F3: Correct Sequence | G3: =Start!J2 -> 12 | P3: Total Sequences in Data | Q3: =4994-COUNTBLANK(L7:L5000) -> 43 | V3: Total Sequences in Block Data | W3: =COUNTA(L7:L13) -> 7 | AA3: Total Sequences in Block Data | AB3: =COUNTA(L14:L20) -> 7 | AF3: Total Sequences in Block Data | AG3: =COUNTA(L21:L28) -> 8 | AK3: Total Sequences in Block Data | AL3: =COUNTA(L29:L35) -> 7 | AP3: Total Sequences in Block Data | AQ3: =COUNTA(L36:L42) -> 7 | AU3: Total Sequences in Block Data | AV3: =COUNTA(L43:L49) -> 7
P4: Total Sequences in Summary | Q4: =SUM(O7:O14) -> 43 | V4: Total Sequences in Block Summary | W4: =SUM(U7:U14) -> 7 | AA4: Total Sequences in Block Summary | AB4: =SUM(Z7:Z14) -> 7 | AF4: Total Sequences in Block Summary | AG4: =SUM(AE7:AE14) -> 8 | AK4: Total Sequences in Block Summary | AL4: =SUM(AJ7:AJ14) -> 7 | AP4: Total Sequences in Block Summary | AQ4: =SUM(AO7:AO14) -> 7 | AU4: Total Sequences in Block Summary | AV4: =SUM(AT7:AT14) -> 7
T5: Block 1 | Y5: Block 2 | AD5: Block 3 | AI5: Block 4 | AN5: Block 5 | AS5: Block 6
A6: Sequence Component 1 | B6: Time 1 | C6: Sequence Component 2 | D6: Time 2 | E6: Sequence Component 3 | F6: Time 3 | G6: Sequence Component 4 | H6: Time 4 | I6: Sequence Component 5 | J6: Time 5 | K6: Correct? 0=No 1=Yes | L6: Sequence | N6: Frequency | P6: Relative Frequency | Q6: Variability | T6: Frequency | V6: Relative Frequency | W6: Variability | Y6: Frequency | AA6: Relative Frequency | AB6: Variability | AD6: Frequency | AF6: Relative Frequency | AG6: Variability | AI6: Frequency | AK6: Relative Frequency | AL6: Variability | AN6: Frequency | AP6: Relative Frequency | AQ6: Variability | AS6: Frequency | AU6: Relative Frequency | AV6: Variability
A7: 11 | B7: 5 | C7: 21 | D7: 13 | K7: 0 | L7: 12 | N7: 11 | O7: =COUNTIF($L$7:$L$500,N7) -> 0 | P7: =O7/$Q$4 -> 0 | Q7: =IF(P7=0,0,(P7*((LOG(P7))/LOG(2)))) -> 0 | T7: =N7 -> 11 | U7: =COUNTIF(L7:L13,T7) -> 0 | V7: =U7/(W4-U8) ->  | W7: =IF(V7=0,0,(V7*((LOG(V7))/LOG(2)))) ->  | Y7: =N7 -> 11 | Z7: =COUNTIF(L14:L20,Y7) -> 0 | AA7: =Z7/(AB4-Z8) ->  | AB7: =IF(AA7=0,0,(AA7*((LOG(AA7))/LOG(2)))) ->  | AD7: =N7 -> 11 | AE7: =COUNTIF(L21:L28,AD7) -> 0 | AF7: =AE7/(AG4-AE8) -> 0 | AG7: =IF(AF7=0,0,(AF7*((LOG(AF7))/LOG(2)))) -> 0 | AI7: =N7 -> 11 | AJ7: =COUNTIF(L29:L35,AI7) -> 0 | AK7: =AJ7/(AL4-AJ8) ->  | AL7: =IF(AK7=0,0,(AK7*((LOG(AK7))/LOG(2)))) ->  | AN7: =N7 -> 11 | AO7: =COUNTIF(L36:L42,AN7) -> 0 | AP7: =AO7/(AQ4-AO8) ->  | AQ7: =IF(AP7=0,0,(AP7*((LOG(AP7))/LOG(2)))) ->  | AS7: =N7 -> 11 | AT7: =COUNTIF(L43:L49,AS7) -> 0 | AU7: =AT7/(AV4-AT8) -> 0 | AV7: =IF(AU7=0,0,(AU7*((LOG(AU7))/LOG(2)))) -> 0
A8: 11 | B8: 99 | C8: 21 | D8: 106 | K8: 0 | L8: 12 | N8: 12 | O8: =COUNTIF($L$7:$L$500,N8) -> 40 | P8: =O8/$Q$4 -> 0.9302325581 | Q8: =IF(P8=0,0,(P8*((LOG(P8))/LOG(2)))) -> -0.09705735797 | T8: =N8 -> 12 | U8: =COUNTIF(L7:L13,T8) -> 7 | Y8: =N8 -> 12 | Z8: =COUNTIF(L14:L20,Y8) -> 7 | AD8: =N8 -> 12 | AE8: =COUNTIF(L21:L28,AD8) -> 6 | AI8: =N8 -> 12 | AJ8: =COUNTIF(L29:L35,AI8) -> 7 | AN8: =N8 -> 12 | AO8: =COUNTIF(L36:L42,AN8) -> 7 | AS8: =N8 -> 12 | AT8: =COUNTIF(L43:L49,AS8) -> 6
A9: 11 | B9: 192 | C9: 21 | D9: 210 | K9: 0 | L9: 12 | N9: 21 | O9: =COUNTIF($L$7:$L$500,N9) -> 0 | P9: =O9/$Q$4 -> 0 | Q9: =IF(P9=0,0,(P9*((LOG(P9))/LOG(2)))) -> 0 | T9: =N9 -> 21 | U9: =COUNTIF(L7:L13,T9) -> 0 | V9: =U9/(W4-U8) ->  | W9: =IF(V9=0,0,(V9*((LOG(V9))/LOG(2)))) ->  | Y9: =N9 -> 21 | Z9: =COUNTIF(L14:L20,Y9) -> 0 | AA9: =Z9/(AB4-Z8) ->  | AB9: =IF(AA9=0,0,(AA9*((LOG(AA9))/LOG(2)))) ->  | AD9: =N9 -> 21 | AE9: =COUNTIF(L21:L28,AD9) -> 0 | AF9: =AE9/(AG4-AE8) -> 0 | AG9: =IF(AF9=0,0,(AF9*((LOG(AF9))/LOG(2)))) -> 0 | AI9: =N9 -> 21 | AJ9: =COUNTIF(L29:L35,AI9) -> 0 | AK9: =AJ9/(AL4-AJ8) ->  | AL9: =IF(AK9=0,0,(AK9*((LOG(AK9))/LOG(2)))) ->  | AN9: =N9 -> 21 | AO9: =COUNTIF(L36:L42,AN9) -> 0 | AP9: =AO9/(AQ4-AO8) ->  | AQ9: =IF(AP9=0,0,(AP9*((LOG(AP9))/LOG(2)))) ->  | AS9: =N9 -> 21 | AT9: =COUNTIF(L43:L49,AS9) -> 0 | AU9: =AT9/(AV4-AT8) -> 0 | AV9: =IF(AU9=0,0,(AU9*((LOG(AU9))/LOG(2)))) -> 0
A10: 11 | B10: 296 | C10: 21 | D10: 304 | K10: 0 | L10: 12 | N10: 22 | O10: =COUNTIF($L$7:$L$500,N10) -> 3 | P10: =O10/$Q$4 -> 0.06976744186 | Q10: =IF(P10=0,0,(P10*((LOG(P10))/LOG(2)))) -> -0.2679978317 | T10: =N10 -> 22 | U10: =COUNTIF(L7:L13,T10) -> 0 | V10: =U10/(W4-U8) ->  | W10: =IF(V10=0,0,(V10*((LOG(V10))/LOG(2)))) ->  | Y10: =N10 -> 22 | Z10: =COUNTIF(L14:L20,Y10) -> 0 | AA10: =Z10/(AB4-Z8) ->  | AB10: =IF(AA10=0,0,(AA10*((LOG(AA10))/LOG(2)))) ->  | AD10: =N10 -> 22 | AE10: =COUNTIF(L21:L28,AD10) -> 2 | AF10: =AE10/(AG4-AE8) -> 1 | AG10: =IF(AF10=0,0,(AF10*((LOG(AF10))/LOG(2)))) -> 0 | AI10: =N10 -> 22 | AJ10: =COUNTIF(L29:L35,AI10) -> 0 | AK10: =AJ10/(AL4-AJ8) ->  | AL10: =IF(AK10=0,0,(AK10*((LOG(AK10))/LOG(2)))) ->  | AN10: =N10 -> 22 | AO10: =COUNTIF(L36:L42,AN10) -> 0 | AP10: =AO10/(AQ4-AO8) ->  | AQ10: =IF(AP10=0,0,(AP10*((LOG(AP10))/LOG(2)))) ->  | AS10: =N10 -> 22 | AT10: =COUNTIF(L43:L49,AS10) -> 1 | AU10: =AT10/(AV4-AT8) -> 1 | AV10: =IF(AU10=0,0,(AU10*((LOG(AU10))/LOG(2)))) -> 0
A11: 11 | B11: 390 | C11: 21 | D11: 416 | K11: 0 | L11: 12 | T11: =N11 -> 0 | U11: =COUNTIF(L7:L13,T11) -> 0 | V11: =U11/(W4-U8) ->  | W11: =IF(V11=0,0,(V11*((LOG(V11))/LOG(2)))) ->  | Y11: =N11 -> 0 | Z11: =COUNTIF(L14:L20,Y11) -> 0 | AA11: =Z11/(AB4-Z8) ->  | AB11: =IF(AA11=0,0,(AA11*((LOG(AA11))/LOG(2)))) ->  | AD11: =N11 -> 0 | AE11: =COUNTIF(L21:L28,AD11) -> 0 | AF11: =AE11/(AG4-AE8) -> 0 | AG11: =IF(AF11=0,0,(AF11*((LOG(AF11))/LOG(2)))) -> 0 | AI11: =N11 -> 0 | AJ11: =COUNTIF(L29:L35,AI11) -> 0 | AK11: =AJ11/(AL4-AJ8) ->  | AL11: =IF(AK11=0,0,(AK11*((LOG(AK11))/LOG(2)))) ->  | AN11: =N11 -> 0 | AO11: =COUNTIF(L36:L42,AN11) -> 0 | AP11: =AO11/(AQ4-AO8) ->  | AQ11: =IF(AP11=0,0,(AP11*((LOG(AP11))/LOG(2)))) ->  | AS11: =N11 -> 0 | AT11: =COUNTIF(L43:L49,AS11) -> 0 | AU11: =AT11/(AV4-AT8) -> 0 | AV11: =IF(AU11=0,0,(AU11*((LOG(AU11))/LOG(2)))) -> 0
A12: 11 | B12: 502 | C12: 21 | D12: 511 | K12: 0 | L12: 12 | T12: =N12 -> 0 | U12: =COUNTIF(L7:L13,T12) -> 0 | V12: =U12/(W4-U8) ->  | W12: =IF(V12=0,0,(V12*((LOG(V12))/LOG(2)))) ->  | Y12: =N12 -> 0 | Z12: =COUNTIF(L14:L20,Y12) -> 0 | AA12: =Z12/(AB4-Z8) ->  | AB12: =IF(AA12=0,0,(AA12*((LOG(AA12))/LOG(2)))) ->  | AD12: =N12 -> 0 | AE12: =COUNTIF(L21:L28,AD12) -> 0 | AF12: =AE12/(AG4-AE8) -> 0 | AG12: =IF(AF12=0,0,(AF12*((LOG(AF12))/LOG(2)))) -> 0 | AI12: =N12 -> 0 | AJ12: =COUNTIF(L29:L35,AI12) -> 0 | AK12: =AJ12/(AL4-AJ8) ->  | AL12: =IF(AK12=0,0,(AK12*((LOG(AK12))/LOG(2)))) ->  | AN12: =N12 -> 0 | AO12: =COUNTIF(L36:L42,AN12) -> 0 | AP12: =AO12/(AQ4-AO8) ->  | AQ12: =IF(AP12=0,0,(AP12*((LOG(AP12))/LOG(2)))) ->  | AS12: =N12 -> 0 | AT12: =COUNTIF(L43:L49,AS12) -> 0 | AU12: =AT12/(AV4-AT8) -> 0 | AV12: =IF(AU12=0,0,(AU12*((LOG(AU12))/LOG(2)))) -> 0
A13: 11 | B13: 599 | C13: 21 | D13: 606 | K13: 0 | L13: 12 | T13: =N13 -> 0 | U13: =COUNTIF(L7:L13,T13) -> 0 | V13: =U13/(W4-U8) ->  | W13: =IF(V13=0,0,(V13*((LOG(V13))/LOG(2)))) ->  | Y13: =N13 -> 0 | Z13: =COUNTIF(L14:L20,Y13) -> 0 | AA13: =Z13/(AB4-Z8) ->  | AB13: =IF(AA13=0,0,(AA13*((LOG(AA13))/LOG(2)))) ->  | AD13: =N13 -> 0 | AE13: =COUNTIF(L21:L28,AD13) -> 0 | AF13: =AE13/(AG4-AE8) -> 0 | AG13: =IF(AF13=0,0,(AF13*((LOG(AF13))/LOG(2)))) -> 0 | AI13: =N13 -> 0 | AJ13: =COUNTIF(L29:L35,AI13) -> 0 | AK13: =AJ13/(AL4-AJ8) ->  | AL13: =IF(AK13=0,0,(AK13*((LOG(AK13))/LOG(2)))) ->  | AN13: =N13 -> 0 | AO13: =COUNTIF(L36:L42,AN13) -> 0 | AP13: =AO13/(AQ4-AO8) ->  | AQ13: =IF(AP13=0,0,(AP13*((LOG(AP13))/LOG(2)))) ->  | AS13: =N13 -> 0 | AT13: =COUNTIF(L43:L49,AS13) -> 0 | AU13: =AT13/(AV4-AT8) -> 0 | AV13: =IF(AU13=0,0,(AU13*((LOG(AU13))/LOG(2)))) -> 0
A14: 11 | B14: 694 | C14: 21 | D14: 699 | K14: 0 | L14: 12 | T14: =N14 -> 0 | U14: =COUNTIF(L7:L13,T14) -> 0 | V14: =U14/(W4-U8) ->  | W14: =IF(V14=0,0,(V14*((LOG(V14))/LOG(2)))) ->  | Y14: =N14 -> 0 | Z14: =COUNTIF(L14:L20,Y14) -> 0 | AA14: =Z14/(AB4-Z8) ->  | AB14: =IF(AA14=0,0,(AA14*((LOG(AA14))/LOG(2)))) ->  | AD14: =N14 -> 0 | AE14: =COUNTIF(L21:L28,AD14) -> 0 | AF14: =AE14/(AG4-AE8) -> 0 | AG14: =IF(AF14=0,0,(AF14*((LOG(AF14))/LOG(2)))) -> 0 | AI14: =N14 -> 0 | AJ14: =COUNTIF(L29:L35,AI14) -> 0 | AK14: =AJ14/(AL4-AJ8) ->  | AL14: =IF(AK14=0,0,(AK14*((LOG(AK14))/LOG(2)))) ->  | AN14: =N14 -> 0 | AO14: =COUNTIF(L36:L42,AN14) -> 0 | AP14: =AO14/(AQ4-AO8) ->  | AQ14: =IF(AP14=0,0,(AP14*((LOG(AP14))/LOG(2)))) ->  | AS14: =N14 -> 0 | AT14: =COUNTIF(L43:L49,AS14) -> 0 | AU14: =AT14/(AV4-AT8) -> 0 | AV14: =IF(AU14=0,0,(AU14*((LOG(AU14))/LOG(2)))) -> 0
A15: 11 | B15: 787 | C15: 21 | D15: 794 | K15: 0 | L15: 12 | P15: =SUM(P7:P14) -> 1 | Q15: =-SUM(Q7:Q14) -> 0.3650551896 | V15: =SUM(V7:V14) ->  | W15: =-SUM(W7:W14) ->  | AA15: =SUM(AA7:AA14) ->  | AB15: =-SUM(AB7:AB14) ->  | AF15: =SUM(AF7:AF14) -> 1 | AG15: =-SUM(AG7:AG14) -> 0 | AK15: =SUM(AK7:AK14) ->  | AL15: =-SUM(AL7:AL14) ->  | AP15: =SUM(AP7:AP14) ->  | AQ15: =-SUM(AQ7:AQ14) ->  | AU15: =SUM(AU7:AU14) -> 1 | AV15: =-SUM(AV7:AV14) -> 0
A16: 11 | B16: 880 | C16: 21 | D16: 886 | K16: 0 | L16: 12 | P16: U= | Q16: =Q15/(LOG(Q4)/LOG(2)) -> 0.06727559493 | V16: U1= | W16: =W15/(LOG(W4)/LOG(2)) ->  | AA16: U2= | AB16: =AB15/(LOG(AB4)/LOG(2)) ->  | AF16: U3= | AG16: =AG15/(LOG(AG4)/LOG(2)) -> 0 | AK16: U4= | AL16: =AL15/(LOG(AL4)/LOG(2)) ->  | AP16: U5= | AQ16: =AQ15/(LOG(AQ4)/LOG(2)) ->  | AU16: U6= | AV16: =AV15/(LOG(AV4)/LOG(2)) -> 0
A17: 11 | B17: 975 | C17: 21 | D17: 982 | K17: 0 | L17: 12
A18: 11 | B18: 1070 | C18: 21 | D18: 1078 | K18: 0 | L18: 12
A19: 11 | B19: 1163 | C19: 21 | D19: 1193 | K19: 0 | L19: 12 | N19: Total Target Seq
A20: 11 | B20: 1279 | C20: 21 | D20: 1303 | K20: 0 | L20: 12 | N20: =COUNTIF(L7:L49,G3) -> 40 | P20: 7 | Q20: 7 | R20: 8 | S20: 7 | T20: 7 | U20: 7
A21: 11 | B21: 1390 | C21: 21 | D21: 1405 | K21: 0 | L21: 12 | P21: % of reinforcement given in 6 equal intervals based on number of trials
A22: 22 | B22: 1498 | C22: 23 | D22: 1524 | K22: 0 | L22: 22 | P22: %_1 | Q22: %_2 | R22: %_3 | S22: %_4 | T22: %_5 | U22: %_6
A23: 11 | B23: 1621 | C23: 21 | D23: 1628 | K23: 0 | L23: 12 | O23: target sequence | P23: =$G$3 -> 12 | Q23: =$G$3 -> 12 | R23: =$G$3 -> 12 | S23: =$G$3 -> 12 | T23: =$G$3 -> 12 | U23: =$G$3 -> 12
A24: 11 | B24: 1715 | C24: 21 | D24: 1722 | K24: 0 | L24: 12 | O24: total reinforcement | P24: =U8 -> 7 | Q24: =Z8 -> 7 | R24: =AE8 -> 6 | S24: =AJ8 -> 7 | T24: =AO8 -> 7 | U24: =AT8 -> 6
A25: 11 | B25: 1809 | C25: 21 | D25: 1828 | K25: 0 | L25: 12 | O25: % target
A26: 22 | B26: 1936 | C26: 23 | D26: 1946 | K26: 0 | L26: 22 | O26: CCRF
A27: 11 | B27: 2041 | C27: 21 | D27: 2049 | K27: 0 | L27: 12 | O27: % CCRf
A28: 11 | B28: 2135 | C28: 21 | D28: 2150 | K28: 0 | L28: 12 | O28: average response rate | P28: =D13/P20 -> 86.57142857 | Q28: =(D20-D13)/Q20 -> 99.57142857 | R28: =(D28-D20)/R20 -> 105.875 | S28: =(D35-D28)/S20 -> 118.7142857 | T28: =(D42-D35)/T20 -> 95.71428571 | U28: =(D49-D42)/U20 -> 97.85714286
A29: 11 | B29: 2236 | C29: 21 | D29: 2244 | K29: 0 | L29: 12
A30: 11 | B30: 2329 | C30: 21 | D30: 2408 | K30: 0 | L30: 12
A31: 11 | B31: 2495 | C31: 21 | D31: 2528 | K31: 0 | L31: 12
A32: 11 | B32: 2615 | C32: 21 | D32: 2623 | K32: 0 | L32: 12
A33: 11 | B33: 2710 | C33: 21 | D33: 2719 | K33: 0 | L33: 12
A34: 11 | B34: 2808 | C34: 21 | D34: 2815 | K34: 0 | L34: 12
A35: 11 | B35: 2903 | C35: 21 | D35: 2981 | K35: 0 | L35: 12
A36: 11 | B36: 3068 | C36: 21 | D36: 3075 | K36: 0 | L36: 12
A37: 11 | B37: 3161 | C37: 21 | D37: 3169 | K37: 0 | L37: 12
A38: 11 | B38: 3255 | C38: 21 | D38: 3278 | K38: 0 | L38: 12
A39: 11 | B39: 3363 | C39: 21 | D39: 3371 | K39: 0 | L39: 12
A40: 11 | B40: 3456 | C40: 21 | D40: 3464 | K40: 0 | L40: 12
A41: 11 | B41: 3549 | C41: 21 | D41: 3557 | K41: 0 | L41: 12
A42: 11 | B42: 3644 | C42: 21 | D42: 3651 | K42: 0 | L42: 12
A43: 11 | B43: 3737 | C43: 21 | D43: 3744 | K43: 0 | L43: 12
A44: 22 | B44: 3847 | C44: 23 | D44: 3854 | K44: 0 | L44: 22
A45: 11 | B45: 3950 | C45: 21 | D45: 3955 | K45: 0 | L45: 12
A46: 11 | B46: 4042 | C46: 21 | D46: 4049 | K46: 0 | L46: 12
A47: 11 | B47: 4136 | C47: 21 | D47: 4142 | K47: 0 | L47: 12
A48: 11 | B48: 4228 | C48: 21 | D48: 4242 | K48: 0 | L48: 12
A49: 11 | B49: 4329 | C49: 21 | D49: 4336 | K49: 1 | L49: 12

Sheet !N312B20.096
A1: Report for:!N312B20.096
A2: Date: | B2: <date>
A3: Hen: | B3: <hen> | F3: Correct Sequence | G3: =Start!J2 -> 12 | P3: Total Sequences in Data | Q3: =4994-COUNTBLANK(L7:L5000) -> 50 | V3: Total Sequences in Block Data | W3: =COUNTA(L7:L14) -> 8 | AA3: Total Sequences in Block Data | AB3: =COUNTA(L15:L23) -> 9 | AF3: Total Sequences in Block Data | AG3: =COUNTA(L24:L31) -> 8 | AK3: Total Sequences in Block Data | AL3: =COUNTA(L32:L39) -> 8 | AP3: Total Sequences in Block Data | AQ3: =COUNTA(L40:L48) -> 9 | AU3: Total Sequences in Block Data | AV3: =COUNTA(L49:L56) -> 8
P4: Total Sequences in Summary | Q4: =SUM(O7:O14) -> 50 | V4: Total Sequences in Block Summary | W4: =SUM(U7:U14) -> 8 | AA4: Total Sequences in Block Summary | AB4: =SUM(Z7:Z14) -> 9 | AF4: Total Sequences in Block Summary | AG4: =SUM(AE7:AE14) -> 8 | AK4: Total Sequences in Block Summary | AL4: =SUM(AJ7:AJ14) -> 8 | AP4: Total Sequences in Block Summary | AQ4: =SUM(AO7:AO14) -> 9 | AU4: Total Sequences in Block Summary | AV4: =SUM(AT7:AT14) -> 8
T5: Block 1 | Y5: Block 2 | AD5: Block 3 | AI5: Block 4 | AN5: Block 5 | AS5: Block 6
A6: Sequence Component 1 | B6: Time 1 | C6: Sequence Component 2 | D6: Time 2 | E6: Sequence Component 3 | F6: Time 3 | G6: Sequence Component 4 | H6: Time 4 | I6: Sequence Component 5 | J6: Time 5 | K6: Correct? 0=No 1=Yes | L6: Sequence | N6: Frequency | P6: Relative Frequency | Q6: Variability | T6: Frequency | V6: Relative Frequency | W6: Variability | Y6: Frequency | AA6: Relative Frequency | AB6: Variability | AD6: Frequency | AF6: Relative Frequency | AG6: Variability | AI6: Frequency | AK6: Relative Frequency | AL6: Variability | AN6: Frequency | AP6: Relative Frequency | AQ6: Variability | AS6: Frequency | AU6: Relative Frequency | AV6: Variability
A7: 11 | B7: 8 | C7: 21 | D7: 14 | K7: 0 | L7: 12 | N7: 11 | O7: =COUNTIF($L$7:$L$500,N7) -> 0 | P7: =O7/$Q$4 -> 0 | Q7: =IF(P7=0,0,(P7*((LOG(P7))/LOG(2)))) -> 0 | T7: =N7 -> 11 | U7: =COUNTIF(L7:L14,T7) -> 0 | V7: =U7/(W4-U8) -> 0 | W7: =IF(V7=0,0,(V7*((LOG(V7))/LOG(2)))) -> 0 | Y7: =N7 -> 11 | Z7: =COUNTIF(L15:L23,Y7) -> 0 | AA7: =Z7/(AB4-Z8) -> 0 | AB7: =IF(AA7=0,0,(AA7*((LOG(AA7))/LOG(2)))) -> 0 | AD7: =N7 -> 11 | AE7: =COUNTIF(L24:L31,AD7) -> 0 | AF7: =AE7/(AG4-AE8) -> 0 | AG7: =IF(AF7=0,0,(AF7*((LOG(AF7))/LOG(2)))) -> 0 | AI7: =N7 -> 11 | AJ7: =COUNTIF(L32:L39,AI7) -> 0 | AK7: =AJ7/(AL4-AJ8) -> 0 | AL7: =IF(AK7=0,0,(AK7*((LOG(AK7))/LOG(2)))) -> 0 | AN7: =N7 -> 11 | AO7: =COUNTIF(L40:L48,AN7) -> 0 | AP7: =AO7/(AQ4-AO8) -> 0 | AQ7: =IF(AP7=0,0,(AP7*((LOG(AP7))/LOG(2)))) -> 0 | AS7: =N7 -> 11 | AT7: =COUNTIF(L49:L56,AS7) -> 0 | AU7: =AT7/(AV4-AT8) -> 0 | AV7: =IF(AU7=0,0,(AU7*((LOG(AU7))/LOG(2)))) -> 0
A8: 11 | B8: 100 | C8: 21 | D8: 105 | K8: 0 | L8: 12 | N8: 12 | O8: =COUNTIF($L$7:$L$500,N8) -> 40 | P8: =O8/$Q$4 -> 0.8 | Q8: =IF(P8=0,0,(P8*((LOG(P8))/LOG(2)))) -> -0.2575424759 | T8: =N8 -> 12 | U8: =COUNTIF(L7:L14,T8) -> 7 | Y8: =N8 -> 12 | Z8: =COUNTIF(L15:L23,Y8) -> 8 | AD8: =N8 -> 12 | AE8: =COUNTIF(L24:L31,AD8) -> 4 | AI8: =N8 -> 12 | AJ8: =COUNTIF(L32:L39,AI8) -> 7 | AN8: =N8 -> 12 | AO8: =COUNTIF(L40:L48,AN8) -> 7 | AS8: =N8 -> 12 | AT8: =COUNTIF(L49:L56,AS8) -> 7
A9: 11 | B9: 192 | C9: 21 | D9: 199 | K9: 0 | L9: 12 | N9: 21 | O9: =COUNTIF($L$7:$L$500,N9) -> 0 | P9: =O9/$Q$4 -> 0 | Q9: =IF(P9=0,0,(P9*((LOG(P9))/LOG(2)))) -> 0 | T9: =N9 -> 21 | U9: =COUNTIF(L7:L14,T9) -> 0 | V9: =U9/(W4-U8) -> 0 | W9: =IF(V9=0,0,(V9*((LOG(V9))/LOG(2)))) -> 0 | Y9: =N9 -> 21 | Z9: =COUNTIF(L15:L23,Y9) -> 0 | AA9: =Z9/(AB4-Z8) -> 0 | AB9: =IF(AA9=0,0,(AA9*((LOG(AA9))/LOG(2)))) -> 0 | AD9: =N9 -> 21 | AE9: =COUNTIF(L24:L31,AD9) -> 0 | AF9: =AE9/(AG4-AE8) -> 0 | AG9: =IF(AF9=0,0,(AF9*((LOG(AF9))/LOG(2)))) -> 0 | AI9: =N9 -> 21 | AJ9: =COUNTIF(L32:L39,AI9) -> 0 | AK9: =AJ9/(AL4-AJ8) -> 0 | AL9: =IF(AK9=0,0,(AK9*((LOG(AK9))/LOG(2)))) -> 0 | AN9: =N9 -> 21 | AO9: =COUNTIF(L40:L48,AN9) -> 0 | AP9: =AO9/(AQ4-AO8) -> 0 | AQ9: =IF(AP9=0,0,(AP9*((LOG(AP9))/LOG(2)))) -> 0 | AS9: =N9 -> 21 | AT9: =COUNTIF(L49:L56,AS9) -> 0 | AU9: =AT9/(AV4-AT8) -> 0 | AV9: =IF(AU9=0,0,(AU9*((LOG(AU9))/LOG(2)))) -> 0
A10: 11 | B10: 286 | C10: 21 | D10: 292 | K10: 0 | L10: 12 | N10: 22 | O10: =COUNTIF($L$7:$L$500,N10) -> 10 | P10: =O10/$Q$4 -> 0.2 | Q10: =IF(P10=0,0,(P10*((LOG(P10))/LOG(2)))) -> -0.464385619 | T10: =N10 -> 22 | U10: =COUNTIF(L7:L14,T10) -> 1 | V10: =U10/(W4-U8) -> 1 | W10: =IF(V10=0,0,(V10*((LOG(V10))/LOG(2)))) -> 0 | Y10: =N10 -> 22 | Z10: =COUNTIF(L15:L23,Y10) -> 1 | AA10: =Z10/(AB4-Z8) -> 1 | AB10: =IF(AA10=0,0,(AA10*((LOG(AA10))/LOG(2)))) -> 0 | AD10: =N10 -> 22 | AE10: =COUNTIF(L24:L31,AD10) -> 4 | AF10: =AE10/(AG4-AE8) -> 1 | AG10: =IF(AF10=0,0,(AF10*((LOG(AF10))/LOG(2)))) -> 0 | AI10: =N10 -> 22 | AJ10: =COUNTIF(L32:L39,AI10) -> 1 | AK10: =AJ10/(AL4-AJ8) -> 1 | AL10: =IF(AK10=0,0,(AK10*((LOG(AK10))/LOG(2)))) -> 0 | AN10: =N10 -> 22 | AO10: =COUNTIF(L40:L48,AN10) -> 2 | AP10: =AO10/(AQ4-AO8) -> 1 | AQ10: =IF(AP10=0,0,(AP10*((LOG(AP10))/LOG(2)))) -> 0 | AS10: =N10 -> 22 | AT10: =COUNTIF(L49:L56,AS10) -> 1 | AU10: =AT10/(AV4-AT8) -> 1 | AV10: =IF(AU10=0,0,(AU10*((LOG(AU10))/LOG(2)))) -> 0
A11: 11 | B11: 380 | C11: 21 | D11: 387 | K11: 0 | L11: 12 | T11: =N11 -> 0 | U11: =COUNTIF(L7:L14,T11) -> 0 | V11: =U11/(W4-U8) -> 0 | W11: =IF(V11=0,0,(V11*((LOG(V11))/LOG(2)))) -> 0 | Y11: =N11 -> 0 | Z11: =COUNTIF(L15:L23,Y11) -> 0 | AA11: =Z11/(AB4-Z8) -> 0 | AB11: =IF(AA11=0,0,(AA11*((LOG(AA11))/LOG(2)))) -> 0 | AD11: =N11 -> 0 | AE11: =COUNTIF(L24:L31,AD11) -> 0 | AF11: =AE11/(AG4-AE8) -> 0 | AG11: =IF(AF11=0,0,(AF11*((LOG(AF11))/LOG(2)))) -> 0 | AI11: =N11 -> 0 | AJ11: =COUNTIF(L32:L39,AI11) -> 0 | AK11: =AJ11/(AL4-AJ8) -> 0 | AL11: =IF(AK11=0,0,(AK11*((LOG(AK11))/LOG(2)))) -> 0 | AN11: =N11 -> 0 | AO11: =COUNTIF(L40:L48,AN11) -> 0 | AP11: =AO11/(AQ4-AO8) -> 0 | AQ11: =IF(AP11=0,0,(AP11*((LOG(AP11))/LOG(2)))) -> 0 | AS11: =N11 -> 0 | AT11: =COUNTIF(L49:L56,AS11) -> 0 | AU11: =AT11/(AV4-AT8) -> 0 | AV11: =IF(AU11=0,0,(AU11*((LOG(AU11))/LOG(2)))) -> 0
A12: 11 | B12: 476 | C12: 21 | D12: 483 | K12: 0 | L12: 12 | T12: =N12 -> 0 | U12: =COUNTIF(L7:L14,T12) -> 0 | V12: =U12/(W4-U8) -> 0 | W12: =IF(V12=0,0,(V12*((LOG(V12))/LOG(2)))) -> 0 | Y12: =N12 -> 0 | Z12: =COUNTIF(L15:L23,Y12) -> 0 | AA12: =Z12/(AB4-Z8) -> 0 | AB12: =IF(AA12=0,0,(AA12*((LOG(AA12))/LOG(2)))) -> 0 | AD12: =N12 -> 0 | AE12: =COUNTIF(L24:L31,AD12) -> 0 | AF12: =AE12/(AG4-AE8) -> 0 | AG12: =IF(AF12=0,0,(AF12*((LOG(AF12))/LOG(2)))) -> 0 | AI12: =N12 -> 0 | AJ12: =COUNTIF(L32:L39,AI12) -> 0 | AK12: =AJ12/(AL4-AJ8) -> 0 | AL12: =IF(AK12=0,0,(AK12*((LOG(AK12))/LOG(2)))) -> 0 | AN12: =N12 -> 0 | AO12: =COUNTIF(L40:L48,AN12) -> 0 | AP12: =AO12/(AQ4-AO8) -> 0 | AQ12: =IF(AP12=0,0,(AP12*((LOG(AP12))/LOG(2)))) -> 0 | AS12: =N12 -> 0 | AT12: =COUNTIF(L49:L56,AS12) -> 0 | AU12: =AT12/(AV4-AT8) -> 0 | AV12: =IF(AU12=0,0,(AU12*((LOG(AU12))/LOG(2)))) -> 0
A13: 11 | B13: 570 | C13: 21 | D13: 577 | K13: 0 | L13: 12 | T13: =N13 -> 0 | U13: =COUNTIF(L7:L14,T13) -> 0 | V13: =U13/(W4-U8) -> 0 | W13: =IF(V13=0,0,(V13*((LOG(V13))/LOG(2)))) -> 0 | Y13: =N13 -> 0 | Z13: =COUNTIF(L15:L23,Y13) -> 0 | AA13: =Z13/(AB4-Z8) -> 0 | AB13: =IF(AA13=0,0,(AA13*((LOG(AA13))/LOG(2)))) -> 0 | AD13: =N13 -> 0 | AE13: =COUNTIF(L24:L31,AD13) -> 0 | AF13: =AE13/(AG4-AE8) -> 0 | AG13: =IF(AF13=0,0,(AF13*((LOG(AF13))/LOG(2)))) -> 0 | AI13: =N13 -> 0 | AJ13: =COUNTIF(L32:L39,AI13) -> 0 | AK13: =AJ13/(AL4-AJ8) -> 0 | AL13: =IF(AK13=0,0,(AK13*((LOG(AK13))/LOG(2)))) -> 0 | AN13: =N13 -> 0 | AO13: =COUNTIF(L40:L48,AN13) -> 0 | AP13: =AO13/(AQ4-AO8) -> 0 | AQ13: =IF(AP13=0,0,(AP13*((LOG(AP13))/LOG(2)))) -> 0 | AS13: =N13 -> 0 | AT13: =COUNTIF(L49:L56,AS13) -> 0 | AU13: =AT13/(AV4-AT8) -> 0 | AV13: =IF(AU13=0,0,(AU13*((LOG(AU13))/LOG(2)))) -> 0
A14: 22 | B14: 671 | C14: 23 | D14: 693 | K14: 0 | L14: 22 | T14: =N14 -> 0 | U14: =COUNTIF(L7:L14,T14) -> 0 | V14: =U14/(W4-U8) -> 0 | W14: =IF(V14=0,0,(V14*((LOG(V14))/LOG(2)))) -> 0 | Y14: =N14 -> 0 | Z14: =COUNTIF(L15:L23,Y14) -> 0 | AA14: =Z14/(AB4-Z8) -> 0 | AB14: =IF(AA14=0,0,(AA14*((LOG(AA14))/LOG(2)))) -> 0 | AD14: =N14 -> 0 | AE14: =COUNTIF(L24:L31,AD14) -> 0 | AF14: =AE14/(AG4-AE8) -> 0 | AG14: =IF(AF14=0,0,(AF14*((LOG(AF14))/LOG(2)))) -> 0 | AI14: =N14 -> 0 | AJ14: =COUNTIF(L32:L39,AI14) -> 0 | AK14: =AJ14/(AL4-AJ8) -> 0 | AL14: =IF(AK14=0,0,(AK14*((LOG(AK14))/LOG(2)))) -> 0 | AN14: =N14 -> 0 | AO14: =COUNTIF(L40:L48,AN14) -> 0 | AP14: =AO14/(AQ4-AO8) -> 0 | AQ14: =IF(AP14=0,0,(AP14*((LOG(AP14))/LOG(2)))) -> 0 | AS14: =N14 -> 0 | AT14: =COUNTIF(L49:L56,AS14) -> 0 | AU14: =AT14/(AV4-AT8) -> 0 | AV14: =IF(AU14=0,0,(AU14*((LOG(AU14))/LOG(2)))) -> 0
A15: 11 | B15: 789 | C15: 21 | D15: 796 | K15: 0 | L15: 12 | P15: =SUM(P7:P14) -> 1 | Q15: =-SUM(Q7:Q14) -> 0.7219280949 | V15: =SUM(V7:V14) -> 1 | W15: =-SUM(W7:W14) -> 0 | AA15: =SUM(AA7:AA14) -> 1 | AB15: =-SUM(AB7:AB14) -> 0 | AF15: =SUM(AF7:AF14) -> 1 | AG15: =-SUM(AG7:AG14) -> 0 | AK15: =SUM(AK7:AK14) -> 1 | AL15: =-SUM(AL7:AL14) -> 0 | AP15: =SUM(AP7:AP14) -> 1 | AQ15: =-SUM(AQ7:AQ14) -> 0 | AU15: =SUM(AU7:AU14) -> 1 | AV15: =-SUM(AV7:AV14) -> 0
A16: 11 | B16: 882 | C16: 21 | D16: 889 | K16: 0 | L16: 12 | P16: U= | Q16: =Q15/(LOG(Q4)/LOG(2)) -> 0.1279139777 | V16: U1= | W16: =W15/(LOG(W4)/LOG(2)) -> 0 | AA16: U2= | AB16: =AB15/(LOG(AB4)/LOG(2)) -> 0 | AF16: U3= | AG16: =AG15/(LOG(AG4)/LOG(2)) -> 0 | AK16: U4= | AL16: =AL15/(LOG(AL4)/LOG(2)) -> 0 | AP16: U5= | AQ16: =AQ15/(LOG(AQ4)/LOG(2)) -> 0 | AU16: U6= | AV16: =AV15/(LOG(AV4)/LOG(2)) -> 0
A17: 11 | B17: 976 | C17: 21 | D17: 983 | K17: 0 | L17: 12
A18: 11 | B18: 1069 | C18: 21 | D18: 1078 | K18: 0 | L18: 12
A19: 11 | B19: 1166 | C19: 21 | D19: 1174 | K19: 0 | L19: 12 | N19: Total Target Seq
A20: 22 | B20: 1269 | C20: 23 | D20: 1284 | K20: 0 | L20: 22 | N20: =COUNTIF(L7:L56,G3) -> 40 | P20: 8 | Q20: 9 | R20: 8 | S20: 8 | T20: 9 | U20: 8
A21: 11 | B21: 1380 | C21: 21 | D21: 1387 | K21: 0 | L21: 12 | P21: % of reinforcement given in 6 equal intervals based on number of trials
A22: 11 | B22: 1474 | C22: 21 | D22: 1479 | K22: 0 | L22: 12 | P22: %_1 | Q22: %_2 | R22: %_3 | S22: %_4 | T22: %_5 | U22: %_6
A23: 11 | B23: 1565 | C23: 21 | D23: 1571 | K23: 0 | L23: 12 | O23: target sequence | P23: =$G$3 -> 12 | Q23: =$G$3 -> 12 | R23: =$G$3 -> 12 | S23: =$G$3 -> 12 | T23: =$G$3 -> 12 | U23: =$G$3 -> 12
A24: 11 | B24: 1658 | C24: 21 | D24: 1665 | K24: 0 | L24: 12 | O24: total reinforcement | P24: =U8 -> 7 | Q24: =Z8 -> 8 | R24: =AE8 -> 4 | S24: =AJ8 -> 7 | T24: =AO8 -> 7 | U24: =AT8 -> 7
A25: 22 | B25: 1769 | C25: 23 | D25: 1783 | K25: 0 | L25: 22 | O25: % target
A26: 22 | B26: 1893 | C26: 23 | D26: 1904 | K26: 0 | L26: 22 | O26: CCRF
A27: 22 | B27: 2009 | C27: 23 | D27: 2019 | K27: 0 | L27: 22 | O27: % CCRf
A28: 22 | B28: 2128 | C28: 23 | D28: 2139 | K28: 0 | L28: 22 | O28: average response rate | P28: =D14/P20 -> 86.625 | Q28: =(D23-D14)/Q20 -> 97.55555556 | R28: =(D31-D23)/R20 -> 109.25 | S28: =(D39-D31)/S20 -> 98.625 | T28: =(D48-D39)/T20 -> 108 | U28: =(D56-D48)/U20 -> 101
A29: 11 | B29: 2233 | C29: 21 | D29: 2241 | K29: 0 | L29: 12
A30: 11 | B30: 2327 | C30: 21 | D30: 2352 | K30: 0 | L30: 12
A31: 11 | B31: 2438 | C31: 21 | D31: 2445 | K31: 0 | L31: 12
A32: 22 | B32: 2541 | C32: 23 | D32: 2555 | K32: 0 | L32: 22
A33: 11 | B33: 2650 | C33: 21 | D33: 2657 | K33: 0 | L33: 12
A34: 11 | B34: 2745 | C34: 21 | D34: 2750 | K34: 0 | L34: 12
A35: 11 | B35: 2835 | C35: 21 | D35: 2842 | K35: 0 | L35: 12
A36: 11 | B36: 2930 | C36: 21 | D36: 2954 | K36: 0 | L36: 12
A37: 11 | B37: 3040 | C37: 21 | D37: 3047 | K37: 0 | L37: 12
A38: 11 | B38: 3133 | C38: 21 | D38: 3140 | K38: 0 | L38: 12
A39: 11 | B39: 3227 | C39: 21 | D39: 3234 | K39: 0 | L39: 12
A40: 11 | B40: 3320 | C40: 21 | D40: 3375 | K40: 0 | L40: 12
A41: 11 | B41: 3461 | C41: 21 | D41: 3475 | K41: 0 | L41: 12
A42: 11 | B42: 3560 | C42: 21 | D42: 3576 | K42: 0 | L42: 12
A43: 11 | B43: 3667 | C43: 21 | D43: 3674 | K43: 0 | L43: 12
A44: 11 | B44: 3758 | C44: 21 | D44: 3769 | K44: 0 | L44: 12
A45: 22 | B45: 3857 | C45: 23 | D45: 3875 | K45: 0 | L45: 22
A46: 11 | B46: 3970 | C46: 21 | D46: 3977 | K46: 0 | L46: 12
A47: 22 | B47: 4071 | C47: 23 | D47: 4078 | K47: 0 | L47: 22
A48: 11 | B48: 4175 | C48: 21 | D48: 4206 | K48: 0 | L48: 12
A49: 11 | B49: 4294 | C49: 21 | D49: 4302 | K49: 0 | L49: 12
A50: 11 | B50: 4388 | C50: 21 | D50: 4406 | K50: 0 | L50: 12
A51: 11 | B51: 4491 | C51: 21 | D51: 4533 | K51: 0 | L51: 12
A52: 11 | B52: 4620 | C52: 21 | D52: 4627 | K52: 0 | L52: 12
A53: 22 | B53: 4715 | C53: 23 | D53: 4723 | K53: 0 | L53: 22
A54: 11 | B54: 4819 | C54: 21 | D54: 4825 | K54: 0 | L54: 12
A55: 11 | B55: 4913 | C55: 21 | D55: 4920 | K55: 0 | L55: 12
A56: 11 | B56: 5007 | C56: 21 | D56: 5014 | K56: 1 | L56: 12

Sheet !N314B50.096
A1: Report for:!N314B50.096
A2: Date: | B2: <date>
A3: Hen: | B3: <hen> | F3: Correct Sequence | G3: =Start!J2 -> 12 | P3: Total Sequences in Data | Q3: =4994-COUNTBLANK(L7:L5000) -> 40 | V3: Total Sequences in Block Data | W3: =COUNTA(L7:L13) -> 7 | AA3: Total Sequences in Block Data | AB3: =COUNTA(L14:L19) -> 6 | AF3: Total Sequences in Block Data | AG3: =COUNTA(L20:L26) -> 7 | AK3: Total Sequences in Block Data | AL3: =COUNTA(L27:L33) -> 7 | AP3: Total Sequences in Block Data | AQ3: =COUNTA(L34:L39) -> 6 | AU3: Total Sequences in Block Data | AV3: =COUNTA(L40:L46) -> 7
P4: Total Sequences in Summary | Q4: =SUM(O7:O14) -> 40 | V4: Total Sequences in Block Summary | W4: =SUM(U7:U14) -> 7 | AA4: Total Sequences in Block Summary | AB4: =SUM(Z7:Z14) -> 6 | AF4: Total Sequences in Block Summary | AG4: =SUM(AE7:AE14) -> 7 | AK4: Total Sequences in Block Summary | AL4: =SUM(AJ7:AJ14) -> 7 | AP4: Total Sequences in Block Summary | AQ4: =SUM(AO7:AO14) -> 6 | AU4: Total Sequences in Block Summary | AV4: =SUM(AT7:AT14) -> 7
T5: Block 1 | Y5: Block 2 | AD5: Block 3 | AI5: Block 4 | AN5: Block 5 | AS5: Block 6
A6: Sequence Component 1 | B6: Time 1 | C6: Sequence Component 2 | D6: Time 2 | E6: Sequence Component 3 | F6: Time 3 | G6: Sequence Component 4 | H6: Time 4 | I6: Sequence Component 5 | J6: Time 5 | K6: Correct? 0=No 1=Yes | L6: Sequence | N6: Frequency | P6: Relative Frequency | Q6: Variability | T6: Frequency | V6: Relative Frequency | W6: Variability | Y6: Frequency | AA6: Relative Frequency | AB6: Variability | AD6: Frequency | AF6: Relative Frequency | AG6: Variability | AI6: Frequency | AK6: Relative Frequency | AL6: Variability | AN6: Frequency | AP6: Relative Frequency | AQ6: Variability | AS6: Frequency | AU6: Relative Frequency | AV6: Variability
A7: 11 | B7: 8 | C7: 21 | D7: 15 | K7: 0 | L7: 12 | N7: 11 | O7: =COUNTIF($L$7:$L$500,N7) -> 0 | P7: =O7/$Q$4 -> 0 | Q7: =IF(P7=0,0,(P7*((LOG(P7))/LOG(2)))) -> 0 | T7: =N7 -> 11 | U7: =COUNTIF(L7:L13,T7) -> 0 | V7: =U7/(W4-U8) ->  | W7: =IF(V7=0,0,(V7*((LOG(V7))/LOG(2)))) ->  | Y7: =N7 -> 11 | Z7: =COUNTIF(L14:L19,Y7) -> 0 | AA7: =Z7/(AB4-Z8) ->  | AB7: =IF(AA7=0,0,(AA7*((LOG(AA7))/LOG(2)))) ->  | AD7: =N7 -> 11 | AE7: =COUNTIF(L20:L26,AD7) -> 0 | AF7: =AE7/(AG4-AE8) ->  | AG7: =IF(AF7=0,0,(AF7*((LOG(AF7))/LOG(2)))) ->  | AI7: =N7 -> 11 | AJ7: =COUNTIF(L27:L33,AI7) -> 0 | AK7: =AJ7/(AL4-AJ8) ->  | AL7: =IF(AK7=0,0,(AK7*((LOG(AK7))/LOG(2)))) ->  | AN7: =N7 -> 11 | AO7: =COUNTIF(L34:L39,AN7) -> 0 | AP7: =AO7/(AQ4-AO8) ->  | AQ7: =IF(AP7=0,0,(AP7*((LOG(AP7))/LOG(2)))) ->  | AS7: =N7 -> 11 | AT7: =COUNTIF(L40:L46,AS7) -> 0 | AU7: =AT7/(AV4-AT8) ->  | AV7: =IF(AU7=0,0,(AU7*((LOG(AU7))/LOG(2)))) -> 
A8: 11 | B8: 101 | C8: 21 | D8: 108 | K8: 0 | L8: 12 | N8: 12 | O8: =COUNTIF($L$7:$L$500,N8) -> 40 | P8: =O8/$Q$4 -> 1 | Q8: =IF(P8=0,0,(P8*((LOG(P8))/LOG(2)))) -> 0 | T8: =N8 -> 12 | U8: =COUNTIF(L7:L13,T8) -> 7 | Y8: =N8 -> 12 | Z8: =COUNTIF(L14:L19,Y8) -> 6 | AD8: =N8 -> 12 | AE8: =COUNTIF(L20:L26,AD8) -> 7 | AI8: =N8 -> 12 | AJ8: =COUNTIF(L27:L33,AI8) -> 7 | AN8: =N8 -> 12 | AO8: =COUNTIF(L34:L39,AN8) -> 6 | AS8: =N8 -> 12 | AT8: =COUNTIF(L40:L46,AS8) -> 7
A9: 11 | B9: 201 | C9: 21 | D9: 208 | K9: 0 | L9: 12 | N9: 21 | O9: =COUNTIF($L$7:$L$500,N9) -> 0 | P9: =O9/$Q$4 -> 0 | Q9: =IF(P9=0,0,(P9*((LOG(P9))/LOG(2)))) -> 0 | T9: =N9 -> 21 | U9: =COUNTIF(L7:L13,T9) -> 0 | V9: =U9/(W4-U8) ->  | W9: =IF(V9=0,0,(V9*((LOG(V9))/LOG(2)))) ->  | Y9: =N9 -> 21 | Z9: =COUNTIF(L14:L19,Y9) -> 0 | AA9: =Z9/(AB4-Z8) ->  | AB9: =IF(AA9=0,0,(AA9*((LOG(AA9))/LOG(2)))) ->  | AD9: =N9 -> 21 | AE9: =COUNTIF(L20:L26,AD9) -> 0 | AF9: =AE9/(AG4-AE8) ->  | AG9: =IF(AF9=0,0,(AF9*((LOG(AF9))/LOG(2)))) ->  | AI9: =N9 -> 21 | AJ9: =COUNTIF(L27:L33,AI9) -> 0 | AK9: =AJ9/(AL4-AJ8) ->  | AL9: =IF(AK9=0,0,(AK9*((LOG(AK9))/LOG(2)))) ->  | AN9: =N9 -> 21 | AO9: =COUNTIF(L34:L39,AN9) -> 0 | AP9: =AO9/(AQ4-AO8) ->  | AQ9: =IF(AP9=0,0,(AP9*((LOG(AP9))/LOG(2)))) ->  | AS9: =N9 -> 21 | AT9: =COUNTIF(L40:L46,AS9) -> 0 | AU9: =AT9/(AV4-AT8) ->  | AV9: =IF(AU9=0,0,(AU9*((LOG(AU9))/LOG(2)))) -> 
A10: 11 | B10: 296 | C10: 21 | D10: 308 | K10: 0 | L10: 12 | N10: 22 | O10: =COUNTIF($L$7:$L$500,N10) -> 0 | P10: =O10/$Q$4 -> 0 | Q10: =IF(P10=0,0,(P10*((LOG(P10))/LOG(2)))) -> 0 | T10: =N10 -> 22 | U10: =COUNTIF(L7:L13,T10) -> 0 | V10: =U10/(W4-U8) ->  | W10: =IF(V10=0,0,(V10*((LOG(V10))/LOG(2)))) ->  | Y10: =N10 -> 22 | Z10: =COUNTIF(L14:L19,Y10) -> 0 | AA10: =Z10/(AB4-Z8) ->  | AB10: =IF(AA10=0,0,(AA10*((LOG(AA10))/LOG(2)))) ->  | AD10: =N10 -> 22 | AE10: =COUNTIF(L20:L26,AD10) -> 0 | AF10: =AE10/(AG4-AE8) ->  | AG10: =IF(AF10=0,0,(AF10*((LOG(AF10))/LOG(2)))) ->  | AI10: =N10 -> 22 | AJ10: =COUNTIF(L27:L33,AI10) -> 0 | AK10: =AJ10/(AL4-AJ8) ->  | AL10: =IF(AK10=0,0,(AK10*((LOG(AK10))/LOG(2)))) ->  | AN10: =N10 -> 22 | AO10: =COUNTIF(L34:L39,AN10) -> 0 | AP10: =AO10/(AQ4-AO8) ->  | AQ10: =IF(AP10=0,0,(AP10*((LOG(AP10))/LOG(2)))) ->  | AS10: =N10 -> 22 | AT10: =COUNTIF(L40:L46,AS10) -> 0 | AU10: =AT10/(AV4-AT8) ->  | AV10: =IF(AU10=0,0,(AU10*((LOG(AU10))/LOG(2)))) -> 
A11: 11 | B11: 396 | C11: 21 | D11: 414 | K11: 0 | L11: 12 | T11: =N11 -> 0 | U11: =COUNTIF(L7:L13,T11) -> 0 | V11: =U11/(W4-U8) ->  | W11: =IF(V11=0,0,(V11*((LOG(V11))/LOG(2)))) ->  | Y11: =N11 -> 0 | Z11: =COUNTIF(L14:L19,Y11) -> 0 | AA11: =Z11/(AB4-Z8) ->  | AB11: =IF(AA11=0,0,(AA11*((LOG(AA11))/LOG(2)))) ->  | AD11: =N11 -> 0 | AE11: =COUNTIF(L20:L26,AD11) -> 0 | AF11: =AE11/(AG4-AE8) ->  | AG11: =IF(AF11=0,0,(AF11*((LOG(AF11))/LOG(2)))) ->  | AI11: =N11 -> 0 | AJ11: =COUNTIF(L27:L33,AI11) -> 0 | AK11: =AJ11/(AL4-AJ8) ->  | AL11: =IF(AK11=0,0,(AK11*((LOG(AK11))/LOG(2)))) ->  | AN11: =N11 -> 0 | AO11: =COUNTIF(L34:L39,AN11) -> 0 | AP11: =AO11/(AQ4-AO8) ->  | AQ11: =IF(AP11=0,0,(AP11*((LOG(AP11))/LOG(2)))) ->  | AS11: =N11 -> 0 | AT11: =COUNTIF(L40:L46,AS11) -> 0 | AU11: =AT11/(AV4-AT8) ->  | AV11: =IF(AU11=0,0,(AU11*((LOG(AU11))/LOG(2)))) -> 
A12: 11 | B12: 500 | C12: 21 | D12: 507 | K12: 0 | L12: 12 | T12: =N12 -> 0 | U12: =COUNTIF(L7:L13,T12) -> 0 | V12: =U12/(W4-U8) ->  | W12: =IF(V12=0,0,(V12*((LOG(V12))/LOG(2)))) ->  | Y12: =N12 -> 0 | Z12: =COUNTIF(L14:L19,Y12) -> 0 | AA12: =Z12/(AB4-Z8) ->  | AB12: =IF(AA12=0,0,(AA12*((LOG(AA12))/LOG(2)))) ->  | AD12: =N12 -> 0 | AE12: =COUNTIF(L20:L26,AD12) -> 0 | AF12: =AE12/(AG4-AE8) ->  | AG12: =IF(AF12=0,0,(AF12*((LOG(AF12))/LOG(2)))) ->  | AI12: =N12 -> 0 | AJ12: =COUNTIF(L27:L33,AI12) -> 0 | AK12: =AJ12/(AL4-AJ8) ->  | AL12: =IF(AK12=0,0,(AK12*((LOG(AK12))/LOG(2)))) ->  | AN12: =N12 -> 0 | AO12: =COUNTIF(L34:L39,AN12) -> 0 | AP12: =AO12/(AQ4-AO8) ->  | AQ12: =IF(AP12=0,0,(AP12*((LOG(AP12))/LOG(2)))) ->  | AS12: =N12 -> 0 | AT12: =COUNTIF(L40:L46,AS12) -> 0 | AU12: =AT12/(AV4-AT8) ->  | AV12: =IF(AU12=0,0,(AU12*((LOG(AU12))/LOG(2)))) -> 
A13: 11 | B13: 594 | C13: 21 | D13: 601 | K13: 0 | L13: 12 | T13: =N13 -> 0 | U13: =COUNTIF(L7:L13,T13) -> 0 | V13: =U13/(W4-U8) ->  | W13: =IF(V13=0,0,(V13*((LOG(V13))/LOG(2)))) ->  | Y13: =N13 -> 0 | Z13: =COUNTIF(L14:L19,Y13) -> 0 | AA13: =Z13/(AB4-Z8) ->  | AB13: =IF(AA13=0,0,(AA13*((LOG(AA13))/LOG(2)))) ->  | AD13: =N13 -> 0 | AE13: =COUNTIF(L20:L26,AD13) -> 0 | AF13: =AE13/(AG4-AE8) ->  | AG13: =IF(AF13=0,0,(AF13*((LOG(AF13))/LOG(2)))) ->  | AI13: =N13 -> 0 | AJ13: =COUNTIF(L27:L33,AI13) -> 0 | AK13: =AJ13/(AL4-AJ8) ->  | AL13: =IF(AK13=0,0,(AK13*((LOG(AK13))/LOG(2)))) ->  | AN13: =N13 -> 0 | AO13: =COUNTIF(L34:L39,AN13) -> 0 | AP13: =AO13/(AQ4-AO8) ->  | AQ13: =IF(AP13=0,0,(AP13*((LOG(AP13))/LOG(2)))) ->  | AS13: =N13 -> 0 | AT13: =COUNTIF(L40:L46,AS13) -> 0 | AU13: =AT13/(AV4-AT8) ->  | AV13: =IF(AU13=0,0,(AU13*((LOG(AU13))/LOG(2)))) -> 
A14: 11 | B14: 687 | C14: 21 | D14: 694 | K14: 0 | L14: 12 | T14: =N14 -> 0 | U14: =COUNTIF(L7:L13,T14) -> 0 | V14: =U14/(W4-U8) ->  | W14: =IF(V14=0,0,(V14*((LOG(V14))/LOG(2)))) ->  | Y14: =N14 -> 0 | Z14: =COUNTIF(L14:L19,Y14) -> 0 | AA14: =Z14/(AB4-Z8) ->  | AB14: =IF(AA14=0,0,(AA14*((LOG(AA14))/LOG(2)))) ->  | AD14: =N14 -> 0 | AE14: =COUNTIF(L20:L26,AD14) -> 0 | AF14: =AE14/(AG4-AE8) ->  | AG14: =IF(AF14=0,0,(AF14*((LOG(AF14))/LOG(2)))) ->  | AI14: =N14 -> 0 | AJ14: =COUNTIF(L27:L33,AI14) -> 0 | AK14: =AJ14/(AL4-AJ8) ->  | AL14: =IF(AK14=0,0,(AK14*((LOG(AK14))/LOG(2)))) ->  | AN14: =N14 -> 0 | AO14: =COUNTIF(L34:L39,AN14) -> 0 | AP14: =AO14/(AQ4-AO8) ->  | AQ14: =IF(AP14=0,0,(AP14*((LOG(AP14))/LOG(2)))) ->  | AS14: =N14 -> 0 | AT14: =COUNTIF(L40:L46,AS14) -> 0 | AU14: =AT14/(AV4-AT8) ->  | AV14: =IF(AU14=0,0,(AU14*((LOG(AU14))/LOG(2)))) -> 
A15: 11 | B15: 778 | C15: 21 | D15: 786 | K15: 0 | L15: 12 | P15: =SUM(P7:P14) -> 1 | Q15: =-SUM(Q7:Q14) -> 0 | V15: =SUM(V7:V14) ->  | W15: =-SUM(W7:W14) ->  | AA15: =SUM(AA7:AA14) ->  | AB15: =-SUM(AB7:AB14) ->  | AF15: =SUM(AF7:AF14) ->  | AG15: =-SUM(AG7:AG14) ->  | AK15: =SUM(AK7:AK14) ->  | AL15: =-SUM(AL7:AL14) ->  | AP15: =SUM(AP7:AP14) ->  | AQ15: =-SUM(AQ7:AQ14) ->  | AU15: =SUM(AU7:AU14) ->  | AV15: =-SUM(AV7:AV14) -> 
A16: 11 | B16: 874 | C16: 21 | D16: 893 | K16: 0 | L16: 12 | P16: U= | Q16: =Q15/(LOG(Q4)/LOG(2)) -> 0 | V16: U1= | W16: =W15/(LOG(W4)/LOG(2)) ->  | AA16: U2= | AB16: =AB15/(LOG(AB4)/LOG(2)) ->  | AF16: U3= | AG16: =AG15/(LOG(AG4)/LOG(2)) ->  | AK16: U4= | AL16: =AL15/(LOG(AL4)/LOG(2)) ->  | AP16: U5= | AQ16: =AQ15/(LOG(AQ4)/LOG(2)) ->  | AU16: U6= | AV16: =AV15/(LOG(AV4)/LOG(2)) -> 
A17: 11 | B17: 979 | C17: 21 | D17: 987 | K17: 0 | L17: 12
A18: 11 | B18: 1074 | C18: 21 | D18: 1082 | K18: 0 | L18: 12
A19: 11 | B19: 1167 | C19: 21 | D19: 1175 | K19: 0 | L19: 12 | N19: Total Target Seq
A20: 11 | B20: 1261 | C20: 21 | D20: 1268 | K20: 0 | L20: 12 | N20: =COUNTIF(L7:L46,G3) -> 40 | P20: 7 | Q20: 6 | R20: 7 | S20: 7 | T20: 6 | U20: 7
A21: 11 | B21: 1355 | C21: 21 | D21: 1362 | K21: 0 | L21: 12 | P21: % of reinforcement given in 6 equal intervals based on number of trials
A22: 11 | B22: 1448 | C22: 21 | D22: 1455 | K22: 0 | L22: 12 | P22: %_1 | Q22: %_2 | R22: %_3 | S22: %_4 | T22: %_5 | U22: %_6
A23: 11 | B23: 1542 | C23: 21 | D23: 1553 | K23: 0 | L23: 12 | O23: target sequence | P23: =$G$3 -> 12 | Q23: =$G$3 -> 12 | R23: =$G$3 -> 12 | S23: =$G$3 -> 12 | T23: =$G$3 -> 12 | U23: =$G$3 -> 12
A24: 11 | B24: 1640 | C24: 21 | D24: 1647 | K24: 0 | L24: 12 | O24: total reinforcement | P24: =U8 -> 7 | Q24: =Z8 -> 6 | R24: =AE8 -> 7 | S24: =AJ8 -> 7 | T24: =AO8 -> 6 | U24: =AT8 -> 7
A25: 11 | B25: 1736 | C25: 21 | D25: 1743 | K25: 0 | L25: 12 | O25: % target
A26: 11 | B26: 1829 | C26: 21 | D26: 1836 | K26: 0 | L26: 12 | O26: CCRF
A27: 11 | B27: 1929 | C27: 21 | D27: 1936 | K27: 0 | L27: 12 | O27: % CCRf
A28: 11 | B28: 2025 | C28: 21 | D28: 2039 | K28: 0 | L28: 12 | O28: average response rate | P28: =D13/P20 -> 85.85714286 | Q28: =(D19-D13)/Q20 -> 95.66666667 | R28: =(D26-D19)/R20 -> 94.42857143 | S28: =(D33-D26)/S20 -> 101.1428571 | T28: =(D39-D33)/T20 -> 103.8333333 | U28: =(D46-D39)/U20 -> 103.7142857
A29: 11 | B29: 2126 | C29: 21 | D29: 2170 | K29: 0 | L29: 12
A30: 11 | B30: 2257 | C30: 21 | D30: 2263 | K30: 0 | L30: 12
A31: 11 | B31: 2350 | C31: 21 | D31: 2357 | K31: 0 | L31: 12
A32: 11 | B32: 2445 | C32: 21 | D32: 2452 | K32: 0 | L32: 12
A33: 11 | B33: 2537 | C33: 21 | D33: 2544 | K33: 0 | L33: 12
A34: 11 | B34: 2630 | C34: 21 | D34: 2648 | K34: 0 | L34: 12
A35: 11 | B35: 2734 | C35: 21 | D35: 2741 | K35: 0 | L35: 12
A36: 11 | B36: 2828 | C36: 21 | D36: 2856 | K36: 0 | L36: 12
A37: 11 | B37: 2943 | C37: 21 | D37: 2950 | K37: 0 | L37: 12
A38: 11 | B38: 3038 | C38: 21 | D38: 3060 | K38: 0 | L38: 12
A39: 11 | B39: 3146 | C39: 21 | D39: 3167 | K39: 0 | L39: 12
A40: 11 | B40: 3254 | C40: 21 | D40: 3261 | K40: 0 | L40: 12
A41: 11 | B41: 3347 | C41: 21 | D41: 3425 | K41: 0 | L41: 12
A42: 11 | B42: 3512 | C42: 21 | D42: 3517 | K42: 0 | L42: 12
A43: 11 | B43: 3603 | C43: 21 | D43: 3608 | K43: 0 | L43: 12
A44: 11 | B44: 3694 | C44: 21 | D44: 3701 | K44: 0 | L44: 12
A45: 11 | B45: 3787 | C45: 21 | D45: 3798 | K45: 0 | L45: 12
A46: 11 | B46: 3884 | C46: 21 | D46: 3893 | K46: 1 | L46: 12

Sheet !N317800.096
A1: Report for:!N317800.096
A2: Date: | B2: <date>
A3: Hen: | B3: <hen> | F3: Correct Sequence | G3: =Start!J2 -> 12 | P3: Total Sequences in Data | Q3: =4994-COUNTBLANK(L7:L5000) -> 50 | V3: Total Sequences in Block Data | W3: =COUNTA(L7:L14) -> 8 | AA3: Total Sequences in Block Data | AB3: =COUNTA(L15:L23) -> 9 | AF3: Total Sequences in Block Data | AG3: =COUNTA(L24:L31) -> 8 | AK3: Total Sequences in Block Data | AL3: =COUNTA(L32:L39) -> 8 | AP3: Total Sequences in Block Data | AQ3: =COUNTA(L40:L48) -> 9 | AU3: Total Sequences in Block Data | AV3: =COUNTA(L49:L56) -> 8
P4: Total Sequences in Summary | Q4: =SUM(O7:O14) -> 50 | V4: Total Sequences in Block Summary | W4: =SUM(U7:U14) -> 8 | AA4: Total Sequences in Block Summary | AB4: =SUM(Z7:Z14) -> 9 | AF4: Total Sequences in Block Summary | AG4: =SUM(AE7:AE14) -> 8 | AK4: Total Sequences in Block Summary | AL4: =SUM(AJ7:AJ14) -> 8 | AP4: Total Sequences in Block Summary | AQ4: =SUM(AO7:AO14) -> 9 | AU4: Total Sequences in Block Summary | AV4: =SUM(AT7:AT14) -> 8
T5: Block 1 | Y5: Block 2 | AD5: Block 3 | AI5: Block 4 | AN5: Block 5 | AS5: Block 6
A6: Sequence Component 1 | B6: Time 1 | C6: Sequence Component 2 | D6: Time 2 | E6: Sequence Component 3 | F6: Time 3 | G6: Sequence Component 4 | H6: Time 4 | I6: Sequence Component 5 | J6: Time 5 | K6: Correct? 0=No 1=Yes | L6: Sequence | N6: Frequency | P6: Relative Frequency | Q6: Variability | T6: Frequency | V6: Relative Frequency | W6: Variability | Y6: Frequency | AA6: Relative Frequency | AB6: Variability | AD6: Frequency | AF6: Relative Frequency | AG6: Variability | AI6: Frequency | AK6: Relative Frequency | AL6: Variability | AN6: Frequency | AP6: Relative Frequency | AQ6: Variability | AS6: Frequency | AU6: Relative Frequency | AV6: Variability
A7: 11 | B7: 6 | C7: 21 | D7: 15 | K7: 0 | L7: 12 | N7: 11 | O7: =COUNTIF($L$7:$L$500,N7) -> 1 | P7: =O7/$Q$4 -> 0.02 | Q7: =IF(P7=0,0,(P7*((LOG(P7))/LOG(2)))) -> -0.1128771238 | T7: =N7 -> 11 | U7: =COUNTIF(L7:L14,T7) -> 0 | V7: =U7/(W4-U8) -> 0 | W7: =IF(V7=0,0,(V7*((LOG(V7))/LOG(2)))) -> 0 | Y7: =N7 -> 11 | Z7: =COUNTIF(L15:L23,Y7) -> 0 | AA7: =Z7/(AB4-Z8) -> 0 | AB7: =IF(AA7=0,0,(AA7*((LOG(AA7))/LOG(2)))) -> 0 | AD7: =N7 -> 11 | AE7: =COUNTIF(L24:L31,AD7) -> 0 | AF7: =AE7/(AG4-AE8) -> 0 | AG7: =IF(AF7=0,0,(AF7*((LOG(AF7))/LOG(2)))) -> 0 | AI7: =N7 -> 11 | AJ7: =COUNTIF(L32:L39,AI7) -> 0 | AK7: =AJ7/(AL4-AJ8) ->  | AL7: =IF(AK7=0,0,(AK7*((LOG(AK7))/LOG(2)))) ->  | AN7: =N7 -> 11 | AO7: =COUNTIF(L40:L48,AN7) -> 0 | AP7: =AO7/(AQ4-AO8) -> 0 | AQ7: =IF(AP7=0,0,(AP7*((LOG(AP7))/LOG(2)))) -> 0 | AS7: =N7 -> 11 | AT7: =COUNTIF(L49:L56,AS7) -> 1 | AU7: =AT7/(AV4-AT8) -> 0.5 | AV7: =IF(AU7=0,0,(AU7*((LOG(AU7))/LOG(2)))) -> -0.5
A8: 11 | B8: 108 | C8: 21 | D8: 116 | K8: 0 | L8: 12 | N8: 12 | O8: =COUNTIF($L$7:$L$500,N8) -> 40 | P8: =O8/$Q$4 -> 0.8 | Q8: =IF(P8=0,0,(P8*((LOG(P8))/LOG(2)))) -> -0.2575424759 | T8: =N8 -> 12 | U8: =COUNTIF(L7:L14,T8) -> 5 | Y8: =N8 -> 12 | Z8: =COUNTIF(L15:L23,Y8) -> 7 | AD8: =N8 -> 12 | AE8: =COUNTIF(L24:L31,AD8) -> 6 | AI8: =N8 -> 12 | AJ8: =COUNTIF(L32:L39,AI8) -> 8 | AN8: =N8 -> 12 | AO8: =COUNTIF(L40:L48,AN8) -> 8 | AS8: =N8 -> 12 | AT8: =COUNTIF(L49:L56,AS8) -> 6
A9: 22 | B9: 214 | C9: 23 | D9: 246 | K9: 0 | L9: 22 | N9: 21 | O9: =COUNTIF($L$7:$L$500,N9) -> 2 | P9: =O9/$Q$4 -> 0.04 | Q9: =IF(P9=0,0,(P9*((LOG(P9))/LOG(2)))) -> -0.1857542476 | T9: =N9 -> 21 | U9: =COUNTIF(L7:L14,T9) -> 0 | V9: =U9/(W4-U8) -> 0 | W9: =IF(V9=0,0,(V9*((LOG(V9))/LOG(2)))) -> 0 | Y9: =N9 -> 21 | Z9: =COUNTIF(L15:L23,Y9) -> 1 | AA9: =Z9/(AB4-Z8) -> 0.5 | AB9: =IF(AA9=0,0,(AA9*((LOG(AA9))/LOG(2)))) -> -0.5 | AD9: =N9 -> 21 | AE9: =COUNTIF(L24:L31,AD9) -> 0 | AF9: =AE9/(AG4-AE8) -> 0 | AG9: =IF(AF9=0,0,(AF9*((LOG(AF9))/LOG(2)))) -> 0 | AI9: =N9 -> 21 | AJ9: =COUNTIF(L32:L39,AI9) -> 0 | AK9: =AJ9/(AL4-AJ8) ->  | AL9: =IF(AK9=0,0,(AK9*((LOG(AK9))/LOG(2)))) ->  | AN9: =N9 -> 21 | AO9: =COUNTIF(L40:L48,AN9) -> 0 | AP9: =AO9/(AQ4-AO8) -> 0 | AQ9: =IF(AP9=0,0,(AP9*((LOG(AP9))/LOG(2)))) -> 0 | AS9: =N9 -> 21 | AT9: =COUNTIF(L49:L56,AS9) -> 1 | AU9: =AT9/(AV4-AT8) -> 0.5 | AV9: =IF(AU9=0,0,(AU9*((LOG(AU9))/LOG(2)))) -> -0.5
A10: 11 | B10: 346 | C10: 21 | D10: 384 | K10: 0 | L10: 12 | N10: 22 | O10: =COUNTIF($L$7:$L$500,N10) -> 7 | P10: =O10/$Q$4 -> 0.14 | Q10: =IF(P10=0,0,(P10*((LOG(P10))/LOG(2)))) -> -0.3971101775 | T10: =N10 -> 22 | U10: =COUNTIF(L7:L14,T10) -> 3 | V10: =U10/(W4-U8) -> 1 | W10: =IF(V10=0,0,(V10*((LOG(V10))/LOG(2)))) -> 0 | Y10: =N10 -> 22 | Z10: =COUNTIF(L15:L23,Y10) -> 1 | AA10: =Z10/(AB4-Z8) -> 0.5 | AB10: =IF(AA10=0,0,(AA10*((LOG(AA10))/LOG(2)))) -> -0.5 | AD10: =N10 -> 22 | AE10: =COUNTIF(L24:L31,AD10) -> 2 | AF10: =AE10/(AG4-AE8) -> 1 | AG10: =IF(AF10=0,0,(AF10*((LOG(AF10))/LOG(2)))) -> 0 | AI10: =N10 -> 22 | AJ10: =COUNTIF(L32:L39,AI10) -> 0 | AK10: =AJ10/(AL4-AJ8) ->  | AL10: =IF(AK10=0,0,(AK10*((LOG(AK10))/LOG(2)))) ->  | AN10: =N10 -> 22 | AO10: =COUNTIF(L40:L48,AN10) -> 1 | AP10: =AO10/(AQ4-AO8) -> 1 | AQ10: =IF(AP10=0,0,(AP10*((LOG(AP10))/LOG(2)))) -> 0 | AS10: =N10 -> 22 | AT10: =COUNTIF(L49:L56,AS10) -> 0 | AU10: =AT10/(AV4-AT8) -> 0 | AV10: =IF(AU10=0,0,(AU10*((LOG(AU10))/LOG(2)))) -> 0
A11: 11 | B11: 471 | C11: 21 | D11: 480 | K11: 0 | L11: 12 | T11: =N11 -> 0 | U11: =COUNTIF(L7:L14,T11) -> 0 | V11: =U11/(W4-U8) -> 0 | W11: =IF(V11=0,0,(V11*((LOG(V11))/LOG(2)))) -> 0 | Y11: =N11 -> 0 | Z11: =COUNTIF(L15:L23,Y11) -> 0 | AA11: =Z11/(AB4-Z8) -> 0 | AB11: =IF(AA11=0,0,(AA11*((LOG(AA11))/LOG(2)))) -> 0 | AD11: =N11 -> 0 | AE11: =COUNTIF(L24:L31,AD11) -> 0 | AF11: =AE11/(AG4-AE8) -> 0 | AG11: =IF(AF11=0,0,(AF11*((LOG(AF11))/LOG(2)))) -> 0 | AI11: =N11 -> 0 | AJ11: =COUNTIF(L32:L39,AI11) -> 0 | AK11: =AJ11/(AL4-AJ8) ->  | AL11: =IF(AK11=0,0,(AK11*((LOG(AK11))/LOG(2)))) ->  | AN11: =N11 -> 0 | AO11: =COUNTIF(L40:L48,AN11) -> 0 | AP11: =AO11/(AQ4-AO8) -> 0 | AQ11: =IF(AP11=0,0,(AP11*((LOG(AP11))/LOG(2)))) -> 0 | AS11: =N11 -> 0 | AT11: =COUNTIF(L49:L56,AS11) -> 0 | AU11: =AT11/(AV4-AT8) -> 0 | AV11: =IF(AU11=0,0,(AU11*((LOG(AU11))/LOG(2)))) -> 0
A12: 11 | B12: 569 | C12: 21 | D12: 577 | K12: 0 | L12: 12 | T12: =N12 -> 0 | U12: =COUNTIF(L7:L14,T12) -> 0 | V12: =U12/(W4-U8) -> 0 | W12: =IF(V12=0,0,(V12*((LOG(V12))/LOG(2)))) -> 0 | Y12: =N12 -> 0 | Z12: =COUNTIF(L15:L23,Y12) -> 0 | AA12: =Z12/(AB4-Z8) -> 0 | AB12: =IF(AA12=0,0,(AA12*((LOG(AA12))/LOG(2)))) -> 0 | AD12: =N12 -> 0 | AE12: =COUNTIF(L24:L31,AD12) -> 0 | AF12: =AE12/(AG4-AE8) -> 0 | AG12: =IF(AF12=0,0,(AF12*((LOG(AF12))/LOG(2)))) -> 0 | AI12: =N12 -> 0 | AJ12: =COUNTIF(L32:L39,AI12) -> 0 | AK12: =AJ12/(AL4-AJ8) ->  | AL12: =IF(AK12=0,0,(AK12*((LOG(AK12))/LOG(2)))) ->  | AN12: =N12 -> 0 | AO12: =COUNTIF(L40:L48,AN12) -> 0 | AP12: =AO12/(AQ4-AO8) -> 0 | AQ12: =IF(AP12=0,0,(AP12*((LOG(AP12))/LOG(2)))) -> 0 | AS12: =N12 -> 0 | AT12: =COUNTIF(L49:L56,AS12) -> 0 | AU12: =AT12/(AV4-AT8) -> 0 | AV12: =IF(AU12=0,0,(AU12*((LOG(AU12))/LOG(2)))) -> 0
A13: 22 | B13: 666 | C13: 23 | D13: 678 | K13: 0 | L13: 22 | T13: =N13 -> 0 | U13: =COUNTIF(L7:L14,T13) -> 0 | V13: =U13/(W4-U8) -> 0 | W13: =IF(V13=0,0,(V13*((LOG(V13))/LOG(2)))) -> 0 | Y13: =N13 -> 0 | Z13: =COUNTIF(L15:L23,Y13) -> 0 | AA13: =Z13/(AB4-Z8) -> 0 | AB13: =IF(AA13=0,0,(AA13*((LOG(AA13))/LOG(2)))) -> 0 | AD13: =N13 -> 0 | AE13: =COUNTIF(L24:L31,AD13) -> 0 | AF13: =AE13/(AG4-AE8) -> 0 | AG13: =IF(AF13=0,0,(AF13*((LOG(AF13))/LOG(2)))) -> 0 | AI13: =N13 -> 0 | AJ13: =COUNTIF(L32:L39,AI13) -> 0 | AK13: =AJ13/(AL4-AJ8) ->  | AL13: =IF(AK13=0,0,(AK13*((LOG(AK13))/LOG(2)))) ->  | AN13: =N13 -> 0 | AO13: =COUNTIF(L40:L48,AN13) -> 0 | AP13: =AO13/(AQ4-AO8) -> 0 | AQ13: =IF(AP13=0,0,(AP13*((LOG(AP13))/LOG(2)))) -> 0 | AS13: =N13 -> 0 | AT13: =COUNTIF(L49:L56,AS13) -> 0 | AU13: =AT13/(AV4-AT8) -> 0 | AV13: =IF(AU13=0,0,(AU13*((LOG(AU13))/LOG(2)))) -> 0
A14: 22 | B14: 790 | C14: 23 | D14: 861 | K14: 0 | L14: 22 | T14: =N14 -> 0 | U14: =COUNTIF(L7:L14,T14) -> 0 | V14: =U14/(W4-U8) -> 0 | W14: =IF(V14=0,0,(V14*((LOG(V14))/LOG(2)))) -> 0 | Y14: =N14 -> 0 | Z14: =COUNTIF(L15:L23,Y14) -> 0 | AA14: =Z14/(AB4-Z8) -> 0 | AB14: =IF(AA14=0,0,(AA14*((LOG(AA14))/LOG(2)))) -> 0 | AD14: =N14 -> 0 | AE14: =COUNTIF(L24:L31,AD14) -> 0 | AF14: =AE14/(AG4-AE8) -> 0 | AG14: =IF(AF14=0,0,(AF14*((LOG(AF14))/LOG(2)))) -> 0 | AI14: =N14 -> 0 | AJ14: =COUNTIF(L32:L39,AI14) -> 0 | AK14: =AJ14/(AL4-AJ8) ->  | AL14: =IF(AK14=0,0,(AK14*((LOG(AK14))/LOG(2)))) ->  | AN14: =N14 -> 0 | AO14: =COUNTIF(L40:L48,AN14) -> 0 | AP14: =AO14/(AQ4-AO8) -> 0 | AQ14: =IF(AP14=0,0,(AP14*((LOG(AP14))/LOG(2)))) -> 0 | AS14: =N14 -> 0 | AT14: =COUNTIF(L49:L56,AS14) -> 0 | AU14: =AT14/(AV4-AT8) -> 0 | AV14: =IF(AU14=0,0,(AU14*((LOG(AU14))/LOG(2)))) -> 0
A15: 11 | B15: 959 | C15: 21 | D15: 978 | K15: 0 | L15: 12 | P15: =SUM(P7:P14) -> 1 | Q15: =-SUM(Q7:Q14) -> 0.9532840248 | V15: =SUM(V7:V14) -> 1 | W15: =-SUM(W7:W14) -> 0 | AA15: =SUM(AA7:AA14) -> 1 | AB15: =-SUM(AB7:AB14) -> 1 | AF15: =SUM(AF7:AF14) -> 1 | AG15: =-SUM(AG7:AG14) -> 0 | AK15: =SUM(AK7:AK14) ->  | AL15: =-SUM(AL7:AL14) ->  | AP15: =SUM(AP7:AP14) -> 1 | AQ15: =-SUM(AQ7:AQ14) -> 0 | AU15: =SUM(AU7:AU14) -> 1 | AV15: =-SUM(AV7:AV14) -> 1
A16: 11 | B16: 1065 | C16: 21 | D16: 1073 | K16: 0 | L16: 12 | P16: U= | Q16: =Q15/(LOG(Q4)/LOG(2)) -> 0.1689065052 | V16: U1= | W16: =W15/(LOG(W4)/LOG(2)) -> 0 | AA16: U2= | AB16: =AB15/(LOG(AB4)/LOG(2)) -> 0.3154648768 | AF16: U3= | AG16: =AG15/(LOG(AG4)/LOG(2)) -> 0 | AK16: U4= | AL16: =AL15/(LOG(AL4)/LOG(2)) ->  | AP16: U5= | AQ16: =AQ15/(LOG(AQ4)/LOG(2)) -> 0 | AU16: U6= | AV16: =AV15/(LOG(AV4)/LOG(2)) -> 0.3333333333
A17: 22 | B17: 1174 | C17: 23 | D17: 1190 | K17: 0 | L17: 22
A18: 11 | B18: 1286 | C18: 21 | D18: 1323 | K18: 0 | L18: 12
A19: 11 | B19: 1417 | C19: 21 | D19: 1424 | K19: 0 | L19: 12 | N19: Total Target Seq
A20: 11 | B20: 1513 | C20: 21 | D20: 1521 | K20: 0 | L20: 12 | N20: =COUNTIF(L7:L56,G3) -> 40 | P20: 8 | Q20: 9 | R20: 8 | S20: 8 | T20: 9 | U20: 8
A21: 11 | B21: 1609 | C21: 21 | D21: 1616 | K21: 0 | L21: 12 | P21: % of reinforcement given in 6 equal intervals based on number of trials
A22: 11 | B22: 1703 | C22: 21 | D22: 1711 | K22: 0 | L22: 12 | P22: %_1 | Q22: %_2 | R22: %_3 | S22: %_4 | T22: %_5 | U22: %_6
A23: 22 | B23: 1804 | C23: 14 | D23: 1815 | K23: 0 | L23: 21 | O23: target sequence | P23: =$G$3 -> 12 | Q23: =$G$3 -> 12 | R23: =$G$3 -> 12 | S23: =$G$3 -> 12 | T23: =$G$3 -> 12 | U23: =$G$3 -> 12
A24: 11 | B24: 1903 | C24: 21 | D24: 1911 | K24: 0 | L24: 12 | O24: total reinforcement | P24: =U8 -> 5 | Q24: =Z8 -> 7 | R24: =AE8 -> 6 | S24: =AJ8 -> 8 | T24: =AO8 -> 8 | U24: =AT8 -> 6
A25: 11 | B25: 1997 | C25: 21 | D25: 2007 | K25: 0 | L25: 12 | O25: % target
A26: 11 | B26: 2099 | C26: 21 | D26: 2110 | K26: 0 | L26: 12 | O26: CCRF
A27: 11 | B27: 2200 | C27: 21 | D27: 2221 | K27: 0 | L27: 12 | O27: % CCRf
A28: 11 | B28: 2307 | C28: 21 | D28: 2316 | K28: 0 | L28: 12 | O28: average response rate | P28: =D14/P20 -> 107.625 | Q28: =(D23-D14)/Q20 -> 106 | R28: =(D31-D23)/R20 -> 102.875 | S28: =(D39-D31)/S20 -> 103 | T28: =(D48-D39)/T20 -> 104.3333333 | U28: =(D56-D48)/U20 -> 100.5
A29: 22 | B29: 2410 | C29: 23 | D29: 2419 | K29: 0 | L29: 22
A30: 22 | B30: 2525 | C30: 23 | D30: 2534 | K30: 0 | L30: 22
A31: 11 | B31: 2630 | C31: 21 | D31: 2638 | K31: 0 | L31: 12
A32: 11 | B32: 2725 | C32: 21 | D32: 2732 | K32: 0 | L32: 12
A33: 11 | B33: 2847 | C33: 21 | D33: 2855 | K33: 0 | L33: 12
A34: 11 | B34: 2947 | C34: 21 | D34: 2980 | K34: 0 | L34: 12
A35: 11 | B35: 3066 | C35: 21 | D35: 3074 | K35: 0 | L35: 12
A36: 11 | B36: 3163 | C36: 21 | D36: 3171 | K36: 0 | L36: 12
A37: 11 | B37: 3263 | C37: 21 | D37: 3271 | K37: 0 | L37: 12
A38: 11 | B38: 3360 | C38: 21 | D38: 3367 | K38: 0 | L38: 12
A39: 11 | B39: 3455 | C39: 21 | D39: 3462 | K39: 0 | L39: 12
A40: 11 | B40: 3551 | C40: 21 | D40: 3558 | K40: 0 | L40: 12
A41: 11 | B41: 3655 | C41: 21 | D41: 3662 | K41: 0 | L41: 12
A42: 11 | B42: 3751 | C42: 21 | D42: 3758 | K42: 0 | L42: 12
A43: 11 | B43: 3848 | C43: 21 | D43: 3856 | K43: 0 | L43: 12
A44: 11 | B44: 3943 | C44: 21 | D44: 3950 | K44: 0 | L44: 12
A45: 11 | B45: 4037 | C45: 21 | D45: 4044 | K45: 0 | L45: 12
A46: 22 | B46: 4142 | C46: 23 | D46: 4162 | K46: 0 | L46: 22
A47: 11 | B47: 4259 | C47: 21 | D47: 4267 | K47: 0 | L47: 12
A48: 11 | B48: 4393 | C48: 21 | D48: 4401 | K48: 0 | L48: 12
A49: 11 | B49: 4488 | C49: 21 | D49: 4496 | K49: 0 | L49: 12
A50: 11 | B50: 4583 | C50: 21 | D50: 4592 | K50: 0 | L50: 12
A51: 11 | B51: 4678 | C51: 21 | D51: 4686 | K51: 0 | L51: 12
A52: 11 | B52: 4773 | C52: 12 | D52: 4798 | K52: 0 | L52: 11
A53: 22 | B53: 4898 | C53: 14 | D53: 4909 | K53: 0 | L53: 21
A54: 11 | B54: 5009 | C54: 21 | D54: 5016 | K54: 0 | L54: 12
A55: 11 | B55: 5103 | C55: 21 | D55: 5110 | K55: 0 | L55: 12
A56: 11 | B56: 5198 | C56: 21 | D56: 5205 | K56: 1 | L56: 12

Sheet !N318740.096
A1: Report for:!N318740.096
A2: Date: | B2: <date>
A3: Hen: | B3: <hen> | F3: Correct Sequence | G3: =Start!J2 -> 12 | P3: Total Sequences in Data | Q3: =4994-COUNTBLANK(L7:L5000) -> 43 | V3: Total Sequences in Block Data | W3: =COUNTA(L7:L13) -> 7 | AA3: Total Sequences in Block Data | AB3: =COUNTA(L14:L20) -> 7 | AF3: Total Sequences in Block Data | AG3: =COUNTA(L21:L28) -> 8 | AK3: Total Sequences in Block Data | AL3: =COUNTA(L29:L35) -> 7 | AP3: Total Sequences in Block Data | AQ3: =COUNTA(L36:L42) -> 7 | AU3: Total Sequences in Block Data | AV3: =COUNTA(L43:L49) -> 7
P4: Total Sequences in Summary | Q4: =SUM(O7:O14) -> 43 | V4: Total Sequences in Block Summary | W4: =SUM(U7:U14) -> 7 | AA4: Total Sequences in Block Summary | AB4: =SUM(Z7:Z14) -> 7 | AF4: Total Sequences in Block Summary | AG4: =SUM(AE7:AE14) -> 8 | AK4: Total Sequences in Block Summary | AL4: =SUM(AJ7:AJ14) -> 7 | AP4: Total Sequences in Block Summary | AQ4: =SUM(AO7:AO14) -> 7 | AU4: Total Sequences in Block Summary | AV4: =SUM(AT7:AT14) -> 7
T5: Block 1 | Y5: Block 2 | AD5: Block 3 | AI5: Block 4 | AN5: Block 5 | AS5: Block 6
A6: Sequence Component 1 | B6: Time 1 | C6: Sequence Component 2 | D6: Time 2 | E6: Sequence Component 3 | F6: Time 3 | G6: Sequence Component 4 | H6: Time 4 | I6: Sequence Component 5 | J6: Time 5 | K6: Correct? 0=No 1=Yes | L6: Sequence | N6: Frequency | P6: Relative Frequency | Q6: Variability | T6: Frequency | V6: Relative Frequency | W6: Variability | Y6: Frequency | AA6: Relative Frequency | AB6: Variability | AD6: Frequency | AF6: Relative Frequency | AG6: Variability | AI6: Frequency | AK6: Relative Frequency | AL6: Variability | AN6: Frequency | AP6: Relative Frequency | AQ6: Variability | AS6: Frequency | AU6: Relative Frequency | AV6: Variability
A7: 11 | B7: 7 | C7: 21 | D7: 15 | K7: 0 | L7: 12 | N7: 11 | O7: =COUNTIF($L$7:$L$500,N7) -> 2 | P7: =O7/$Q$4 -> 0.04651162791 | Q7: =IF(P7=0,0,(P7*((LOG(P7))/LOG(2)))) -> -0.2058727793 | T7: =N7 -> 11 | U7: =COUNTIF(L7:L13,T7) -> 0 | V7: =U7/(W4-U8) -> 0 | W7: =IF(V7=0,0,(V7*((LOG(V7))/LOG(2)))) -> 0 | Y7: =N7 -> 11 | Z7: =COUNTIF(L14:L20,Y7) -> 1 | AA7: =Z7/(AB4-Z8) -> 1 | AB7: =IF(AA7=0,0,(AA7*((LOG(AA7))/LOG(2)))) -> 0 | AD7: =N7 -> 11 | AE7: =COUNTIF(L21:L28,AD7) -> 1 | AF7: =AE7/(AG4-AE8) -> 1 | AG7: =IF(AF7=0,0,(AF7*((LOG(AF7))/LOG(2)))) -> 0 | AI7: =N7 -> 11 | AJ7: =COUNTIF(L29:L35,AI7) -> 0 | AK7: =AJ7/(AL4-AJ8) ->  | AL7: =IF(AK7=0,0,(AK7*((LOG(AK7))/LOG(2)))) ->  | AN7: =N7 -> 11 | AO7: =COUNTIF(L36:L42,AN7) -> 0 | AP7: =AO7/(AQ4-AO8) ->  | AQ7: =IF(AP7=0,0,(AP7*((LOG(AP7))/LOG(2)))) ->  | AS7: =N7 -> 11 | AT7: =COUNTIF(L43:L49,AS7) -> 0 | AU7: =AT7/(AV4-AT8) ->  | AV7: =IF(AU7=0,0,(AU7*((LOG(AU7))/LOG(2)))) -> 
A8: 11 | B8: 106 | C8: 21 | D8: 113 | K8: 0 | L8: 12 | N8: 12 | O8: =COUNTIF($L$7:$L$500,N8) -> 40 | P8: =O8/$Q$4 -> 0.9302325581 | Q8: =IF(P8=0,0,(P8*((LOG(P8))/LOG(2)))) -> -0.09705735797 | T8: =N8 -> 12 | U8: =COUNTIF(L7:L13,T8) -> 6 | Y8: =N8 -> 12 | Z8: =COUNTIF(L14:L20,Y8) -> 6 | AD8: =N8 -> 12 | AE8: =COUNTIF(L21:L28,AD8) -> 7 | AI8: =N8 -> 12 | AJ8: =COUNTIF(L29:L35,AI8) -> 7 | AN8: =N8 -> 12 | AO8: =COUNTIF(L36:L42,AN8) -> 7 | AS8: =N8 -> 12 | AT8: =COUNTIF(L43:L49,AS8) -> 7
A9: 11 | B9: 202 | C9: 21 | D9: 220 | K9: 0 | L9: 12 | N9: 21 | O9: =COUNTIF($L$7:$L$500,N9) -> 0 | P9: =O9/$Q$4 -> 0 | Q9: =IF(P9=0,0,(P9*((LOG(P9))/LOG(2)))) -> 0 | T9: =N9 -> 21 | U9: =COUNTIF(L7:L13,T9) -> 0 | V9: =U9/(W4-U8) -> 0 | W9: =IF(V9=0,0,(V9*((LOG(V9))/LOG(2)))) -> 0 | Y9: =N9 -> 21 | Z9: =COUNTIF(L14:L20,Y9) -> 0 | AA9: =Z9/(AB4-Z8) -> 0 | AB9: =IF(AA9=0,0,(AA9*((LOG(AA9))/LOG(2)))) -> 0 | AD9: =N9 -> 21 | AE9: =COUNTIF(L21:L28,AD9) -> 0 | AF9: =AE9/(AG4-AE8) -> 0 | AG9: =IF(AF9=0,0,(AF9*((LOG(AF9))/LOG(2)))) -> 0 | AI9: =N9 -> 21 | AJ9: =COUNTIF(L29:L35,AI9) -> 0 | AK9: =AJ9/(AL4-AJ8) ->  | AL9: =IF(AK9=0,0,(AK9*((LOG(AK9))/LOG(2)))) ->  | AN9: =N9 -> 21 | AO9: =COUNTIF(L36:L42,AN9) -> 0 | AP9: =AO9/(AQ4-AO8) ->  | AQ9: =IF(AP9=0,0,(AP9*((LOG(AP9))/LOG(2)))) ->  | AS9: =N9 -> 21 | AT9: =COUNTIF(L43:L49,AS9) -> 0 | AU9: =AT9/(AV4-AT8) ->  | AV9: =IF(AU9=0,0,(AU9*((LOG(AU9))/LOG(2)))) -> 
A10: 22 | B10: 315 | C10: 23 | D10: 327 | K10: 0 | L10: 22 | N10: 22 | O10: =COUNTIF($L$7:$L$500,N10) -> 1 | P10: =O10/$Q$4 -> 0.02325581395 | Q10: =IF(P10=0,0,(P10*((LOG(P10))/LOG(2)))) -> -0.1261922036 | T10: =N10 -> 22 | U10: =COUNTIF(L7:L13,T10) -> 1 | V10: =U10/(W4-U8) -> 1 | W10: =IF(V10=0,0,(V10*((LOG(V10))/LOG(2)))) -> 0 | Y10: =N10 -> 22 | Z10: =COUNTIF(L14:L20,Y10) -> 0 | AA10: =Z10/(AB4-Z8) -> 0 | AB10: =IF(AA10=0,0,(AA10*((LOG(AA10))/LOG(2)))) -> 0 | AD10: =N10 -> 22 | AE10: =COUNTIF(L21:L28,AD10) -> 0 | AF10: =AE10/(AG4-AE8) -> 0 | AG10: =IF(AF10=0,0,(AF10*((LOG(AF10))/LOG(2)))) -> 0 | AI10: =N10 -> 22 | AJ10: =COUNTIF(L29:L35,AI10) -> 0 | AK10: =AJ10/(AL4-AJ8) ->  | AL10: =IF(AK10=0,0,(AK10*((LOG(AK10))/LOG(2)))) ->  | AN10: =N10 -> 22 | AO10: =COUNTIF(L36:L42,AN10) -> 0 | AP10: =AO10/(AQ4-AO8) ->  | AQ10: =IF(AP10=0,0,(AP10*((LOG(AP10))/LOG(2)))) ->  | AS10: =N10 -> 22 | AT10: =COUNTIF(L43:L49,AS10) -> 0 | AU10: =AT10/(AV4-AT8) ->  | AV10: =IF(AU10=0,0,(AU10*((LOG(AU10))/LOG(2)))) -> 
A11: 11 | B11: 414 | C11: 21 | D11: 432 | K11: 0 | L11: 12 | T11: =N11 -> 0 | U11: =COUNTIF(L7:L13,T11) -> 0 | V11: =U11/(W4-U8) -> 0 | W11: =IF(V11=0,0,(V11*((LOG(V11))/LOG(2)))) -> 0 | Y11: =N11 -> 0 | Z11: =COUNTIF(L14:L20,Y11) -> 0 | AA11: =Z11/(AB4-Z8) -> 0 | AB11: =IF(AA11=0,0,(AA11*((LOG(AA11))/LOG(2)))) -> 0 | AD11: =N11 -> 0 | AE11: =COUNTIF(L21:L28,AD11) -> 0 | AF11: =AE11/(AG4-AE8) -> 0 | AG11: =IF(AF11=0,0,(AF11*((LOG(AF11))/LOG(2)))) -> 0 | AI11: =N11 -> 0 | AJ11: =COUNTIF(L29:L35,AI11) -> 0 | AK11: =AJ11/(AL4-AJ8) ->  | AL11: =IF(AK11=0,0,(AK11*((LOG(AK11))/LOG(2)))) ->  | AN11: =N11 -> 0 | AO11: =COUNTIF(L36:L42,AN11) -> 0 | AP11: =AO11/(AQ4-AO8) ->  | AQ11: =IF(AP11=0,0,(AP11*((LOG(AP11))/LOG(2)))) ->  | AS11: =N11 -> 0 | AT11: =COUNTIF(L43:L49,AS11) -> 0 | AU11: =AT11/(AV4-AT8) ->  | AV11: =IF(AU11=0,0,(AU11*((LOG(AU11))/LOG(2)))) -> 
A12: 11 | B12: 518 | C12: 21 | D12: 537 | K12: 0 | L12: 12 | T12: =N12 -> 0 | U12: =COUNTIF(L7:L13,T12) -> 0 | V12: =U12/(W4-U8) -> 0 | W12: =IF(V12=0,0,(V12*((LOG(V12))/LOG(2)))) -> 0 | Y12: =N12 -> 0 | Z12: =COUNTIF(L14:L20,Y12) -> 0 | AA12: =Z12/(AB4-Z8) -> 0 | AB12: =IF(AA12=0,0,(AA12*((LOG(AA12))/LOG(2)))) -> 0 | AD12: =N12 -> 0 | AE12: =COUNTIF(L21:L28,AD12) -> 0 | AF12: =AE12/(AG4-AE8) -> 0 | AG12: =IF(AF12=0,0,(AF12*((LOG(AF12))/LOG(2)))) -> 0 | AI12: =N12 -> 0 | AJ12: =COUNTIF(L29:L35,AI12) -> 0 | AK12: =AJ12/(AL4-AJ8) ->  | AL12: =IF(AK12=0,0,(AK12*((LOG(AK12))/LOG(2)))) ->  | AN12: =N12 -> 0 | AO12: =COUNTIF(L36:L42,AN12) -> 0 | AP12: =AO12/(AQ4-AO8) ->  | AQ12: =IF(AP12=0,0,(AP12*((LOG(AP12))/LOG(2)))) ->  | AS12: =N12 -> 0 | AT12: =COUNTIF(L43:L49,AS12) -> 0 | AU12: =AT12/(AV4-AT8) ->  | AV12: =IF(AU12=0,0,(AU12*((LOG(AU12))/LOG(2)))) -> 
A13: 11 | B13: 624 | C13: 21 | D13: 632 | K13: 0 | L13: 12 | T13: =N13 -> 0 | U13: =COUNTIF(L7:L13,T13) -> 0 | V13: =U13/(W4-U8) -> 0 | W13: =IF(V13=0,0,(V13*((LOG(V13))/LOG(2)))) -> 0 | Y13: =N13 -> 0 | Z13: =COUNTIF(L14:L20,Y13) -> 0 | AA13: =Z13/(AB4-Z8) -> 0 | AB13: =IF(AA13=0,0,(AA13*((LOG(AA13))/LOG(2)))) -> 0 | AD13: =N13 -> 0 | AE13: =COUNTIF(L21:L28,AD13) -> 0 | AF13: =AE13/(AG4-AE8) -> 0 | AG13: =IF(AF13=0,0,(AF13*((LOG(AF13))/LOG(2)))) -> 0 | AI13: =N13 -> 0 | AJ13: =COUNTIF(L29:L35,AI13) -> 0 | AK13: =AJ13/(AL4-AJ8) ->  | AL13: =IF(AK13=0,0,(AK13*((LOG(AK13))/LOG(2)))) ->  | AN13: =N13 -> 0 | AO13: =COUNTIF(L36:L42,AN13) -> 0 | AP13: =AO13/(AQ4-AO8) ->  | AQ13: =IF(AP13=0,0,(AP13*((LOG(AP13))/LOG(2)))) ->  | AS13: =N13 -> 0 | AT13: =COUNTIF(L43:L49,AS13) -> 0 | AU13: =AT13/(AV4-AT8) ->  | AV13: =IF(AU13=0,0,(AU13*((LOG(AU13))/LOG(2)))) -> 
A14: 11 | B14: 720 | C14: 21 | D14: 738 | K14: 0 | L14: 12 | T14: =N14 -> 0 | U14: =COUNTIF(L7:L13,T14) -> 0 | V14: =U14/(W4-U8) -> 0 | W14: =IF(V14=0,0,(V14*((LOG(V14))/LOG(2)))) -> 0 | Y14: =N14 -> 0 | Z14: =COUNTIF(L14:L20,Y14) -> 0 | AA14: =Z14/(AB4-Z8) -> 0 | AB14: =IF(AA14=0,0,(AA14*((LOG(AA14))/LOG(2)))) -> 0 | AD14: =N14 -> 0 | AE14: =COUNTIF(L21:L28,AD14) -> 0 | AF14: =AE14/(AG4-AE8) -> 0 | AG14: =IF(AF14=0,0,(AF14*((LOG(AF14))/LOG(2)))) -> 0 | AI14: =N14 -> 0 | AJ14: =COUNTIF(L29:L35,AI14) -> 0 | AK14: =AJ14/(AL4-AJ8) ->  | AL14: =IF(AK14=0,0,(AK14*((LOG(AK14))/LOG(2)))) ->  | AN14: =N14 -> 0 | AO14: =COUNTIF(L36:L42,AN14) -> 0 | AP14: =AO14/(AQ4-AO8) ->  | AQ14: =IF(AP14=0,0,(AP14*((LOG(AP14))/LOG(2)))) ->  | AS14: =N14 -> 0 | AT14: =COUNTIF(L43:L49,AS14) -> 0 | AU14: =AT14/(AV4-AT8) ->  | AV14: =IF(AU14=0,0,(AU14*((LOG(AU14))/LOG(2)))) -> 
A15: 11 | B15: 820 | C15: 12 | D15: 827 | K15: 0 | L15: 11 | P15: =SUM(P7:P14) -> 1 | Q15: =-SUM(Q7:Q14) -> 0.4291223409 | V15: =SUM(V7:V14) -> 1 | W15: =-SUM(W7:W14) -> 0 | AA15: =SUM(AA7:AA14) -> 1 | AB15: =-SUM(AB7:AB14) -> 0 | AF15: =SUM(AF7:AF14) -> 1 | AG15: =-SUM(AG7:AG14) -> 0 | AK15: =SUM(AK7:AK14) ->  | AL15: =-SUM(AL7:AL14) ->  | AP15: =SUM(AP7:AP14) ->  | AQ15: =-SUM(AQ7:AQ14) ->  | AU15: =SUM(AU7:AU14) ->  | AV15: =-SUM(AV7:AV14) -> 
A16: 11 | B16: 914 | C16: 21 | D16: 932 | K16: 0 | L16: 12 | P16: U= | Q16: =Q15/(LOG(Q4)/LOG(2)) -> 0.07908245547 | V16: U1= | W16: =W15/(LOG(W4)/LOG(2)) -> 0 | AA16: U2= | AB16: =AB15/(LOG(AB4)/LOG(2)) -> 0 | AF16: U3= | AG16: =AG15/(LOG(AG4)/LOG(2)) -> 0 | AK16: U4= | AL16: =AL15/(LOG(AL4)/LOG(2)) ->  | AP16: U5= | AQ16: =AQ15/(LOG(AQ4)/LOG(2)) ->  | AU16: U6= | AV16: =AV15/(LOG(AV4)/LOG(2)) -> 
A17: 11 | B17: 1019 | C17: 21 | D17: 1027 | K17: 0 | L17: 12
A18: 11 | B18: 1113 | C18: 21 | D18: 1132 | K18: 0 | L18: 12
A19: 11 | B19: 1219 | C19: 21 | D19: 1227 | K19: 0 | L19: 12 | N19: Total Target Seq
